Workbook

Sheet Control
A2: Report date: | C2: 45586 | D2: =IF( ISNUMBER( MATCH( C_Rpt_dte, S4:S16, 0 )), "HOLIDAY", "" ) ->  | H2: Next day pricing:
A3: First month: | C3: 45597 | D3: =_xlfn.LET( _xlpm.eom, EOMONTH( C2, 0 ), IF( AND( C2 = WORKDAY.INTL( _xlpm.eom + 1, -1, 1, S4:S16 ), _xlpm.eom + 1 = C3 ), "roll the month!", "" )) ->  | G3: copy to prev | H3: Mid-C HL | I3: Mid-C LL | J3: AECO | K3: Malin | R3: holidays: | S3: observed
G4: current | H4: 65.95 | I4: 42.11 | J4: 0.95 | K4: 1.45 | R4: =DATE( YEAR( C_First_mth ) - 1, 1, 1 ) -> 2023-01-01 | S4: =R4 + ( WEEKDAY( R4 ) = 1 ) -> 2023-01-02
D5: click to update --> | E5: Update PPR | G5: previous | H5: 40.43 | I5: 24.21 | J5: 0.0382 | K5: 1.3559 | R5: =WORKDAY.INTL(DATE(YEAR(R4), 6, 1), -1, "0111111") -> 2023-05-29 | S5: 2023-05-29
D6: change old report positions --> | E6: update | H6: =C_NDP / NDP - 1 -> 0.6312144447 | I6: 0.7393638992 | J6: 23.86910995 | K6: 0.06940039826 | R6: =DATE( YEAR( R4 ), 7, 4 ) -> 2023-07-04 | S6: 2023-07-04
A7: select with 'x': | B7: =CHAR(63) -> ? | D7: last executed | E7: most recent data | R7: =WORKDAY.INTL(DATE(YEAR( R4 ), 9, 0), 1, "0111111") -> 2023-09-04 | S7: 2023-09-04
B8: x | C8: Hydro forecast | D8: 2024-10-22T08:09:11 | E8: =Hydro_publish_date[Last_updated] -> 2024-09-30T13:56:15 | R8: =WORKDAY.INTL(DATE(YEAR(R4), 11, 0), 4, "1110111") -> 2023-11-23 | S8: 2023-11-23
B9: x | C9: Historical loads | D9: 2024-10-22T08:09:43 | E9: =EOMONTH( MAX( Load_actuals[MTH] ), 0 ) -> 2024-09-30 | K9: Directions: | R9: =DATE( YEAR( R4 ), 12, 25 ) -> 2023-12-25 | S9: 2023-12-25
B10: x | C10: Deals & prices | K10: - hit 'copy to prev' link above | R10: =EDATE( R4, 12 ) -> 2024-01-01 | S10: 2024-01-01
C11: Power deals | D11: 2024-10-22T08:09:46 | E11: =MAX( PD[TRADE_DATE] ) -> 2024-10-15 | K11: - enter four 'Next Day' prices above on 'current' line | R11: =WORKDAY.INTL(DATE(YEAR(R10), 6, 1), -1, "0111111") -> 2024-05-27 | S11: 2024-05-27
C12: Gas deals | D12: 2024-10-22T08:09:48 | E12: =MAX( GD[TRADE_DATE] ) -> 2024-10-21 | K12: - change 'Report date' above and 'First month' if necessary | R12: =EDATE( R6, 12 ) -> 2024-07-04 | S12: 2024-07-04
C13: Fwd prices | D13: 2024-10-22T08:09:51 | E13: =MAX( FP[DY_DAY] ) -> 2024-10-21 | K13: - select items on menu with 'x' | R13: =WORKDAY.INTL(DATE(YEAR( R10 ), 9, 0), 1, "0111111") -> 2024-09-02 | S13: 2024-09-02
C14: Hist fwd prices | D14: 2024-10-22T08:11:08 | E14: =MAX( HFP[PRICEDTE] ) -> 2024-10-21 | K14: - every day: Deals & prices, Clearing, Report, Archive | R14: =WORKDAY.INTL(DATE(YEAR(R10), 11, 0), 4, "1110111") -> 2024-11-28 | S14: 2024-11-28
C15: Hist std deviations | D15: 2024-10-22T08:11:10 | K15: - occasionally: Hydro, Loads | R15: =EDATE( R9, 12 ) -> 2024-12-25 | S15: 2024-12-25
C16: Lanc DB dispatch | D16: 2024-10-22T08:15:15 | K16: - click 'Update PPR' link above | R16: =EDATE( R10, 12 ) -> 2025-01-01 | S16: 2025-01-01
C17: Colstrip dispatch | D17: 2024-10-22T08:15:16 | K17: - if this is the 1st attempt, select 'Yes' to 'move Current values to Previous'; otherwise probably 'No'
C18: next hedge plant | D18: 2024-10-22T08:15:32 | K18: - check for errors in 'Error checking' section
B19: x | C19: Clearing | D19: 2024-10-22T08:15:35 | E19: =MAX( Clearing[PROCESS_DATE] ) -> 2024-10-21 | K19: - look at charts vs. old PPR on 'output' tab
B20: x | C20: Report workbook | D20: 2024-10-22T08:16:41
B21: x | C21: Archive workbook | D21: 2024-10-16T15:22:18
B23: Error checking:
B24: =IFERROR( IF( ABS( SUM(_xlfn.ANCHORARRAY( output!D178),_xlfn.ANCHORARRAY( output!D179),_xlfn.ANCHORARRAY( output!D222),_xlfn.ANCHORARRAY( output!D223),_xlfn.ANCHORARRAY( output!D224),_xlfn.ANCHORARRAY( output!D225) )) > 1, 1, 0 ), 1 ) -> 0 | C24: Output | K24: Critical error handling:
B25: =IF( ISERROR( SUM( PriceRpt!F4:U30 )), 1, 0) -> 0 | C25: PriceRpt | K25: - if Excel crashes upon opening this file, restart Excel
B26: =IFERROR( IF( ABS( SUM( FinPos!C43:C44 )) > 1, 1, 0 ), 1 ) -> 0 | C26: FinPos | K26: File | Open | 'Open and Repair' (from button in Open dialog box)
B27: =IFERROR( IF( ABS( SUM( PwrPos!D344:D346 )) > 1, 1, 0), 1 ) -> 0 | C27: PwrPos | K27: save as same or different name.
B28: =IFERROR( IF( ABS( SUM( GasPos!D131:D136 )) > 1, 1, 0), 1 ) -> 0 | C28: GasPos
B29: =IF( ISERROR( SUM( GasRpt!P33:AE62 )), 1, 0 ) -> 0 | C29: GasRpt
B30: =IFERROR( IF( ISERROR( 'Clearing'!BY6 + 'Clearing'!CD10 ), 1, 0 ), 1 ) -> 0 | C30: Clearing
B31: =IF( ISERROR( SUM(_xlfn.ANCHORARRAY( Gas!F289),_xlfn.ANCHORARRAY( Gas!F362),_xlfn.ANCHORARRAY( Gas!F365),_xlfn.ANCHORARRAY( Gas!F381))), 1, 0 ) -> 0 | C31: Gas
B32: =IF( OR( LancDB!K5 > Solv_max_12m_hrs, LancDB!K6 - Solv_max_1m_pct > 0.01, LancDB!K5 < 0, LancDB!K6 < 0 ), 1, 0 ) -> 0 | C32: LancDB
B33: =IF( ISERROR( SUM( Colstrip!P15:Q126 )), 1, 0 ) -> 0 | C33: Colstrip
B34: =IF( "version: " & TEXT( C_Rpt_dte, "m/d/yy" ) <> Forecast!B5, 1, 0 ) -> 0 | C34: Forecast

Sheet output
B1: =MATCH( First_mth,_xlfn.ANCHORARRAY( D1), 0 ) -> 2 | C1: =nCol + bCol - 1 -> 42 | D1: =_xlfn.ANCHORARRAY(Gas!F17) -> 2024-10-01 | E1: 2024-11-01 | F1: 2024-12-01 | G1: 2025-01-01 | H1: 2025-02-01 | I1: 2025-03-01 | J1: 2025-04-01 | K1: 2025-05-01 | L1: 2025-06-01 | M1: 2025-07-01 | N1: 2025-08-01 | O1: 2025-09-01 | P1: 2025-10-01 | Q1: 2025-11-01 | R1: 2025-12-01 | S1: 2026-01-01 | T1: 2026-02-01 | U1: 2026-03-01 | V1: 2026-04-01 | W1: 2026-05-01 | X1: 2026-06-01 | Y1: 2026-07-01 | Z1: 2026-08-01 | AA1: 2026-09-01 | AB1: 2026-10-01 | AC1: 2026-11-01 | AD1: 2026-12-01 | AE1: 2027-01-01 | AF1: 2027-02-01 | AG1: 2027-03-01 | AH1: 2027-04-01 | AI1: 2027-05-01 | AJ1: 2027-06-01 | AK1: 2027-07-01 | AL1: 2027-08-01 | AM1: 2027-09-01 | AN1: 2027-10-01 | AO1: 2027-11-01 | AP1: 2027-12-01 | AQ1: 2028-01-01 | AR1: 2028-02-01 | AS1: 2028-03-01 | AT1: 2028-04-01 | AU1: 2028-05-01 | AV1: 2028-06-01 | AW1: 2028-07-01 | AX1: 2028-08-01 | AY1: 2028-09-01 | AZ1: 2028-10-01 | BA1: 2028-11-01 | BB1: 2028-12-01
D2: =YEAR(_xlfn.ANCHORARRAY( D1) ) -> 2024 | E2: 2024 | F2: 2024 | G2: 2025 | H2: 2025 | I2: 2025 | J2: 2025 | K2: 2025 | L2: 2025 | M2: 2025 | N2: 2025 | O2: 2025 | P2: 2025 | Q2: 2025 | R2: 2025 | S2: 2026 | T2: 2026 | U2: 2026 | V2: 2026 | W2: 2026 | X2: 2026 | Y2: 2026 | Z2: 2026 | AA2: 2026 | AB2: 2026 | AC2: 2026 | AD2: 2026 | AE2: 2027 | AF2: 2027 | AG2: 2027 | AH2: 2027 | AI2: 2027 | AJ2: 2027 | AK2: 2027 | AL2: 2027 | AM2: 2027 | AN2: 2027 | AO2: 2027 | AP2: 2027 | AQ2: 2028 | AR2: 2028 | AS2: 2028 | AT2: 2028 | AU2: 2028 | AV2: 2028 | AW2: 2028 | AX2: 2028 | AY2: 2028 | AZ2: 2028 | BA2: 2028 | BB2: 2028
B7: financial
B67: volumetric
K116: save:
M117: =YEAR( First_mth ) -> 2024 | N117: change | O117: =M117 + 1 -> 2025 | P117: change | Q117: =O117 + 1 -> 2026 | R117: change
L118: Heat rate | M118: =SUMIFS(_xlfn.ANCHORARRAY( FinPos!$D$7),_xlfn.ANCHORARRAY( FinPos!$D$3), M$117,_xlfn.ANCHORARRAY( FinPos!D4), ">=" & First_mth ) -> 4525056.755 | N118: =SUMIFS(_xlfn.ANCHORARRAY( FinPos!$D$19),_xlfn.ANCHORARRAY( FinPos!$D$3), M$117,_xlfn.ANCHORARRAY( FinPos!D4), ">=" & First_mth ) -> -442210.1044 | O118: =SUMIF(_xlfn.ANCHORARRAY( FinPos!$D$3), O$117,_xlfn.ANCHORARRAY( FinPos!$D$7) ) -> 114259088.4 | P118: =SUMIF(_xlfn.ANCHORARRAY( FinPos!$D$3), O$117,_xlfn.ANCHORARRAY( FinPos!$D$19) ) -> -2520886.124 | Q118: =SUMIF(_xlfn.ANCHORARRAY( FinPos!$D$3), Q$117,_xlfn.ANCHORARRAY( FinPos!$D$7) ) -> 87300263.09 | R118: =SUMIF(_xlfn.ANCHORARRAY( FinPos!$D$3), Q$117,_xlfn.ANCHORARRAY( FinPos!$D$19) ) -> -806204.3935
L119: Power for load | M119: =SUMIFS(_xlfn.ANCHORARRAY( FinPos!$D$5),_xlfn.ANCHORARRAY( FinPos!$D$3), M$117,_xlfn.ANCHORARRAY( FinPos!D4), ">=" & First_mth ) -> 0 | N119: =SUMIFS(_xlfn.ANCHORARRAY( FinPos!$D$17),_xlfn.ANCHORARRAY( FinPos!$D$3), M$117,_xlfn.ANCHORARRAY( FinPos!D4), ">=" & First_mth ) -> 0 | O119: =SUMIF(_xlfn.ANCHORARRAY( FinPos!$D$3), O$117,_xlfn.ANCHORARRAY( FinPos!$D$5) ) -> 8833452.709 | P119: =SUMIF(_xlfn.ANCHORARRAY( FinPos!$D$3), O$117,_xlfn.ANCHORARRAY( FinPos!$D$17) ) -> 3831.137231 | Q119: =SUMIF(_xlfn.ANCHORARRAY( FinPos!$D$3), Q$117,_xlfn.ANCHORARRAY( FinPos!$D$5) ) -> 15914284.87 | R119: =SUMIF(_xlfn.ANCHORARRAY( FinPos!$D$3), Q$117,_xlfn.ANCHORARRAY( FinPos!$D$17) ) -> -61669.31651
L120: Gas for load | M120: =SUMIFS(_xlfn.ANCHORARRAY( FinPos!$D$6),_xlfn.ANCHORARRAY( FinPos!$D$3), M$117,_xlfn.ANCHORARRAY( FinPos!D4), ">=" & First_mth ) -> -1576330.458 | N120: =SUMIFS(_xlfn.ANCHORARRAY( FinPos!$D$18),_xlfn.ANCHORARRAY( FinPos!$D$3), M$117,_xlfn.ANCHORARRAY( FinPos!D4), ">=" & First_mth ) -> 284001.3872 | O120: =SUMIF(_xlfn.ANCHORARRAY( FinPos!$D$3), O$117,_xlfn.ANCHORARRAY( FinPos!$D$6) ) -> -8470914.433 | P120: =SUMIF(_xlfn.ANCHORARRAY( FinPos!$D$3), O$117,_xlfn.ANCHORARRAY( FinPos!$D$18) ) -> 24202.51841 | Q120: =SUMIF(_xlfn.ANCHORARRAY( FinPos!$D$3), Q$117,_xlfn.ANCHORARRAY( FinPos!$D$6) ) -> -40003302.85 | R120: =SUMIF(_xlfn.ANCHORARRAY( FinPos!$D$3), Q$117,_xlfn.ANCHORARRAY( FinPos!$D$18) ) -> -1834.05157
L121: ="Total " & TEXT( Rpt_dte, "m/d/yy" ) -> Total 10/21/24 | M121: =SUMIFS(_xlfn.ANCHORARRAY( FinPos!$D$8),_xlfn.ANCHORARRAY( FinPos!$D$3), M$117,_xlfn.ANCHORARRAY( FinPos!D4), ">=" & First_mth ) -> 2948726.297 | N121: =SUMIFS(_xlfn.ANCHORARRAY( FinPos!$D$20),_xlfn.ANCHORARRAY( FinPos!$D$3), M$117,_xlfn.ANCHORARRAY( FinPos!D4), ">=" & First_mth ) -> -158208.7172 | O121: =SUMIF(_xlfn.ANCHORARRAY( FinPos!$D$3), O$117,_xlfn.ANCHORARRAY( FinPos!$D$8) ) -> 114621626.7 | P121: =SUMIF(_xlfn.ANCHORARRAY( FinPos!$D$3), O$117,_xlfn.ANCHORARRAY( FinPos!$D$20) ) -> -2492852.468 | Q121: =SUMIF(_xlfn.ANCHORARRAY( FinPos!$D$3), Q$117,_xlfn.ANCHORARRAY( FinPos!$D$8) ) -> 63211245.11 | R121: =SUMIF(_xlfn.ANCHORARRAY( FinPos!$D$3), Q$117,_xlfn.ANCHORARRAY( FinPos!$D$20) ) -> -869707.7615
L122: FCM clearing | M122: all yrs -> | N122: ='Clearing'!CD12 * 1000 -> -398422.74 | O122: ="CASH " & IF( N122 < 0, "IN", "OUT" ) -> CASH IN | P122: ='Clearing'!CD10 * 1000 -> -398422.74 | Q122: =IF( P122 > 0, "INCR", "DECR" ) & " BALANCE" -> DECR BALANCE
B126: Total hours | D126: =_xlfn.ANCHORARRAY(PwrPos!H7) -> 744 | E126: 721 | F126: 744 | G126: 744 | H126: 672 | I126: 743 | J126: 720 | K126: 744 | L126: 720 | M126: 744 | N126: 744 | O126: 720 | P126: 744 | Q126: 721 | R126: 744 | S126: 744 | T126: 672 | U126: 743 | V126: 720 | W126: 744 | X126: 720 | Y126: 744 | Z126: 744 | AA126: 720 | AB126: 744 | AC126: 721 | AD126: 744 | AE126: 744 | AF126: 672 | AG126: 743 | AH126: 720 | AI126: 744 | AJ126: 720 | AK126: 744 | AL126: 744 | AM126: 720 | AN126: 744 | AO126: 721 | AP126: 744 | AQ126: 744 | AR126: 696 | AS126: 743 | AT126: 720 | AU126: 744 | AV126: 720 | AW126: 744 | AX126: 744 | AY126: 720 | AZ126: 744 | BA126: 721 | BB126: 744
B127: HL hours | D127: =_xlfn.ANCHORARRAY(PwrPos!H5) -> 432 | E127: 400 | F127: 400 | G127: 416 | H127: 384 | I127: 416 | J127: 416 | K127: 416 | L127: 400 | M127: 416 | N127: 416 | O127: 400 | P127: 432 | Q127: 384 | R127: 416 | S127: 416 | T127: 384 | U127: 416 | V127: 416 | W127: 400 | X127: 416 | Y127: 416 | Z127: 416 | AA127: 400 | AB127: 432 | AC127: 384 | AD127: 416 | AE127: 400 | AF127: 384 | AG127: 432 | AH127: 416 | AI127: 400 | AJ127: 416 | AK127: 416 | AL127: 416 | AM127: 400 | AN127: 416 | AO127: 400 | AP127: 416 | AQ127: 400 | AR127: 400 | AS127: 432 | AT127: 400 | AU127: 416 | AV127: 416 | AW127: 400 | AX127: 432 | AY127: 400 | AZ127: 416 | BA127: 400 | BB127: 400
B128: LL hours | D128: =_xlfn.ANCHORARRAY(PwrPos!H6) -> 312 | E128: 321 | F128: 344 | G128: 328 | H128: 288 | I128: 327 | J128: 304 | K128: 328 | L128: 320 | M128: 328 | N128: 328 | O128: 320 | P128: 312 | Q128: 337 | R128: 328 | S128: 328 | T128: 288 | U128: 327 | V128: 304 | W128: 344 | X128: 304 | Y128: 328 | Z128: 328 | AA128: 320 | AB128: 312 | AC128: 337 | AD128: 328 | AE128: 344 | AF128: 288 | AG128: 311 | AH128: 304 | AI128: 344 | AJ128: 304 | AK128: 328 | AL128: 328 | AM128: 320 | AN128: 328 | AO128: 321 | AP128: 328 | AQ128: 344 | AR128: 296 | AS128: 311 | AT128: 320 | AU128: 328 | AV128: 304 | AW128: 344 | AX128: 312 | AY128: 320 | AZ128: 328 | BA128: 321 | BB128: 344
B129: days | D129: =_xlfn.ANCHORARRAY(Gas!F11) -> 31 | E129: 30 | F129: 31 | G129: 31 | H129: 28 | I129: 31 | J129: 30 | K129: 31 | L129: 30 | M129: 31 | N129: 31 | O129: 30 | P129: 31 | Q129: 30 | R129: 31 | S129: 31 | T129: 28 | U129: 31 | V129: 30 | W129: 31 | X129: 30 | Y129: 31 | Z129: 31 | AA129: 30 | AB129: 31 | AC129: 30 | AD129: 31 | AE129: 31 | AF129: 28 | AG129: 31 | AH129: 30 | AI129: 31 | AJ129: 30 | AK129: 31 | AL129: 31 | AM129: 30 | AN129: 31 | AO129: 30 | AP129: 31 | AQ129: 31 | AR129: 29 | AS129: 31 | AT129: 30 | AU129: 31 | AV129: 30 | AW129: 31 | AX129: 31 | AY129: 30 | AZ129: 31 | BA129: 30 | BB129: 31
A131: Power vol pos | B131: Mid-C HL vol pos | C131: MW | D131: =_xlfn.ANCHORARRAY(PwrPos!H124) -> -21.0378672 | E131: 94.17262562 | F131: 148.6119052 | G131: 311.0616295 | H131: 314.6195088 | I131: 467.0283538 | J131: 445.3100779 | K131: 339.5365202 | L131: 674.4021577 | M131: 528.6899375 | N131: 284.3298172 | O131: 408.0790108 | P131: 355.081626 | Q131: 352.6973812 | R131: 324.567507 | S131: 224.7405425 | T131: 245.0368273 | U131: 419.9293146 | V131: 313.7182721 | W131: 696.9868656 | X131: 762.362198 | Y131: 399.4723627 | Z131: 153.8768979 | AA131: 256.636955 | AB131: 293.7691859 | AC131: 263.3356533 | AD131: 186.731139 | AE131: 164.2208138 | AF131: 191.8861355 | AG131: 418.5320537 | AH131: 514.3813832 | AI131: 549.6401095 | AJ131: 605.7443255 | AK131: 373.4671694 | AL131: 125.0665522 | AM131: 227.4293355 | AN131: 257.7046316 | AO131: 215.2132996 | AP131: 139.4539555 | AQ131: 178.2617459 | AR131: 199.3236615 | AS131: 438.0408004 | AT131: 622.1337127 | AU131: 670.4147265 | AV131: 632.4884942 | AW131: 357.945017 | AX131: 122.039872 | AY131: 229.6754074 | AZ131: 258.7391564 | BA131: 211.2382447 | BB131: 138.1400306
B132: Mid-C LL vol pos | C132: MW | D132: =_xlfn.ANCHORARRAY(PwrPos!H163) -> 3.907132111 | E132: 140.93843 | F132: 183.732972 | G132: 285.9066495 | H132: 296.745595 | I132: 376.2149402 | J132: 403.0395998 | K132: 387.8537938 | L132: 747.4808751 | M132: 348.160138 | N132: 394.8193253 | O132: 442.8077975 | P132: 377.2934873 | Q132: 257.3968467 | R132: 258.6842085 | S132: 221.2526945 | T132: 258.5130023 | U132: 308.7797238 | V132: 166.5361946 | W132: 655.6188643 | X132: 746.452314 | Y132: 377.3842375 | Z132: 271.7498522 | AA132: 316.156975 | AB132: 308.0142462 | AC132: 212.4239243 | AD132: 168.8238296 | AE132: 165.9195604 | AF132: 186.6471135 | AG132: 341.7491263 | AH132: 376.2230797 | AI132: 540.3179739 | AJ132: 634.2607152 | AK132: 388.161848 | AL132: 258.7115059 | AM132: 292.5597895 | AN132: 272.9270424 | AO132: 162.7566334 | AP132: 125.3881408 | AQ132: 131.2716959 | AR132: 160.6222491 | AS132: 358.538898 | AT132: 503.3453544 | AU132: 654.6514042 | AV132: 692.6179636 | AW132: 381.8425144 | AX132: 260.8739339 | AY132: 291.0841419 | AZ132: 272.3363486 | BA132: 140.357217 | BB132: 114.4837339
A134: Gas vol pos | B134: AECO vol pos | C134: dth/dy | D134: =_xlfn.ANCHORARRAY(Gas!F293) -> -246.7881207 | E134: 1279.289299 | F134: 1788.889299 | G134: -1194.981669 | H134: -6978.967844 | I134: -694.9816691 | J134: -43711.1107 | K134: -50711.1107 | L134: -48211.1107 | M134: -38211.1107 | N134: -35711.1107 | O134: -35711.1107 | P134: -27211.1107 | Q134: -17211.1107 | R134: -26211.1107 | S134: -28211.1107 | T134: -28211.1107 | U134: -28211.1107 | V134: -55711.1107 | W134: -55711.1107 | X134: -55711.1107 | Y134: -45711.1107 | Z134: -45711.1107 | AA134: -45711.1107 | AB134: -50711.1107 | AC134: -38211.1107 | AD134: -38211.1107 | AE134: -43211.1107 | AF134: -43211.1107 | AG134: -43211.1107 | AH134: -65711.1107 | AI134: -65711.1107 | AJ134: -65711.1107 | AK134: -63211.1107 | AL134: -63211.1107 | AM134: -63211.1107 | AN134: -65711.1107 | AO134: -70711.1107 | AP134: -70711.1107 | AQ134: -70711.1107 | AR134: -70711.1107 | AS134: -70711.1107 | AT134: -70711.1107 | AU134: -70711.1107 | AV134: -70711.1107 | AW134: -70711.1107 | AX134: -70711.1107 | AY134: -70711.1107 | AZ134: -70711.1107 | BA134: -70711.1107 | BB134: -70711.1107
B135: Malin vol pos | C135: dth/dy | D135: =_xlfn.ANCHORARRAY(Gas!F294) -> -27659.55835 | E135: -38275.63161 | F135: -51724.74475 | G135: -70644.94176 | H135: -66604.45908 | I135: -61820.86633 | J135: -11328.21236 | K135: 45720.6893 | L135: -11732.04677 | M135: -35051.9027 | N135: -53798.69732 | O135: -55476.26891 | P135: -55203.21024 | Q135: -65294.10591 | R135: -68305.55966 | S135: -72272.34798 | T135: -69018.71299 | U135: -52913.02491 | V135: 21602.71184 | W135: 10488.20902 | X135: -6876.576132 | Y135: -54746.29791 | Z135: -58436.9342 | AA135: -61801.91199 | AB135: -60370.46209 | AC135: -67595.44673 | AD135: -70782.03649 | AE135: -71531.07665 | AF135: -68414.99815 | AG135: -65197.80354 | AH135: -13313.13775 | AI135: 26575.83179 | AJ135: 13748.21868 | AK135: -58767.82091 | AL135: -59707.72642 | AM135: -62866.21793 | AN135: -60438.75195 | AO135: -67804.67135 | AP135: -70931.06804 | AQ135: -65711.26792 | AR135: -59928.87491 | AS135: -63886.30557 | AT135: -35520.02215 | AU135: 7023.749924 | AV135: 2065.620484 | AW135: -58800.31876 | AX135: -59786.53302 | AY135: -62756.27397 | AZ135: -60309.60036 | BA135: -64205.51673 | BB135: -70816.33353
A137: Financial pos | B137: Mid-C HL fin pos | C137: $ | D137: =_xlfn.ANCHORARRAY(PwrPos!H125) -> -503811.4776 | E137: 2318530.043 | F137: 5751280.731 | G137: 12875462.97 | H137: 10208773.82 | I137: 9131338.373 | J137: 7808245.03 | K137: 4230353.413 | L137: 10102544.32 | M137: 15901301.51 | N137: 13383518.23 | O137: 13042205.19 | P137: 9617882.956 | Q137: 9609169.611 | R137: 13974578.58 | S137: 10380424.05 | T137: 8892837.329 | U137: 10074406.61 | V137: 4964478.717 | W137: 8182625.802 | X137: 10890679.44 | Y137: 13625139.43 | Z137: 7446607.805 | AA137: 8270895.785 | AB137: 9744018.376 | AC137: 8371798.554 | AD137: 7955224.553 | AE137: 6684444.004 | AF137: 6445900.468 | AG137: 11475747.12 | AH137: 7358863.519 | AI137: 6976032.27 | AJ137: 8257700.484 | AK137: 14529486.27 | AL137: 7001885.943 | AM137: 8716001.855 | AN137: 7919242.711 | AO137: 6979797.731 | AP137: 5508899.808 | AQ137: 6211352.273 | AR137: 5984493.613 | AS137: 11723023.12 | AT137: 13358455.08 | AU137: 14095228.27 | AV137: 13795130.65 | AW137: 13775156.03 | AX137: 6902789.951 | AY137: 9024406.109 | AZ137: 7177134.412 | BA137: 6152947.591 | BB137: 4802852.583
A138: vs. old PPR | B138: Mid-C LL fin pos | C138: $ | D138: =_xlfn.ANCHORARRAY(PwrPos!H164) -> 46861.51739 | E138: 2126338.093 | F138: 4929923.105 | G138: 7535012.567 | H138: 5587553.377 | I138: 5185389.332 | J138: 4176844.467 | K138: 2647365.883 | L138: 5831546.796 | M138: 3714812.967 | N138: 7377657.084 | O138: 6231899.819 | P138: 5463179.513 | Q138: 5636543.073 | R138: 7397933.773 | S138: 7013975.917 | T138: 6206297.435 | U138: 4727460.801 | V138: 1786120.671 | W138: 5832280.518 | X138: 6104188.443 | Y138: 5970007.302 | Z138: 5173334.547 | AA138: 5025125.424 | AB138: 6319565.252 | AC138: 5041862.724 | AD138: 4735049.218 | AE138: 5042693.647 | AF138: 4203054.087 | AG138: 6155968.022 | AH138: 3828024.689 | AI138: 5538907.615 | AJ138: 5209868.256 | AK138: 8293434.992 | AL138: 6348180.145 | AM138: 6576744.069 | AN138: 6237758.472 | AO138: 3975835.316 | AP138: 3529957.032 | AQ138: 3436031.389 | AR138: 3205429.001 | AS138: 6269959.735 | AT138: 7533267.912 | AU138: 8578290.14 | AV138: 8489612.313 | AW138: 10418985.39 | AX138: 7302550.116 | AY138: 7910036.907 | AZ138: 5608799.779 | BA138: 3079937.014 | BB138: 3158075.015
B139: AECO fin pos | C139: $ | D139: =_xlfn.ANCHORARRAY(Gas!F295) -> -6600.447004 | E139: 52271.76074 | F139: 89671.65387 | G139: -62642.13408 | H139: -327899.8252 | I139: -32682.90295 | J139: -1858159.316 | K139: -2147412.694 | L139: -2071872.482 | M139: -1779185.736 | N139: -1738613.28 | O139: -1714133.314 | P139: -1478311.617 | Q139: -1140580.306 | R139: -1977326.875 | S139: -2233586.479 | T139: -1996105.349 | U139: -1975595.871 | V139: -3348516.309 | W139: -3348739.153 | X139: -3255757.309 | Y139: -2773864.475 | Z139: -2766779.253 | AA139: -2684384.976 | AB139: -3291075.018 | AC139: -2956393.635 | AD139: -3293625.792 | AE139: -3797608.464 | AF139: -3386541.168 | AG139: -3300637.48 | AH139: -3847056.976 | AI139: -3757328.454 | AJ139: -3797773.643 | AK139: -3940643.852 | AL139: -4068994.013 | AM139: -3933943.474 | AN139: -4551775.783 | AO139: -5428491.969 | AP139: -6179373.253 | AQ139: -6402961.785 | AR139: -5861703.588 | AS139: -5224737.903 | AT139: -4159934.643 | AU139: -4179132.709 | AV139: -4331762.642 | AW139: -4767696.639 | AX139: -4866338.638 | AY139: -4677539.973 | AZ139: -5165552.703 | BA139: -5446523.302 | BB139: -6404057.807
B140: Malin fin pos | C140: $ | D140: =_xlfn.ANCHORARRAY(Gas!F296) -> -1908786.122 | E140: -3705463.896 | F140: -8613825.193 | G140: -12151177.24 | H140: -8985207.947 | I140: -5628604.417 | J140: -779777.4976 | K140: 3073504.757 | L140: -849106.8847 | M140: -3381527.157 | N140: -5400205.64 | O140: -5271632.453 | P140: -4795916.897 | Q140: -8229995.58 | R140: -13321018.55 | S140: -13670061.67 | T140: -10425000.52 | U140: -6022375.3 | V140: 1709962.656 | W140: 863719.7448 | X140: -580314.2598 | Y140: -5715102.905 | Z140: -6218128.076 | AA140: -6271349.019 | AB140: -6201163.31 | AC140: -9523860.466 | AD140: -13545062.85 | AE140: -14108610.73 | AF140: -10859649.49 | AG140: -7865234.827 | AH140: -1172820.87 | AI140: 2436126.773 | AJ140: 1271985.193 | AK140: -5968224.821 | AL140: -6171032.357 | AM140: -6265247.279 | AN140: -6317783.619 | AO140: -9843204.139 | AP140: -13306420.11 | AQ140: -12550260.77 | AR140: -9595152.233 | AS140: -7899126.423 | AT140: -3035363.493 | AU140: 627406.9976 | AV140: 188508.5254 | AW140: -5951474.263 | AX140: -6143963.066 | AY140: -6217577.844 | AZ140: -6247260.417 | BA140: -9924567.748 | BB140: -12225661
B141: Total fin pos | C141: $ | D141: =_xlfn.ANCHORARRAY(D137) +_xlfn.ANCHORARRAY( D138) +_xlfn.ANCHORARRAY( D139) +_xlfn.ANCHORARRAY( D140) -> -2372336.529 | E141: 791676.0003 | F141: 2157050.297 | G141: 8196656.162 | H141: 6483219.426 | I141: 8655440.385 | J141: 9347152.683 | K141: 7803811.359 | L141: 13013111.75 | M141: 14455401.58 | N141: 13622356.39 | O141: 12288339.24 | P141: 8806833.955 | Q141: 5875136.798 | R141: 6074166.931 | S141: 1490751.825 | T141: 2678028.893 | U141: 6803896.236 | V141: 5112045.735 | W141: 11529886.91 | X141: 13158796.31 | Y141: 11106179.35 | Z141: 3635035.023 | AA141: 4340287.214 | AB141: 6571345.3 | AC141: 933407.1771 | AD141: -4148414.87 | AE141: -6179081.543 | AF141: -3597236.099 | AG141: 6465842.838 | AH141: 6167010.362 | AI141: 11193738.2 | AJ141: 10941780.29 | AK141: 12914052.59 | AL141: 3110039.719 | AM141: 5093555.171 | AN141: 3287441.782 | AO141: -4316063.06 | AP141: -10446936.52 | AQ141: -9305838.894 | AR141: -6266933.206 | AS141: 4869118.526 | AT141: 13696424.86 | AU141: 19121792.7 | AV141: 18141488.84 | AW141: 13474970.53 | AX141: 3195038.363 | AY141: 6039325.199 | AZ141: 1373121.07 | BA141: -6138206.445 | BB141: -10668791.21
A143: Heat Rate | B143: Power4HR pos | C143: $ | D143: =_xlfn.ANCHORARRAY(Gas!F280) +_xlfn.ANCHORARRAY( Gas!F281) -> 46861.51739 | E143: 4444868.136 | F143: 10681203.84 | G143: 20410475.54 | H143: 15796327.2 | I143: 14316727.7 | J143: 11964890.26 | K143: 2923972.221 | L143: 11074584.72 | M143: 19616114.48 | N143: 20761175.31 | O143: 19274105.01 | P143: 15081062.47 | Q143: 15245712.68 | R143: 21372512.36 | S143: 17394399.97 | T143: 15099134.76 | U143: 14801867.41 | V143: 5367493.264 | W143: 6854431.816 | X143: 9624163.635 | Y143: 19595146.73 | Z143: 12619942.35 | AA143: 13296021.21 | AB143: 16063583.63 | AC143: 13413661.28 | AD143: 12690273.77 | AE143: 11727137.65 | AF143: 10648954.55 | AG143: 17631715.14 | AH143: 10481707.1 | AI143: 5393956.858 | AJ143: 7013830.627 | AK143: 22822921.26 | AL143: 13350066.09 | AM143: 15292745.92 | AN143: 14157001.18 | AO143: 10955633.05 | AP143: 9038856.84 | AQ143: 9647383.662 | AR143: 9189922.615 | AS143: 17992982.85 | AT143: 19304137.42 | AU143: 11250441.01 | AV143: 12429394.32 | AW143: 24194141.43 | AX143: 14205340.07 | AY143: 16934443.02 | AZ143: 12785934.19 | BA143: 9232884.605 | BB143: 7960927.598
A144: margin | B144: Gas4HR pos | C144: $ | D144: =_xlfn.ANCHORARRAY(GasPos!E54) -> -28873.36136 | E144: -3093787.824 | F144: -7507227.393 | G144: -11640640.17 | H144: -8712891.313 | I144: -5661287.32 | J144: -2637936.814 | K144: 926092.0632 | L144: -2920979.367 | M144: -5160712.894 | N144: -5901436.487 | O144: -6794064.591 | P144: -6051089.01 | Q144: -7964701.318 | R144: -11058924.33 | S144: -8960261.898 | T144: -7759018.207 | U144: -7654403.541 | V144: -1638553.653 | W144: -2485019.408 | X144: -3836071.569 | Y144: -6969731.213 | Z144: -4451169.829 | AA144: -5485875.461 | AB144: -5906493.677 | AC144: -6959067.361 | AD144: -7414190.92 | AE144: -7034607.58 | AF144: -6365803.71 | AG144: -8564651.904 | AH144: -4949347.516 | AI144: -1321201.681 | AJ144: -2525788.45 | AK144: -6714669.23 | AL144: -3938406.395 | AM144: -5011202.308 | AN144: -5457736.494 | AO144: -5594111.118 | AP144: -5061096.705 | AQ144: -5864480.175 | AR144: -5456028.525 | AS144: -8397396.31 | AT144: -6956553.833 | AU144: -3551725.712 | AV144: -4143254.116 | AW144: -6701456.82 | AX144: -3918629.399 | AY144: -5071554.176 | AZ144: -5526888.327 | BA144: -5387466.38 | BB144: -4622184.104
B145: open HR pos | C145: $ | D145: =_xlfn.ANCHORARRAY(D143) +_xlfn.ANCHORARRAY( D144) -> 17988.15603 | E145: 1351080.311 | F145: 3173976.444 | G145: 8769835.364 | H145: 7083435.885 | I145: 8655440.385 | J145: 9326953.451 | K145: 3850064.284 | L145: 8153605.348 | M145: 14455401.58 | N145: 14859738.82 | O145: 12480040.41 | P145: 9029973.459 | Q145: 7281011.366 | R145: 10313588.02 | S145: 8434138.072 | T145: 7340116.558 | U145: 7147463.867 | V145: 3728939.611 | W145: 4369412.408 | X145: 5788092.066 | Y145: 12625415.52 | Z145: 8168772.523 | AA145: 7810145.748 | AB145: 10157089.95 | AC145: 6454593.917 | AD145: 5276082.851 | AE145: 4692530.071 | AF145: 4283150.845 | AG145: 9067063.24 | AH145: 5532359.586 | AI145: 4072755.177 | AJ145: 4488042.176 | AK145: 16108252.03 | AL145: 9411659.693 | AM145: 10281543.62 | AN145: 8699264.69 | AO145: 5361521.929 | AP145: 3977760.135 | AQ145: 3782903.487 | AR145: 3733894.09 | AS145: 9595586.543 | AT145: 12347583.59 | AU145: 7698715.296 | AV145: 8286140.205 | AW145: 17492684.61 | AX145: 10286710.67 | AY145: 11862888.84 | AZ145: 7259045.864 | BA145: 3845418.225 | BB145: 3338743.494
B147: hedged HR pwr pos | C147: $ | D147: =SUMIFS( PD[DOLLARS], PD[PORTFOLIO], "HEAT RATE BOOK", PD[CM],_xlfn.ANCHORARRAY( D1) ) -> 16466814 | E147: 14413150 | F147: 10292700 | G147: 4410000 | H147: 5365800 | I147: 6640031.25 | J147: 951900 | K147: 592450 | L147: 578000 | M147: 592450 | N147: 592450 | O147: 578000 | P147: 5932950 | Q147: 5403443.75 | R147: 2255050 | S147: 0 | T147: 0 | U147: 0 | V147: 0 | W147: 0 | X147: 0 | Y147: 0 | Z147: 0 | AA147: 0 | AB147: 0 | AC147: 0 | AD147: 0 | AE147: 0 | AF147: 0 | AG147: 0 | AH147: 0 | AI147: 0 | AJ147: 0 | AK147: 0 | AL147: 0 | AM147: 0 | AN147: 0 | AO147: 0 | AP147: 0 | AQ147: 0 | AR147: 0 | AS147: 0 | AT147: 0 | AU147: 0 | AV147: 0 | AW147: 0 | AX147: 0 | AY147: 0 | AZ147: 0 | BA147: 0 | BB147: 0
B148: hedged HR gas pos | C148: $ | D148: =SUMIFS( GD[DOLLARS], GD[PORTFOLIO], "HEAT RATE BOOK", GD[CM],_xlfn.ANCHORARRAY( D1) ) + ( D211:INDEX( D211:BN211, nCol ) *_xlfn.ANCHORARRAY( Gas!F2) + D212:INDEX( D212:BN212, nCol ) *_xlfn.ANCHORARRAY( Gas!F1) ) *_xlfn.ANCHORARRAY( D129) -> -3439320.967 | E148: -3379722.75 | F148: -1573562.5 | G148: -352162.5 | H148: -589212.5 | I148: -1234771.25 | J148: -459225 | K148: -347432.5 | L148: -336225 | M148: -347432.5 | N148: -347432.5 | O148: -336225 | P148: -1569220 | Q148: -1349850 | R148: -710132.5 | S148: 0 | T148: 0 | U148: 0 | V148: 0 | W148: 0 | X148: 0 | Y148: 0 | Z148: 0 | AA148: 0 | AB148: 0 | AC148: 0 | AD148: 0 | AE148: 0 | AF148: 0 | AG148: 0 | AH148: 0 | AI148: 0 | AJ148: 0 | AK148: 0 | AL148: 0 | AM148: 0 | AN148: 0 | AO148: 0 | AP148: 0 | AQ148: 0 | AR148: 0
B149: hedged HR pos | C149: $ | D149: =_xlfn.ANCHORARRAY(D147) +_xlfn.ANCHORARRAY( D148) -> 13027493.03 | E149: 11033427.25 | F149: 8719137.5 | G149: 4057837.5 | H149: 4776587.5 | I149: 5405260 | J149: 492675 | K149: 245017.5 | L149: 241775 | M149: 245017.5 | N149: 245017.5 | O149: 241775 | P149: 4363730 | Q149: 4053593.75 | R149: 1544917.5 | S149: 0 | T149: 0 | U149: 0 | V149: 0 | W149: 0 | X149: 0 | Y149: 0 | Z149: 0 | AA149: 0 | AB149: 0 | AC149: 0 | AD149: 0 | AE149: 0 | AF149: 0 | AG149: 0 | AH149: 0 | AI149: 0 | AJ149: 0 | AK149: 0 | AL149: 0 | AM149: 0 | AN149: 0 | AO149: 0 | AP149: 0 | AQ149: 0 | AR149: 0
A151: hedged % | B151: Power4HR FL vol pos | C151: MW | D151: =(_xlfn.ANCHORARRAY( Gas!F278) +_xlfn.ANCHORARRAY( Gas!F279) ) /_xlfn.ANCHORARRAY( D126) -> 1.638474756 | E151: 114.9934622 | F151: 164.850678 | G151: 299.9717996 | H151: 306.95926 | I151: 427.0606738 | J151: 426.7969558 | K151: 145.4650504 | L151: 466.268392 | M151: 449.1015312 | N151: 333.0402455 | O151: 423.5140271 | P151: 364.3962776 | Q151: 308.1533034 | R151: 295.5221819 | S151: 223.2028891 | T151: 250.8123309 | U151: 371.011527 | V151: 201.0757606 | W151: 330.370049 | X151: 421.0075205 | Y151: 389.7345871 | Z151: 205.8423939 | AA151: 283.0902972 | AB151: 299.7429209 | AC151: 239.5391863 | AD151: 178.8365187 | AE151: 165.0062558 | AF151: 189.6408404 | AG151: 386.3927665 | AH151: 427.5681389 | AI151: 234.8237866 | AJ151: 316.8615807 | AK151: 379.9454686 | AL151: 183.9852952 | AM151: 256.376204 | AN151: 264.4155869 | AO151: 191.858806 | AP151: 133.2528974 | AQ151: 156.5351636 | AR151: 182.8644401 | AS151: 404.7634227 | AT151: 528.2625089 | AU151: 327.7366676 | AV151: 361.8931668 | AW151: 368.9943975 | AX151: 180.2606076 | AY151: 256.9681783 | AZ151: 264.7336175 | BA151: 179.6809494 | BB151: 127.202173
B152: Power4HR FL sales | C152: MW | D152: =-SUMIFS( PD[VOLUME], PD[CM],_xlfn.ANCHORARRAY( D$1), PD[PORTFOLIO], "HEAT RATE BOOK" ) /_xlfn.ANCHORARRAY( D126) -> 328.483871 | E152: 272.1567268 | F152: 163.4408602 | G152: 61.02150538 | H152: 85.71428571 | I152: 136.0026918 | J152: 21.11111111 | K152: 11.02150538 | L152: 11.11111111 | M152: 11.02150538 | N152: 11.02150538 | O152: 11.11111111 | P152: 100 | Q152: 86.6851595 | R152: 36.02150538 | S152: 0 | T152: 0 | U152: 0 | V152: 0 | W152: 0 | X152: 0 | Y152: 0 | Z152: 0 | AA152: 0 | AB152: 0 | AC152: 0 | AD152: 0 | AE152: 0 | AF152: 0 | AG152: 0 | AH152: 0 | AI152: 0 | AJ152: 0 | AK152: 0 | AL152: 0 | AM152: 0 | AN152: 0 | AO152: 0 | AP152: 0 | AQ152: 0 | AR152: 0 | AS152: 0 | AT152: 0 | AU152: 0 | AV152: 0 | AW152: 0 | AX152: 0 | AY152: 0 | AZ152: 0 | BA152: 0 | BB152: 0
B153: Power4HR FL vol pos | C153: MWh | D153: =_xlfn.ANCHORARRAY(D151) *_xlfn.ANCHORARRAY( D126) -> 1219.025218 | E153: 82910.28627 | F153: 122648.9044 | G153: 223179.0189 | H153: 206276.6227 | I153: 317306.0806 | J153: 307293.8082 | K153: 108225.9975 | L153: 335713.2423 | M153: 334131.5392 | N153: 247781.9427 | O153: 304930.0995 | P153: 271110.8305 | Q153: 222178.5317 | R153: 219868.5033 | S153: 166062.9495 | T153: 168545.8863 | U153: 275661.5646 | V153: 144774.5477 | W153: 245795.3165 | X153: 303125.4148 | Y153: 289962.5328 | Z153: 153146.7411 | AA153: 203825.014 | AB153: 223008.7331 | AC153: 172707.7533 | AD153: 133054.3699 | AE153: 122764.6543 | AF153: 127438.6447 | AG153: 287089.8255 | AH153: 307849.06 | AI153: 174708.8972 | AJ153: 228140.3381 | AK153: 282679.4286 | AL153: 136885.0597 | AM153: 184590.8669 | AN153: 196725.1967 | AO153: 138330.1991 | AP153: 99140.15566 | AQ153: 116462.1617 | AR153: 127273.6503 | AS153: 300739.2231 | AT153: 380349.0064 | AU153: 243836.0807 | AV153: 260563.0801 | AW153: 274531.8317 | AX153: 134113.8921 | AY153: 185017.0884 | AZ153: 196961.8114 | BA153: 129549.9646 | BB153: 94638.4167
B154: Power4HR FL sales | C154: MWh | D154: =_xlfn.ANCHORARRAY(D152) *_xlfn.ANCHORARRAY( D126) -> 244392 | E154: 196225 | F154: 121600 | G154: 45400 | H154: 57600 | I154: 101050 | J154: 15200 | K154: 8200 | L154: 8000 | M154: 8200 | N154: 8200 | O154: 8000 | P154: 74400 | Q154: 62500 | R154: 26800 | S154: 0 | T154: 0 | U154: 0 | V154: 0 | W154: 0 | X154: 0 | Y154: 0 | Z154: 0 | AA154: 0 | AB154: 0 | AC154: 0 | AD154: 0 | AE154: 0 | AF154: 0 | AG154: 0 | AH154: 0 | AI154: 0 | AJ154: 0 | AK154: 0 | AL154: 0 | AM154: 0 | AN154: 0 | AO154: 0 | AP154: 0 | AQ154: 0 | AR154: 0 | AS154: 0 | AT154: 0 | AU154: 0 | AV154: 0 | AW154: 0 | AX154: 0 | AY154: 0 | AZ154: 0 | BA154: 0 | BB154: 0
B155: % hedged | C155: % | D155: =_xlfn.ANCHORARRAY(D152) / (_xlfn.ANCHORARRAY( D151) +_xlfn.ANCHORARRAY( D152) ) -> 0.9950367651 | E155: 0.7029745419 | F155: 0.497852796 | G155: 0.1690377759 | H155: 0.2182838305 | I155: 0.2415406508 | J155: 0.04713268787 | K155: 0.07043100491 | L155: 0.02327521613 | M155: 0.02395338746 | N155: 0.03203350953 | O155: 0.02556481467 | P155: 0.2153333367 | Q155: 0.2195458843 | R155: 0.1086478397 | S155: 0 | T155: 0 | U155: 0 | V155: 0 | W155: 0 | X155: 0 | Y155: 0 | Z155: 0 | AA155: 0 | AB155: 0 | AC155: 0 | AD155: 0 | AE155: 0 | AF155: 0 | AG155: 0 | AH155: 0 | AI155: 0 | AJ155: 0 | AK155: 0 | AL155: 0 | AM155: 0 | AN155: 0 | AO155: 0 | AP155: 0 | AQ155: 0 | AR155: 0 | AS155: 0 | AT155: 0 | AU155: 0 | AV155: 0 | AW155: 0 | AX155: 0 | AY155: 0 | AZ155: 0 | BA155: 0 | BB155: 0
B156: % HR hedged BOY | C156: % | D156: =_xlfn.LET( _xlpm.sales, SUMIFS(_xlfn.ANCHORARRAY( D154),_xlfn.ANCHORARRAY( D$2),_xlfn.ANCHORARRAY( D$2),_xlfn.ANCHORARRAY( $D$1), ">=" &_xlfn.ANCHORARRAY( D$1) ), _xlpm.open, SUMIFS(_xlfn.ANCHORARRAY( D153),_xlfn.ANCHORARRAY( D$2),_xlfn.ANCHORARRAY( D$2),_xlfn.ANCHORARRAY( $D$1), ">=" &_xlfn.ANCHORARRAY( D$1) ), _xlpm.sales / ( _xlpm.sales + _xlpm.open )) -> 0.7311059788 | E156: 0.6072499048 | F156: 0.497852796 | G156: 0.1202738723 | H156: 0.1162477138 | I156: 0.1072399755 | J156: 0.08538415789 | K156: 0.09087105362 | L156: 0.09198735753 | M156: 0.1051953737 | N156: 0.1244319715 | O156: 0.1443114278 | P156: 0.1866893215 | Q156: 0.1680634202 | R156: 0.1086478397 | S156: 0 | T156: 0 | U156: 0 | V156: 0 | W156: 0 | X156: 0 | Y156: 0 | Z156: 0 | AA156: 0 | AB156: 0 | AC156: 0 | AD156: 0 | AE156: 0 | AF156: 0 | AG156: 0 | AH156: 0 | AI156: 0 | AJ156: 0 | AK156: 0 | AL156: 0 | AM156: 0 | AN156: 0 | AO156: 0 | AP156: 0 | AQ156: 0 | AR156: 0 | AS156: 0 | AT156: 0 | AU156: 0 | AV156: 0 | AW156: 0 | AX156: 0 | AY156: 0 | AZ156: 0 | BA156: 0 | BB156: 0
A158: Gas for Load | B158: Gas4Load pos | C158: $ | D158: =_xlfn.ANCHORARRAY(GasPos!E53) -> -1886513.207 | E158: -559404.3109 | F158: -1016926.147 | G158: -573179.2019 | H158: -600216.4594 | I158: 0 | J158: 0 | K158: 0 | L158: 0 | M158: 0 | N158: -1237382.433 | O158: -191701.1751 | P158: -223139.5043 | Q158: -1405874.568 | R158: -4239421.091 | S158: -6943386.247 | T158: -4662087.665 | U158: -343567.6304 | V158: 0 | W158: 0 | X158: 0 | Y158: -1519236.167 | Z158: -4533737.5 | AA158: -3469858.534 | AB158: -3585744.651 | AC158: -5521186.74 | AD158: -9424497.721 | AE158: -10871611.61 | AF158: -7880386.944 | AG158: -2601220.402 | AH158: -70530.3306 | AI158: 0 | AJ158: 0 | AK158: -3194199.443 | AL158: -6301619.974 | AM158: -5187988.445 | AN158: -5411822.908 | AO158: -9677584.99 | AP158: -14424696.65 | AQ158: -13088742.38 | AR158: -10000827.3 | AS158: -4726468.017 | AT158: -238744.3023 | AU158: 0 | AV158: 0 | AW158: -4017714.082 | AX158: -7091672.306 | AY158: -5823563.64 | AZ158: -5885924.794 | BA158: -9983624.67 | BB158: -14007534.71
A159: cost | B159: hedged g4L gas pos | C159: $ | D159: =SUMIFS( GD[DOLLARS], GD[PORTFOLIO], "<>HEAT RATE BOOK", GD[CM],_xlfn.ANCHORARRAY( D1) ) -> -2538512.5 | E159: -5526150 | F159: -8632647.5 | G159: -5701985 | H159: -4522980 | I159: -4853205 | J159: -2098537.5 | K159: -1845003.75 | L159: -1932862.5 | M159: -2612641.25 | N159: -2749816.25 | O159: -2656762.5 | P159: -2356503.75 | Q159: -3686812.5 | R159: -3809706.25 | S159: -4007331.25 | T159: -3619525 | U159: -4007331.25 | V159: -1163250 | W159: -1202025 | X159: -1163250 | Y159: -1854575 | Z159: -1854575 | AA159: -1794750 | AB159: -1611225 | AC159: -2884312.5 | AD159: -2980456.25 | AE159: -2571256.25 | AF159: -2322425 | AG159: -2571256.25 | AH159: -325875 | AI159: -336737.5 | AJ159: -325875 | AK159: -503362.5 | AL159: -503362.5 | AM159: -487125 | AN159: -336737.5 | AO159: 0 | AP159: 0 | AQ159: 0 | AR159: 0 | AS159: 0 | AT159: 0 | AU159: 0 | AV159: 0 | AW159: 0 | AX159: 0 | AY159: 0 | AZ159: 0 | BA159: 0 | BB159: 0
A161: % hedged | B161: Economic Gas4Load | C161: dth/dy | D161: =_xlfn.ANCHORARRAY(GasPos!E$36) -> 120343.8396 | E161: 103309.9116 | F161: 94792.23186 | G161: 70291.42995 | H161: 66079.56886 | I161: 42224.37734 | J161: 2189.302967 | K161: 0 | L161: 0 | M161: 22499.80107 | N161: 53977.89068 | O161: 41159.75831 | P161: 49771.72569 | Q161: 66285.63732 | R161: 71260.57798 | S161: 84324.69067 | T161: 77012.86947 | U161: 44353.74823 | V161: 3397.168516 | W161: 0 | X161: 0 | Y161: 41740.33172 | Z161: 75759.01531 | AA161: 65061.70729 | AB161: 60500.5644 | AC161: 77464.66054 | AD161: 91491.96069 | AE161: 95159.65402 | AF161: 87328.75365 | AG161: 51353.34437 | AH161: 5889.283513 | AI161: 0 | AJ161: 0 | AK161: 45780.63706 | AL161: 81411.76618 | AM161: 70151.68681 | AN161: 66401.11471 | AO161: 86104.60896 | AP161: 102899.8451 | AQ161: 92388.61669 | AR161: 82818.92675 | AS161: 47524.06197 | AT161: 3437.263817 | AU161: 0 | AV161: 0 | AW161: 47553.95194 | AX161: 82353.30777 | AY161: 69929.48893 | AZ161: 66210.46999 | BA161: 85915.47807 | BB161: 104429.4317
B162: Gas purch Gas4Load | C162: dth/dy | D162: =_xlfn.ANCHORARRAY(GasPos!E$39) -> 92867.23533 | E162: 97637.44311 | F162: 88826.95234 | G162: 66922.16514 | H162: 61354.00588 | I162: 42224.37734 | J162: 2189.302967 | K162: 0 | L162: 0 | M162: 22499.80107 | N162: 38693.99034 | O162: 38693.99034 | P162: 46876.81656 | Q162: 54003.67095 | R162: 45339.502 | S162: 40914.13113 | T162: 40914.13113 | U162: 40914.13113 | V162: 3397.168516 | W162: 0 | X162: 0 | Y162: 24067.13596 | Z162: 24067.13596 | AA162: 24067.13596 | AB162: 19253.70876 | AC162: 31287.27674 | AD162: 31287.27674 | AE162: 26473.84955 | AF162: 26473.84955 | AG162: 26473.84955 | AH162: 4813.427191 | AI162: 0 | AJ162: 0 | AK162: 7220.140787 | AL162: 7220.140787 | AM162: 7220.140787 | AN162: 4813.427191 | AO162: 0 | AP162: 0 | AQ162: 0 | AR162: 0 | AS162: 0 | AT162: 0 | AU162: 0 | AV162: 0 | AW162: 0 | AX162: 0 | AY162: 0 | AZ162: 0 | BA162: 0 | BB162: 0
B163: % g4L hedged BOY | C163: % | D163: =_xlfn.LET( _xlpm.purch, SUMIFS(_xlfn.ANCHORARRAY( D162),_xlfn.ANCHORARRAY( D$2),_xlfn.ANCHORARRAY( D$2),_xlfn.ANCHORARRAY( $D$1), ">=" &_xlfn.ANCHORARRAY( D$1) ), _xlpm.total, SUMIFS(_xlfn.ANCHORARRAY( D161),_xlfn.ANCHORARRAY( D$2),_xlfn.ANCHORARRAY( D$2),_xlfn.ANCHORARRAY( $D$1), ">=" &_xlfn.ANCHORARRAY( D$1) ), _xlpm.purch / _xlpm.total ) -> 0.8771711553 | E163: 0.9412538008 | F163: 0.9370699539 | G163: 0.8621846298 | H163: 0.8469770349 | I163: 0.8315603051 | J163: 0.8084042442 | K163: 0.8070287605 | L163: 0.8070287605 | M163: 0.8070287605 | N163: 0.7916570892 | O163: 0.8093305404 | P163: 0.7805978901 | Q163: 0.7222530459 | R163: 0.6362494283 | S163: 0.4510806668 | T163: 0.4457211479 | U163: 0.4313925083 | V163: 0.3789624444 | W163: 0.373841872 | X163: 0.373841872 | Y163: 0.373841872 | Z163: 0.3509864652 | AA163: 0.3595538376 | AB163: 0.3566166909 | AC163: 0.3703586934 | AD163: 0.3419674965 | AE163: 0.1598727969 | AF163: 0.1410212769 | AG163: 0.1132588233 | AH163: 0.06821766285 | AI163: 0.05847348316 | AJ163: 0.05847348316 | AK163: 0.05847348316 | AL163: 0.04731001067 | AM163: 0.03696298507 | AN163: 0.01884621081 | AO163: 0 | AP163: 0 | AQ163: 0 | AR163: 0 | AS163: 0 | AT163: 0 | AU163: 0 | AV163: 0 | AW163: 0 | AX163: 0 | AY163: 0 | AZ163: 0 | BA163: 0 | BB163: 0
A165: Fin pos Power | B165: Power4Load HL vol pos | C165: MW | D165: =_xlfn.ANCHORARRAY(Gas!F274) /_xlfn.ANCHORARRAY( PwrPos!H5) -> -21.0378672 | E165: 0 | F165: 0 | G165: 0 | H165: 0 | I165: 0 | J165: 1.151977376 | K165: 162.8540348 | L165: 121.6294206 | M165: 0 | N165: 0 | O165: 0 | P165: 0 | Q165: 0 | R165: 0 | S165: 0 | T165: 0 | U165: 0 | V165: 87.40205931 | W165: 340.1351949 | X165: 287.3796525 | Y165: 0 | Z165: 0 | AA165: 0 | AB165: 0 | AC165: 0 | AD165: 0 | AE165: 0 | AF165: 0 | AG165: 0 | AH165: 49.29185491 | AI165: 306.5938391 | AJ165: 250.6110936 | AK165: 0 | AL165: 0 | AM165: 0 | AN165: 0 | AO165: 0 | AP165: 0 | AQ165: 0 | AR165: 0 | AS165: 0 | AT165: 73.93748011 | AU165: 327.8406399 | AV165: 250.6737726 | AW165: 0 | AX165: 0 | AY165: 0 | AZ165: 0 | BA165: 0 | BB165: 0
A166: HL vol | B166: Power4HR HL vol pos | C166: MW | D166: =_xlfn.ANCHORARRAY(Gas!F278) /_xlfn.ANCHORARRAY( PwrPos!H5) -> 0 | E166: 94.17262562 | F166: 148.6119052 | G166: 311.0616295 | H166: 314.6195088 | I166: 467.0283538 | J166: 444.1581005 | K166: 176.6824855 | L166: 552.772737 | M166: 528.6899375 | N166: 284.3298172 | O166: 408.0790108 | P166: 355.081626 | Q166: 352.6973812 | R166: 324.567507 | S166: 224.7405425 | T166: 245.0368273 | U166: 419.9293146 | V166: 226.3162128 | W166: 356.8516707 | X166: 474.9825454 | Y166: 399.4723627 | Z166: 153.8768979 | AA166: 256.636955 | AB166: 293.7691859 | AC166: 263.3356533 | AD166: 186.731139 | AE166: 164.2208138 | AF166: 191.8861355 | AG166: 418.5320537 | AH166: 465.0895283 | AI166: 243.0462704 | AJ166: 355.1332319 | AK166: 373.4671694 | AL166: 125.0665522 | AM166: 227.4293355 | AN166: 257.7046316 | AO166: 215.2132996 | AP166: 139.4539555 | AQ166: 178.2617459 | AR166: 199.3236615 | AS166: 438.0408004 | AT166: 548.1962326 | AU166: 342.5740866 | AV166: 381.8147216 | AW166: 357.945017 | AX166: 122.039872 | AY166: 229.6754074 | AZ166: 258.7391564 | BA166: 211.2382447 | BB166: 138.1400306
B167: empty row for labels | D167: =_xlfn.ANCHORARRAY(D165) * 0 -> 0 | E167: 0 | F167: 0 | G167: 0 | H167: 0 | I167: 0 | J167: 0 | K167: 0 | L167: 0 | M167: 0 | N167: 0 | O167: 0 | P167: 0 | Q167: 0 | R167: 0 | S167: 0 | T167: 0 | U167: 0 | V167: 0 | W167: 0 | X167: 0 | Y167: 0 | Z167: 0 | AA167: 0 | AB167: 0 | AC167: 0 | AD167: 0 | AE167: 0 | AF167: 0 | AG167: 0 | AH167: 0 | AI167: 0 | AJ167: 0 | AK167: 0 | AL167: 0 | AM167: 0 | AN167: 0 | AO167: 0 | AP167: 0 | AQ167: 0 | AR167: 0 | AS167: 0 | AT167: 0 | AU167: 0 | AV167: 0 | AW167: 0 | AX167: 0 | AY167: 0 | AZ167: 0 | BA167: 0 | BB167: 0
B168: chart label | D168: =IF( (_xlfn.ANCHORARRAY( D165) <> 0 ) * (_xlfn.ANCHORARRAY( D166) <> 0 ),_xlfn.ANCHORARRAY( D165) +_xlfn.ANCHORARRAY( D166), "" ) ->  | J168: 445.3100779 | K168: 339.5365202 | L168: 674.4021577 | V168: 313.7182721 | W168: 696.9868656 | X168: 762.362198 | AH168: 514.3813832 | AI168: 549.6401095 | AJ168: 605.7443255 | AT168: 622.1337127 | AU168: 670.4147265 | AV168: 632.4884942
B169: Phys pos over fin pos | C169: MW | D169: =_xlfn.ANCHORARRAY(PwrPos!H295) -_xlfn.ANCHORARRAY( PwrPos!H296) -> 318.9136248 | E169: 257.0930277 | F169: 123.0978625 | G169: -1.936425168 | H169: -2.478257736 | I169: -4.248859297 | J169: 80.71644127 | K169: 64.58319875 | L169: 81.50425881 | M169: -5.003153614 | N169: -4.666330627 | O169: -3.758897654 | P169: 20.65855078 | Q169: 22.52157449 | R169: 23.50125001 | S169: -12.00905631 | T169: -13.04984698 | U169: -15.98268596 | V169: -34.23709374 | W169: -30.91201852 | X169: -24.91263102 | Y169: -15.47615172 | Z169: -15.24049001 | AA169: -14.36401453 | AB169: -14.94416731 | AC169: -13.07842602 | AD169: -12.07174331 | AE169: 33.98299103 | AF169: 33.45756576 | AG169: 32.48182293 | AH169: 20.29733654 | AI169: 10.42742899 | AJ169: 15.48527713 | AK169: 30.52529291 | AL169: 30.72682571 | AM169: 31.63598565 | AN169: 31.06045452 | AO169: 32.91528543 | AP169: 33.89195682 | AQ169: 33.79640971 | AR169: 32.42386822 | AS169: 32.35848735 | AT169: 25.46245213 | AU169: 15.52938516 | AV169: 17.56619552 | AW169: 30.5162167 | AX169: 30.70133672 | AY169: 31.60328565 | AZ169: 31.02647782 | BA169: 32.51572575 | BB169: 33.91419539
B170: value for chart | D170: =_xlfn.ANCHORARRAY(D169) * 0 -> 0 | E170: 0 | F170: 0 | G170: 0 | H170: 0 | I170: 0 | J170: 0 | K170: 0 | L170: 0 | M170: 0 | N170: 0 | O170: 0 | P170: 0 | Q170: 0 | R170: 0 | S170: 0 | T170: 0 | U170: 0 | V170: 0 | W170: 0 | X170: 0 | Y170: 0 | Z170: 0 | AA170: 0 | AB170: 0 | AC170: 0 | AD170: 0 | AE170: 0 | AF170: 0 | AG170: 0 | AH170: 0 | AI170: 0 | AJ170: 0 | AK170: 0 | AL170: 0 | AM170: 0 | AN170: 0 | AO170: 0 | AP170: 0 | AQ170: 0 | AR170: 0 | AS170: 0 | AT170: 0 | AU170: 0 | AV170: 0 | AW170: 0 | AX170: 0 | AY170: 0 | AZ170: 0 | BA170: 0 | BB170: 0
A172: LL vol | B172: Power4Load LL vol pos | C172: MW | D172: =_xlfn.ANCHORARRAY(Gas!F275) /_xlfn.ANCHORARRAY( PwrPos!H6) -> 0 | E172: 0 | F172: 0 | G172: 0 | H172: 0 | I172: 0 | J172: 0 | K172: 281.9815879 | L172: 389.3429144 | M172: 0 | N172: 0 | O172: 0 | P172: 0 | Q172: 0 | R172: 0 | S172: 0 | T172: 0 | U172: 0 | V172: 0 | W172: 356.0413986 | X172: 399.3053538 | Y172: 0 | Z172: 0 | AA172: 0 | AB172: 0 | AC172: 0 | AD172: 0 | AE172: 0 | AF172: 0 | AG172: 0 | AH172: 0 | AI172: 315.055215 | AJ172: 369.7708677 | AK172: 0 | AL172: 0 | AM172: 0 | AN172: 0 | AO172: 0 | AP172: 0 | AQ172: 0 | AR172: 0 | AS172: 0 | AT172: 0 | AU172: 345.7329266 | AV172: 357.9858718 | AW172: 0 | AX172: 0 | AY172: 0 | AZ172: 0 | BA172: 0 | BB172: 0
B173: Power4HR LL vol pos | C173: MW | D173: =_xlfn.ANCHORARRAY(Gas!F279) /_xlfn.ANCHORARRAY( PwrPos!H6) -> 3.907132111 | E173: 140.93843 | F173: 183.732972 | G173: 285.9066495 | H173: 296.745595 | I173: 376.2149402 | J173: 403.0395998 | K173: 105.8722059 | L173: 358.1379607 | M173: 348.160138 | N173: 394.8193253 | O173: 442.8077975 | P173: 377.2934873 | Q173: 257.3968467 | R173: 258.6842085 | S173: 221.2526945 | T173: 258.5130023 | U173: 308.7797238 | V173: 166.5361946 | W173: 299.5774656 | X173: 347.1469602 | Y173: 377.3842375 | Z173: 271.7498522 | AA173: 316.156975 | AB173: 308.0142462 | AC173: 212.4239243 | AD173: 168.8238296 | AE173: 165.9195604 | AF173: 186.6471135 | AG173: 341.7491263 | AH173: 376.2230797 | AI173: 225.2627589 | AJ173: 264.4898475 | AK173: 388.161848 | AL173: 258.7115059 | AM173: 292.5597895 | AN173: 272.9270424 | AO173: 162.7566334 | AP173: 125.3881408 | AQ173: 131.2716959 | AR173: 160.6222491 | AS173: 358.538898 | AT173: 503.3453544 | AU173: 308.9184777 | AV173: 334.6320918 | AW173: 381.8425144 | AX173: 260.8739339 | AY173: 291.0841419 | AZ173: 272.3363486 | BA173: 140.357217 | BB173: 114.4837339
B174: empty row for labels | D174: =_xlfn.ANCHORARRAY(D172) * 0 -> 0 | E174: 0 | F174: 0 | G174: 0 | H174: 0 | I174: 0 | J174: 0 | K174: 0 | L174: 0 | M174: 0 | N174: 0 | O174: 0 | P174: 0 | Q174: 0 | R174: 0 | S174: 0 | T174: 0 | U174: 0 | V174: 0 | W174: 0 | X174: 0 | Y174: 0 | Z174: 0 | AA174: 0 | AB174: 0 | AC174: 0 | AD174: 0 | AE174: 0 | AF174: 0 | AG174: 0 | AH174: 0 | AI174: 0 | AJ174: 0 | AK174: 0 | AL174: 0 | AM174: 0 | AN174: 0 | AO174: 0 | AP174: 0 | AQ174: 0 | AR174: 0 | AS174: 0 | AT174: 0 | AU174: 0 | AV174: 0 | AW174: 0 | AX174: 0 | AY174: 0 | AZ174: 0 | BA174: 0 | BB174: 0
B175: chart label | D175: =IF( (_xlfn.ANCHORARRAY( D172) <> 0 ) * (_xlfn.ANCHORARRAY( D173) <> 0 ),_xlfn.ANCHORARRAY( D172) +_xlfn.ANCHORARRAY( D173), "" ) ->  | K175: 387.8537938 | L175: 747.4808751 | W175: 655.6188643 | X175: 746.452314 | AI175: 540.3179739 | AJ175: 634.2607152 | AU175: 654.6514042 | AV175: 692.6179636
B176: Phys pos over fin pos | C176: MW | D176: =_xlfn.ANCHORARRAY(PwrPos!H306) -_xlfn.ANCHORARRAY( PwrPos!H307) -> 239.597074 | E176: 96.84639777 | F176: 22.61739865 | G176: 47.56713641 | H176: 46.32035631 | I176: 45.41265692 | J176: 5.143253492 | K176: -16.05582235 | L176: -4.149856771 | M176: 10.26228392 | N176: 20.14534956 | O176: 20.14626724 | P176: 45.83837147 | Q176: 47.56534346 | R176: 47.86690875 | S176: -12.17929353 | T176: -13.22854944 | U176: -18.45848688 | V176: -34.99354736 | W176: -33.45215925 | X176: -30.69073062 | Y176: -17.13611422 | Z176: -15.62605424 | AA176: -14.78971116 | AB176: -14.65765099 | AC176: -13.08435639 | AD176: -12.73877112 | AE176: 33.47856149 | AF176: 32.63118043 | AG176: 32.49059252 | AH176: 20.01863568 | AI176: 9.604922086 | AJ176: 11.64487329 | AK176: 30.82034048 | AL176: 31.00581995 | AM176: 31.6345104 | AN176: 31.32835619 | AO176: 32.98927102 | AP176: 33.35396834 | AQ176: 30.95858599 | AR176: 29.63567947 | AS176: 31.9714187 | AT176: 25.56459142 | AU176: 13.67791267 | AV176: 15.1515481 | AW176: 30.80588081 | AX176: 31.06739036 | AY176: 31.60183386 | AZ176: 31.29018123 | BA176: 31.78209954 | BB176: 33.29730507
B177: value for chart | D177: =_xlfn.ANCHORARRAY(D176) * 0 -> 0 | E177: 0 | F177: 0 | G177: 0 | H177: 0 | I177: 0 | J177: 0 | K177: 0 | L177: 0 | M177: 0 | N177: 0 | O177: 0 | P177: 0 | Q177: 0 | R177: 0 | S177: 0 | T177: 0 | U177: 0 | V177: 0 | W177: 0 | X177: 0 | Y177: 0 | Z177: 0 | AA177: 0 | AB177: 0 | AC177: 0 | AD177: 0 | AE177: 0 | AF177: 0 | AG177: 0 | AH177: 0 | AI177: 0 | AJ177: 0 | AK177: 0 | AL177: 0 | AM177: 0 | AN177: 0 | AO177: 0 | AP177: 0 | AQ177: 0 | AR177: 0 | AS177: 0 | AT177: 0 | AU177: 0 | AV177: 0 | AW177: 0 | AX177: 0 | AY177: 0 | AZ177: 0 | BA177: 0 | BB177: 0
C178: check | D178: =_xlfn.ANCHORARRAY(D165) +_xlfn.ANCHORARRAY( D166) -_xlfn.ANCHORARRAY( PwrPos!H296) -> 0 | E178: 0 | F178: 0 | G178: 0 | H178: 0 | I178: 0 | J178: 0 | K178: 0 | L178: 0 | M178: 0 | N178: 0 | O178: 0 | P178: 0 | Q178: 0 | R178: 0 | S178: 0 | T178: 0 | U178: 0 | V178: 0 | W178: 0 | X178: 0 | Y178: 0 | Z178: 0 | AA178: 0 | AB178: 0 | AC178: 0 | AD178: 0 | AE178: 0 | AF178: 0 | AG178: 0 | AH178: 0 | AI178: 0 | AJ178: 0 | AK178: 0 | AL178: 0 | AM178: 0 | AN178: 0 | AO178: 0 | AP178: 0 | AQ178: 0 | AR178: 0 | AS178: 0 | AT178: 0 | AU178: 0 | AV178: 0 | AW178: 0 | AX178: 0 | AY178: 0 | AZ178: 0 | BA178: 0 | BB178: 0
C179: check | D179: =_xlfn.ANCHORARRAY(D172) +_xlfn.ANCHORARRAY( D173) -_xlfn.ANCHORARRAY( PwrPos!H307) -> 0 | E179: 0 | F179: 0 | G179: 0 | H179: 0 | I179: 0 | J179: 0 | K179: 0 | L179: 0 | M179: 0 | N179: 0 | O179: 0 | P179: 0 | Q179: 0 | R179: 0 | S179: 0 | T179: 0 | U179: 0 | V179: 0 | W179: 0 | X179: 0 | Y179: 0 | Z179: 0 | AA179: 0 | AB179: 0 | AC179: 0 | AD179: 0 | AE179: 0 | AF179: 0 | AG179: 0 | AH179: 0 | AI179: 0 | AJ179: 0 | AK179: 0 | AL179: 0 | AM179: 0 | AN179: 0 | AO179: 0 | AP179: 0 | AQ179: 0 | AR179: 0 | AS179: 0 | AT179: 0 | AU179: 0 | AV179: 0 | AW179: 0 | AX179: 0 | AY179: 0 | AZ179: 0 | BA179: 0 | BB179: 0
A181: Fin pos $ | B181: open HR pos HL | C181: $ | D181: =_xlfn.ANCHORARRAY(Gas!F280) +_xlfn.ANCHORARRAY( D144) * IFERROR(_xlfn.ANCHORARRAY( Gas!F344) / (_xlfn.ANCHORARRAY( Gas!F344) +_xlfn.ANCHORARRAY( Gas!F354) ), 1 ) -> -1.611481256e-11 | E181: 913407.6381 | F181: 2057793.205 | G181: 6169070.198 | H181: 5069354.211 | I181: 5708175.496 | J181: 6199932.841 | K181: 2842814.117 | L181: 6326006.322 | M181: 12362840.3 | N181: 10427188.62 | O181: 9324181.09 | P181: 6168793.012 | Q181: 4914760.147 | R181: 7318362.906 | S181: 5339260.524 | T181: 4518573.123 | U181: 5216566.533 | V181: 2529428.79 | W181: 2737984.231 | X181: 4261043.501 | Y181: 9567405.884 | Z181: 5383660.267 | AA181: 5403798.449 | AB181: 6364681.82 | AC181: 4408308.399 | AD181: 3654470.711 | AE181: 2904460.894 | AF181: 2747422.185 | AG181: 6159271.77 | AH181: 3555812.966 | AI181: 2346942.103 | AJ181: 3197308.052 | AK181: 10817969.26 | AL181: 5341835.463 | AM181: 6145539.225 | AN181: 4922590.461 | AO181: 3596206.967 | AP181: 2545491.532 | AQ181: 2616409.334 | AR181: 2516119.901 | AS181: 6493556.296 | AT181: 7776251.733 | AU181: 5106932.871 | AV181: 5779746.722 | AW181: 10250459.42 | AX181: 5197470.393 | AY181: 6410237.881 | AZ181: 4136404.825 | BA181: 2741998.803 | BB181: 2102112.202
B182: open HR pos LL | C182: $ | D182: =_xlfn.ANCHORARRAY(Gas!F281) +_xlfn.ANCHORARRAY( D144) * IFERROR(_xlfn.ANCHORARRAY( Gas!F354) / (_xlfn.ANCHORARRAY( Gas!F344) +_xlfn.ANCHORARRAY( Gas!F354) ), 0 ) -> 17988.15603 | E182: 437672.6731 | F182: 1116183.239 | G182: 2600765.166 | H182: 2014081.674 | I182: 2947264.889 | J182: 3127020.61 | K182: 1007250.167 | L182: 1827599.026 | M182: 2092561.283 | N182: 4432550.2 | O182: 3155859.324 | P182: 2861180.447 | Q182: 2366251.219 | R182: 2995225.116 | S182: 3094877.548 | T182: 2821543.434 | U182: 1930897.334 | V182: 1199510.822 | W182: 1631428.177 | X182: 1527048.565 | Y182: 3058009.636 | Z182: 2785112.256 | AA182: 2406347.3 | AB182: 3792408.131 | AC182: 2046285.518 | AD182: 1621612.139 | AE182: 1788069.177 | AF182: 1535728.66 | AG182: 2907791.47 | AH182: 1976546.62 | AI182: 1725813.073 | AJ182: 1290734.124 | AK182: 5290282.771 | AL182: 4069824.23 | AM182: 4136004.391 | AN182: 3776674.229 | AO182: 1765314.963 | AP182: 1432268.604 | AQ182: 1166494.152 | AR182: 1217774.188 | AS182: 3102030.247 | AT182: 4571331.853 | AU182: 2591782.425 | AV182: 2506393.483 | AW182: 7242225.187 | AX182: 5089240.275 | AY182: 5452650.958 | AZ182: 3122641.039 | BA182: 1103419.422 | BB182: 1236631.292
B183: Power4Load HL pos | C183: $ | D183: =_xlfn.ANCHORARRAY(Gas!F276) -> -503811.4776 | E183: 0 | F183: 0 | G183: 0 | H183: 0 | I183: 0 | J183: 20199.2321 | K183: 2029030.99 | L183: 1822008.721 | M183: 0 | N183: 0 | O183: 0 | P183: 0 | Q183: 0 | R183: 0 | S183: 0 | T183: 0 | U183: 0 | V183: 1383106.124 | W183: 3993187.188 | X183: 4105344.783 | Y183: 0 | Z183: 0 | AA183: 0 | AB183: 0 | AC183: 0 | AD183: 0 | AE183: 0 | AF183: 0 | AG183: 0 | AH183: 705181.1063 | AI183: 3891289.006 | AJ183: 3416410.624 | AK183: 0 | AL183: 0 | AM183: 0 | AN183: 0 | AO183: 0 | AP183: 0 | AQ183: 0 | AR183: 0 | AS183: 0 | AT183: 1587585.573 | AU183: 6892731.431 | AV183: 5467415.573 | AW183: 0 | AX183: 0 | AY183: 0 | AZ183: 0 | BA183: 0 | BB183: 0
B184: Power4Load LL pos | C184: $ | D184: =_xlfn.ANCHORARRAY(Gas!F277) -> 0 | E184: 0 | F184: 0 | G184: 0 | H184: 0 | I184: 0 | J184: 0 | K184: 1924716.085 | L184: 3037497.681 | M184: 0 | N184: 0 | O184: 0 | P184: 0 | Q184: 0 | R184: 0 | S184: 0 | T184: 0 | U184: 0 | V184: 0 | W184: 3167287.316 | X184: 3265359.462 | Y184: 0 | Z184: 0 | AA184: 0 | AB184: 0 | AC184: 0 | AD184: 0 | AE184: 0 | AF184: 0 | AG184: 0 | AH184: 0 | AI184: 3229694.02 | AJ184: 3037327.489 | AK184: 0 | AL184: 0 | AM184: 0 | AN184: 0 | AO184: 0 | AP184: 0 | AQ184: 0 | AR184: 0 | AS184: 0 | AT184: 0 | AU184: 4530345.976 | AV184: 4387933.067 | AW184: 0 | AX184: 0 | AY184: 0 | AZ184: 0 | BA184: 0 | BB184: 0
B185: Gas4Load pos | C185: $ | D185: =_xlfn.ANCHORARRAY(D158) -> -1886513.207 | E185: -559404.3109 | F185: -1016926.147 | G185: -573179.2019 | H185: -600216.4594 | I185: 0 | J185: 0 | K185: 0 | L185: 0 | M185: 0 | N185: -1237382.433 | O185: -191701.1751 | P185: -223139.5043 | Q185: -1405874.568 | R185: -4239421.091 | S185: -6943386.247 | T185: -4662087.665 | U185: -343567.6304 | V185: 0 | W185: 0 | X185: 0 | Y185: -1519236.167 | Z185: -4533737.5 | AA185: -3469858.534 | AB185: -3585744.651 | AC185: -5521186.74 | AD185: -9424497.721 | AE185: -10871611.61 | AF185: -7880386.944 | AG185: -2601220.402 | AH185: -70530.3306 | AI185: 0 | AJ185: 0 | AK185: -3194199.443 | AL185: -6301619.974 | AM185: -5187988.445 | AN185: -5411822.908 | AO185: -9677584.99 | AP185: -14424696.65 | AQ185: -13088742.38 | AR185: -10000827.3 | AS185: -4726468.017 | AT185: -238744.3023 | AU185: 0 | AV185: 0 | AW185: -4017714.082 | AX185: -7091672.306 | AY185: -5823563.64 | AZ185: -5885924.794 | BA185: -9983624.67 | BB185: -14007534.71
B186: Total fin pos | C186: $ | D186: =_xlfn.ANCHORARRAY(D181) +_xlfn.ANCHORARRAY( D182) +_xlfn.ANCHORARRAY( D183) +_xlfn.ANCHORARRAY( D184) +_xlfn.ANCHORARRAY( D185) -> -2372336.529 | E186: 791676.0003 | F186: 2157050.297 | G186: 8196656.162 | H186: 6483219.426 | I186: 8655440.385 | J186: 9347152.683 | K186: 7803811.359 | L186: 13013111.75 | M186: 14455401.58 | N186: 13622356.39 | O186: 12288339.24 | P186: 8806833.955 | Q186: 5875136.798 | R186: 6074166.931 | S186: 1490751.825 | T186: 2678028.893 | U186: 6803896.236 | V186: 5112045.735 | W186: 11529886.91 | X186: 13158796.31 | Y186: 11106179.35 | Z186: 3635035.023 | AA186: 4340287.214 | AB186: 6571345.3 | AC186: 933407.1771 | AD186: -4148414.87 | AE186: -6179081.543 | AF186: -3597236.099 | AG186: 6465842.838 | AH186: 6167010.362 | AI186: 11193738.2 | AJ186: 10941780.29 | AK186: 12914052.59 | AL186: 3110039.719 | AM186: 5093555.171 | AN186: 3287441.782 | AO186: -4316063.06 | AP186: -10446936.52 | AQ186: -9305838.894 | AR186: -6266933.206 | AS186: 4869118.526 | AT186: 13696424.86 | AU186: 19121792.7 | AV186: 18141488.84 | AW186: 13474970.53 | AX186: 3195038.363 | AY186: 6039325.199 | AZ186: 1373121.07 | BA186: -6138206.445 | BB186: -10668791.21
B187: Previous fin pos | C187: $ | D187: =IF( ISNA(_xlfn.ANCHORARRAY( FinPos!D42) ), NA(), SUMIF( FinPos!$D$28:$BN$28,_xlfn.ANCHORARRAY( D1), FinPos!D32:BN32 )) -> -2579093.504 | E187: 735319.9535 | F187: 2371615.061 | G187: 8356344.518 | H187: 6793971.389 | I187: 9046063.169 | J187: 9340513.868 | K187: 7875698.833 | L187: 12606019.12 | M187: 15294849.27 | N187: 14060831.96 | O187: 12420241.44 | P187: 9058574.913 | Q187: 6025797.373 | R187: 6235573.279 | S187: 1564690.697 | T187: 2715635.888 | U187: 6878908.307 | V187: 5096373.813 | W187: 11561891.11 | X187: 13228293.14 | Y187: 11284173.02 | Z187: 3781714.457 | AA187: 4483572.844 | AB187: 6669206.947 | AC187: 949114.4916 | AD187: -4132621.848 | AE187: -6067893.838 | AF187: -3516990.337 | AG187: 6663427.225 | AH187: 6325406.668 | AI187: 11342717.48 | AJ187: 11132847.86 | AK187: 13251288.14 | AL187: 3365462.306 | AM187: 5338572.71 | AN187: 3540449.794 | AO187: -4148622.626 | AP187: -10291549.98 | AQ187: -9145234.559 | AR187: -6132140.151 | AS187: 5060395.062 | AT187: 13920818.74 | AU187: 19360966.25 | AV187: 18395575.98 | AW187: 13756068.73 | AX187: 3404938.652 | AY187: 6251603.27 | AZ187: 1576537.941 | BA187: -5970619.543 | BB187: -10524827.13
B188: Previous HR + P4L pos | C188: $ | D188: =IF( ISNA(_xlfn.ANCHORARRAY( FinPos!D42) ), NA(), SUMIF( FinPos!$D$28:$BN$28,_xlfn.ANCHORARRAY( D1), FinPos!D29:BN29 ) + SUMIF( FinPos!$D$28:$BN$28,_xlfn.ANCHORARRAY( D1), FinPos!D31:BN31 )) -> -632553.6864 | E188: 1554362.995 | F188: 3412903.864 | G188: 8943995.977 | H188: 7400451.078 | I188: 9046063.169 | J188: 9340513.868 | K188: 7875698.833 | L188: 12606019.12 | M188: 15294849.27 | N188: 15297774.63 | O188: 12611789.31 | P188: 9281925.129 | Q188: 7432701.945 | R188: 10477813.75 | S188: 8508486.906 | T188: 7373485.633 | U188: 7222334.627 | V188: 5096373.813 | W188: 11561891.11 | X188: 13228293.14 | Y188: 12805163.72 | Z188: 8309355.706 | AA188: 7948167.86 | AB188: 10249096.01 | AC188: 6476996.104 | AD188: 5302777.034 | AE188: 4822214.955 | AF188: 4374776.464 | AG188: 9269246.001 | AH188: 6396155.841 | AI188: 11342717.48 | AJ188: 11132847.86 | AK188: 16425157.11 | AL188: 9627592.555 | AM188: 10493432.88 | AN188: 8921364.804 | AO188: 5497205.752 | AP188: 4096778.48 | AQ188: 3937516.14 | AR188: 3860948.985 | AS188: 9780245.157 | AT188: 14158134.95 | AU188: 19360966.25 | AV188: 18395575.98 | AW188: 17751908.95 | AX188: 10458625.96 | AY188: 12043701.78 | AZ188: 7431125.857 | BA188: 3986280.015 | BB188: 3430926.791
B190: trigger periods only: | D190: =TRANSPOSE( _xlfn.SORTBY( _xlfn._xlws.FILTER( Misc!L26:L45, ISNUMBER( Misc!O26:O45 )),_xlfn.ANCHORARRAY( Misc!K26) )) -> 2024-11-01 | E190: 2024-12-01 | F190: 2025-01-01 | G190: 2025-02-01 | H190: 2025-03-01 | I190: 2025-04-01 | J190: 2025-05-01 | K190: 2025-06-01 | L190: 2025-07-01 | M190: 2025-08-01 | N190: 2025-09-01 | P190: 2025-10-01 | Q190: 2026-01-01 | R190: 2026-04-01 | S190: 2026-07-01 | T190: 2026-10-01 | V190: 2027-01-01
B191: (starts at prompt month) | D191: =TRANSPOSE( _xlfn.SORTBY( _xlfn._xlws.FILTER( Misc!M26:M45, ISNUMBER( Misc!O26:O45 )),_xlfn.ANCHORARRAY( Misc!K26) )) -> 2024-11-01 | E191: 2024-12-01 | F191: 2025-01-01 | G191: 2025-02-01 | H191: 2025-03-01 | I191: 2025-04-01 | J191: 2025-05-01 | K191: 2025-06-01 | L191: 2025-07-01 | M191: 2025-08-01 | N191: 2025-09-01 | P191: 2025-12-01 | Q191: 2026-03-01 | R191: 2026-06-01 | S191: 2026-09-01 | T191: 2026-12-01 | V191: 2027-12-01
C192: =COUNTA(_xlfn.ANCHORARRAY( D192) ) -> 19 | D192: =TRANSPOSE( _xlfn.SORTBY( _xlfn._xlws.FILTER( Misc!N26:N45, ISNUMBER( Misc!O26:O45 )),_xlfn.ANCHORARRAY( Misc!K26) )) -> 2024-11-01 | E192: 2024-12-01 | F192: 2025-01-01 | G192: 2025-02-01 | H192: 2025-03-01 | I192: 2025-04-01 | J192: 2025-05-01 | K192: 2025-06-01 | L192: 2025-07-01 | M192: 2025-08-01 | N192: 2025-09-01 | P192: Q4'25 | Q192: Q1'26 | R192: Q2'26 | S192: Q3'26 | T192: Q4'26 | V192: Cal'27
C193: =Misc!M4 -> 11 | D193: =IF(_xlfn.ANCHORARRAY( D190) =_xlfn.ANCHORARRAY( D191),_xlfn.ANCHORARRAY( D191),_xlfn.ANCHORARRAY( D192) ) -> 2024-11-01 | E193: 2024-12-01 | F193: 2025-01-01 | G193: 2025-02-01 | H193: 2025-03-01 | I193: 2025-04-01 | J193: 2025-05-01 | K193: 2025-06-01 | L193: 2025-07-01 | M193: 2025-08-01 | N193: 2025-09-01 | P193: Q4'25 | Q193: Q1'26 | R193: Q2'26 | S193: Q3'26 | T193: Q4'26 | V193: Cal'27
B194: open HR HL pos | C194: $ | D194: =IF(_xlfn.ANCHORARRAY( D190) = "", NA(), SUMIFS(_xlfn.ANCHORARRAY( D181),_xlfn.ANCHORARRAY( D$1), ">=" &_xlfn.ANCHORARRAY( D$190),_xlfn.ANCHORARRAY( D$1), "<=" &_xlfn.ANCHORARRAY( D$191) ) / _xlfn.SWITCH( LEFT(_xlfn.ANCHORARRAY( D$192), 1 ), "Q", 3, "C", 12, 1 )) -> 913407.6381 | E194: 2057793.205 | F194: 6169070.198 | G194: 5069354.211 | H194: 5708175.496 | I194: 6199932.841 | J194: 2842814.117 | K194: 6326006.322 | L194: 12362840.3 | M194: 10427188.62 | N194: 9324181.09 | P194: 6133972.022 | Q194: 5024800.06 | R194: 3176152.174 | S194: 6784954.867 | T194: 4809153.643 | V194: 4523404.24
B195: open HR LL pos | C195: $ | D195: =IF(_xlfn.ANCHORARRAY( D190) = "", NA(), SUMIFS(_xlfn.ANCHORARRAY( D182),_xlfn.ANCHORARRAY( D$1), ">=" &_xlfn.ANCHORARRAY( D$190),_xlfn.ANCHORARRAY( D$1), "<=" &_xlfn.ANCHORARRAY( D$191) ) / _xlfn.SWITCH( LEFT(_xlfn.ANCHORARRAY( D$192), 1 ), "Q", 3, "C", 12, 1 )) -> 437672.6731 | E195: 1116183.239 | F195: 2600765.166 | G195: 2014081.674 | H195: 2947264.889 | I195: 3127020.61 | J195: 1007250.167 | K195: 1827599.026 | L195: 2092561.283 | M195: 4432550.2 | N195: 3155859.324 | P195: 2740885.594 | Q195: 2615772.772 | R195: 1452662.521 | S195: 2749823.064 | T195: 2486768.596 | V195: 2641254.359
B196: open P4L HL pos | C196: $ | D196: =IF(_xlfn.ANCHORARRAY( D190) = "", NA(), SUMIFS(_xlfn.ANCHORARRAY( D183),_xlfn.ANCHORARRAY( D$1), ">=" &_xlfn.ANCHORARRAY( D$190),_xlfn.ANCHORARRAY( D$1), "<=" &_xlfn.ANCHORARRAY( D$191) ) / _xlfn.SWITCH( LEFT(_xlfn.ANCHORARRAY( D$192), 1 ), "Q", 3, "C", 12, 1 )) -> 0 | E196: 0 | F196: 0 | G196: 0 | H196: 0 | I196: 20199.2321 | J196: 2029030.99 | K196: 1822008.721 | L196: 0 | M196: 0 | N196: 0 | P196: 0 | Q196: 0 | R196: 3160546.032 | S196: 0 | T196: 0 | V196: 667740.0614
B197: open P4L LL pos | C197: $ | D197: =IF(_xlfn.ANCHORARRAY( D190) = "", NA(), SUMIFS(_xlfn.ANCHORARRAY( D184),_xlfn.ANCHORARRAY( D$1), ">=" &_xlfn.ANCHORARRAY( D$190),_xlfn.ANCHORARRAY( D$1), "<=" &_xlfn.ANCHORARRAY( D$191) ) / _xlfn.SWITCH( LEFT(_xlfn.ANCHORARRAY( D$192), 1 ), "Q", 3, "C", 12, 1 )) -> 0 | E197: 0 | F197: 0 | G197: 0 | H197: 0 | I197: 0 | J197: 1924716.085 | K197: 3037497.681 | L197: 0 | M197: 0 | N197: 0 | P197: 0 | Q197: 0 | R197: 2144215.592 | S197: 0 | T197: 0 | V197: 522251.7924
B198: open HR + P4L pos | C198: $ | D198: =_xlfn.ANCHORARRAY(D194) +_xlfn.ANCHORARRAY( D195) +_xlfn.ANCHORARRAY( D196) +_xlfn.ANCHORARRAY( D197) -> 1351080.311 | E198: 3173976.444 | F198: 8769835.364 | G198: 7083435.885 | H198: 8655440.385 | I198: 9347152.683 | J198: 7803811.359 | K198: 13013111.75 | L198: 14455401.58 | M198: 14859738.82 | N198: 12480040.41 | P198: 8874857.616 | Q198: 7640572.832 | R198: 9933576.319 | S198: 9534777.931 | T198: 7295922.24 | V198: 8354650.453
B199: prev HR + P4L pos | C199: $ | D199: =IF(_xlfn.ANCHORARRAY( D190) = "", NA(), SUMIFS(_xlfn.ANCHORARRAY( D188),_xlfn.ANCHORARRAY( D$1), ">=" &_xlfn.ANCHORARRAY( D$190),_xlfn.ANCHORARRAY( D$1), "<=" &_xlfn.ANCHORARRAY( D$191) ) / _xlfn.SWITCH( LEFT(_xlfn.ANCHORARRAY( D$192), 1 ), "Q", 3, "C", 12, 1 )) -> 1554362.995 | E199: 3412903.864 | F199: 8943995.977 | G199: 7400451.078 | H199: 9046063.169 | I199: 9340513.868 | J199: 7875698.833 | K199: 12606019.12 | L199: 15294849.27 | M199: 15297774.63 | N199: 12611789.31 | P199: 9064146.943 | Q199: 7701435.722 | R199: 9962186.023 | S199: 9687562.429 | T199: 7342956.384 | V199: 8533290.848
A201: Triggers | B201: upper band | C201: $ | D201: =7500000 + _xlfn.SEQUENCE(, C193, 0) * 1000000 -> 7500000 | E201: 8500000 | F201: 9500000 | G201: 10500000 | H201: 11500000 | I201: 12500000 | J201: 13500000 | K201: 14500000 | L201: 15500000 | M201: 16500000 | N201: 17500000
B202: lower band | C202: $ | D202: =-2500000 - _xlfn.SEQUENCE(, C193, 0) * 0 -> -2500000 | E202: -2500000 | F202: -2500000 | G202: -2500000 | H202: -2500000 | I202: -2500000 | J202: -2500000 | K202: -2500000 | L202: -2500000 | M202: -2500000 | N202: -2500000
B204: pos outside of trigger | C204: $ | D204: =INDEX( IF(_xlfn.ANCHORARRAY( D198) >_xlfn.ANCHORARRAY( D201),_xlfn.ANCHORARRAY( D198) -_xlfn.ANCHORARRAY( D201), IF(_xlfn.ANCHORARRAY( D198) <_xlfn.ANCHORARRAY( D202),_xlfn.ANCHORARRAY( D198) -_xlfn.ANCHORARRAY( D202), 0 )), _xlfn.SEQUENCE(, C193 )) -> 0 | E204: 0 | F204: 0 | G204: 0 | H204: 0 | I204: 0 | J204: 0 | K204: 0 | L204: 0 | M204: 0 | N204: 0
B205: Trigger label | D205: =IF( ROUND(_xlfn.ANCHORARRAY( D204), 0 ) <> 0, "T", "" ) -> 
B206: Placeholder for label | D206: =_xlfn.SEQUENCE( , C193, 0, 0 ) -> 0 | E206: 0 | F206: 0 | G206: 0 | H206: 0 | I206: 0 | J206: 0 | K206: 0 | L206: 0 | M206: 0 | N206: 0
A208: Scenario | B208: run scenario | D208: input(s) in blue-shaded area
B209: buy (sell) HL power | C209: MW | D209: 0 | E209: 0 | F209: 0 | G209: 0 | H209: 0 | I209: 0 | J209: 0 | K209: 0 | L209: 0 | M209: 0 | N209: 0 | O209: 0 | P209: 0 | Q209: 0 | R209: 0 | S209: 0 | T209: 0 | U209: 0 | V209: 0 | W209: 0 | X209: 0 | Y209: 0 | Z209: 0 | AA209: 0 | AB209: 0 | AC209: 0 | AD209: 0 | AE209: 0 | AF209: 0 | AG209: 0 | AH209: 0 | AI209: 0 | AJ209: 0 | AK209: 0 | AL209: 0 | AM209: 0 | AN209: 0 | AO209: 0 | AP209: 0 | AQ209: 0 | AR209: 0 | AS209: 0 | AT209: 0 | AU209: 0 | AV209: 0 | AW209: 0 | AX209: 0 | AY209: 0 | AZ209: 0 | BA209: 0 | BB209: 0 | BC209: 0 | BD209: 0 | BE209: 0 | BF209: 0 | BG209: 0 | BH209: 0 | BI209: 0 | BJ209: 0 | BK209: 0 | BL209: 0 | BM209: 0 | BN209: 0
B210: buy (sell) LL power | C210: MW | D210: 0 | E210: 0 | F210: 0 | G210: 0 | H210: 0 | I210: 0 | J210: 0 | K210: 0 | L210: 0 | M210: 0 | N210: 0 | O210: 0 | P210: 0 | Q210: 0 | R210: 0 | S210: 0 | T210: 0 | U210: 0 | V210: 0 | W210: 0 | X210: 0 | Y210: 0 | Z210: 0 | AA210: 0 | AB210: 0 | AC210: 0 | AD210: 0 | AE210: 0 | AF210: 0 | AG210: 0 | AH210: 0 | AI210: 0 | AJ210: 0 | AK210: 0 | AL210: 0 | AM210: 0 | AN210: 0 | AO210: 0 | AP210: 0 | AQ210: 0 | AR210: 0 | AS210: 0 | AT210: 0 | AU210: 0 | AV210: 0 | AW210: 0 | AX210: 0 | AY210: 0 | AZ210: 0 | BA210: 0 | BB210: 0 | BC210: 0 | BD210: 0 | BE210: 0 | BF210: 0 | BG210: 0 | BH210: 0 | BI210: 0 | BJ210: 0 | BK210: 0 | BL210: 0 | BM210: 0 | BN210: 0
B211: buy (sell) AECO | C211: dth/dy | D211: 0 | E211: 0 | F211: 0 | G211: 0 | H211: 0 | I211: 0 | J211: 0 | K211: 0 | L211: 0 | M211: 0 | N211: 0 | O211: 0 | P211: 0 | Q211: 0 | R211: 0 | S211: 0 | T211: 0 | U211: 0 | V211: 0 | W211: 0 | X211: 0 | Y211: 0 | Z211: 0 | AA211: 0 | AB211: 0 | AC211: 0 | AD211: 0 | AE211: 0 | AF211: 0 | AG211: 0 | AH211: 0 | AI211: 0 | AJ211: 0 | AK211: 0 | AL211: 0 | AM211: 0 | AN211: 0 | AO211: 0 | AP211: 0 | AQ211: 0 | AR211: 0 | AS211: 0 | AT211: 0 | AU211: 0 | AV211: 0 | AW211: 0 | AX211: 0 | AY211: 0 | AZ211: 0 | BA211: 0 | BB211: 0 | BC211: 0 | BD211: 0 | BE211: 0 | BF211: 0 | BG211: 0 | BH211: 0 | BI211: 0 | BJ211: 0 | BK211: 0 | BL211: 0 | BM211: 0 | BN211: 0
B212: buy (sell) Malin | C212: dth/dy | D212: 0 | E212: 0 | F212: 0 | G212: 0 | H212: 0 | I212: 0 | J212: 0 | K212: 0 | L212: 0 | M212: 0 | N212: 0 | O212: 0 | P212: 0 | Q212: 0 | R212: 0 | S212: 0 | T212: 0 | U212: 0 | V212: 0 | W212: 0 | X212: 0 | Y212: 0 | Z212: 0 | AA212: 0 | AB212: 0 | AC212: 0 | AD212: 0 | AE212: 0 | AF212: 0 | AG212: 0 | AH212: 0 | AI212: 0 | AJ212: 0 | AK212: 0 | AL212: 0 | AM212: 0 | AN212: 0 | AO212: 0 | AP212: 0 | AQ212: 0 | AR212: 0 | AS212: 0 | AT212: 0 | AU212: 0 | AV212: 0 | AW212: 0 | AX212: 0 | AY212: 0 | AZ212: 0 | BA212: 0 | BB212: 0 | BC212: 0 | BD212: 0 | BE212: 0 | BF212: 0 | BG212: 0 | BH212: 0 | BI212: 0 | BJ212: 0 | BK212: 0 | BL212: 0 | BM212: 0 | BN212: 0
B213: buy (sell) HL power | C213: MW | D213: 0 | E213: -25 | F213: 0 | G213: 0 | H213: 0 | I213: 0 | J213: 0 | K213: 0 | L213: 0 | M213: 0 | N213: 0 | O213: 0 | P213: 0 | Q213: 0 | R213: 0 | S213: 0 | T213: 0 | U213: 0 | V213: 0 | W213: 0 | X213: 0 | Y213: 0 | Z213: 0 | AA213: 0 | AB213: 0 | AC213: 0 | AD213: 0 | AE213: 0 | AF213: 0 | AG213: 0 | AH213: 0 | AI213: 0 | AJ213: 0 | AK213: 0 | AL213: 0 | AM213: 0 | AN213: 0 | AO213: 0 | AP213: 0 | AQ213: 0 | AR213: 0 | AS213: 0
B214: buy (sell) LL power | C214: MW | D214: 0 | E214: -25 | F214: 0 | G214: 0 | H214: 0 | I214: 0 | J214: 0 | K214: 0 | L214: 0 | M214: 0 | N214: 0 | O214: 0 | P214: 0 | Q214: 0 | R214: 0 | S214: 0 | T214: 0 | U214: 0 | V214: 0 | W214: 0 | X214: 0 | Y214: 0 | Z214: 0 | AA214: 0 | AB214: 0 | AC214: 0 | AD214: 0 | AE214: 0 | AF214: 0 | AG214: 0 | AH214: 0 | AI214: 0 | AJ214: 0 | AK214: 0 | AL214: 0 | AM214: 0 | AN214: 0 | AO214: 0 | AP214: 0 | AQ214: 0 | AR214: 0 | AS214: 0
B215: buy (sell) AECO | C215: dth/dy | D215: 0 | E215: 2500 | F215: 0 | G215: 0 | H215: 0 | I215: 0 | J215: 0 | K215: 0 | L215: 0 | M215: 0 | N215: 0 | O215: 0 | P215: 0 | Q215: 0 | R215: 0 | S215: 0 | T215: 0 | U215: 0 | V215: 0 | W215: 0 | X215: 0 | Y215: 0 | Z215: 0 | AA215: 0 | AB215: 0 | AC215: 0 | AD215: 0 | AE215: 0 | AF215: 0 | AG215: 0 | AH215: 0 | AI215: 0 | AJ215: 0 | AK215: 0 | AL215: 0 | AM215: 0 | AN215: 0 | AO215: 0 | AP215: 0 | AQ215: 0 | AR215: 0 | AS215: 0
B216: buy (sell) Malin | C216: dth/dy | D216: 0 | E216: 2000 | F216: 0 | G216: 0 | H216: 0 | I216: 0 | J216: 0 | K216: 0 | L216: 0 | M216: 0 | N216: 0 | O216: 0 | P216: 0 | Q216: 0 | R216: 0 | S216: 0 | T216: 0 | U216: 0 | V216: 0 | W216: 0 | X216: 0 | Y216: 0 | Z216: 0 | AA216: 0 | AB216: 0 | AC216: 0 | AD216: 0 | AE216: 0 | AF216: 0 | AG216: 0 | AH216: 0 | AI216: 0 | AJ216: 0 | AK216: 0 | AL216: 0 | AM216: 0 | AN216: 0 | AO216: 0 | AP216: 0 | AQ216: 0 | AR216: 0 | AS216: 0
B217: HR pos (short)/long | C217: $ | D217: 0 | E217: -305459.8194 | F217: 0 | G217: 0 | H217: 0 | I217: 0 | J217: 0 | K217: 0 | L217: 0 | M217: 0 | N217: 0 | O217: 0 | P217: 0 | Q217: 0 | R217: 0 | S217: 0 | T217: 0 | U217: 0 | V217: 0 | W217: 0 | X217: 0 | Y217: 0 | Z217: 0 | AA217: 0 | AB217: 0 | AC217: 0 | AD217: 0 | AE217: 0 | AF217: 0 | AG217: 0 | AH217: 0 | AI217: 0 | AJ217: 0 | AK217: 0 | AL217: 0 | AM217: 0 | AN217: 0 | AO217: 0 | AP217: 0 | AQ217: 0 | AR217: 0 | AS217: 0
B218: P4L pos (short)/long | C218: $ | D218: 0 | E218: 0 | F218: 0 | G218: 0 | H218: 0 | I218: 0 | J218: 0 | K218: 0 | L218: 0 | M218: 0 | N218: 0 | O218: 0 | P218: 0 | Q218: 0 | R218: 0 | S218: 0 | T218: 0 | U218: 0 | V218: 0 | W218: 0 | X218: 0 | Y218: 0 | Z218: 0 | AA218: 0 | AB218: 0 | AC218: 0 | AD218: 0 | AE218: 0 | AF218: 0 | AG218: 0 | AH218: 0 | AI218: 0 | AJ218: 0 | AK218: 0 | AL218: 0 | AM218: 0 | AN218: 0 | AO218: 0 | AP218: 0 | AQ218: 0 | AR218: 0 | AS218: 0
B219: G4L pos (short)/long | C219: $ | D219: 0 | E219: -643411.4306 | F219: 0 | G219: 0 | H219: 0 | I219: 0 | J219: 0 | K219: 0 | L219: 0 | M219: 0 | N219: 0 | O219: 0 | P219: 0 | Q219: 0 | R219: 0 | S219: 0 | T219: 0 | U219: 0 | V219: 0 | W219: 0 | X219: 0 | Y219: 0 | Z219: 0 | AA219: 0 | AB219: 0 | AC219: 0 | AD219: 0 | AE219: 0 | AF219: 0 | AG219: 0 | AH219: 0 | AI219: 0 | AJ219: 0 | AK219: 0 | AL219: 0 | AM219: 0 | AN219: 0 | AO219: 0 | AP219: 0 | AQ219: 0 | AR219: 0 | AS219: 0
B220: Total pos (short)/long | C220: $ | D220: =_xlfn.BYCOL( D217:INDEX( D219:BN219, nCol ), _xlfn.LAMBDA(_xlpm.c, SUM( _xlpm.c ))) -> 0 | E220: -948871.25 | F220: 0 | G220: 0 | H220: 0 | I220: 0 | J220: 0 | K220: 0 | L220: 0 | M220: 0 | N220: 0 | O220: 0 | P220: 0 | Q220: 0 | R220: 0 | S220: 0 | T220: 0 | U220: 0 | V220: 0 | W220: 0 | X220: 0 | Y220: 0 | Z220: 0 | AA220: 0 | AB220: 0 | AC220: 0 | AD220: 0 | AE220: 0 | AF220: 0 | AG220: 0 | AH220: 0 | AI220: 0 | AJ220: 0 | AK220: 0 | AL220: 0 | AM220: 0 | AN220: 0 | AO220: 0 | AP220: 0 | AQ220: 0 | AR220: 0
C222: check | D222: =ROUND(_xlfn.ANCHORARRAY( D141) -_xlfn.ANCHORARRAY( D186), 0 ) -> 0 | E222: 0 | F222: 0 | G222: 0 | H222: 0 | I222: 0 | J222: 0 | K222: 0 | L222: 0 | M222: 0 | N222: 0 | O222: 0 | P222: 0 | Q222: 0 | R222: 0 | S222: 0 | T222: 0 | U222: 0 | V222: 0 | W222: 0 | X222: 0 | Y222: 0 | Z222: 0 | AA222: 0 | AB222: 0 | AC222: 0 | AD222: 0 | AE222: 0 | AF222: 0 | AG222: 0 | AH222: 0 | AI222: 0 | AJ222: 0 | AK222: 0 | AL222: 0 | AM222: 0 | AN222: 0 | AO222: 0 | AP222: 0 | AQ222: 0 | AR222: 0 | AS222: 0 | AT222: 0 | AU222: 0 | AV222: 0 | AW222: 0 | AX222: 0 | AY222: 0 | AZ222: 0 | BA222: 0 | BB222: 0
C223: check | D223: =_xlfn.ANCHORARRAY(D137) +_xlfn.ANCHORARRAY( D138) -_xlfn.ANCHORARRAY( D183) -_xlfn.ANCHORARRAY( D184) -_xlfn.ANCHORARRAY( D143) -> 0 | E223: 0 | F223: 0 | G223: 0 | H223: 0 | I223: 0 | J223: 0 | K223: 0 | L223: 0 | M223: 0 | N223: 0 | O223: 0 | P223: 0 | Q223: 0 | R223: 0 | S223: 0 | T223: 0 | U223: 0 | V223: 0 | W223: 0 | X223: 0 | Y223: 0 | Z223: 0 | AA223: 0 | AB223: 0 | AC223: 0 | AD223: 0 | AE223: 0 | AF223: 0 | AG223: 0 | AH223: 0 | AI223: 0 | AJ223: 0 | AK223: 0 | AL223: 0 | AM223: 0 | AN223: 0 | AO223: 0 | AP223: 0 | AQ223: 0 | AR223: 0 | AS223: 0 | AT223: 0 | AU223: 0 | AV223: 0 | AW223: 0 | AX223: 0 | AY223: 0 | AZ223: 0 | BA223: 0 | BB223: 0
C224: check | D224: =ROUND(_xlfn.ANCHORARRAY( D139) +_xlfn.ANCHORARRAY( D140) -_xlfn.ANCHORARRAY( D158) -_xlfn.ANCHORARRAY( D144), 0 ) -> 0 | E224: 0 | F224: 0 | G224: 0 | H224: 0 | I224: 0 | J224: 0 | K224: 0 | L224: 0 | M224: 0 | N224: 0 | O224: 0 | P224: 0 | Q224: 0 | R224: 0 | S224: 0 | T224: 0 | U224: 0 | V224: 0 | W224: 0 | X224: 0 | Y224: 0 | Z224: 0 | AA224: 0 | AB224: 0 | AC224: 0 | AD224: 0 | AE224: 0 | AF224: 0 | AG224: 0 | AH224: 0 | AI224: 0 | AJ224: 0 | AK224: 0 | AL224: 0 | AM224: 0 | AN224: 0 | AO224: 0 | AP224: 0 | AQ224: 0 | AR224: 0 | AS224: 0 | AT224: 0 | AU224: 0 | AV224: 0 | AW224: 0 | AX224: 0 | AY224: 0 | AZ224: 0 | BA224: 0 | BB224: 0
C225: check | D225: =_xlfn.ANCHORARRAY(D145) - (_xlfn.ANCHORARRAY( D181) +_xlfn.ANCHORARRAY( D182) ) -> 0 | E225: 0 | F225: 0 | G225: 0 | H225: 0 | I225: 0 | J225: 0 | K225: 0 | L225: 0 | M225: 0 | N225: 0 | O225: 0 | P225: 0 | Q225: 0 | R225: 0 | S225: 0 | T225: 0 | U225: 0 | V225: 0 | W225: 0 | X225: 0 | Y225: 0 | Z225: 0 | AA225: 0 | AB225: 0 | AC225: 0 | AD225: 0 | AE225: 0 | AF225: 0 | AG225: 0 | AH225: 0 | AI225: 0 | AJ225: 0 | AK225: 0 | AL225: 0 | AM225: 0 | AN225: 0 | AO225: 0 | AP225: 0 | AQ225: 0 | AR225: 0 | AS225: 0 | AT225: 0 | AU225: 0 | AV225: 0 | AW225: 0 | AX225: 0 | AY225: 0 | AZ225: 0 | BA225: 0 | BB225: 0
A230: Carbon Obligation | D230: =YEAR( D1 ) -> 2024 | E230: =D230 + 1 -> 2025 | F230: =E230 + 1 -> 2026
B231: Colstrip allowances | D231: =SUM( (YEAR( _xlfn.ANCHORARRAY(#REF!) ) = D$230) * _xlfn.ANCHORARRAY(#REF!) ) ->  | E231: =SUM( (YEAR( _xlfn.ANCHORARRAY(#REF!) ) = E$230) * _xlfn.ANCHORARRAY(#REF!) ) ->  | F231: =SUM( (YEAR( _xlfn.ANCHORARRAY(#REF!) ) = F$230) * _xlfn.ANCHORARRAY(#REF!) ) -> 
B232: Gas plant allowances | D232: =SUM( (YEAR( _xlfn.ANCHORARRAY(#REF!) ) = D$230) * _xlfn.ANCHORARRAY(#REF!) ) ->  | E232: =SUM( (YEAR( _xlfn.ANCHORARRAY(#REF!) ) = E$230) * _xlfn.ANCHORARRAY(#REF!) ) ->  | F232: =SUM( (YEAR( _xlfn.ANCHORARRAY(#REF!) ) = F$230) * _xlfn.ANCHORARRAY(#REF!) ) -> 
B233: Label only | D233: 0 | E233: 0 | F233: 0
D234: =D231 + D232 -> 

Sheet PriceRpt
F1: ="PRICE REPORT " & CHAR(151) & " " & UPPER( TEXT( Rpt_dte, "mmmm d" )) -> PRICE REPORT — OCTOBER 21 | X1: HL | Z1: LL | AB1: Malin | AD1: AECO | AF1: MHR HL | AI1: MHR LL
X2: 1 day | Y2: 5 day | Z2: 1 day | AA2: 5 day | AB2: 1 day | AC2: 5 day | AD2: 1 day | AE2: 5 day | AF2: 1 day | AG2: Auth | AH2: 5 day | AI2: 1 day | AJ2: Auth | AK2: 5 day
C3: from | D3: to | F3: PERIOD | G3: Mid-C HL | I3: Mid-C LL | K3: Malin | M3: AECO | O3: Mkt heat rate HL | R3: Mkt heat rate LL | U3: PERIOD | X3: 0.06 | Y3: 0.12 | Z3: 0.06 | AA3: 0.12 | AB3: 0.05 | AC3: 0.1 | AD3: 0.05 | AE3: 0.1 | AF3: 0.06 | AG3: 0.75 | AH3: 0.12 | AI3: 0.06 | AJ3: 0.75 | AK3: 0.12 | AR3: MDCOL-ON
C4: =MONTH( First_mth ) -> 11 | F4: next day | G4: =Control!H4 -> 65.95 | I4: =Control!I4 -> 42.11 | K4: =Control!K4 -> 1.45 | M4: =Control!J4 -> 0.95 | O4: Curr | P4: ERM | R4: Curr | S4: ERM | U4: =F4:F30 -> next day | X4: =Control!H6 / X3 -> 10.52024075 | Z4: =Control!I6 / Z3 -> 12.32273165 | AB4: =Control!J6 / AB3 -> 477.382199 | AD4: =Control!K6 / AD3 -> 1.388007965 | AS4: col | AT4: Mth | AU4: Qtr | AV4: Cal | AW4: Strip | AX4: Hrs | AY4: =LARGE( _xlfn.UNIQUE( HFP[PRICEDTE] ), _xlfn.SEQUENCE(, 30 )) -> 2024-10-21 | AZ4: 2024-10-18 | BA4: 2024-10-17 | BB4: 2024-10-16 | BC4: 2024-10-15 | BD4: 2024-10-14 | BE4: 2024-10-11 | BF4: 2024-10-10 | BG4: 2024-10-09 | BH4: 2024-10-08 | BI4: 2024-10-07 | BJ4: 2024-10-04 | BK4: 2024-10-03 | BL4: 2024-10-02 | BM4: 2024-10-01 | BN4: 2024-09-30 | BO4: 2024-09-27 | BP4: 2024-09-26 | BQ4: 2024-09-25 | BR4: 2024-09-24 | BS4: 2024-09-23 | BT4: 2024-09-20 | BU4: 2024-09-19 | BV4: 2024-09-18 | BW4: 2024-09-17 | BX4: 2024-09-16 | BY4: 2024-09-13 | BZ4: 2024-09-12 | CA4: 2024-09-11 | CB4: 2024-09-10
A5: =_xlfn.SEQUENCE( COUNTA( F5:F30 )) -> 1 | B5: =CHOOSE( DATEDIF( C5:C30, D5:D30, "m" ) + 1, 1,, 2,, 4,, 4,,,,, 3 ) -> 1 | C5: =EDATE( First_mth, _xlfn.SEQUENCE( 9,, 0 )) -> 2024-11-01 | D5: =_xlfn.ANCHORARRAY(C5) -> 2024-11-01 | F5: =TEXT(_xlfn.ANCHORARRAY( C5), "mmm-yy" ) -> Nov-24 | G5: =AY57:AY76 -> 61.55 | I5: =AY133:AY152 -> 47 | K5: =AY209:AY234 -> 3.227 | M5: =AY291:AY316 -> 1.362 | O5: =_xlfn.ANCHORARRAY(G5) / K5:K24 -> 19.07344283 | P5: =AVERAGEIFS( ERM_MHR[MHR_HL], ERM_MHR[Month], ">=" & MONTH( C5:C24 ), ERM_MHR[Month], "<=" & MONTH( D5:D24 )) / 1000 -> 13.19576963 | R5: =_xlfn.ANCHORARRAY(I5) / K5:K24 -> 14.56461109 | S5: =AVERAGEIFS( ERM_MHR[MHR_LL], ERM_MHR[Month], ">=" & MONTH( C5:C24 ), ERM_MHR[Month], "<=" & MONTH( D5:D24 )) / 1000 -> 11.45923663 | U5: Nov-24 | X5: =(_xlfn.ANCHORARRAY( G5) / AZ57:AZ76 - 1 ) / X3 -> -0.8846153846 | Y5: =(_xlfn.ANCHORARRAY( G5) / BD57:BD76 - 1 ) / Y3 -> -0.1528442318 | Z5: =(_xlfn.ANCHORARRAY( I5) / AZ133:AZ152 - 1 ) / Z3 -> -0.8417508418 | AA5: =(_xlfn.ANCHORARRAY( I5) / BD133:BD152 - 1 ) / AA3 -> -0.4447801276 | AB5: =(_xlfn.ANCHORARRAY( K5) / AZ209:AZ234 - 1 ) / AB3 -> -0.3411513859 | AC5: =(_xlfn.ANCHORARRAY( K5) / BD209:BD234 - 1 ) / AC3 -> -0.4780171142 | AD5: =(_xlfn.ANCHORARRAY( M5) / AZ291:AZ316 - 1 ) / AD3 -> 0.058910162 | AE5: =(_xlfn.ANCHORARRAY( M5) / BD291:BD316 - 1 ) / AE3 -> -0.6166035136 | AF5: =(_xlfn.ANCHORARRAY( O5) / AZ321:AZ340 - 1 ) / AF3 -> -0.6107403081 | AG5: =(_xlfn.ANCHORARRAY( O5) /_xlfn.ANCHORARRAY( P5) - 1 ) / AG3 -> 0.5938946957 | AH5: =(_xlfn.ANCHORARRAY( O5) / BD321:BD340 - 1 ) / AH3 -> 0.2578279822 | AI5: =(_xlfn.ANCHORARRAY( R5) / AZ345:AZ364 - 1 ) / AI3 -> -0.567131912 | AJ5: =(_xlfn.ANCHORARRAY( R5) /_xlfn.ANCHORARRAY( S5) - 1 ) / AJ3 -> 0.3613241801 | AK5: =(_xlfn.ANCHORARRAY( R5) / BD345:BD364 - 1 ) / AK3 -> -0.04876351171 | AR5: =EDATE( First_mth, _xlfn.SEQUENCE( 48,, 0 )) -> 2024-11-01 | AS5: =MATCH( TEXT(_xlfn.ANCHORARRAY( AR5), "yyyymm" ), HFP[#Headers], 0 ) -> 4 | AT5: =_xlfn.XLOOKUP(_xlfn.ANCHORARRAY( AR5), C5:C13, A5:A13, "", 0 ) -> 1 | AU5: =IF(_xlfn.ANCHORARRAY( AR5) > D21, "", _xlfn.XLOOKUP(_xlfn.ANCHORARRAY( AR5), C14:C21, A14:A21, "", -1 )) ->  | AV5: =IF(_xlfn.ANCHORARRAY( AR5) > D24, "", _xlfn.XLOOKUP(_xlfn.ANCHORARRAY( AR5), C22:C24, A22:A24, "", -1 )) ->  | AW5: =IF(_xlfn.ANCHORARRAY( AR5) > D30, "", _xlfn.XLOOKUP(_xlfn.ANCHORARRAY( AR5), C25:C30, A25:A30, "", -1 )) -> 21 | AX5: =SUMIF( Sched!$A$5:$A$197,_xlfn.ANCHORARRAY( $AR5), Sched!L$5:L$197 ) -> 400 | AY5: =SUMIF( HFP[KEY], TEXT(_xlfn.ANCHORARRAY( AY$4), "yyyymmdd" ) & AR$3, INDEX( HFP[], 0, AS5 )) -> 61.55 | AZ5: 65 | BA5: 67.55 | BB5: 68.4 | BC5: 64.3 | BD5: 62.7 | BE5: 62.05 | BF5: 61.75 | BG5: 59.55 | BH5: 60.5 | BI5: 61 | BJ5: 60.6 | BK5: 61.55 | BL5: 62 | BM5: 63.05 | BN5: 65 | BO5: 63.05 | BP5: 61.5 | BQ5: 61.05 | BR5: 61 | BS5: 59.75 | BT5: 57.5 | BU5: 57.25 | BV5: 56 | BW5: 55 | BX5: 53.05 | BY5: 51 | BZ5: 51.75 | CA5: 52.6 | CB5: 54
A6: 2 | B6: 1 | C6: 2024-12-01 | D6: 2024-12-01 | F6: Dec-24 | G6: 96.75 | I6: 78 | K6: 5.372 | M6: 1.617 | O6: 18.01005212 | P6: 14.81242304 | R6: 14.51973194 | S6: 12.53809071 | U6: Dec-24 | X6: -0.577063793 | Y6: -0.2668000667 | Z6: -0.6765067651 | AA6: -0.3333333333 | AB6: -0.4654545455 | AC6: -0.3856823266 | AD6: -0.1595092025 | AE6: -1.127572016 | AF6: -0.193692764 | AG6: 0.2878330865 | AH6: 0.05679224882 | AI6: -0.2955051889 | AJ6: 0.2107329073 | AK6: -0.0124100273 | AR6: 2024-12-01 | AS6: 5 | AT6: 2 | AW6: 21 | AX6: 400 | AY6: =SUMIF( HFP[KEY], TEXT(_xlfn.ANCHORARRAY( AY$4), "yyyymmdd" ) & AR$3, INDEX( HFP[], 0, AS6 )) -> 96.75 | AZ6: 100.22 | BA6: 102 | BB6: 102 | BC6: 100 | BD6: 99.95 | BE6: 98.7 | BF6: 95 | BG6: 93.7 | BH6: 94.75 | BI6: 95 | BJ6: 96.4 | BK6: 98.01 | BL6: 97.7 | BM6: 99 | BN6: 99 | BO6: 98 | BP6: 97.05 | BQ6: 98.17 | BR6: 97.55 | BS6: 94.6 | BT6: 91.05 | BU6: 90.8 | BV6: 90.65 | BW6: 88.95 | BX6: 85.75 | BY6: 86 | BZ6: 87 | CA6: 87.55 | CB6: 88
A7: 3 | B7: 1 | C7: 2025-01-01 | D7: 2025-01-01 | F7: Jan-25 | G7: 99.5 | I7: 80.35 | K7: 5.5485 | M7: 1.691 | O7: 17.93277462 | P7: 13.47721883 | R7: 14.48139137 | S7: 11.17897807 | U7: Jan-25 | X7: -0.408496732 | Y7: -0.243902439 | Z7: -0.3174215602 | AA7: -0.266064257 | AB7: -0.4939356653 | AC7: -0.4286700017 | AD7: -0.2395559451 | AE7: -0.9668803419 | AF7: 0.003195234418 | AG7: 0.4407987387 | AH7: 0.1183979263 | AI7: 0.09657662619 | AJ7: 0.393883744 | AK7: 0.09524354967 | AR7: 2025-01-01 | AS7: 6 | AT7: 3 | AU7: 10 | AV7: 18 | AW7: 21 | AX7: 416 | AY7: =SUMIF( HFP[KEY], TEXT(_xlfn.ANCHORARRAY( AY$4), "yyyymmdd" ) & AR$3, INDEX( HFP[], 0, AS7 )) -> 99.5 | AZ7: 102 | BA7: 103.1 | BB7: 104.05 | BC7: 103.46 | BD7: 102.5 | BE7: 101.05 | BF7: 100.8 | BG7: 100.55 | BH7: 101 | BI7: 101.74 | BJ7: 102.66 | BK7: 102.5 | BL7: 102.2 | BM7: 102 | BN7: 103 | BO7: 102 | BP7: 101.5 | BQ7: 104.02 | BR7: 101 | BS7: 98.95 | BT7: 97 | BU7: 98.64 | BV7: 97.45 | BW7: 96.18 | BX7: 94.6 | BY7: 94.94 | BZ7: 94.95 | CA7: 95.65 | CB7: 97
A8: 4 | B8: 1 | C8: 2025-02-01 | D8: 2025-02-01 | F8: Feb-25 | G8: 84.5 | I8: 65.38 | K8: 4.818 | M8: 1.678 | O8: 17.53839768 | P8: 10.72302611 | R8: 13.56994604 | S8: 9.225735981 | U8: Feb-25 | X8: -0.360850604 | Y8: -0.155808462 | Z8: -0.4634448575 | AA8: -0.3281418356 | AB8: -0.1871080498 | AC8: -0.3841931943 | AD8: -0.471341286 | AE8: -1.076841266 | AF8: -0.2068625112 | AG8: 0.8474438079 | AH8: 0.1709191298 | AI8: -0.3104256395 | AJ8: 0.627839349 | AK8: -0.008299709586 | AR8: 2025-02-01 | AS8: 7 | AT8: 4 | AU8: 10 | AV8: 18 | AW8: 21 | AX8: 384 | AY8: =SUMIF( HFP[KEY], TEXT(_xlfn.ANCHORARRAY( AY$4), "yyyymmdd" ) & AR$3, INDEX( HFP[], 0, AS8 )) -> 84.5 | AZ8: 86.37 | BA8: 88.65 | BB8: 88 | BC8: 86.88 | BD8: 86.11 | BE8: 87.05 | BF8: 87.05 | BG8: 86 | BH8: 85.5 | BI8: 87.33 | BJ8: 88.42 | BK8: 88.45 | BL8: 88.03 | BM8: 88 | BN8: 87.14 | BO8: 86.22 | BP8: 85 | BQ8: 88.06 | BR8: 84.69 | BS8: 84.44 | BT8: 83.44 | BU8: 79.07 | BV8: 75.32 | BW8: 74.16 | BX8: 73.69 | BY8: 74 | BZ8: 74 | CA8: 75.06 | CB8: 75.54
A9: 5 | B9: 1 | C9: 2025-03-01 | D9: 2025-03-01 | F9: Mar-25 | G9: 47 | I9: 42.15 | K9: 2.937 | M9: 1.517 | O9: 16.00272387 | P9: 11.1121981 | R9: 14.35137896 | S9: 9.695453779 | U9: Mar-25 | X9: -0.4351429755 | Y9: -0.08250825083 | Z9: -0.4837595024 | AA9: -0.2006637339 | AB9: -0.1016260163 | AC9: -0.6270943035 | AD9: -0.6072227549 | AE9: -1.13383986 | AF9: -0.3522444889 | AG9: 0.5868056852 | AH9: 0.4695132435 | AI9: -0.4011093126 | AJ9: 0.640289808 | AK9: 0.3434525672 | AR9: 2025-03-01 | AS9: 8 | AT9: 5 | AU9: 10 | AV9: 18 | AW9: 21 | AX9: 416 | AY9: =SUMIF( HFP[KEY], TEXT(_xlfn.ANCHORARRAY( AY$4), "yyyymmdd" ) & AR$3, INDEX( HFP[], 0, AS9 )) -> 47 | AZ9: 48.26 | BA9: 48.89 | BB9: 48.86 | BC9: 48 | BD9: 47.47 | BE9: 47.05 | BF9: 46.72 | BG9: 46 | BH9: 46.5 | BI9: 45.79 | BJ9: 46.35 | BK9: 46.85 | BL9: 46.85 | BM9: 46.95 | BN9: 46.75 | BO9: 45.5 | BP9: 45.5 | BQ9: 46.35 | BR9: 46.45 | BS9: 46.4 | BT9: 45.6 | BU9: 46.43 | BV9: 43.7 | BW9: 43.17 | BX9: 42.47 | BY9: 42.26 | BZ9: 42.53 | CA9: 42.9 | CB9: 43.73
A10: 6 | B10: 1 | C10: 2025-04-01 | D10: 2025-04-01 | F10: Apr-25 | G10: 42.15 | I10: 34.09 | K10: 2.2945 | M10: 1.417 | O10: 18.37001525 | P10: 10.64463203 | R10: 14.85726738 | S10: 8.786695267 | U10: Apr-25 | X10: 0 | Y10: 0.1264450867 | Z10: -0.1261523532 | AA10: -0.146493756 | AB10: 0.0963433326 | AC10: -0.2878306878 | AD10: -0.5022359821 | AE10: -1.198757764 | AF10: -0.07990121305 | AG10: 0.9676718676 | AH10: 0.37715981 | AI10: -0.2054487827 | AJ10: 0.9211763813 | AK10: 0.09613212818 | AR10: 2025-04-01 | AS10: 9 | AT10: 6 | AU10: 11 | AV10: 18 | AW10: 22 | AX10: 416 | AY10: =SUMIF( HFP[KEY], TEXT(_xlfn.ANCHORARRAY( AY$4), "yyyymmdd" ) & AR$3, INDEX( HFP[], 0, AS10 )) -> 42.15 | AZ10: 42.15 | BA10: 42.36 | BB10: 41.65 | BC10: 41.52 | BD10: 41.52 | BE10: 42.31 | BF10: 42.36 | BG10: 42.36 | BH10: 43 | BI10: 43.15 | BJ10: 42.83 | BK10: 42.83 | BL10: 42.51 | BM10: 42.51 | BN10: 42.51 | BO10: 42.54 | BP10: 41.75 | BQ10: 42.21 | BR10: 42.21 | BS10: 41.04 | BT10: 40.67 | BU10: 40.16 | BV10: 40.07 | BW10: 41.06 | BX10: 40.9 | BY10: 41 | BZ10: 40.95 | CA10: 40.65 | CB10: 40.69
A11: 7 | B11: 1 | C11: 2025-05-01 | D11: 2025-05-01 | F11: May-25 | G11: 29.95 | I11: 20.81 | K11: 2.1685 | M11: 1.366 | O11: 13.81139036 | P11: 10.01884924 | R11: 9.596495273 | S11: 6.930217396 | U11: May-25 | X11: -0.2088141554 | Y11: 0.2169692817 | Z11: -0.5123428039 | AA11: -0.1917057903 | AB11: 0.0787037037 | AC11: -0.2561222197 | AD11: -0.8616462347 | AE11: -1.260396673 | AF11: -0.2733249907 | AG11: 0.5047207898 | AH11: 0.4417178402 | AI11: -0.5756638797 | AJ11: 0.5129762844 | AK11: 0.02230055969 | AR11: 2025-05-01 | AS11: 10 | AT11: 7 | AU11: 11 | AV11: 18 | AW11: 22 | AX11: 416 | AY11: =SUMIF( HFP[KEY], TEXT(_xlfn.ANCHORARRAY( AY$4), "yyyymmdd" ) & AR$3, INDEX( HFP[], 0, AS11 )) -> 29.95 | AZ11: 30.33 | BA11: 30.54 | BB11: 29.83 | BC11: 29.19 | BD11: 29.19 | BE11: 29 | BF11: 28.69 | BG11: 28.2 | BH11: 28.85 | BI11: 29.34 | BJ11: 29.47 | BK11: 29.47 | BL11: 28.6 | BM11: 28.6 | BN11: 28.52 | BO11: 28.43 | BP11: 27.92 | BQ11: 28.39 | BR11: 28.39 | BS11: 27.72 | BT11: 27.72 | BU11: 27.05 | BV11: 26.55 | BW11: 26.22 | BX11: 25.65 | BY11: 25.75 | BZ11: 25.7 | CA11: 25.65 | CB11: 25.52
A12: 8 | B12: 1 | C12: 2025-06-01 | D12: 2025-06-01 | F12: Jun-25 | G12: 37.45 | I12: 24.38 | K12: 2.4125 | M12: 1.4325 | O12: 15.52331606 | P12: 9.853905482 | R12: 10.10569948 | S12: 5.773233354 | U12: Jun-25 | X12: 0.340599455 | Y12: 0.3865139238 | Z12: 0.3347280335 | AA12: 0.8018585132 | AB12: 0.08742714405 | AC12: -0.2169505272 | AD12: -0.2685950413 | AE12: -0.8816040738 | AF12: 0.2665781932 | AG12: 0.767128741 | AH12: 0.5798867024 | AI12: 0.260732326 | AJ12: 1.000586872 | AK12: 1.004442042 | AR12: 2025-06-01 | AS12: 11 | AT12: 8 | AU12: 11 | AV12: 18 | AW12: 22 | AX12: 400 | AY12: =SUMIF( HFP[KEY], TEXT(_xlfn.ANCHORARRAY( AY$4), "yyyymmdd" ) & AR$3, INDEX( HFP[], 0, AS12 )) -> 37.45 | AZ12: 36.7 | BA12: 36.91 | BB12: 36.5 | BC12: 35.74 | BD12: 35.79 | BE12: 37.5 | BF12: 37.02 | BG12: 36.57 | BH12: 36.26 | BI12: 36.26 | BJ12: 36.49 | BK12: 36.46 | BL12: 36.15 | BM12: 36.15 | BN12: 36.25 | BO12: 36 | BP12: 35.8 | BQ12: 35.47 | BR12: 35.5 | BS12: 34.86 | BT12: 34.86 | BU12: 34.67 | BV12: 34.05 | BW12: 33.41 | BX12: 33.23 | BY12: 32.12 | BZ12: 32.19 | CA12: 32.69 | CB12: 34.78
A13: 9 | B13: 1 | C13: 2025-07-01 | D13: 2025-07-01 | F13: Jul-25 | G13: 72.3 | I13: 32.53 | K13: 3.112 | M13: 1.502 | O13: 23.23264781 | P13: 28.40638882 | R13: 10.45308483 | S13: 15.66500615 | U13: Jul-25 | X13: -0.5591944036 | Y13: -0.2763662298 | Z13: -0.9471344351 | AA13: -0.1975790316 | AB13: 0.08065817067 | AC13: -0.1984251969 | AD13: -0.4871711595 | AE13: -0.827480916 | AF13: -0.6238934406 | AG13: -0.242844009 | AH13: -0.113259248 | AI13: -1.01027523 | AJ13: -0.4436147903 | AK13: -0.03287706471 | AR13: 2025-07-01 | AS13: 12 | AT13: 9 | AU13: 12 | AV13: 18 | AW13: 22 | AX13: 416 | AY13: =SUMIF( HFP[KEY], TEXT(_xlfn.ANCHORARRAY( AY$4), "yyyymmdd" ) & AR$3, INDEX( HFP[], 0, AS13 )) -> 72.3 | AZ13: 74.81 | BA13: 74.78 | BB13: 74.58 | BC13: 74.48 | BD13: 74.78 | BE13: 74.78 | BF13: 73.4 | BG13: 72.59 | BH13: 74.53 | BI13: 75.24 | BJ13: 76.25 | BK13: 76.35 | BL13: 76.09 | BM13: 75.13 | BN13: 76.42 | BO13: 75 | BP13: 73.57 | BQ13: 74.98 | BR13: 75.34 | BS13: 72.2 | BT13: 72.08 | BU13: 71.68 | BV13: 69.38 | BW13: 68.68 | BX13: 66.72 | BY13: 66.88 | BZ13: 66.76 | CA13: 67.51 | CB13: 67.52
A14: 10 | B14: 2 | C14: =EDATE( C5, CHOOSE( C4, 0, 2, 1, 0, 2, 1, 0, 2, 1, 0, 2, 1 )) -> 2025-01-01 | D14: =EDATE( C14, 2 ) -> 2025-03-01 | F14: ="Q" & CHOOSE( MONTH( C14 ), 1, 1, 1, 2, 2, 2, 3, 3, 3, 4, 4, 4 ) & " " & YEAR( C14 ) -> Q1 2025 | G14: 76.80263158 | I14: 62.53159067 | K14: 4.421716667 | M14: 1.627022222 | O14: 17.36941495 | P14: 11.77081435 | R14: 14.14192618 | S14: 10.03338928 | U14: Q1 2025 | X14: -0.3975713142 | Y14: -0.1799964017 | Z14: -0.4032960696 | AA14: -0.270873897 | AB14: -0.3016713319 | AC14: -0.459918085 | AD14: -0.4332081724 | AE14: -1.056331576 | AF14: -0.1484171983 | AG14: 0.6341787903 | AH14: 0.2130680542 | AI14: -0.1542296258 | AJ14: 0.5459819259 | AK14: 0.1178094431 | AR14: 2025-08-01 | AS14: 13 | AU14: 12 | AV14: 18 | AW14: 22 | AX14: 416 | AY14: =SUMIF( HFP[KEY], TEXT(_xlfn.ANCHORARRAY( AY$4), "yyyymmdd" ) & AR$3, INDEX( HFP[], 0, AS14 )) -> 113.15 | AZ14: 115.12 | BA14: 115.09 | BB14: 114.89 | BC14: 114.79 | BD14: 115.09 | BE14: 115.09 | BF14: 113.76 | BG14: 112.85 | BH14: 116.19 | BI14: 116.9 | BJ14: 116.61 | BK14: 116.71 | BL14: 116.45 | BM14: 115.49 | BN14: 117.83 | BO14: 116.11 | BP14: 114.44 | BQ14: 115.85 | BR14: 116.21 | BS14: 113.07 | BT14: 112.55 | BU14: 112.15 | BV14: 109.95 | BW14: 109.25 | BX14: 107.79 | BY14: 107.96 | BZ14: 108.01 | CA14: 108.34 | CB14: 108.85
A15: 11 | B15: 2 | C15: =EDATE( D14, 1 ) -> 2025-04-01 | D15: 2025-06-01 | F15: Q2 2025 | G15: 36.50454545 | I15: 26.25067227 | K15: 2.290478022 | M15: 1.404736264 | O15: 15.93752269 | P15: 10.17246225 | R15: 11.4607833 | S15: 7.163382005 | U15: Q2 2025 | X15: 0.05276030997 | Y15: 0.2367179983 | Z15: -0.09411430166 | AA15: 0.1144734707 | AB15: 0.08755571618 | AC15: -0.2530799105 | AD15: -0.5458177183 | AE15: -1.115628671 | AF15: -0.02011472887 | AG15: 0.7556427409 | AH15: 0.459240375 | AI15: -0.1663491575 | AJ15: 0.7998831267 | AK15: 0.3338217541 | AR15: 2025-09-01 | AS15: 14 | AU15: 12 | AV15: 18 | AW15: 22 | AX15: 400 | AY15: =SUMIF( HFP[KEY], TEXT(_xlfn.ANCHORARRAY( AY$4), "yyyymmdd" ) & AR$3, INDEX( HFP[], 0, AS15 )) -> 79.9 | AZ15: 80.54 | BA15: 80.51 | BB15: 80.31 | BC15: 80.21 | BD15: 80.5 | BE15: 80.5 | BF15: 79.16 | BG15: 79.41 | BH15: 81.32 | BI15: 82 | BJ15: 81.72 | BK15: 81.82 | BL15: 81.57 | BM15: 80.65 | BN15: 82.88 | BO15: 81.52 | BP15: 80.14 | BQ15: 81.5 | BR15: 81.84 | BS15: 78.82 | BT15: 78.71 | BU15: 78.32 | BV15: 76.83 | BW15: 75.06 | BX15: 73.65 | BY15: 73.8 | BZ15: 75.11 | CA15: 75.83 | CB15: 76.07
A16: 12 | B16: 2 | C16: =EDATE( D15, 1 ) -> 2025-07-01 | D16: 2025-09-01 | F16: Q3 2025 | G16: 88.56103896 | I16: 44.49754098 | K16: 3.172554348 | M16: 1.557038043 | O16: 27.9147429 | P16: 29.9368841 | R16: 14.02577737 | S16: 16.528068 | U16: Q3 2025 | X16: -0.3176210643 | Y16: -0.1557991036 | Z16: -0.4265327417 | AA16: -0.0009823170649 | AB16: 0.08222099904 | AC16: -0.1680236338 | AD16: -0.2692791102 | AE16: -0.7667442295 | AF16: -0.3845576278 | AG16: -0.09006242116 | AH16: -0.01604907107 | AI16: -0.4930233971 | AJ16: -0.2018619181 | AK16: 0.1414134581 | AR16: 2025-10-01 | AS16: 15 | AU16: 13 | AV16: 18 | AW16: 22 | AX16: 432 | AY16: =SUMIF( HFP[KEY], TEXT(_xlfn.ANCHORARRAY( AY$4), "yyyymmdd" ) & AR$3, INDEX( HFP[], 0, AS16 )) -> 62.7 | AZ16: 63.5 | BA16: 62.98 | BB16: 62.94 | BC16: 62.16 | BD16: 62.16 | BE16: 62.42 | BF16: 62.42 | BG16: 62.42 | BH16: 62.68 | BI16: 62.73 | BJ16: 62.73 | BK16: 62.73 | BL16: 62.73 | BM16: 61.94 | BN16: 62.73 | BO16: 58.1 | BP16: 58.08 | BQ16: 58.24 | BR16: 58 | BS16: 55.74 | BT16: 55.74 | BU16: 54.95 | BV16: 52.37 | BW16: 52.11 | BX16: 52.11 | BY16: 52.53 | BZ16: 54.75 | CA16: 56.36 | CB16: 55.54
A17: 13 | B17: 2 | C17: 2025-10-01 | D17: 2025-12-01 | F17: Q4 2025 | G17: 79.04805195 | I17: 66.50614125 | K17: 4.434168478 | M17: 2.130826087 | O17: 17.82702943 | P17: 15.21085673 | R17: 14.99855984 | S17: 13.08810645 | U17: Q4 2025 | X17: -0.1563498548 | Y17: 0.06284685782 | Z17: -0.1847203671 | AA17: 0.0007965179161 | AB17: 0.01594628311 | AC17: -0.1089619639 | AD17: -0.146091853 | AE17: -0.5932821497 | AF17: -0.1695032767 | AG17: 0.2293250356 | AH17: 0.1553411218 | AI17: -0.1978511868 | AJ17: 0.1946248826 | AK17: 0.092607221 | AR17: 2025-11-01 | AS17: 16 | AU17: 13 | AV17: 18 | AW17: 23 | AX17: 384 | AY17: =SUMIF( HFP[KEY], TEXT(_xlfn.ANCHORARRAY( AY$4), "yyyymmdd" ) & AR$3, INDEX( HFP[], 0, AS17 )) -> 70.95 | AZ17: 71.65 | BA17: 71.19 | BB17: 71.15 | BC17: 70.45 | BD17: 70.45 | BE17: 70.68 | BF17: 70.68 | BG17: 70.68 | BH17: 70.91 | BI17: 70.95 | BJ17: 70.95 | BK17: 70.95 | BL17: 70.95 | BM17: 70.25 | BN17: 70.95 | BO17: 70.69 | BP17: 70.67 | BQ17: 70.81 | BR17: 70.6 | BS17: 68.07 | BT17: 68.07 | BU17: 67.75 | BV17: 67.23 | BW17: 67 | BX17: 67 | BY17: 67.38 | BZ17: 69.23 | CA17: 69.61 | CB17: 70.62
A18: 14 | B18: 2 | C18: 2026-01-01 | D18: 2026-03-01 | F18: Q1 2026 | G18: 87.55842105 | I18: 75.31179215 | K18: 5.044544444 | M18: 2.443988889 | O18: 17.35705216 | P18: 11.77081435 | R18: 14.92935447 | S18: 10.03338928 | U18: Q1 2026 | X18: -0.06685385747 | Y18: -0.01804400939 | Z18: -0.07760899 | AA18: -0.1026725934 | AB18: -0.01201896619 | AC18: -0.07242177814 | AD18: 0.09840918851 | AE18: -0.4092942541 | AF18: -0.05687222958 | AG18: 0.6327784013 | AH18: 0.04261610581 | AI18: -0.06763382928 | AJ18: 0.6506229763 | AK18: -0.04262984451 | AR18: 2025-12-01 | AS18: 17 | AU18: 13 | AV18: 18 | AW18: 23 | AX18: 416 | AY18: =SUMIF( HFP[KEY], TEXT(_xlfn.ANCHORARRAY( AY$4), "yyyymmdd" ) & AR$3, INDEX( HFP[], 0, AS18 )) -> 103.5 | AZ18: 104.24 | BA18: 103.74 | BB18: 103.7 | BC18: 102.77 | BD18: 102.77 | BE18: 103.02 | BF18: 103.02 | BG18: 103.02 | BH18: 103.27 | BI18: 103.32 | BJ18: 103.32 | BK18: 103.32 | BL18: 103.32 | BM18: 102.56 | BN18: 103.32 | BO18: 103.04 | BP18: 103.02 | BQ18: 103.17 | BR18: 102.94 | BS18: 100.2 | BT18: 100.2 | BU18: 99.85 | BV18: 99.29 | BW18: 99.04 | BX18: 99.04 | BY18: 99.45 | BZ18: 101.44 | CA18: 101.85 | CB18: 102.95
A19: 15 | B19: 2 | C19: 2026-04-01 | D19: 2026-06-01 | F19: Q2 2026 | G19: 33.96922078 | I19: 29.20016807 | K19: 2.702159341 | M19: 1.963230769 | O19: 12.57113904 | P19: 10.17246225 | R19: 10.80623471 | S19: 7.163382005 | U19: Q2 2026 | X19: -0.06689082073 | Y19: -0.2159661654 | Z19: -0.05821623172 | AA19: -0.1542455784 | AB19: 0.1566486533 | AC19: 0.03710393387 | AD19: -0.2415421538 | AE19: -0.3680181152 | AF19: -0.195897015 | AG19: 0.3144013356 | AH19: -0.245973452 | AI19: -0.1872898411 | AJ19: 0.6780508062 | AK19: -0.1844810261 | AR19: 2026-01-01 | AS19: 18 | AU19: 14 | AV19: 19 | AW19: 23 | AX19: 416 | AY19: =SUMIF( HFP[KEY], TEXT(_xlfn.ANCHORARRAY( AY$4), "yyyymmdd" ) & AR$3, INDEX( HFP[], 0, AS19 )) -> 111.03 | AZ19: 111.48 | BA19: 111.89 | BB19: 111.53 | BC19: 111.27 | BD19: 111.24 | BE19: 111.03 | BF19: 110.53 | BG19: 109.99 | BH19: 111.11 | BI19: 111.52 | BJ19: 111.66 | BK19: 111.38 | BL19: 112.38 | BM19: 110.2 | BN19: 110.96 | BO19: 109.43 | BP19: 108.18 | BQ19: 109.57 | BR19: 108.88 | BS19: 109 | BT19: 108.41 | BU19: 107.72 | BV19: 107.26 | BW19: 105.67 | BX19: 104.63 | BY19: 104.44 | BZ19: 105.32 | CA19: 105.72 | CB19: 106.02
A20: 16 | B20: 2 | C20: 2026-07-01 | D20: 2026-09-01 | F20: Q3 2026 | G20: 93.12428571 | I20: 51.99893443 | K20: 3.394293478 | M20: 1.955815217 | O20: 27.43554331 | P20: 29.9368841 | R20: 15.31951635 | S20: 16.528068 | U20: Q3 2026 | X20: -0.06667250051 | Y20: 0.01194082379 | Z20: -0.2702720865 | AA20: -0.1096556044 | AB20: 0.1403422778 | AC20: -0.01228175105 | AD20: -0.2159440129 | AE20: -0.329662652 | AF20: -0.182344864 | AG20: -0.111405083 | AH20: 0.02220288536 | AI20: -0.3845257238 | AJ20: -0.09749489227 | AK20: -0.09954306818 | AR20: 2026-02-01 | AS20: 19 | AU20: 14 | AV20: 19 | AW20: 23 | AX20: 384 | AY20: =SUMIF( HFP[KEY], TEXT(_xlfn.ANCHORARRAY( AY$4), "yyyymmdd" ) & AR$3, INDEX( HFP[], 0, AS20 )) -> 94.51 | AZ20: 94.89 | BA20: 95.25 | BB20: 94.93 | BC20: 94.72 | BD20: 94.7 | BE20: 94.49 | BF20: 94.08 | BG20: 93.62 | BH20: 94.57 | BI20: 94.91 | BJ20: 95.01 | BK20: 94.77 | BL20: 95.71 | BM20: 93.74 | BN20: 94.37 | BO20: 93.03 | BP20: 91.93 | BQ20: 93.11 | BR20: 92.52 | BS20: 92.64 | BT20: 92.14 | BU20: 91.56 | BV20: 92.26 | BW20: 90.82 | BX20: 89.93 | BY20: 89.76 | BZ20: 90.52 | CA20: 90.86 | CB20: 91.09
A21: 17 | B21: 2 | C21: 2026-10-01 | D21: 2026-12-01 | F21: Q4 2026 | G21: 87.30753247 | I21: 74.00134084 | K21: 4.728005435 | M21: 2.483304348 | O21: 18.46603894 | P21: 15.21085673 | R21: 15.65170384 | S21: 13.08810645 | U21: Q4 2026 | X21: -0.06654685763 | Y21: 0.07788536176 | Z21: -4.840972664e-05 | AA21: 0.1171081065 | AB21: 0.02725695783 | AC21: -0.04448182734 | AD21: -0.09652745108 | AE21: -0.2502267126 | AF21: -0.08913950557 | AG21: 0.2853384935 | AH21: 0.1154671703 | AI21: -0.02273156159 | AJ21: 0.2611630545 | AK21: 0.1548651645 | AR21: 2026-03-01 | AS21: 20 | AU21: 14 | AV21: 19 | AW21: 23 | AX21: 416 | AY21: =SUMIF( HFP[KEY], TEXT(_xlfn.ANCHORARRAY( AY$4), "yyyymmdd" ) & AR$3, INDEX( HFP[], 0, AS21 )) -> 57.67 | AZ21: 57.9 | BA21: 58.14 | BB21: 57.87 | BC21: 57.8 | BD21: 57.84 | BE21: 57.51 | BF21: 57.33 | BG21: 57.05 | BH21: 57.65 | BI21: 57.83 | BJ21: 57.79 | BK21: 57.64 | BL21: 58.72 | BM21: 56.85 | BN21: 57.13 | BO21: 56.08 | BP21: 55.17 | BQ21: 55.88 | BR21: 55.53 | BS21: 56.15 | BT21: 55.85 | BU21: 55.5 | BV21: 56.04 | BW21: 54.62 | BX21: 54.07 | BY21: 53.97 | BZ21: 54.42 | CA21: 54.62 | CB21: 54.54
A22: 18 | B22: 3 | C22: =DATE( YEAR( C5 ) + IF( C4 > 1, 1), 1, 1 ) -> 2025-01-01 | D22: =EDATE( C22, 11 ) -> 2025-12-01 | F22: =YEAR( C22 ) -> 2025 | G22: 70.20765472 | I22: 49.99065229 | K22: 3.578647945 | M22: 1.680949315 | O22: 19.61848603 | P22: 16.77275436 | R22: 13.96914507 | S22: 11.70323643 | U22: 2025 | X22: -0.2467435549 | Y22: -0.05209166596 | Z22: -0.2955722326 | AA22: -0.07050447353 | AB22: -0.05597491359 | AC22: -0.2542667215 | AD22: -0.3278759484 | AE22: -0.858321426 | AF22: -0.2006593882 | AG22: 0.2262185934 | AH22: 0.1639663882 | AI22: -0.2496251084 | AJ22: 0.2581517964 | AK22: 0.1450731895 | AR22: 2026-04-01 | AS22: 21 | AU22: 15 | AV22: 19 | AW22: 24 | AX22: 416 | AY22: =SUMIF( HFP[KEY], TEXT(_xlfn.ANCHORARRAY( AY$4), "yyyymmdd" ) & AR$3, INDEX( HFP[], 0, AS22 )) -> 38.04 | AZ22: 38.19 | BA22: 38.37 | BB22: 38.32 | BC22: 38.33 | BD22: 38.96 | BE22: 38.59 | BF22: 38.74 | BG22: 38.55 | BH22: 39.21 | BI22: 39.31 | BJ22: 39.21 | BK22: 39.11 | BL22: 39.11 | BM22: 39.18 | BN22: 39.37 | BO22: 39.34 | BP22: 38.07 | BQ22: 38.56 | BR22: 38.32 | BS22: 38.48 | BT22: 38.27 | BU22: 38.03 | BV22: 37.98 | BW22: 38.25 | BX22: 37.86 | BY22: 37.78 | BZ22: 38.08 | CA22: 38.22 | CB22: 39.04
A23: 19 | B23: 3 | C23: =EDATE( D22, 1 ) -> 2026-01-01 | D23: =EDATE( C23, 11 ) -> 2026-12-01 | F23: =F22 + 1 -> 2026 | G23: 75.45055375 | I23: 57.65796518 | K23: 3.964813699 | M23: 2.210991781 | O23: 19.0300376 | P23: 16.77275436 | R23: 14.54241474 | S23: 11.70323643 | U23: 2026 | X23: -0.06671279015 | Y23: -0.004142423421 | Z23: -0.09459623967 | AA23: -0.04055193329 | AB23: 0.06107776047 | AC23: -0.03258172551 | AD23: -0.1030336875 | AE23: -0.3377602974 | AF23: -0.1172528468 | AG23: 0.1794404736 | AH23: 0.0230842269 | AI23: -0.1450514027 | AJ23: 0.3234636075 | AK23: -0.01344429921 | AR23: 2026-05-01 | AS23: 22 | AU23: 15 | AV23: 19 | AW23: 24 | AX23: 400 | AY23: =SUMIF( HFP[KEY], TEXT(_xlfn.ANCHORARRAY( AY$4), "yyyymmdd" ) & AR$3, INDEX( HFP[], 0, AS23 )) -> 29.35 | AZ23: 29.47 | BA23: 29.62 | BB23: 29.58 | BC23: 29.61 | BD23: 30.22 | BE23: 29.85 | BF23: 30.04 | BG23: 29.89 | BH23: 30.45 | BI23: 30.52 | BJ23: 30.4 | BK23: 30.32 | BL23: 30.33 | BM23: 30.44 | BN23: 30.56 | BO23: 30.6 | BP23: 29.43 | BQ23: 29.81 | BR23: 29.62 | BS23: 29.78 | BT23: 29.62 | BU23: 29.43 | BV23: 29.47 | BW23: 29.76 | BX23: 29.46 | BY23: 29.4 | BZ23: 29.63 | CA23: 29.73 | CB23: 30.46
A24: 20 | B24: 3 | C24: =EDATE( D23, 1 ) -> 2027-01-01 | D24: =EDATE( C24, 11 ) -> 2027-12-01 | F24: =F23 + 1 -> 2027 | G24: 77.00016287 | I24: 63.24931913 | K24: 4.084264384 | M24: 2.297360274 | O24: 18.85288405 | P24: 16.77275436 | R24: 15.48609815 | S24: 11.70323643 | U24: 2027 | X24: -0.1754253049 | Y24: -0.0960600835 | Z24: -0.1964347999 | AA24: -0.07784702186 | AB24: 0.08843183573 | AC24: 0.02775066577 | AD24: 0.02734682642 | AE24: -0.2515989414 | AF24: -0.2480218499 | AG24: 0.1653578299 | AH24: -0.1188558055 | AI24: -0.2689388585 | AJ24: 0.4309761367 | AK24: -0.1006931465 | AR24: 2026-06-01 | AS24: 23 | AU24: 15 | AV24: 19 | AW24: 24 | AX24: 416 | AY24: =SUMIF( HFP[KEY], TEXT(_xlfn.ANCHORARRAY( AY$4), "yyyymmdd" ) & AR$3, INDEX( HFP[], 0, AS24 )) -> 34.34 | AZ24: 34.48 | BA24: 34.65 | BB24: 34.61 | BC24: 34.63 | BD24: 35.26 | BE24: 34.88 | BF24: 35.06 | BG24: 34.89 | BH24: 35.51 | BI24: 35.59 | BJ24: 35.48 | BK24: 35.39 | BL24: 35.39 | BM24: 35.48 | BN24: 35.64 | BO24: 35.64 | BP24: 34.4 | BQ24: 34.84 | BR24: 34.62 | BS24: 34.78 | BT24: 34.59 | BU24: 34.37 | BV24: 34.37 | BW24: 34.66 | BX24: 34.31 | BY24: 34.24 | BZ24: 34.51 | CA24: 34.63 | CB24: 35.42
A25: 21 | B25: 4 | C25: =EDATE( C5, CHOOSE( C4, 3, 2, 1, 0, 6, 5, 4, 3, 2, 1, 0, 4 )) -> 2024-11-01 | D25: =EDATE( C25, _xlfn.SWITCH( MONTH( C25 ), 11, 4, 6 )) -> 2025-03-01 | F25: =IF( MONTH( C25 ) = 11, "W'" & TEXT( C25, "yy" ) & "-" & "'" & TEXT( D25, "yy" ), "S'" & TEXT( C25, "yy" )) -> W'24-'25 | K25: 4.37944702 | M25: 1.572311258 | O25: Mkt heat rate = pwr price / Malin * 1000 | U25: W'24-'25 | AB25: -0.3489396603 | AC25: -0.4439960001 | AD25: -0.2925991102 | AE25: -0.9989972305 | AR25: 2026-07-01 | AS25: 24 | AU25: 16 | AV25: 19 | AW25: 24 | AX25: 416 | AY25: =SUMIF( HFP[KEY], TEXT(_xlfn.ANCHORARRAY( AY$4), "yyyymmdd" ) & AR$3, INDEX( HFP[], 0, AS25 )) -> 81.99 | AZ25: 82.32 | BA25: 82.42 | BB25: 82.3 | BC25: 81.33 | BD25: 81.84 | BE25: 81.57 | BF25: 82.16 | BG25: 81.76 | BH25: 82.6 | BI25: 83.46 | BJ25: 83.51 | BK25: 83.3 | BL25: 83.32 | BM25: 83.39 | BN25: 84.69 | BO25: 83.4 | BP25: 84.51 | BQ25: 85.6 | BR25: 85.07 | BS25: 84.32 | BT25: 83.87 | BU25: 83.34 | BV25: 80.15 | BW25: 81.94 | BX25: 81.2 | BY25: 81.08 | BZ25: 81.86 | CA25: 82.2 | CB25: 83.42
A26: 22 | B26: 4 | C26: =EDATE( D25, 1 ) -> 2025-04-01 | D26: =EDATE( C26, _xlfn.SWITCH( MONTH( C26 ), 11, 4, 6 )) -> 2025-10-01 | F26: S'25 | G26: number = today's settled prices | K26: 2.743859813 | M26: 1.520588785 | O26: number = today's settled Mkt Heat Rate | U26: S'25 | AB26: 0.0820126268 | AC26: -0.2014818276 | AD26: -0.3771627915 | AE26: -0.8722019635 | AR26: 2026-08-01 | AS26: 25 | AU26: 16 | AV26: 19 | AW26: 24 | AX26: 416 | AY26: =SUMIF( HFP[KEY], TEXT(_xlfn.ANCHORARRAY( AY$4), "yyyymmdd" ) & AR$3, INDEX( HFP[], 0, AS26 )) -> 116.33 | AZ26: 116.8 | BA26: 117.02 | BB26: 116.84 | BC26: 115.75 | BD26: 116.22 | BE26: 116.02 | BF26: 116.41 | BG26: 115.84 | BH26: 117.01 | BI26: 118.02 | BJ26: 118.18 | BK26: 117.88 | BL26: 117.84 | BM26: 117.71 | BN26: 119.32 | BO26: 117.71 | BP26: 118.6 | BQ26: 120.13 | BR26: 119.38 | BS26: 118.61 | BT26: 117.97 | BU26: 117.23 | BV26: 113.63 | BW26: 115.31 | BX26: 114.24 | BY26: 114.07 | BZ26: 115.13 | CA26: 115.6 | CB26: 117.06
A27: 23 | B27: 4 | C27: =EDATE( D26, 1 ) -> 2025-11-01 | D27: =EDATE( C27, _xlfn.SWITCH( MONTH( C27 ), 11, 4, 6 )) -> 2026-03-01 | F27: W'25-'26 | G27: number shading: 1-day move | K27: 5.13294702 | M27: 2.395149007 | O27: number shading: 1-day move | U27: W'25-'26 | AB27: -0.006255501778 | AC27: -0.07849392031 | AD27: 0.01923502712 | AE27: -0.4892419111 | AR27: 2026-09-01 | AS27: 26 | AU27: 16 | AV27: 19 | AW27: 24 | AX27: 400 | AY27: =SUMIF( HFP[KEY], TEXT(_xlfn.ANCHORARRAY( AY$4), "yyyymmdd" ) & AR$3, INDEX( HFP[], 0, AS27 )) -> 80.57 | AZ27: 80.89 | BA27: 81 | BB27: 80.88 | BC27: 79.94 | BD27: 80.43 | BE27: 80.17 | BF27: 80.73 | BG27: 80.33 | BH27: 81.15 | BI27: 81.99 | BJ27: 82.04 | BK27: 81.83 | BL27: 81.85 | BM27: 81.91 | BN27: 83.17 | BO27: 81.91 | BP27: 82.97 | BQ27: 84.04 | BR27: 83.52 | BS27: 82.8 | BT27: 82.36 | BU27: 81.84 | BV27: 78.75 | BW27: 80.47 | BX27: 79.74 | BY27: 79.63 | BZ27: 80.39 | CA27: 80.73 | CB27: 81.91
A28: 24 | B28: 4 | C28: 2026-04-01 | D28: =EDATE( C28, _xlfn.SWITCH( MONTH( C28 ), 11, 4, 6 )) -> 2026-10-01 | F28: S'26 | G28: graph: 30-day move (min/max) | K28: 3.088271028 | M28: 1.978913551 | O28: graph: 30-day move (min/max) | U28: S'26 | AB28: 0.1491775115 | AC28: 0.006306081925 | AD28: -0.221239093 | AE28: -0.3422171594 | AR28: 2026-10-01 | AS28: 27 | AU28: 17 | AV28: 19 | AW28: 24 | AX28: 432 | AY28: =SUMIF( HFP[KEY], TEXT(_xlfn.ANCHORARRAY( AY$4), "yyyymmdd" ) & AR$3, INDEX( HFP[], 0, AS28 )) -> 76.78 | AZ28: 77.09 | BA28: 77.4 | BB28: 77.43 | BC28: 77.53 | BD28: 75.93 | BE28: 77.51 | BF28: 75.38 | BG28: 75.01 | BH28: 75.39 | BI28: 75.33 | BJ28: 76.28 | BK28: 76.08 | BL28: 74.55 | BM28: 75.12 | BN28: 75.63 | BO28: 75.71 | BP28: 75.14 | BQ28: 76.11 | BR28: 75.63 | BS28: 75.78 | BT28: 75.37 | BU28: 74.89 | BV28: 74.52 | BW28: 72.99 | BX28: 72.27 | BY28: 72.13 | BZ28: 72.73 | CA28: 73 | CB28: 72.86
A29: 25 | B29: 4 | C29: 2026-11-01 | D29: =EDATE( C29, _xlfn.SWITCH( MONTH( C29 ), 11, 4, 6 )) -> 2027-03-01 | F29: W'26-'27 | G29: graph shading: 5-day move | K29: 5.356715232 | M29: 2.690109272 | O29: graph shading: 5-day move | U29: W'26-'27 | AB29: -0.01418267983 | AC29: -0.05049393027 | AD29: -0.06522131201 | AE29: -0.2223524711 | AR29: 2026-11-01 | AS29: 28 | AU29: 17 | AV29: 19 | AW29: 25 | AX29: 384 | AY29: =SUMIF( HFP[KEY], TEXT(_xlfn.ANCHORARRAY( AY$4), "yyyymmdd" ) & AR$3, INDEX( HFP[], 0, AS29 )) -> 82.79 | AZ29: 83.12 | BA29: 83.44 | BB29: 83.44 | BC29: 83.47 | BD29: 82.03 | BE29: 83.46 | BF29: 81.48 | BG29: 81.08 | BH29: 81.56 | BI29: 81.57 | BJ29: 82.46 | BK29: 82.25 | BL29: 80.87 | BM29: 80.82 | BN29: 81.4 | BO29: 81.34 | BP29: 80.74 | BQ29: 81.78 | BR29: 81.26 | BS29: 81.38 | BT29: 80.94 | BU29: 80.43 | BV29: 79.93 | BW29: 78.53 | BX29: 77.75 | BY29: 77.61 | BZ29: 78.26 | CA29: 78.55 | CB29: 78.53
A30: 26 | B30: 4 | C30: 2027-04-01 | D30: =EDATE( C30, _xlfn.SWITCH( MONTH( C30 ), 11, 4, 6 )) -> 2027-10-01 | F30: S'27 | G30: BLUE - down; ORANGE - up | K30: 3.184037383 | M30: 2.01746028 | O30: BLUE - down; ORANGE - up | U30: S'27 | AB30: 0.1806348431 | AC30: 0.07427996925 | AD30: 0.05965815043 | AE30: -0.3423835541 | AR30: 2026-12-01 | AS30: 29 | AU30: 17 | AV30: 19 | AW30: 25 | AX30: 416 | AY30: =SUMIF( HFP[KEY], TEXT(_xlfn.ANCHORARRAY( AY$4), "yyyymmdd" ) & AR$3, INDEX( HFP[], 0, AS30 )) -> 102.41 | AZ30: 102.82 | BA30: 103.21 | BB30: 103.19 | BC30: 103.18 | BD30: 101.6 | BE30: 103.18 | BF30: 100.96 | BG30: 100.47 | BH30: 101.11 | BI30: 101.17 | BJ30: 102.18 | BK30: 101.92 | BL30: 100.4 | BM30: 100.28 | BN30: 101.02 | BO30: 100.84 | BP30: 100.11 | BQ30: 101.4 | BR30: 100.76 | BS30: 100.89 | BT30: 100.35 | BU30: 99.71 | BV30: 99.02 | BW30: 97.46 | BX30: 96.5 | BY30: 96.32 | BZ30: 97.13 | CA30: 97.5 | CB30: 97.57
F31: =F3 -> PERIOD | G31: =G3 -> Mid-C HL | I31: =I3 -> Mid-C LL | K31: =K3 -> Malin | M31: AECO | O31: Mkt heat rate HL | R31: Mkt heat rate LL | U31: PERIOD | AR31: 2027-01-01 | AS31: 30 | AV31: 20 | AW31: 25 | AX31: 400 | AY31: =SUMIF( HFP[KEY], TEXT(_xlfn.ANCHORARRAY( AY$4), "yyyymmdd" ) & AR$3, INDEX( HFP[], 0, AS31 )) -> 101.76 | AZ31: 102.84 | BA31: 103.16 | BB31: 103.08 | BC31: 103.05 | BD31: 102.71 | BE31: 102.74 | BF31: 102.15 | BG31: 101.54 | BH31: 102.26 | BI31: 102.29 | BJ31: 102.62 | BK31: 102.37 | BL31: 102.38 | BM31: 101.81 | BN31: 102.7 | BO31: 102.37 | BP31: 101.96 | BQ31: 103.22 | BR31: 102.6 | BS31: 102.74 | BT31: 102.21 | BU31: 101.59 | BV31: 101.26 | BW31: 101.37 | BX31: 100.44 | BY31: 99.97 | BZ31: 100.8 | CA31: 100.69 | CB31: 101.33
AR32: 2027-02-01 | AS32: 31 | AV32: 20 | AW32: 25 | AX32: 384 | AY32: =SUMIF( HFP[KEY], TEXT(_xlfn.ANCHORARRAY( AY$4), "yyyymmdd" ) & AR$3, INDEX( HFP[], 0, AS32 )) -> 87.48 | AZ32: 88.4 | BA32: 88.68 | BB32: 88.61 | BC32: 88.58 | BD32: 88.27 | BE32: 88.28 | BF32: 87.77 | BG32: 87.23 | BH32: 87.84 | BI32: 87.83 | BJ32: 88.11 | BK32: 87.89 | BL32: 87.9 | BM32: 87.41 | BN32: 88.17 | BO32: 87.89 | BP32: 87.54 | BQ32: 88.62 | BR32: 88.08 | BS32: 88.22 | BT32: 87.76 | BU32: 87.23 | BV32: 86.95 | BW32: 87.05 | BX32: 86.25 | BY32: 85.85 | BZ32: 86.56 | CA32: 86.45 | CB32: 86.99
F33: picture for e-mail: | AR33: 2027-03-01 | AS33: 32 | AV33: 20 | AW33: 25 | AX33: 432 | AY33: =SUMIF( HFP[KEY], TEXT(_xlfn.ANCHORARRAY( AY$4), "yyyymmdd" ) & AR$3, INDEX( HFP[], 0, AS33 )) -> 63.47 | AZ33: 64.21 | BA33: 64.41 | BB33: 64.36 | BC33: 64.74 | BD33: 66.74 | BE33: 68.89 | BF33: 68.49 | BG33: 69.52 | BH33: 71.95 | BI33: 75.49 | BJ33: 75.73 | BK33: 75.54 | BL33: 75.55 | BM33: 75.13 | BN33: 75.79 | BO33: 75.55 | BP33: 75.25 | BQ33: 76.18 | BR33: 75.72 | BS33: 75.89 | BT33: 75.5 | BU33: 75.04 | BV33: 74.8 | BW33: 74.88 | BX33: 74.19 | BY33: 73.84 | BZ33: 74.45 | CA33: 74.32 | CB33: 74.77
AR34: 2027-04-01 | AS34: 33 | AV34: 20 | AW34: 26 | AX34: 416 | AY34: =SUMIF( HFP[KEY], TEXT(_xlfn.ANCHORARRAY( AY$4), "yyyymmdd" ) & AR$3, INDEX( HFP[], 0, AS34 )) -> 34.39 | AZ34: 34.75 | BA34: 34.86 | BB34: 34.83 | BC34: 34.8 | BD34: 34.55 | BE34: 34.43 | BF34: 34.23 | BG34: 33.93 | BH34: 34.05 | BI34: 33.84 | BJ34: 33.95 | BK34: 33.87 | BL34: 33.87 | BM34: 33.68 | BN34: 33.97 | BO34: 33.86 | BP34: 33.72 | BQ34: 34.14 | BR34: 33.93 | BS34: 34.11 | BT34: 33.93 | BU34: 33.72 | BV34: 33.61 | BW34: 33.65 | BX34: 33.34 | BY34: 33.18 | BZ34: 33.45 | CA34: 33.31 | CB34: 33.47
AR35: 2027-05-01 | AS35: 34 | AV35: 20 | AW35: 26 | AX35: 400 | AY35: =SUMIF( HFP[KEY], TEXT(_xlfn.ANCHORARRAY( AY$4), "yyyymmdd" ) & AR$3, INDEX( HFP[], 0, AS35 )) -> 31.73 | AZ35: 32.06 | BA35: 32.16 | BB35: 32.13 | BC35: 32.1 | BD35: 31.86 | BE35: 31.74 | BF35: 31.56 | BG35: 31.28 | BH35: 31.38 | BI35: 31.17 | BJ35: 31.27 | BK35: 31.19 | BL35: 31.19 | BM35: 31.02 | BN35: 31.29 | BO35: 31.19 | BP35: 31.06 | BQ35: 31.44 | BR35: 31.25 | BS35: 31.43 | BT35: 31.27 | BU35: 31.08 | BV35: 30.98 | BW35: 31.01 | BX35: 30.73 | BY35: 30.59 | BZ35: 30.84 | CA35: 30.71 | CB35: 30.86
AR36: 2027-06-01 | AS36: 35 | AV36: 20 | AW36: 26 | AX36: 416 | AY36: =SUMIF( HFP[KEY], TEXT(_xlfn.ANCHORARRAY( AY$4), "yyyymmdd" ) & AR$3, INDEX( HFP[], 0, AS36 )) -> 32.77 | AZ36: 33.11 | BA36: 33.21 | BB36: 33.18 | BC36: 33.15 | BD36: 32.9 | BE36: 32.77 | BF36: 32.58 | BG36: 32.29 | BH36: 32.4 | BI36: 32.18 | BJ36: 32.28 | BK36: 32.2 | BL36: 32.2 | BM36: 32.02 | BN36: 32.3 | BO36: 32.2 | BP36: 32.07 | BQ36: 32.47 | BR36: 32.27 | BS36: 32.45 | BT36: 32.28 | BU36: 32.08 | BV36: 31.98 | BW36: 32.02 | BX36: 31.73 | BY36: 31.58 | BZ36: 31.84 | CA36: 31.7 | CB36: 31.85
AR37: 2027-07-01 | AS37: 36 | AV37: 20 | AW37: 26 | AX37: 416 | AY37: =SUMIF( HFP[KEY], TEXT(_xlfn.ANCHORARRAY( AY$4), "yyyymmdd" ) & AR$3, INDEX( HFP[], 0, AS37 )) -> 93.52 | AZ37: 94.51 | BA37: 94.81 | BB37: 94.73 | BC37: 94.7 | BD37: 94.36 | BE37: 94.37 | BF37: 93.83 | BG37: 93.25 | BH37: 93.89 | BI37: 93.88 | BJ37: 94.18 | BK37: 93.95 | BL37: 93.96 | BM37: 93.43 | BN37: 94.25 | BO37: 93.95 | BP37: 93.57 | BQ37: 94.73 | BR37: 94.16 | BS37: 93.51 | BT37: 93.03 | BU37: 92.47 | BV37: 92.17 | BW37: 92.27 | BX37: 91.42 | BY37: 90.99 | BZ37: 91.74 | CA37: 92.21 | CB37: 93.09
AR38: 2027-08-01 | AS38: 37 | AV38: 20 | AW38: 26 | AX38: 416 | AY38: =SUMIF( HFP[KEY], TEXT(_xlfn.ANCHORARRAY( AY$4), "yyyymmdd" ) & AR$3, INDEX( HFP[], 0, AS38 )) -> 134.58 | AZ38: 136.01 | BA38: 136.44 | BB38: 136.33 | BC38: 136.3 | BD38: 135.91 | BE38: 136.01 | BF38: 135.23 | BG38: 134.46 | BH38: 135.47 | BI38: 135.6 | BJ38: 136.04 | BK38: 135.7 | BL38: 135.71 | BM38: 134.95 | BN38: 136.13 | BO38: 135.7 | BP38: 135.15 | BQ38: 136.82 | BR38: 135.99 | BS38: 135.32 | BT38: 134.62 | BU38: 133.8 | BV38: 133.37 | BW38: 133.52 | BX38: 132.29 | BY38: 131.67 | BZ38: 132.76 | CA38: 133.24 | CB38: 134.42
AR39: 2027-09-01 | AS39: 38 | AV39: 20 | AW39: 26 | AX39: 400 | AY39: =SUMIF( HFP[KEY], TEXT(_xlfn.ANCHORARRAY( AY$4), "yyyymmdd" ) & AR$3, INDEX( HFP[], 0, AS39 )) -> 95.81 | AZ39: 96.82 | BA39: 97.12 | BB39: 97.04 | BC39: 97.01 | BD39: 96.68 | BE39: 96.7 | BF39: 96.14 | BG39: 95.56 | BH39: 96.23 | BI39: 96.24 | BJ39: 96.55 | BK39: 96.31 | BL39: 96.32 | BM39: 95.78 | BN39: 96.62 | BO39: 96.31 | BP39: 95.92 | BQ39: 97.11 | BR39: 96.52 | BS39: 95.9 | BT39: 95.4 | BU39: 94.82 | BV39: 94.51 | BW39: 94.61 | BX39: 93.74 | BY39: 93.3 | BZ39: 94.07 | CA39: 94.52 | CB39: 95.41
AR40: 2027-10-01 | AS40: 39 | AV40: 20 | AW40: 26 | AX40: 416 | AY40: =SUMIF( HFP[KEY], TEXT(_xlfn.ANCHORARRAY( AY$4), "yyyymmdd" ) & AR$3, INDEX( HFP[], 0, AS40 )) -> 73.87 | AZ40: 74.65 | BA40: 74.88 | BB40: 74.82 | BC40: 74.79 | BD40: 74.48 | BE40: 74.44 | BF40: 74.01 | BG40: 73.53 | BH40: 74 | BI40: 73.92 | BJ40: 74.16 | BK40: 73.98 | BL40: 73.99 | BM40: 73.58 | BN40: 74.22 | BO40: 73.98 | BP40: 73.68 | BQ40: 74.59 | BR40: 74.14 | BS40: 74.3 | BT40: 73.92 | BU40: 73.47 | BV40: 73.23 | BW40: 73.31 | BX40: 72.64 | BY40: 72.3 | BZ40: 72.9 | CA40: 72.78 | CB40: 73.22
AR41: 2027-11-01 | AS41: 40 | AV41: 20 | AX41: 400 | AY41: =SUMIF( HFP[KEY], TEXT(_xlfn.ANCHORARRAY( AY$4), "yyyymmdd" ) & AR$3, INDEX( HFP[], 0, AS41 )) -> 81.08 | AZ41: 81.94 | BA41: 82.2 | BB41: 82.13 | BC41: 82.1 | BD41: 81.79 | BE41: 81.78 | BF41: 81.31 | BG41: 80.8 | BH41: 81.34 | BI41: 81.3 | BJ41: 81.56 | BK41: 81.36 | BL41: 81.37 | BM41: 80.91 | BN41: 81.62 | BO41: 81.36 | BP41: 81.03 | BQ41: 82.03 | BR41: 81.53 | BS41: 81.68 | BT41: 81.26 | BU41: 80.77 | BV41: 80.51 | BW41: 80.6 | BX41: 79.86 | BY41: 79.49 | BZ41: 80.15 | CA41: 80.04 | CB41: 80.54
AR42: 2027-12-01 | AS42: 41 | AV42: 20 | AX42: 416 | AY42: =SUMIF( HFP[KEY], TEXT(_xlfn.ANCHORARRAY( AY$4), "yyyymmdd" ) & AR$3, INDEX( HFP[], 0, AS42 )) -> 94.96 | AZ42: 95.96 | BA42: 96.26 | BB42: 96.18 | BC42: 96.15 | BD42: 95.81 | BE42: 95.82 | BF42: 95.27 | BG42: 94.69 | BH42: 95.35 | BI42: 95.34 | BJ42: 95.65 | BK42: 95.41 | BL42: 95.42 | BM42: 94.89 | BN42: 95.72 | BO42: 95.42 | BP42: 95.04 | BQ42: 96.22 | BR42: 95.64 | BS42: 95.79 | BT42: 95.29 | BU42: 94.71 | BV42: 94.4 | BW42: 94.5 | BX42: 93.63 | BY42: 93.19 | BZ42: 93.96 | CA42: 93.84 | CB42: 94.43
AR43: 2028-01-01 | AS43: 42 | AX43: 400 | AY43: =SUMIF( HFP[KEY], TEXT(_xlfn.ANCHORARRAY( AY$4), "yyyymmdd" ) & AR$3, INDEX( HFP[], 0, AS43 )) -> 87.11 | AZ43: 87.96 | BA43: 88.23 | BB43: 88.23 | BC43: 87.96 | BD43: 87.84 | BE43: 88.03 | BF43: 87.53 | BG43: 87.12 | BH43: 87.12 | BI43: 87.34 | BJ43: 87.62 | BK43: 87.4 | BL43: 87.13 | BM43: 86.64 | BN43: 87.4 | BO43: 87.4 | BP43: 88.16 | BQ43: 89.24 | BR43: 88.71 | BS43: 88.66 | BT43: 88.21 | BU43: 87.68 | BV43: 87.68 | BW43: 87.76 | BX43: 86.96 | BY43: 86.3 | BZ43: 87.01 | CA43: 86.75 | CB43: 87.36
AR44: 2028-02-01 | AS44: 43 | AX44: 400 | AY44: =SUMIF( HFP[KEY], TEXT(_xlfn.ANCHORARRAY( AY$4), "yyyymmdd" ) & AR$3, INDEX( HFP[], 0, AS44 )) -> 75.06 | AZ44: 75.79 | BA44: 76.03 | BB44: 76.03 | BC44: 75.8 | BD44: 75.7 | BE44: 75.86 | BF44: 75.43 | BG44: 75.07 | BH44: 75.07 | BI44: 75.26 | BJ44: 75.5 | BK44: 75.31 | BL44: 75.08 | BM44: 74.66 | BN44: 75.32 | BO44: 75.32 | BP44: 75.98 | BQ44: 76.91 | BR44: 76.45 | BS44: 76.41 | BT44: 76.02 | BU44: 75.56 | BV44: 75.56 | BW44: 75.63 | BX44: 74.94 | BY44: 74.37 | BZ44: 74.98 | CA44: 74.76 | CB44: 75.29
AR45: 2028-03-01 | AS45: 44 | AX45: 432 | AY45: =SUMIF( HFP[KEY], TEXT(_xlfn.ANCHORARRAY( AY$4), "yyyymmdd" ) & AR$3, INDEX( HFP[], 0, AS45 )) -> 61.95 | AZ45: 62.55 | BA45: 62.74 | BB45: 62.74 | BC45: 62.55 | BD45: 62.46 | BE45: 62.59 | BF45: 62.23 | BG45: 61.94 | BH45: 61.94 | BI45: 62.1 | BJ45: 62.3 | BK45: 62.15 | BL45: 61.96 | BM45: 61.61 | BN45: 62.15 | BO45: 62.15 | BP45: 62.69 | BQ45: 63.46 | BR45: 63.08 | BS45: 63.05 | BT45: 62.73 | BU45: 62.35 | BV45: 62.35 | BW45: 62.41 | BX45: 61.84 | BY45: 61.37 | BZ45: 61.87 | CA45: 61.69 | CB45: 62.13
AR46: 2028-04-01 | AS46: 45 | AX46: 400 | AY46: =SUMIF( HFP[KEY], TEXT(_xlfn.ANCHORARRAY( AY$4), "yyyymmdd" ) & AR$3, INDEX( HFP[], 0, AS46 )) -> 53.68 | AZ46: 54.2 | BA46: 54.37 | BB46: 54.37 | BC46: 54.2 | BD46: 54.13 | BE46: 54.25 | BF46: 53.94 | BG46: 53.69 | BH46: 53.69 | BI46: 53.82 | BJ46: 53.99 | BK46: 53.86 | BL46: 53.69 | BM46: 53.39 | BN46: 53.86 | BO46: 53.86 | BP46: 54.33 | BQ46: 55 | BR46: 54.67 | BS46: 54.64 | BT46: 54.36 | BU46: 54.03 | BV46: 54.03 | BW46: 54.08 | BX46: 53.59 | BY46: 53.18 | BZ46: 53.62 | CA46: 53.46 | CB46: 53.84
AR47: 2028-05-01 | AS47: 46 | AX47: 416 | AY47: =SUMIF( HFP[KEY], TEXT(_xlfn.ANCHORARRAY( AY$4), "yyyymmdd" ) & AR$3, INDEX( HFP[], 0, AS47 )) -> 50.54 | AZ47: 51.03 | BA47: 51.19 | BB47: 51.19 | BC47: 51.03 | BD47: 50.96 | BE47: 51.07 | BF47: 50.78 | BG47: 50.54 | BH47: 50.54 | BI47: 50.67 | BJ47: 50.83 | BK47: 50.7 | BL47: 50.54 | BM47: 50.26 | BN47: 50.7 | BO47: 50.7 | BP47: 51.14 | BQ47: 51.77 | BR47: 51.46 | BS47: 51.43 | BT47: 51.17 | BU47: 50.86 | BV47: 50.86 | BW47: 50.91 | BX47: 50.45 | BY47: 50.07 | BZ47: 50.48 | CA47: 50.33 | CB47: 50.69
AR48: 2028-06-01 | AS48: 47 | AX48: 416 | AY48: =SUMIF( HFP[KEY], TEXT(_xlfn.ANCHORARRAY( AY$4), "yyyymmdd" ) & AR$3, INDEX( HFP[], 0, AS48 )) -> 52.43 | AZ48: 52.94 | BA48: 53.1 | BB48: 53.1 | BC48: 52.94 | BD48: 52.87 | BE48: 52.98 | BF48: 52.68 | BG48: 52.43 | BH48: 52.43 | BI48: 52.56 | BJ48: 52.73 | BK48: 52.6 | BL48: 52.44 | BM48: 52.14 | BN48: 52.6 | BO48: 52.6 | BP48: 53.06 | BQ48: 53.71 | BR48: 53.39 | BS48: 53.36 | BT48: 53.09 | BU48: 52.77 | BV48: 52.77 | BW48: 52.82 | BX48: 52.34 | BY48: 51.94 | BZ48: 52.37 | CA48: 52.21 | CB48: 52.58
AR49: 2028-07-01 | AS49: 48 | AX49: 400 | AY49: =SUMIF( HFP[KEY], TEXT(_xlfn.ANCHORARRAY( AY$4), "yyyymmdd" ) & AR$3, INDEX( HFP[], 0, AS49 )) -> 96.21 | AZ49: 97.15 | BA49: 97.45 | BB49: 97.45 | BC49: 97.15 | BD49: 97.02 | BE49: 97.23 | BF49: 96.67 | BG49: 96.21 | BH49: 96.21 | BI49: 96.45 | BJ49: 96.76 | BK49: 96.52 | BL49: 96.22 | BM49: 95.68 | BN49: 96.52 | BO49: 96.52 | BP49: 97.36 | BQ49: 98.55 | BR49: 97.96 | BS49: 97.91 | BT49: 97.41 | BU49: 96.82 | BV49: 96.82 | BW49: 96.91 | BX49: 96.03 | BY49: 95.3 | BZ49: 96.08 | CA49: 95.79 | CB49: 96.47
AR50: 2028-08-01 | AS50: 49 | AX50: 432 | AY50: =SUMIF( HFP[KEY], TEXT(_xlfn.ANCHORARRAY( AY$4), "yyyymmdd" ) & AR$3, INDEX( HFP[], 0, AS50 )) -> 130.93 | AZ50: 132.2 | BA50: 132.61 | BB50: 132.61 | BC50: 132.2 | BD50: 132.02 | BE50: 132.3 | BF50: 131.54 | BG50: 130.92 | BH50: 130.92 | BI50: 131.25 | BJ50: 131.67 | BK50: 131.34 | BL50: 130.93 | BM50: 130.19 | BN50: 131.33 | BO50: 131.33 | BP50: 132.47 | BQ50: 134.09 | BR50: 133.29 | BS50: 133.22 | BT50: 132.54 | BU50: 131.74 | BV50: 131.74 | BW50: 131.86 | BX50: 130.66 | BY50: 129.67 | BZ50: 130.73 | CA50: 130.34 | CB50: 131.26
AR51: 2028-09-01 | AS51: 50 | AX51: 400 | AY51: =SUMIF( HFP[KEY], TEXT(_xlfn.ANCHORARRAY( AY$4), "yyyymmdd" ) & AR$3, INDEX( HFP[], 0, AS51 )) -> 98.23 | AZ51: 99.18 | BA51: 99.49 | BB51: 99.49 | BC51: 99.18 | BD51: 99.04 | BE51: 99.25 | BF51: 98.68 | BG51: 98.21 | BH51: 98.21 | BI51: 98.46 | BJ51: 98.78 | BK51: 98.53 | BL51: 98.23 | BM51: 97.68 | BN51: 98.54 | BO51: 98.54 | BP51: 99.4 | BQ51: 100.62 | BR51: 100.02 | BS51: 99.97 | BT51: 99.46 | BU51: 98.86 | BV51: 98.86 | BW51: 98.95 | BX51: 98.05 | BY51: 97.31 | BZ51: 98.11 | CA51: 97.82 | CB51: 98.51
AR52: 2028-10-01 | AS52: 51 | AX52: 416 | AY52: =SUMIF( HFP[KEY], TEXT(_xlfn.ANCHORARRAY( AY$4), "yyyymmdd" ) & AR$3, INDEX( HFP[], 0, AS52 )) -> 66.68 | AZ52: 67.33 | BA52: 67.54 | BB52: 67.54 | BC52: 67.33 | BD52: 67.24 | BE52: 67.38 | BF52: 66.99 | BG52: 66.67 | BH52: 66.67 | BI52: 66.84 | BJ52: 67.06 | BK52: 66.89 | BL52: 66.68 | BM52: 66.3 | BN52: 66.88 | BO52: 66.88 | BP52: 67.46 | BQ52: 68.29 | BR52: 67.88 | BS52: 67.84 | BT52: 67.49 | BU52: 67.08 | BV52: 67.08 | BW52: 67.14 | BX52: 66.53 | BY52: 66.03 | BZ52: 66.57 | CA52: 66.37 | CB52: 66.84
AR55: =AR3 -> MDCOL-ON
AR56: summary | AV56: per | AW56: typ | AX56: hrs | AY56: =_xlfn.ANCHORARRAY(AY4) -> 2024-10-21 | AZ56: 2024-10-18 | BA56: 2024-10-17 | BB56: 2024-10-16 | BC56: 2024-10-15 | BD56: 2024-10-14 | BE56: 2024-10-11 | BF56: 2024-10-10 | BG56: 2024-10-09 | BH56: 2024-10-08 | BI56: 2024-10-07 | BJ56: 2024-10-04 | BK56: 2024-10-03 | BL56: 2024-10-02 | BM56: 2024-10-01 | BN56: 2024-09-30 | BO56: 2024-09-27 | BP56: 2024-09-26 | BQ56: 2024-09-25 | BR56: 2024-09-24 | BS56: 2024-09-23 | BT56: 2024-09-20 | BU56: 2024-09-19 | BV56: 2024-09-18 | BW56: 2024-09-17 | BX56: 2024-09-16 | BY56: 2024-09-13 | BZ56: 2024-09-12 | CA56: 2024-09-11 | CB56: 2024-09-10
AV57: =A5:A24 -> 1 | AW57: =B5:B24 -> 1 | AX57: =SUMIF( INDEX($AT$5:$AW$52, 0, AW57 ), $AV57,_xlfn.ANCHORARRAY( AX$5) ) -> 400 | AY57: =SUM( (INDEX($AT$5:$AW$52, 0, $AW57 ) = $AV57) *_xlfn.ANCHORARRAY( $AX$5) * AY$5:AY$52 ) / $AX57 -> 61.55 | AZ57: =SUM( (INDEX($AT$5:$AW$52, 0, $AW57 ) = $AV57) *_xlfn.ANCHORARRAY( $AX$5) * AZ$5:AZ$52 ) / $AX57 -> 65 | BA57: =SUM( (INDEX($AT$5:$AW$52, 0, $AW57 ) = $AV57) *_xlfn.ANCHORARRAY( $AX$5) * BA$5:BA$52 ) / $AX57 -> 67.55 | BB57: =SUM( (INDEX($AT$5:$AW$52, 0, $AW57 ) = $AV57) *_xlfn.ANCHORARRAY( $AX$5) * BB$5:BB$52 ) / $AX57 -> 68.4 | BC57: =SUM( (INDEX($AT$5:$AW$52, 0, $AW57 ) = $AV57) *_xlfn.ANCHORARRAY( $AX$5) * BC$5:BC$52 ) / $AX57 -> 64.3 | BD57: =SUM( (INDEX($AT$5:$AW$52, 0, $AW57 ) = $AV57) *_xlfn.ANCHORARRAY( $AX$5) * BD$5:BD$52 ) / $AX57 -> 62.7 | BE57: =SUM( (INDEX($AT$5:$AW$52, 0, $AW57 ) = $AV57) *_xlfn.ANCHORARRAY( $AX$5) * BE$5:BE$52 ) / $AX57 -> 62.05 | BF57: =SUM( (INDEX($AT$5:$AW$52, 0, $AW57 ) = $AV57) *_xlfn.ANCHORARRAY( $AX$5) * BF$5:BF$52 ) / $AX57 -> 61.75 | BG57: =SUM( (INDEX($AT$5:$AW$52, 0, $AW57 ) = $AV57) *_xlfn.ANCHORARRAY( $AX$5) * BG$5:BG$52 ) / $AX57 -> 59.55 | BH57: =SUM( (INDEX($AT$5:$AW$52, 0, $AW57 ) = $AV57) *_xlfn.ANCHORARRAY( $AX$5) * BH$5:BH$52 ) / $AX57 -> 60.5 | BI57: =SUM( (INDEX($AT$5:$AW$52, 0, $AW57 ) = $AV57) *_xlfn.ANCHORARRAY( $AX$5) * BI$5:BI$52 ) / $AX57 -> 61 | BJ57: =SUM( (INDEX($AT$5:$AW$52, 0, $AW57 ) = $AV57) *_xlfn.ANCHORARRAY( $AX$5) * BJ$5:BJ$52 ) / $AX57 -> 60.6 | BK57: =SUM( (INDEX($AT$5:$AW$52, 0, $AW57 ) = $AV57) *_xlfn.ANCHORARRAY( $AX$5) * BK$5:BK$52 ) / $AX57 -> 61.55 | BL57: =SUM( (INDEX($AT$5:$AW$52, 0, $AW57 ) = $AV57) *_xlfn.ANCHORARRAY( $AX$5) * BL$5:BL$52 ) / $AX57 -> 62 | BM57: =SUM( (INDEX($AT$5:$AW$52, 0, $AW57 ) = $AV57) *_xlfn.ANCHORARRAY( $AX$5) * BM$5:BM$52 ) / $AX57 -> 63.05 | BN57: =SUM( (INDEX($AT$5:$AW$52, 0, $AW57 ) = $AV57) *_xlfn.ANCHORARRAY( $AX$5) * BN$5:BN$52 ) / $AX57 -> 65 | BO57: =SUM( (INDEX($AT$5:$AW$52, 0, $AW57 ) = $AV57) *_xlfn.ANCHORARRAY( $AX$5) * BO$5:BO$52 ) / $AX57 -> 63.05 | BP57: =SUM( (INDEX($AT$5:$AW$52, 0, $AW57 ) = $AV57) *_xlfn.ANCHORARRAY( $AX$5) * BP$5:BP$52 ) / $AX57 -> 61.5 | BQ57: =SUM( (INDEX($AT$5:$AW$52, 0, $AW57 ) = $AV57) *_xlfn.ANCHORARRAY( $AX$5) * BQ$5:BQ$52 ) / $AX57 -> 61.05 | BR57: =SUM( (INDEX($AT$5:$AW$52, 0, $AW57 ) = $AV57) *_xlfn.ANCHORARRAY( $AX$5) * BR$5:BR$52 ) / $AX57 -> 61 | BS57: =SUM( (INDEX($AT$5:$AW$52, 0, $AW57 ) = $AV57) *_xlfn.ANCHORARRAY( $AX$5) * BS$5:BS$52 ) / $AX57 -> 59.75 | BT57: =SUM( (INDEX($AT$5:$AW$52, 0, $AW57 ) = $AV57) *_xlfn.ANCHORARRAY( $AX$5) * BT$5:BT$52 ) / $AX57 -> 57.5 | BU57: =SUM( (INDEX($AT$5:$AW$52, 0, $AW57 ) = $AV57) *_xlfn.ANCHORARRAY( $AX$5) * BU$5:BU$52 ) / $AX57 -> 57.25 | BV57: =SUM( (INDEX($AT$5:$AW$52, 0, $AW57 ) = $AV57) *_xlfn.ANCHORARRAY( $AX$5) * BV$5:BV$52 ) / $AX57 -> 56 | BW57: =SUM( (INDEX($AT$5:$AW$52, 0, $AW57 ) = $AV57) *_xlfn.ANCHORARRAY( $AX$5) * BW$5:BW$52 ) / $AX57 -> 55 | BX57: =SUM( (INDEX($AT$5:$AW$52, 0, $AW57 ) = $AV57) *_xlfn.ANCHORARRAY( $AX$5) * BX$5:BX$52 ) / $AX57 -> 53.05 | BY57: =SUM( (INDEX($AT$5:$AW$52, 0, $AW57 ) = $AV57) *_xlfn.ANCHORARRAY( $AX$5) * BY$5:BY$52 ) / $AX57 -> 51 | BZ57: =SUM( (INDEX($AT$5:$AW$52, 0, $AW57 ) = $AV57) *_xlfn.ANCHORARRAY( $AX$5) * BZ$5:BZ$52 ) / $AX57 -> 51.75 | CA57: =SUM( (INDEX($AT$5:$AW$52, 0, $AW57 ) = $AV57) *_xlfn.ANCHORARRAY( $AX$5) * CA$5:CA$52 ) / $AX57 -> 52.6 | CB57: =SUM( (INDEX($AT$5:$AW$52, 0, $AW57 ) = $AV57) *_xlfn.ANCHORARRAY( $AX$5) * CB$5:CB$52 ) / $AX57 -> 54
AV58: 2 | AW58: 1 | AX58: =SUMIF( INDEX($AT$5:$AW$52, 0, AW58 ), AV58,_xlfn.ANCHORARRAY( AX$5) ) -> 400 | AY58: =SUM( (INDEX($AT$5:$AW$52, 0, $AW58 ) = $AV58) *_xlfn.ANCHORARRAY( $AX$5) * AY$5:AY$52 ) / $AX58 -> 96.75 | AZ58: =SUM( (INDEX($AT$5:$AW$52, 0, $AW58 ) = $AV58) *_xlfn.ANCHORARRAY( $AX$5) * AZ$5:AZ$52 ) / $AX58 -> 100.22 | BA58: =SUM( (INDEX($AT$5:$AW$52, 0, $AW58 ) = $AV58) *_xlfn.ANCHORARRAY( $AX$5) * BA$5:BA$52 ) / $AX58 -> 102 | BB58: =SUM( (INDEX($AT$5:$AW$52, 0, $AW58 ) = $AV58) *_xlfn.ANCHORARRAY( $AX$5) * BB$5:BB$52 ) / $AX58 -> 102 | BC58: =SUM( (INDEX($AT$5:$AW$52, 0, $AW58 ) = $AV58) *_xlfn.ANCHORARRAY( $AX$5) * BC$5:BC$52 ) / $AX58 -> 100 | BD58: =SUM( (INDEX($AT$5:$AW$52, 0, $AW58 ) = $AV58) *_xlfn.ANCHORARRAY( $AX$5) * BD$5:BD$52 ) / $AX58 -> 99.95 | BE58: =SUM( (INDEX($AT$5:$AW$52, 0, $AW58 ) = $AV58) *_xlfn.ANCHORARRAY( $AX$5) * BE$5:BE$52 ) / $AX58 -> 98.7 | BF58: =SUM( (INDEX($AT$5:$AW$52, 0, $AW58 ) = $AV58) *_xlfn.ANCHORARRAY( $AX$5) * BF$5:BF$52 ) / $AX58 -> 95 | BG58: =SUM( (INDEX($AT$5:$AW$52, 0, $AW58 ) = $AV58) *_xlfn.ANCHORARRAY( $AX$5) * BG$5:BG$52 ) / $AX58 -> 93.7 | BH58: =SUM( (INDEX($AT$5:$AW$52, 0, $AW58 ) = $AV58) *_xlfn.ANCHORARRAY( $AX$5) * BH$5:BH$52 ) / $AX58 -> 94.75 | BI58: =SUM( (INDEX($AT$5:$AW$52, 0, $AW58 ) = $AV58) *_xlfn.ANCHORARRAY( $AX$5) * BI$5:BI$52 ) / $AX58 -> 95 | BJ58: =SUM( (INDEX($AT$5:$AW$52, 0, $AW58 ) = $AV58) *_xlfn.ANCHORARRAY( $AX$5) * BJ$5:BJ$52 ) / $AX58 -> 96.4 | BK58: =SUM( (INDEX($AT$5:$AW$52, 0, $AW58 ) = $AV58) *_xlfn.ANCHORARRAY( $AX$5) * BK$5:BK$52 ) / $AX58 -> 98.01 | BL58: =SUM( (INDEX($AT$5:$AW$52, 0, $AW58 ) = $AV58) *_xlfn.ANCHORARRAY( $AX$5) * BL$5:BL$52 ) / $AX58 -> 97.7 | BM58: =SUM( (INDEX($AT$5:$AW$52, 0, $AW58 ) = $AV58) *_xlfn.ANCHORARRAY( $AX$5) * BM$5:BM$52 ) / $AX58 -> 99 | BN58: =SUM( (INDEX($AT$5:$AW$52, 0, $AW58 ) = $AV58) *_xlfn.ANCHORARRAY( $AX$5) * BN$5:BN$52 ) / $AX58 -> 99 | BO58: =SUM( (INDEX($AT$5:$AW$52, 0, $AW58 ) = $AV58) *_xlfn.ANCHORARRAY( $AX$5) * BO$5:BO$52 ) / $AX58 -> 98 | BP58: =SUM( (INDEX($AT$5:$AW$52, 0, $AW58 ) = $AV58) *_xlfn.ANCHORARRAY( $AX$5) * BP$5:BP$52 ) / $AX58 -> 97.05 | BQ58: =SUM( (INDEX($AT$5:$AW$52, 0, $AW58 ) = $AV58) *_xlfn.ANCHORARRAY( $AX$5) * BQ$5:BQ$52 ) / $AX58 -> 98.17 | BR58: =SUM( (INDEX($AT$5:$AW$52, 0, $AW58 ) = $AV58) *_xlfn.ANCHORARRAY( $AX$5) * BR$5:BR$52 ) / $AX58 -> 97.55 | BS58: =SUM( (INDEX($AT$5:$AW$52, 0, $AW58 ) = $AV58) *_xlfn.ANCHORARRAY( $AX$5) * BS$5:BS$52 ) / $AX58 -> 94.6 | BT58: =SUM( (INDEX($AT$5:$AW$52, 0, $AW58 ) = $AV58) *_xlfn.ANCHORARRAY( $AX$5) * BT$5:BT$52 ) / $AX58 -> 91.05 | BU58: =SUM( (INDEX($AT$5:$AW$52, 0, $AW58 ) = $AV58) *_xlfn.ANCHORARRAY( $AX$5) * BU$5:BU$52 ) / $AX58 -> 90.8 | BV58: =SUM( (INDEX($AT$5:$AW$52, 0, $AW58 ) = $AV58) *_xlfn.ANCHORARRAY( $AX$5) * BV$5:BV$52 ) / $AX58 -> 90.65 | BW58: =SUM( (INDEX($AT$5:$AW$52, 0, $AW58 ) = $AV58) *_xlfn.ANCHORARRAY( $AX$5) * BW$5:BW$52 ) / $AX58 -> 88.95 | BX58: =SUM( (INDEX($AT$5:$AW$52, 0, $AW58 ) = $AV58) *_xlfn.ANCHORARRAY( $AX$5) * BX$5:BX$52 ) / $AX58 -> 85.75 | BY58: =SUM( (INDEX($AT$5:$AW$52, 0, $AW58 ) = $AV58) *_xlfn.ANCHORARRAY( $AX$5) * BY$5:BY$52 ) / $AX58 -> 86 | BZ58: =SUM( (INDEX($AT$5:$AW$52, 0, $AW58 ) = $AV58) *_xlfn.ANCHORARRAY( $AX$5) * BZ$5:BZ$52 ) / $AX58 -> 87 | CA58: =SUM( (INDEX($AT$5:$AW$52, 0, $AW58 ) = $AV58) *_xlfn.ANCHORARRAY( $AX$5) * CA$5:CA$52 ) / $AX58 -> 87.55 | CB58: =SUM( (INDEX($AT$5:$AW$52, 0, $AW58 ) = $AV58) *_xlfn.ANCHORARRAY( $AX$5) * CB$5:CB$52 ) / $AX58 -> 88
AV59: 3 | AW59: 1 | AX59: 416 | AY59: =SUM( (INDEX($AT$5:$AW$52, 0, $AW59 ) = $AV59) *_xlfn.ANCHORARRAY( $AX$5) * AY$5:AY$52 ) / $AX59 -> 99.5 | AZ59: =SUM( (INDEX($AT$5:$AW$52, 0, $AW59 ) = $AV59) *_xlfn.ANCHORARRAY( $AX$5) * AZ$5:AZ$52 ) / $AX59 -> 102 | BA59: =SUM( (INDEX($AT$5:$AW$52, 0, $AW59 ) = $AV59) *_xlfn.ANCHORARRAY( $AX$5) * BA$5:BA$52 ) / $AX59 -> 103.1 | BB59: =SUM( (INDEX($AT$5:$AW$52, 0, $AW59 ) = $AV59) *_xlfn.ANCHORARRAY( $AX$5) * BB$5:BB$52 ) / $AX59 -> 104.05 | BC59: =SUM( (INDEX($AT$5:$AW$52, 0, $AW59 ) = $AV59) *_xlfn.ANCHORARRAY( $AX$5) * BC$5:BC$52 ) / $AX59 -> 103.46 | BD59: =SUM( (INDEX($AT$5:$AW$52, 0, $AW59 ) = $AV59) *_xlfn.ANCHORARRAY( $AX$5) * BD$5:BD$52 ) / $AX59 -> 102.5 | BE59: =SUM( (INDEX($AT$5:$AW$52, 0, $AW59 ) = $AV59) *_xlfn.ANCHORARRAY( $AX$5) * BE$5:BE$52 ) / $AX59 -> 101.05 | BF59: =SUM( (INDEX($AT$5:$AW$52, 0, $AW59 ) = $AV59) *_xlfn.ANCHORARRAY( $AX$5) * BF$5:BF$52 ) / $AX59 -> 100.8 | BG59: =SUM( (INDEX($AT$5:$AW$52, 0, $AW59 ) = $AV59) *_xlfn.ANCHORARRAY( $AX$5) * BG$5:BG$52 ) / $AX59 -> 100.55 | BH59: =SUM( (INDEX($AT$5:$AW$52, 0, $AW59 ) = $AV59) *_xlfn.ANCHORARRAY( $AX$5) * BH$5:BH$52 ) / $AX59 -> 101 | BI59: =SUM( (INDEX($AT$5:$AW$52, 0, $AW59 ) = $AV59) *_xlfn.ANCHORARRAY( $AX$5) * BI$5:BI$52 ) / $AX59 -> 101.74 | BJ59: =SUM( (INDEX($AT$5:$AW$52, 0, $AW59 ) = $AV59) *_xlfn.ANCHORARRAY( $AX$5) * BJ$5:BJ$52 ) / $AX59 -> 102.66 | BK59: =SUM( (INDEX($AT$5:$AW$52, 0, $AW59 ) = $AV59) *_xlfn.ANCHORARRAY( $AX$5) * BK$5:BK$52 ) / $AX59 -> 102.5 | BL59: =SUM( (INDEX($AT$5:$AW$52, 0, $AW59 ) = $AV59) *_xlfn.ANCHORARRAY( $AX$5) * BL$5:BL$52 ) / $AX59 -> 102.2 | BM59: =SUM( (INDEX($AT$5:$AW$52, 0, $AW59 ) = $AV59) *_xlfn.ANCHORARRAY( $AX$5) * BM$5:BM$52 ) / $AX59 -> 102 | BN59: =SUM( (INDEX($AT$5:$AW$52, 0, $AW59 ) = $AV59) *_xlfn.ANCHORARRAY( $AX$5) * BN$5:BN$52 ) / $AX59 -> 103 | BO59: =SUM( (INDEX($AT$5:$AW$52, 0, $AW59 ) = $AV59) *_xlfn.ANCHORARRAY( $AX$5) * BO$5:BO$52 ) / $AX59 -> 102 | BP59: =SUM( (INDEX($AT$5:$AW$52, 0, $AW59 ) = $AV59) *_xlfn.ANCHORARRAY( $AX$5) * BP$5:BP$52 ) / $AX59 -> 101.5 | BQ59: =SUM( (INDEX($AT$5:$AW$52, 0, $AW59 ) = $AV59) *_xlfn.ANCHORARRAY( $AX$5) * BQ$5:BQ$52 ) / $AX59 -> 104.02 | BR59: =SUM( (INDEX($AT$5:$AW$52, 0, $AW59 ) = $AV59) *_xlfn.ANCHORARRAY( $AX$5) * BR$5:BR$52 ) / $AX59 -> 101 | BS59: =SUM( (INDEX($AT$5:$AW$52, 0, $AW59 ) = $AV59) *_xlfn.ANCHORARRAY( $AX$5) * BS$5:BS$52 ) / $AX59 -> 98.95 | BT59: =SUM( (INDEX($AT$5:$AW$52, 0, $AW59 ) = $AV59) *_xlfn.ANCHORARRAY( $AX$5) * BT$5:BT$52 ) / $AX59 -> 97 | BU59: =SUM( (INDEX($AT$5:$AW$52, 0, $AW59 ) = $AV59) *_xlfn.ANCHORARRAY( $AX$5) * BU$5:BU$52 ) / $AX59 -> 98.64 | BV59: =SUM( (INDEX($AT$5:$AW$52, 0, $AW59 ) = $AV59) *_xlfn.ANCHORARRAY( $AX$5) * BV$5:BV$52 ) / $AX59 -> 97.45 | BW59: =SUM( (INDEX($AT$5:$AW$52, 0, $AW59 ) = $AV59) *_xlfn.ANCHORARRAY( $AX$5) * BW$5:BW$52 ) / $AX59 -> 96.18 | BX59: =SUM( (INDEX($AT$5:$AW$52, 0, $AW59 ) = $AV59) *_xlfn.ANCHORARRAY( $AX$5) * BX$5:BX$52 ) / $AX59 -> 94.6 | BY59: =SUM( (INDEX($AT$5:$AW$52, 0, $AW59 ) = $AV59) *_xlfn.ANCHORARRAY( $AX$5) * BY$5:BY$52 ) / $AX59 -> 94.94 | BZ59: =SUM( (INDEX($AT$5:$AW$52, 0, $AW59 ) = $AV59) *_xlfn.ANCHORARRAY( $AX$5) * BZ$5:BZ$52 ) / $AX59 -> 94.95 | CA59: =SUM( (INDEX($AT$5:$AW$52, 0, $AW59 ) = $AV59) *_xlfn.ANCHORARRAY( $AX$5) * CA$5:CA$52 ) / $AX59 -> 95.65 | CB59: =SUM( (INDEX($AT$5:$AW$52, 0, $AW59 ) = $AV59) *_xlfn.ANCHORARRAY( $AX$5) * CB$5:CB$52 ) / $AX59 -> 97
AV60: 4 | AW60: 1 | AX60: 384 | AY60: =SUM( (INDEX($AT$5:$AW$52, 0, $AW60 ) = $AV60) *_xlfn.ANCHORARRAY( $AX$5) * AY$5:AY$52 ) / $AX60 -> 84.5 | AZ60: =SUM( (INDEX($AT$5:$AW$52, 0, $AW60 ) = $AV60) *_xlfn.ANCHORARRAY( $AX$5) * AZ$5:AZ$52 ) / $AX60 -> 86.37 | BA60: =SUM( (INDEX($AT$5:$AW$52, 0, $AW60 ) = $AV60) *_xlfn.ANCHORARRAY( $AX$5) * BA$5:BA$52 ) / $AX60 -> 88.65 | BB60: =SUM( (INDEX($AT$5:$AW$52, 0, $AW60 ) = $AV60) *_xlfn.ANCHORARRAY( $AX$5) * BB$5:BB$52 ) / $AX60 -> 88 | BC60: =SUM( (INDEX($AT$5:$AW$52, 0, $AW60 ) = $AV60) *_xlfn.ANCHORARRAY( $AX$5) * BC$5:BC$52 ) / $AX60 -> 86.88 | BD60: =SUM( (INDEX($AT$5:$AW$52, 0, $AW60 ) = $AV60) *_xlfn.ANCHORARRAY( $AX$5) * BD$5:BD$52 ) / $AX60 -> 86.11 | BE60: =SUM( (INDEX($AT$5:$AW$52, 0, $AW60 ) = $AV60) *_xlfn.ANCHORARRAY( $AX$5) * BE$5:BE$52 ) / $AX60 -> 87.05 | BF60: =SUM( (INDEX($AT$5:$AW$52, 0, $AW60 ) = $AV60) *_xlfn.ANCHORARRAY( $AX$5) * BF$5:BF$52 ) / $AX60 -> 87.05 | BG60: =SUM( (INDEX($AT$5:$AW$52, 0, $AW60 ) = $AV60) *_xlfn.ANCHORARRAY( $AX$5) * BG$5:BG$52 ) / $AX60 -> 86 | BH60: =SUM( (INDEX($AT$5:$AW$52, 0, $AW60 ) = $AV60) *_xlfn.ANCHORARRAY( $AX$5) * BH$5:BH$52 ) / $AX60 -> 85.5 | BI60: =SUM( (INDEX($AT$5:$AW$52, 0, $AW60 ) = $AV60) *_xlfn.ANCHORARRAY( $AX$5) * BI$5:BI$52 ) / $AX60 -> 87.33 | BJ60: =SUM( (INDEX($AT$5:$AW$52, 0, $AW60 ) = $AV60) *_xlfn.ANCHORARRAY( $AX$5) * BJ$5:BJ$52 ) / $AX60 -> 88.42 | BK60: =SUM( (INDEX($AT$5:$AW$52, 0, $AW60 ) = $AV60) *_xlfn.ANCHORARRAY( $AX$5) * BK$5:BK$52 ) / $AX60 -> 88.45 | BL60: =SUM( (INDEX($AT$5:$AW$52, 0, $AW60 ) = $AV60) *_xlfn.ANCHORARRAY( $AX$5) * BL$5:BL$52 ) / $AX60 -> 88.03 | BM60: =SUM( (INDEX($AT$5:$AW$52, 0, $AW60 ) = $AV60) *_xlfn.ANCHORARRAY( $AX$5) * BM$5:BM$52 ) / $AX60 -> 88 | BN60: =SUM( (INDEX($AT$5:$AW$52, 0, $AW60 ) = $AV60) *_xlfn.ANCHORARRAY( $AX$5) * BN$5:BN$52 ) / $AX60 -> 87.14 | BO60: =SUM( (INDEX($AT$5:$AW$52, 0, $AW60 ) = $AV60) *_xlfn.ANCHORARRAY( $AX$5) * BO$5:BO$52 ) / $AX60 -> 86.22 | BP60: =SUM( (INDEX($AT$5:$AW$52, 0, $AW60 ) = $AV60) *_xlfn.ANCHORARRAY( $AX$5) * BP$5:BP$52 ) / $AX60 -> 85 | BQ60: =SUM( (INDEX($AT$5:$AW$52, 0, $AW60 ) = $AV60) *_xlfn.ANCHORARRAY( $AX$5) * BQ$5:BQ$52 ) / $AX60 -> 88.06 | BR60: =SUM( (INDEX($AT$5:$AW$52, 0, $AW60 ) = $AV60) *_xlfn.ANCHORARRAY( $AX$5) * BR$5:BR$52 ) / $AX60 -> 84.69 | BS60: =SUM( (INDEX($AT$5:$AW$52, 0, $AW60 ) = $AV60) *_xlfn.ANCHORARRAY( $AX$5) * BS$5:BS$52 ) / $AX60 -> 84.44 | BT60: =SUM( (INDEX($AT$5:$AW$52, 0, $AW60 ) = $AV60) *_xlfn.ANCHORARRAY( $AX$5) * BT$5:BT$52 ) / $AX60 -> 83.44 | BU60: =SUM( (INDEX($AT$5:$AW$52, 0, $AW60 ) = $AV60) *_xlfn.ANCHORARRAY( $AX$5) * BU$5:BU$52 ) / $AX60 -> 79.07 | BV60: =SUM( (INDEX($AT$5:$AW$52, 0, $AW60 ) = $AV60) *_xlfn.ANCHORARRAY( $AX$5) * BV$5:BV$52 ) / $AX60 -> 75.32 | BW60: =SUM( (INDEX($AT$5:$AW$52, 0, $AW60 ) = $AV60) *_xlfn.ANCHORARRAY( $AX$5) * BW$5:BW$52 ) / $AX60 -> 74.16 | BX60: =SUM( (INDEX($AT$5:$AW$52, 0, $AW60 ) = $AV60) *_xlfn.ANCHORARRAY( $AX$5) * BX$5:BX$52 ) / $AX60 -> 73.69 | BY60: =SUM( (INDEX($AT$5:$AW$52, 0, $AW60 ) = $AV60) *_xlfn.ANCHORARRAY( $AX$5) * BY$5:BY$52 ) / $AX60 -> 74 | BZ60: =SUM( (INDEX($AT$5:$AW$52, 0, $AW60 ) = $AV60) *_xlfn.ANCHORARRAY( $AX$5) * BZ$5:BZ$52 ) / $AX60 -> 74 | CA60: =SUM( (INDEX($AT$5:$AW$52, 0, $AW60 ) = $AV60) *_xlfn.ANCHORARRAY( $AX$5) * CA$5:CA$52 ) / $AX60 -> 75.06 | CB60: =SUM( (INDEX($AT$5:$AW$52, 0, $AW60 ) = $AV60) *_xlfn.ANCHORARRAY( $AX$5) * CB$5:CB$52 ) / $AX60 -> 75.54
AV61: 5 | AW61: 1 | AX61: 416 | AY61: =SUM( (INDEX($AT$5:$AW$52, 0, $AW61 ) = $AV61) *_xlfn.ANCHORARRAY( $AX$5) * AY$5:AY$52 ) / $AX61 -> 47 | AZ61: =SUM( (INDEX($AT$5:$AW$52, 0, $AW61 ) = $AV61) *_xlfn.ANCHORARRAY( $AX$5) * AZ$5:AZ$52 ) / $AX61 -> 48.26 | BA61: =SUM( (INDEX($AT$5:$AW$52, 0, $AW61 ) = $AV61) *_xlfn.ANCHORARRAY( $AX$5) * BA$5:BA$52 ) / $AX61 -> 48.89 | BB61: =SUM( (INDEX($AT$5:$AW$52, 0, $AW61 ) = $AV61) *_xlfn.ANCHORARRAY( $AX$5) * BB$5:BB$52 ) / $AX61 -> 48.86 | BC61: =SUM( (INDEX($AT$5:$AW$52, 0, $AW61 ) = $AV61) *_xlfn.ANCHORARRAY( $AX$5) * BC$5:BC$52 ) / $AX61 -> 48 | BD61: =SUM( (INDEX($AT$5:$AW$52, 0, $AW61 ) = $AV61) *_xlfn.ANCHORARRAY( $AX$5) * BD$5:BD$52 ) / $AX61 -> 47.47 | BE61: =SUM( (INDEX($AT$5:$AW$52, 0, $AW61 ) = $AV61) *_xlfn.ANCHORARRAY( $AX$5) * BE$5:BE$52 ) / $AX61 -> 47.05 | BF61: =SUM( (INDEX($AT$5:$AW$52, 0, $AW61 ) = $AV61) *_xlfn.ANCHORARRAY( $AX$5) * BF$5:BF$52 ) / $AX61 -> 46.72 | BG61: =SUM( (INDEX($AT$5:$AW$52, 0, $AW61 ) = $AV61) *_xlfn.ANCHORARRAY( $AX$5) * BG$5:BG$52 ) / $AX61 -> 46 | BH61: =SUM( (INDEX($AT$5:$AW$52, 0, $AW61 ) = $AV61) *_xlfn.ANCHORARRAY( $AX$5) * BH$5:BH$52 ) / $AX61 -> 46.5 | BI61: =SUM( (INDEX($AT$5:$AW$52, 0, $AW61 ) = $AV61) *_xlfn.ANCHORARRAY( $AX$5) * BI$5:BI$52 ) / $AX61 -> 45.79 | BJ61: =SUM( (INDEX($AT$5:$AW$52, 0, $AW61 ) = $AV61) *_xlfn.ANCHORARRAY( $AX$5) * BJ$5:BJ$52 ) / $AX61 -> 46.35 | BK61: =SUM( (INDEX($AT$5:$AW$52, 0, $AW61 ) = $AV61) *_xlfn.ANCHORARRAY( $AX$5) * BK$5:BK$52 ) / $AX61 -> 46.85 | BL61: =SUM( (INDEX($AT$5:$AW$52, 0, $AW61 ) = $AV61) *_xlfn.ANCHORARRAY( $AX$5) * BL$5:BL$52 ) / $AX61 -> 46.85 | BM61: =SUM( (INDEX($AT$5:$AW$52, 0, $AW61 ) = $AV61) *_xlfn.ANCHORARRAY( $AX$5) * BM$5:BM$52 ) / $AX61 -> 46.95 | BN61: =SUM( (INDEX($AT$5:$AW$52, 0, $AW61 ) = $AV61) *_xlfn.ANCHORARRAY( $AX$5) * BN$5:BN$52 ) / $AX61 -> 46.75 | BO61: =SUM( (INDEX($AT$5:$AW$52, 0, $AW61 ) = $AV61) *_xlfn.ANCHORARRAY( $AX$5) * BO$5:BO$52 ) / $AX61 -> 45.5 | BP61: =SUM( (INDEX($AT$5:$AW$52, 0, $AW61 ) = $AV61) *_xlfn.ANCHORARRAY( $AX$5) * BP$5:BP$52 ) / $AX61 -> 45.5 | BQ61: =SUM( (INDEX($AT$5:$AW$52, 0, $AW61 ) = $AV61) *_xlfn.ANCHORARRAY( $AX$5) * BQ$5:BQ$52 ) / $AX61 -> 46.35 | BR61: =SUM( (INDEX($AT$5:$AW$52, 0, $AW61 ) = $AV61) *_xlfn.ANCHORARRAY( $AX$5) * BR$5:BR$52 ) / $AX61 -> 46.45 | BS61: =SUM( (INDEX($AT$5:$AW$52, 0, $AW61 ) = $AV61) *_xlfn.ANCHORARRAY( $AX$5) * BS$5:BS$52 ) / $AX61 -> 46.4 | BT61: =SUM( (INDEX($AT$5:$AW$52, 0, $AW61 ) = $AV61) *_xlfn.ANCHORARRAY( $AX$5) * BT$5:BT$52 ) / $AX61 -> 45.6 | BU61: =SUM( (INDEX($AT$5:$AW$52, 0, $AW61 ) = $AV61) *_xlfn.ANCHORARRAY( $AX$5) * BU$5:BU$52 ) / $AX61 -> 46.43 | BV61: =SUM( (INDEX($AT$5:$AW$52, 0, $AW61 ) = $AV61) *_xlfn.ANCHORARRAY( $AX$5) * BV$5:BV$52 ) / $AX61 -> 43.7 | BW61: =SUM( (INDEX($AT$5:$AW$52, 0, $AW61 ) = $AV61) *_xlfn.ANCHORARRAY( $AX$5) * BW$5:BW$52 ) / $AX61 -> 43.17 | BX61: =SUM( (INDEX($AT$5:$AW$52, 0, $AW61 ) = $AV61) *_xlfn.ANCHORARRAY( $AX$5) * BX$5:BX$52 ) / $AX61 -> 42.47 | BY61: =SUM( (INDEX($AT$5:$AW$52, 0, $AW61 ) = $AV61) *_xlfn.ANCHORARRAY( $AX$5) * BY$5:BY$52 ) / $AX61 -> 42.26 | BZ61: =SUM( (INDEX($AT$5:$AW$52, 0, $AW61 ) = $AV61) *_xlfn.ANCHORARRAY( $AX$5) * BZ$5:BZ$52 ) / $AX61 -> 42.53 | CA61: =SUM( (INDEX($AT$5:$AW$52, 0, $AW61 ) = $AV61) *_xlfn.ANCHORARRAY( $AX$5) * CA$5:CA$52 ) / $AX61 -> 42.9 | CB61: =SUM( (INDEX($AT$5:$AW$52, 0, $AW61 ) = $AV61) *_xlfn.ANCHORARRAY( $AX$5) * CB$5:CB$52 ) / $AX61 -> 43.73
AV62: 6 | AW62: 1 | AX62: 416 | AY62: =SUM( (INDEX($AT$5:$AW$52, 0, $AW62 ) = $AV62) *_xlfn.ANCHORARRAY( $AX$5) * AY$5:AY$52 ) / $AX62 -> 42.15 | AZ62: =SUM( (INDEX($AT$5:$AW$52, 0, $AW62 ) = $AV62) *_xlfn.ANCHORARRAY( $AX$5) * AZ$5:AZ$52 ) / $AX62 -> 42.15 | BA62: =SUM( (INDEX($AT$5:$AW$52, 0, $AW62 ) = $AV62) *_xlfn.ANCHORARRAY( $AX$5) * BA$5:BA$52 ) / $AX62 -> 42.36 | BB62: =SUM( (INDEX($AT$5:$AW$52, 0, $AW62 ) = $AV62) *_xlfn.ANCHORARRAY( $AX$5) * BB$5:BB$52 ) / $AX62 -> 41.65 | BC62: =SUM( (INDEX($AT$5:$AW$52, 0, $AW62 ) = $AV62) *_xlfn.ANCHORARRAY( $AX$5) * BC$5:BC$52 ) / $AX62 -> 41.52 | BD62: =SUM( (INDEX($AT$5:$AW$52, 0, $AW62 ) = $AV62) *_xlfn.ANCHORARRAY( $AX$5) * BD$5:BD$52 ) / $AX62 -> 41.52 | BE62: =SUM( (INDEX($AT$5:$AW$52, 0, $AW62 ) = $AV62) *_xlfn.ANCHORARRAY( $AX$5) * BE$5:BE$52 ) / $AX62 -> 42.31 | BF62: =SUM( (INDEX($AT$5:$AW$52, 0, $AW62 ) = $AV62) *_xlfn.ANCHORARRAY( $AX$5) * BF$5:BF$52 ) / $AX62 -> 42.36 | BG62: =SUM( (INDEX($AT$5:$AW$52, 0, $AW62 ) = $AV62) *_xlfn.ANCHORARRAY( $AX$5) * BG$5:BG$52 ) / $AX62 -> 42.36 | BH62: =SUM( (INDEX($AT$5:$AW$52, 0, $AW62 ) = $AV62) *_xlfn.ANCHORARRAY( $AX$5) * BH$5:BH$52 ) / $AX62 -> 43 | BI62: =SUM( (INDEX($AT$5:$AW$52, 0, $AW62 ) = $AV62) *_xlfn.ANCHORARRAY( $AX$5) * BI$5:BI$52 ) / $AX62 -> 43.15 | BJ62: =SUM( (INDEX($AT$5:$AW$52, 0, $AW62 ) = $AV62) *_xlfn.ANCHORARRAY( $AX$5) * BJ$5:BJ$52 ) / $AX62 -> 42.83 | BK62: =SUM( (INDEX($AT$5:$AW$52, 0, $AW62 ) = $AV62) *_xlfn.ANCHORARRAY( $AX$5) * BK$5:BK$52 ) / $AX62 -> 42.83 | BL62: =SUM( (INDEX($AT$5:$AW$52, 0, $AW62 ) = $AV62) *_xlfn.ANCHORARRAY( $AX$5) * BL$5:BL$52 ) / $AX62 -> 42.51 | BM62: =SUM( (INDEX($AT$5:$AW$52, 0, $AW62 ) = $AV62) *_xlfn.ANCHORARRAY( $AX$5) * BM$5:BM$52 ) / $AX62 -> 42.51 | BN62: =SUM( (INDEX($AT$5:$AW$52, 0, $AW62 ) = $AV62) *_xlfn.ANCHORARRAY( $AX$5) * BN$5:BN$52 ) / $AX62 -> 42.51 | BO62: =SUM( (INDEX($AT$5:$AW$52, 0, $AW62 ) = $AV62) *_xlfn.ANCHORARRAY( $AX$5) * BO$5:BO$52 ) / $AX62 -> 42.54 | BP62: =SUM( (INDEX($AT$5:$AW$52, 0, $AW62 ) = $AV62) *_xlfn.ANCHORARRAY( $AX$5) * BP$5:BP$52 ) / $AX62 -> 41.75 | BQ62: =SUM( (INDEX($AT$5:$AW$52, 0, $AW62 ) = $AV62) *_xlfn.ANCHORARRAY( $AX$5) * BQ$5:BQ$52 ) / $AX62 -> 42.21 | BR62: =SUM( (INDEX($AT$5:$AW$52, 0, $AW62 ) = $AV62) *_xlfn.ANCHORARRAY( $AX$5) * BR$5:BR$52 ) / $AX62 -> 42.21 | BS62: =SUM( (INDEX($AT$5:$AW$52, 0, $AW62 ) = $AV62) *_xlfn.ANCHORARRAY( $AX$5) * BS$5:BS$52 ) / $AX62 -> 41.04 | BT62: =SUM( (INDEX($AT$5:$AW$52, 0, $AW62 ) = $AV62) *_xlfn.ANCHORARRAY( $AX$5) * BT$5:BT$52 ) / $AX62 -> 40.67 | BU62: =SUM( (INDEX($AT$5:$AW$52, 0, $AW62 ) = $AV62) *_xlfn.ANCHORARRAY( $AX$5) * BU$5:BU$52 ) / $AX62 -> 40.16 | BV62: =SUM( (INDEX($AT$5:$AW$52, 0, $AW62 ) = $AV62) *_xlfn.ANCHORARRAY( $AX$5) * BV$5:BV$52 ) / $AX62 -> 40.07 | BW62: =SUM( (INDEX($AT$5:$AW$52, 0, $AW62 ) = $AV62) *_xlfn.ANCHORARRAY( $AX$5) * BW$5:BW$52 ) / $AX62 -> 41.06 | BX62: =SUM( (INDEX($AT$5:$AW$52, 0, $AW62 ) = $AV62) *_xlfn.ANCHORARRAY( $AX$5) * BX$5:BX$52 ) / $AX62 -> 40.9 | BY62: =SUM( (INDEX($AT$5:$AW$52, 0, $AW62 ) = $AV62) *_xlfn.ANCHORARRAY( $AX$5) * BY$5:BY$52 ) / $AX62 -> 41 | BZ62: =SUM( (INDEX($AT$5:$AW$52, 0, $AW62 ) = $AV62) *_xlfn.ANCHORARRAY( $AX$5) * BZ$5:BZ$52 ) / $AX62 -> 40.95 | CA62: =SUM( (INDEX($AT$5:$AW$52, 0, $AW62 ) = $AV62) *_xlfn.ANCHORARRAY( $AX$5) * CA$5:CA$52 ) / $AX62 -> 40.65 | CB62: =SUM( (INDEX($AT$5:$AW$52, 0, $AW62 ) = $AV62) *_xlfn.ANCHORARRAY( $AX$5) * CB$5:CB$52 ) / $AX62 -> 40.69
AV63: 7 | AW63: 1 | AX63: 416 | AY63: =SUM( (INDEX($AT$5:$AW$52, 0, $AW63 ) = $AV63) *_xlfn.ANCHORARRAY( $AX$5) * AY$5:AY$52 ) / $AX63 -> 29.95 | AZ63: =SUM( (INDEX($AT$5:$AW$52, 0, $AW63 ) = $AV63) *_xlfn.ANCHORARRAY( $AX$5) * AZ$5:AZ$52 ) / $AX63 -> 30.33 | BA63: =SUM( (INDEX($AT$5:$AW$52, 0, $AW63 ) = $AV63) *_xlfn.ANCHORARRAY( $AX$5) * BA$5:BA$52 ) / $AX63 -> 30.54 | BB63: =SUM( (INDEX($AT$5:$AW$52, 0, $AW63 ) = $AV63) *_xlfn.ANCHORARRAY( $AX$5) * BB$5:BB$52 ) / $AX63 -> 29.83 | BC63: =SUM( (INDEX($AT$5:$AW$52, 0, $AW63 ) = $AV63) *_xlfn.ANCHORARRAY( $AX$5) * BC$5:BC$52 ) / $AX63 -> 29.19 | BD63: =SUM( (INDEX($AT$5:$AW$52, 0, $AW63 ) = $AV63) *_xlfn.ANCHORARRAY( $AX$5) * BD$5:BD$52 ) / $AX63 -> 29.19 | BE63: =SUM( (INDEX($AT$5:$AW$52, 0, $AW63 ) = $AV63) *_xlfn.ANCHORARRAY( $AX$5) * BE$5:BE$52 ) / $AX63 -> 29 | BF63: =SUM( (INDEX($AT$5:$AW$52, 0, $AW63 ) = $AV63) *_xlfn.ANCHORARRAY( $AX$5) * BF$5:BF$52 ) / $AX63 -> 28.69 | BG63: =SUM( (INDEX($AT$5:$AW$52, 0, $AW63 ) = $AV63) *_xlfn.ANCHORARRAY( $AX$5) * BG$5:BG$52 ) / $AX63 -> 28.2 | BH63: =SUM( (INDEX($AT$5:$AW$52, 0, $AW63 ) = $AV63) *_xlfn.ANCHORARRAY( $AX$5) * BH$5:BH$52 ) / $AX63 -> 28.85 | BI63: =SUM( (INDEX($AT$5:$AW$52, 0, $AW63 ) = $AV63) *_xlfn.ANCHORARRAY( $AX$5) * BI$5:BI$52 ) / $AX63 -> 29.34 | BJ63: =SUM( (INDEX($AT$5:$AW$52, 0, $AW63 ) = $AV63) *_xlfn.ANCHORARRAY( $AX$5) * BJ$5:BJ$52 ) / $AX63 -> 29.47 | BK63: =SUM( (INDEX($AT$5:$AW$52, 0, $AW63 ) = $AV63) *_xlfn.ANCHORARRAY( $AX$5) * BK$5:BK$52 ) / $AX63 -> 29.47 | BL63: =SUM( (INDEX($AT$5:$AW$52, 0, $AW63 ) = $AV63) *_xlfn.ANCHORARRAY( $AX$5) * BL$5:BL$52 ) / $AX63 -> 28.6 | BM63: =SUM( (INDEX($AT$5:$AW$52, 0, $AW63 ) = $AV63) *_xlfn.ANCHORARRAY( $AX$5) * BM$5:BM$52 ) / $AX63 -> 28.6 | BN63: =SUM( (INDEX($AT$5:$AW$52, 0, $AW63 ) = $AV63) *_xlfn.ANCHORARRAY( $AX$5) * BN$5:BN$52 ) / $AX63 -> 28.52 | BO63: =SUM( (INDEX($AT$5:$AW$52, 0, $AW63 ) = $AV63) *_xlfn.ANCHORARRAY( $AX$5) * BO$5:BO$52 ) / $AX63 -> 28.43 | BP63: =SUM( (INDEX($AT$5:$AW$52, 0, $AW63 ) = $AV63) *_xlfn.ANCHORARRAY( $AX$5) * BP$5:BP$52 ) / $AX63 -> 27.92 | BQ63: =SUM( (INDEX($AT$5:$AW$52, 0, $AW63 ) = $AV63) *_xlfn.ANCHORARRAY( $AX$5) * BQ$5:BQ$52 ) / $AX63 -> 28.39 | BR63: =SUM( (INDEX($AT$5:$AW$52, 0, $AW63 ) = $AV63) *_xlfn.ANCHORARRAY( $AX$5) * BR$5:BR$52 ) / $AX63 -> 28.39 | BS63: =SUM( (INDEX($AT$5:$AW$52, 0, $AW63 ) = $AV63) *_xlfn.ANCHORARRAY( $AX$5) * BS$5:BS$52 ) / $AX63 -> 27.72 | BT63: =SUM( (INDEX($AT$5:$AW$52, 0, $AW63 ) = $AV63) *_xlfn.ANCHORARRAY( $AX$5) * BT$5:BT$52 ) / $AX63 -> 27.72 | BU63: =SUM( (INDEX($AT$5:$AW$52, 0, $AW63 ) = $AV63) *_xlfn.ANCHORARRAY( $AX$5) * BU$5:BU$52 ) / $AX63 -> 27.05 | BV63: =SUM( (INDEX($AT$5:$AW$52, 0, $AW63 ) = $AV63) *_xlfn.ANCHORARRAY( $AX$5) * BV$5:BV$52 ) / $AX63 -> 26.55 | BW63: =SUM( (INDEX($AT$5:$AW$52, 0, $AW63 ) = $AV63) *_xlfn.ANCHORARRAY( $AX$5) * BW$5:BW$52 ) / $AX63 -> 26.22 | BX63: =SUM( (INDEX($AT$5:$AW$52, 0, $AW63 ) = $AV63) *_xlfn.ANCHORARRAY( $AX$5) * BX$5:BX$52 ) / $AX63 -> 25.65 | BY63: =SUM( (INDEX($AT$5:$AW$52, 0, $AW63 ) = $AV63) *_xlfn.ANCHORARRAY( $AX$5) * BY$5:BY$52 ) / $AX63 -> 25.75 | BZ63: =SUM( (INDEX($AT$5:$AW$52, 0, $AW63 ) = $AV63) *_xlfn.ANCHORARRAY( $AX$5) * BZ$5:BZ$52 ) / $AX63 -> 25.7 | CA63: =SUM( (INDEX($AT$5:$AW$52, 0, $AW63 ) = $AV63) *_xlfn.ANCHORARRAY( $AX$5) * CA$5:CA$52 ) / $AX63 -> 25.65 | CB63: =SUM( (INDEX($AT$5:$AW$52, 0, $AW63 ) = $AV63) *_xlfn.ANCHORARRAY( $AX$5) * CB$5:CB$52 ) / $AX63 -> 25.52
AV64: 8 | AW64: 1 | AX64: 400 | AY64: =SUM( (INDEX($AT$5:$AW$52, 0, $AW64 ) = $AV64) *_xlfn.ANCHORARRAY( $AX$5) * AY$5:AY$52 ) / $AX64 -> 37.45 | AZ64: =SUM( (INDEX($AT$5:$AW$52, 0, $AW64 ) = $AV64) *_xlfn.ANCHORARRAY( $AX$5) * AZ$5:AZ$52 ) / $AX64 -> 36.7 | BA64: =SUM( (INDEX($AT$5:$AW$52, 0, $AW64 ) = $AV64) *_xlfn.ANCHORARRAY( $AX$5) * BA$5:BA$52 ) / $AX64 -> 36.91 | BB64: =SUM( (INDEX($AT$5:$AW$52, 0, $AW64 ) = $AV64) *_xlfn.ANCHORARRAY( $AX$5) * BB$5:BB$52 ) / $AX64 -> 36.5 | BC64: =SUM( (INDEX($AT$5:$AW$52, 0, $AW64 ) = $AV64) *_xlfn.ANCHORARRAY( $AX$5) * BC$5:BC$52 ) / $AX64 -> 35.74 | BD64: =SUM( (INDEX($AT$5:$AW$52, 0, $AW64 ) = $AV64) *_xlfn.ANCHORARRAY( $AX$5) * BD$5:BD$52 ) / $AX64 -> 35.79 | BE64: =SUM( (INDEX($AT$5:$AW$52, 0, $AW64 ) = $AV64) *_xlfn.ANCHORARRAY( $AX$5) * BE$5:BE$52 ) / $AX64 -> 37.5 | BF64: =SUM( (INDEX($AT$5:$AW$52, 0, $AW64 ) = $AV64) *_xlfn.ANCHORARRAY( $AX$5) * BF$5:BF$52 ) / $AX64 -> 37.02 | BG64: =SUM( (INDEX($AT$5:$AW$52, 0, $AW64 ) = $AV64) *_xlfn.ANCHORARRAY( $AX$5) * BG$5:BG$52 ) / $AX64 -> 36.57 | BH64: =SUM( (INDEX($AT$5:$AW$52, 0, $AW64 ) = $AV64) *_xlfn.ANCHORARRAY( $AX$5) * BH$5:BH$52 ) / $AX64 -> 36.26 | BI64: =SUM( (INDEX($AT$5:$AW$52, 0, $AW64 ) = $AV64) *_xlfn.ANCHORARRAY( $AX$5) * BI$5:BI$52 ) / $AX64 -> 36.26 | BJ64: =SUM( (INDEX($AT$5:$AW$52, 0, $AW64 ) = $AV64) *_xlfn.ANCHORARRAY( $AX$5) * BJ$5:BJ$52 ) / $AX64 -> 36.49 | BK64: =SUM( (INDEX($AT$5:$AW$52, 0, $AW64 ) = $AV64) *_xlfn.ANCHORARRAY( $AX$5) * BK$5:BK$52 ) / $AX64 -> 36.46 | BL64: =SUM( (INDEX($AT$5:$AW$52, 0, $AW64 ) = $AV64) *_xlfn.ANCHORARRAY( $AX$5) * BL$5:BL$52 ) / $AX64 -> 36.15 | BM64: =SUM( (INDEX($AT$5:$AW$52, 0, $AW64 ) = $AV64) *_xlfn.ANCHORARRAY( $AX$5) * BM$5:BM$52 ) / $AX64 -> 36.15 | BN64: =SUM( (INDEX($AT$5:$AW$52, 0, $AW64 ) = $AV64) *_xlfn.ANCHORARRAY( $AX$5) * BN$5:BN$52 ) / $AX64 -> 36.25 | BO64: =SUM( (INDEX($AT$5:$AW$52, 0, $AW64 ) = $AV64) *_xlfn.ANCHORARRAY( $AX$5) * BO$5:BO$52 ) / $AX64 -> 36 | BP64: =SUM( (INDEX($AT$5:$AW$52, 0, $AW64 ) = $AV64) *_xlfn.ANCHORARRAY( $AX$5) * BP$5:BP$52 ) / $AX64 -> 35.8 | BQ64: =SUM( (INDEX($AT$5:$AW$52, 0, $AW64 ) = $AV64) *_xlfn.ANCHORARRAY( $AX$5) * BQ$5:BQ$52 ) / $AX64 -> 35.47 | BR64: =SUM( (INDEX($AT$5:$AW$52, 0, $AW64 ) = $AV64) *_xlfn.ANCHORARRAY( $AX$5) * BR$5:BR$52 ) / $AX64 -> 35.5 | BS64: =SUM( (INDEX($AT$5:$AW$52, 0, $AW64 ) = $AV64) *_xlfn.ANCHORARRAY( $AX$5) * BS$5:BS$52 ) / $AX64 -> 34.86 | BT64: =SUM( (INDEX($AT$5:$AW$52, 0, $AW64 ) = $AV64) *_xlfn.ANCHORARRAY( $AX$5) * BT$5:BT$52 ) / $AX64 -> 34.86 | BU64: =SUM( (INDEX($AT$5:$AW$52, 0, $AW64 ) = $AV64) *_xlfn.ANCHORARRAY( $AX$5) * BU$5:BU$52 ) / $AX64 -> 34.67 | BV64: =SUM( (INDEX($AT$5:$AW$52, 0, $AW64 ) = $AV64) *_xlfn.ANCHORARRAY( $AX$5) * BV$5:BV$52 ) / $AX64 -> 34.05 | BW64: =SUM( (INDEX($AT$5:$AW$52, 0, $AW64 ) = $AV64) *_xlfn.ANCHORARRAY( $AX$5) * BW$5:BW$52 ) / $AX64 -> 33.41 | BX64: =SUM( (INDEX($AT$5:$AW$52, 0, $AW64 ) = $AV64) *_xlfn.ANCHORARRAY( $AX$5) * BX$5:BX$52 ) / $AX64 -> 33.23 | BY64: =SUM( (INDEX($AT$5:$AW$52, 0, $AW64 ) = $AV64) *_xlfn.ANCHORARRAY( $AX$5) * BY$5:BY$52 ) / $AX64 -> 32.12 | BZ64: =SUM( (INDEX($AT$5:$AW$52, 0, $AW64 ) = $AV64) *_xlfn.ANCHORARRAY( $AX$5) * BZ$5:BZ$52 ) / $AX64 -> 32.19 | CA64: =SUM( (INDEX($AT$5:$AW$52, 0, $AW64 ) = $AV64) *_xlfn.ANCHORARRAY( $AX$5) * CA$5:CA$52 ) / $AX64 -> 32.69 | CB64: =SUM( (INDEX($AT$5:$AW$52, 0, $AW64 ) = $AV64) *_xlfn.ANCHORARRAY( $AX$5) * CB$5:CB$52 ) / $AX64 -> 34.78
AV65: 9 | AW65: 1 | AX65: 416 | AY65: =SUM( (INDEX($AT$5:$AW$52, 0, $AW65 ) = $AV65) *_xlfn.ANCHORARRAY( $AX$5) * AY$5:AY$52 ) / $AX65 -> 72.3 | AZ65: =SUM( (INDEX($AT$5:$AW$52, 0, $AW65 ) = $AV65) *_xlfn.ANCHORARRAY( $AX$5) * AZ$5:AZ$52 ) / $AX65 -> 74.81 | BA65: =SUM( (INDEX($AT$5:$AW$52, 0, $AW65 ) = $AV65) *_xlfn.ANCHORARRAY( $AX$5) * BA$5:BA$52 ) / $AX65 -> 74.78 | BB65: =SUM( (INDEX($AT$5:$AW$52, 0, $AW65 ) = $AV65) *_xlfn.ANCHORARRAY( $AX$5) * BB$5:BB$52 ) / $AX65 -> 74.58 | BC65: =SUM( (INDEX($AT$5:$AW$52, 0, $AW65 ) = $AV65) *_xlfn.ANCHORARRAY( $AX$5) * BC$5:BC$52 ) / $AX65 -> 74.48 | BD65: =SUM( (INDEX($AT$5:$AW$52, 0, $AW65 ) = $AV65) *_xlfn.ANCHORARRAY( $AX$5) * BD$5:BD$52 ) / $AX65 -> 74.78 | BE65: =SUM( (INDEX($AT$5:$AW$52, 0, $AW65 ) = $AV65) *_xlfn.ANCHORARRAY( $AX$5) * BE$5:BE$52 ) / $AX65 -> 74.78 | BF65: =SUM( (INDEX($AT$5:$AW$52, 0, $AW65 ) = $AV65) *_xlfn.ANCHORARRAY( $AX$5) * BF$5:BF$52 ) / $AX65 -> 73.4 | BG65: =SUM( (INDEX($AT$5:$AW$52, 0, $AW65 ) = $AV65) *_xlfn.ANCHORARRAY( $AX$5) * BG$5:BG$52 ) / $AX65 -> 72.59 | BH65: =SUM( (INDEX($AT$5:$AW$52, 0, $AW65 ) = $AV65) *_xlfn.ANCHORARRAY( $AX$5) * BH$5:BH$52 ) / $AX65 -> 74.53 | BI65: =SUM( (INDEX($AT$5:$AW$52, 0, $AW65 ) = $AV65) *_xlfn.ANCHORARRAY( $AX$5) * BI$5:BI$52 ) / $AX65 -> 75.24 | BJ65: =SUM( (INDEX($AT$5:$AW$52, 0, $AW65 ) = $AV65) *_xlfn.ANCHORARRAY( $AX$5) * BJ$5:BJ$52 ) / $AX65 -> 76.25 | BK65: =SUM( (INDEX($AT$5:$AW$52, 0, $AW65 ) = $AV65) *_xlfn.ANCHORARRAY( $AX$5) * BK$5:BK$52 ) / $AX65 -> 76.35 | BL65: =SUM( (INDEX($AT$5:$AW$52, 0, $AW65 ) = $AV65) *_xlfn.ANCHORARRAY( $AX$5) * BL$5:BL$52 ) / $AX65 -> 76.09 | BM65: =SUM( (INDEX($AT$5:$AW$52, 0, $AW65 ) = $AV65) *_xlfn.ANCHORARRAY( $AX$5) * BM$5:BM$52 ) / $AX65 -> 75.13 | BN65: =SUM( (INDEX($AT$5:$AW$52, 0, $AW65 ) = $AV65) *_xlfn.ANCHORARRAY( $AX$5) * BN$5:BN$52 ) / $AX65 -> 76.42 | BO65: =SUM( (INDEX($AT$5:$AW$52, 0, $AW65 ) = $AV65) *_xlfn.ANCHORARRAY( $AX$5) * BO$5:BO$52 ) / $AX65 -> 75 | BP65: =SUM( (INDEX($AT$5:$AW$52, 0, $AW65 ) = $AV65) *_xlfn.ANCHORARRAY( $AX$5) * BP$5:BP$52 ) / $AX65 -> 73.57 | BQ65: =SUM( (INDEX($AT$5:$AW$52, 0, $AW65 ) = $AV65) *_xlfn.ANCHORARRAY( $AX$5) * BQ$5:BQ$52 ) / $AX65 -> 74.98 | BR65: =SUM( (INDEX($AT$5:$AW$52, 0, $AW65 ) = $AV65) *_xlfn.ANCHORARRAY( $AX$5) * BR$5:BR$52 ) / $AX65 -> 75.34 | BS65: =SUM( (INDEX($AT$5:$AW$52, 0, $AW65 ) = $AV65) *_xlfn.ANCHORARRAY( $AX$5) * BS$5:BS$52 ) / $AX65 -> 72.2 | BT65: =SUM( (INDEX($AT$5:$AW$52, 0, $AW65 ) = $AV65) *_xlfn.ANCHORARRAY( $AX$5) * BT$5:BT$52 ) / $AX65 -> 72.08 | BU65: =SUM( (INDEX($AT$5:$AW$52, 0, $AW65 ) = $AV65) *_xlfn.ANCHORARRAY( $AX$5) * BU$5:BU$52 ) / $AX65 -> 71.68 | BV65: =SUM( (INDEX($AT$5:$AW$52, 0, $AW65 ) = $AV65) *_xlfn.ANCHORARRAY( $AX$5) * BV$5:BV$52 ) / $AX65 -> 69.38 | BW65: =SUM( (INDEX($AT$5:$AW$52, 0, $AW65 ) = $AV65) *_xlfn.ANCHORARRAY( $AX$5) * BW$5:BW$52 ) / $AX65 -> 68.68 | BX65: =SUM( (INDEX($AT$5:$AW$52, 0, $AW65 ) = $AV65) *_xlfn.ANCHORARRAY( $AX$5) * BX$5:BX$52 ) / $AX65 -> 66.72 | BY65: =SUM( (INDEX($AT$5:$AW$52, 0, $AW65 ) = $AV65) *_xlfn.ANCHORARRAY( $AX$5) * BY$5:BY$52 ) / $AX65 -> 66.88 | BZ65: =SUM( (INDEX($AT$5:$AW$52, 0, $AW65 ) = $AV65) *_xlfn.ANCHORARRAY( $AX$5) * BZ$5:BZ$52 ) / $AX65 -> 66.76 | CA65: =SUM( (INDEX($AT$5:$AW$52, 0, $AW65 ) = $AV65) *_xlfn.ANCHORARRAY( $AX$5) * CA$5:CA$52 ) / $AX65 -> 67.51 | CB65: =SUM( (INDEX($AT$5:$AW$52, 0, $AW65 ) = $AV65) *_xlfn.ANCHORARRAY( $AX$5) * CB$5:CB$52 ) / $AX65 -> 67.52
AV66: 10 | AW66: 2 | AX66: 1216 | AY66: =SUM( (INDEX($AT$5:$AW$52, 0, $AW66 ) = $AV66) *_xlfn.ANCHORARRAY( $AX$5) * AY$5:AY$52 ) / $AX66 -> 76.80263158 | AZ66: =SUM( (INDEX($AT$5:$AW$52, 0, $AW66 ) = $AV66) *_xlfn.ANCHORARRAY( $AX$5) * AZ$5:AZ$52 ) / $AX66 -> 78.67947368 | BA66: =SUM( (INDEX($AT$5:$AW$52, 0, $AW66 ) = $AV66) *_xlfn.ANCHORARRAY( $AX$5) * BA$5:BA$52 ) / $AX66 -> 79.99131579 | BB66: =SUM( (INDEX($AT$5:$AW$52, 0, $AW66 ) = $AV66) *_xlfn.ANCHORARRAY( $AX$5) * BB$5:BB$52 ) / $AX66 -> 80.10078947 | BC66: =SUM( (INDEX($AT$5:$AW$52, 0, $AW66 ) = $AV66) *_xlfn.ANCHORARRAY( $AX$5) * BC$5:BC$52 ) / $AX66 -> 79.25105263 | BD66: =SUM( (INDEX($AT$5:$AW$52, 0, $AW66 ) = $AV66) *_xlfn.ANCHORARRAY( $AX$5) * BD$5:BD$52 ) / $AX66 -> 78.49815789 | BE66: =SUM( (INDEX($AT$5:$AW$52, 0, $AW66 ) = $AV66) *_xlfn.ANCHORARRAY( $AX$5) * BE$5:BE$52 ) / $AX66 -> 78.15526316 | BF66: =SUM( (INDEX($AT$5:$AW$52, 0, $AW66 ) = $AV66) *_xlfn.ANCHORARRAY( $AX$5) * BF$5:BF$52 ) / $AX66 -> 77.95684211 | BG66: =SUM( (INDEX($AT$5:$AW$52, 0, $AW66 ) = $AV66) *_xlfn.ANCHORARRAY( $AX$5) * BG$5:BG$52 ) / $AX66 -> 77.29342105 | BH66: =SUM( (INDEX($AT$5:$AW$52, 0, $AW66 ) = $AV66) *_xlfn.ANCHORARRAY( $AX$5) * BH$5:BH$52 ) / $AX66 -> 77.46052632 | BI66: =SUM( (INDEX($AT$5:$AW$52, 0, $AW66 ) = $AV66) *_xlfn.ANCHORARRAY( $AX$5) * BI$5:BI$52 ) / $AX66 -> 78.04868421 | BJ66: =SUM( (INDEX($AT$5:$AW$52, 0, $AW66 ) = $AV66) *_xlfn.ANCHORARRAY( $AX$5) * BJ$5:BJ$52 ) / $AX66 -> 78.89921053 | BK66: =SUM( (INDEX($AT$5:$AW$52, 0, $AW66 ) = $AV66) *_xlfn.ANCHORARRAY( $AX$5) * BK$5:BK$52 ) / $AX66 -> 79.025 | BL66: =SUM( (INDEX($AT$5:$AW$52, 0, $AW66 ) = $AV66) *_xlfn.ANCHORARRAY( $AX$5) * BL$5:BL$52 ) / $AX66 -> 78.78973684 | BM66: =SUM( (INDEX($AT$5:$AW$52, 0, $AW66 ) = $AV66) *_xlfn.ANCHORARRAY( $AX$5) * BM$5:BM$52 ) / $AX66 -> 78.74605263 | BN66: =SUM( (INDEX($AT$5:$AW$52, 0, $AW66 ) = $AV66) *_xlfn.ANCHORARRAY( $AX$5) * BN$5:BN$52 ) / $AX66 -> 78.74815789 | BO66: =SUM( (INDEX($AT$5:$AW$52, 0, $AW66 ) = $AV66) *_xlfn.ANCHORARRAY( $AX$5) * BO$5:BO$52 ) / $AX66 -> 77.68789474 | BP66: =SUM( (INDEX($AT$5:$AW$52, 0, $AW66 ) = $AV66) *_xlfn.ANCHORARRAY( $AX$5) * BP$5:BP$52 ) / $AX66 -> 77.13157895 | BQ66: =SUM( (INDEX($AT$5:$AW$52, 0, $AW66 ) = $AV66) *_xlfn.ANCHORARRAY( $AX$5) * BQ$5:BQ$52 ) / $AX66 -> 79.25078947 | BR66: =SUM( (INDEX($AT$5:$AW$52, 0, $AW66 ) = $AV66) *_xlfn.ANCHORARRAY( $AX$5) * BR$5:BR$52 ) / $AX66 -> 77.18763158 | BS66: =SUM( (INDEX($AT$5:$AW$52, 0, $AW66 ) = $AV66) *_xlfn.ANCHORARRAY( $AX$5) * BS$5:BS$52 ) / $AX66 -> 76.39026316 | BT66: =SUM( (INDEX($AT$5:$AW$52, 0, $AW66 ) = $AV66) *_xlfn.ANCHORARRAY( $AX$5) * BT$5:BT$52 ) / $AX66 -> 75.13368421 | BU66: =SUM( (INDEX($AT$5:$AW$52, 0, $AW66 ) = $AV66) *_xlfn.ANCHORARRAY( $AX$5) * BU$5:BU$52 ) / $AX66 -> 74.59868421 | BV66: =SUM( (INDEX($AT$5:$AW$52, 0, $AW66 ) = $AV66) *_xlfn.ANCHORARRAY( $AX$5) * BV$5:BV$52 ) / $AX66 -> 72.07342105 | BW66: =SUM( (INDEX($AT$5:$AW$52, 0, $AW66 ) = $AV66) *_xlfn.ANCHORARRAY( $AX$5) * BW$5:BW$52 ) / $AX66 -> 71.09131579 | BX66: =SUM( (INDEX($AT$5:$AW$52, 0, $AW66 ) = $AV66) *_xlfn.ANCHORARRAY( $AX$5) * BX$5:BX$52 ) / $AX66 -> 70.16289474 | BY66: =SUM( (INDEX($AT$5:$AW$52, 0, $AW66 ) = $AV66) *_xlfn.ANCHORARRAY( $AX$5) * BY$5:BY$52 ) / $AX66 -> 70.30526316 | BZ66: =SUM( (INDEX($AT$5:$AW$52, 0, $AW66 ) = $AV66) *_xlfn.ANCHORARRAY( $AX$5) * BZ$5:BZ$52 ) / $AX66 -> 70.40105263 | CA66: =SUM( (INDEX($AT$5:$AW$52, 0, $AW66 ) = $AV66) *_xlfn.ANCHORARRAY( $AX$5) * CA$5:CA$52 ) / $AX66 -> 71.10184211 | CB66: =SUM( (INDEX($AT$5:$AW$52, 0, $AW66 ) = $AV66) *_xlfn.ANCHORARRAY( $AX$5) * CB$5:CB$52 ) / $AX66 -> 71.99921053
AV67: 11 | AW67: 2 | AX67: 1232 | AY67: =SUM( (INDEX($AT$5:$AW$52, 0, $AW67 ) = $AV67) *_xlfn.ANCHORARRAY( $AX$5) * AY$5:AY$52 ) / $AX67 -> 36.50454545 | AZ67: =SUM( (INDEX($AT$5:$AW$52, 0, $AW67 ) = $AV67) *_xlfn.ANCHORARRAY( $AX$5) * AZ$5:AZ$52 ) / $AX67 -> 36.38935065 | BA67: =SUM( (INDEX($AT$5:$AW$52, 0, $AW67 ) = $AV67) *_xlfn.ANCHORARRAY( $AX$5) * BA$5:BA$52 ) / $AX67 -> 36.59935065 | BB67: =SUM( (INDEX($AT$5:$AW$52, 0, $AW67 ) = $AV67) *_xlfn.ANCHORARRAY( $AX$5) * BB$5:BB$52 ) / $AX67 -> 35.98675325 | BC67: =SUM( (INDEX($AT$5:$AW$52, 0, $AW67 ) = $AV67) *_xlfn.ANCHORARRAY( $AX$5) * BC$5:BC$52 ) / $AX67 -> 35.48 | BD67: =SUM( (INDEX($AT$5:$AW$52, 0, $AW67 ) = $AV67) *_xlfn.ANCHORARRAY( $AX$5) * BD$5:BD$52 ) / $AX67 -> 35.49623377 | BE67: =SUM( (INDEX($AT$5:$AW$52, 0, $AW67 ) = $AV67) *_xlfn.ANCHORARRAY( $AX$5) * BE$5:BE$52 ) / $AX67 -> 36.25402597 | BF67: =SUM( (INDEX($AT$5:$AW$52, 0, $AW67 ) = $AV67) *_xlfn.ANCHORARRAY( $AX$5) * BF$5:BF$52 ) / $AX67 -> 36.01038961 | BG67: =SUM( (INDEX($AT$5:$AW$52, 0, $AW67 ) = $AV67) *_xlfn.ANCHORARRAY( $AX$5) * BG$5:BG$52 ) / $AX67 -> 35.69883117 | BH67: =SUM( (INDEX($AT$5:$AW$52, 0, $AW67 ) = $AV67) *_xlfn.ANCHORARRAY( $AX$5) * BH$5:BH$52 ) / $AX67 -> 36.03376623 | BI67: =SUM( (INDEX($AT$5:$AW$52, 0, $AW67 ) = $AV67) *_xlfn.ANCHORARRAY( $AX$5) * BI$5:BI$52 ) / $AX67 -> 36.24987013 | BJ67: =SUM( (INDEX($AT$5:$AW$52, 0, $AW67 ) = $AV67) *_xlfn.ANCHORARRAY( $AX$5) * BJ$5:BJ$52 ) / $AX67 -> 36.26038961 | BK67: =SUM( (INDEX($AT$5:$AW$52, 0, $AW67 ) = $AV67) *_xlfn.ANCHORARRAY( $AX$5) * BK$5:BK$52 ) / $AX67 -> 36.25064935 | BL67: =SUM( (INDEX($AT$5:$AW$52, 0, $AW67 ) = $AV67) *_xlfn.ANCHORARRAY( $AX$5) * BL$5:BL$52 ) / $AX67 -> 35.74818182 | BM67: =SUM( (INDEX($AT$5:$AW$52, 0, $AW67 ) = $AV67) *_xlfn.ANCHORARRAY( $AX$5) * BM$5:BM$52 ) / $AX67 -> 35.74818182 | BN67: =SUM( (INDEX($AT$5:$AW$52, 0, $AW67 ) = $AV67) *_xlfn.ANCHORARRAY( $AX$5) * BN$5:BN$52 ) / $AX67 -> 35.75363636 | BO67: =SUM( (INDEX($AT$5:$AW$52, 0, $AW67 ) = $AV67) *_xlfn.ANCHORARRAY( $AX$5) * BO$5:BO$52 ) / $AX67 -> 35.65220779 | BP67: =SUM( (INDEX($AT$5:$AW$52, 0, $AW67 ) = $AV67) *_xlfn.ANCHORARRAY( $AX$5) * BP$5:BP$52 ) / $AX67 -> 35.14831169 | BQ67: =SUM( (INDEX($AT$5:$AW$52, 0, $AW67 ) = $AV67) *_xlfn.ANCHORARRAY( $AX$5) * BQ$5:BQ$52 ) / $AX67 -> 35.35519481 | BR67: =SUM( (INDEX($AT$5:$AW$52, 0, $AW67 ) = $AV67) *_xlfn.ANCHORARRAY( $AX$5) * BR$5:BR$52 ) / $AX67 -> 35.36493506 | BS67: =SUM( (INDEX($AT$5:$AW$52, 0, $AW67 ) = $AV67) *_xlfn.ANCHORARRAY( $AX$5) * BS$5:BS$52 ) / $AX67 -> 34.53584416 | BT67: =SUM( (INDEX($AT$5:$AW$52, 0, $AW67 ) = $AV67) *_xlfn.ANCHORARRAY( $AX$5) * BT$5:BT$52 ) / $AX67 -> 34.41090909 | BU67: =SUM( (INDEX($AT$5:$AW$52, 0, $AW67 ) = $AV67) *_xlfn.ANCHORARRAY( $AX$5) * BU$5:BU$52 ) / $AX67 -> 33.95077922 | BV67: =SUM( (INDEX($AT$5:$AW$52, 0, $AW67 ) = $AV67) *_xlfn.ANCHORARRAY( $AX$5) * BV$5:BV$52 ) / $AX67 -> 33.55025974 | BW67: =SUM( (INDEX($AT$5:$AW$52, 0, $AW67 ) = $AV67) *_xlfn.ANCHORARRAY( $AX$5) * BW$5:BW$52 ) / $AX67 -> 33.56532468 | BX67: =SUM( (INDEX($AT$5:$AW$52, 0, $AW67 ) = $AV67) *_xlfn.ANCHORARRAY( $AX$5) * BX$5:BX$52 ) / $AX67 -> 33.26038961 | BY67: =SUM( (INDEX($AT$5:$AW$52, 0, $AW67 ) = $AV67) *_xlfn.ANCHORARRAY( $AX$5) * BY$5:BY$52 ) / $AX67 -> 32.96753247 | BZ67: =SUM( (INDEX($AT$5:$AW$52, 0, $AW67 ) = $AV67) *_xlfn.ANCHORARRAY( $AX$5) * BZ$5:BZ$52 ) / $AX67 -> 32.95649351 | CA67: =SUM( (INDEX($AT$5:$AW$52, 0, $AW67 ) = $AV67) *_xlfn.ANCHORARRAY( $AX$5) * CA$5:CA$52 ) / $AX67 -> 33.00064935 | CB67: =SUM( (INDEX($AT$5:$AW$52, 0, $AW67 ) = $AV67) *_xlfn.ANCHORARRAY( $AX$5) * CB$5:CB$52 ) / $AX67 -> 33.64883117
AV68: 12 | AW68: 2 | AX68: 1232 | AY68: =SUM( (INDEX($AT$5:$AW$52, 0, $AW68 ) = $AV68) *_xlfn.ANCHORARRAY( $AX$5) * AY$5:AY$52 ) / $AX68 -> 88.56103896 | AZ68: =SUM( (INDEX($AT$5:$AW$52, 0, $AW68 ) = $AV68) *_xlfn.ANCHORARRAY( $AX$5) * AZ$5:AZ$52 ) / $AX68 -> 90.28155844 | BA68: =SUM( (INDEX($AT$5:$AW$52, 0, $AW68 ) = $AV68) *_xlfn.ANCHORARRAY( $AX$5) * BA$5:BA$52 ) / $AX68 -> 90.25155844 | BB68: =SUM( (INDEX($AT$5:$AW$52, 0, $AW68 ) = $AV68) *_xlfn.ANCHORARRAY( $AX$5) * BB$5:BB$52 ) / $AX68 -> 90.05155844 | BC68: =SUM( (INDEX($AT$5:$AW$52, 0, $AW68 ) = $AV68) *_xlfn.ANCHORARRAY( $AX$5) * BC$5:BC$52 ) / $AX68 -> 89.95155844 | BD68: =SUM( (INDEX($AT$5:$AW$52, 0, $AW68 ) = $AV68) *_xlfn.ANCHORARRAY( $AX$5) * BD$5:BD$52 ) / $AX68 -> 90.24831169 | BE68: =SUM( (INDEX($AT$5:$AW$52, 0, $AW68 ) = $AV68) *_xlfn.ANCHORARRAY( $AX$5) * BE$5:BE$52 ) / $AX68 -> 90.24831169 | BF68: =SUM( (INDEX($AT$5:$AW$52, 0, $AW68 ) = $AV68) *_xlfn.ANCHORARRAY( $AX$5) * BF$5:BF$52 ) / $AX68 -> 88.89818182 | BG68: =SUM( (INDEX($AT$5:$AW$52, 0, $AW68 ) = $AV68) *_xlfn.ANCHORARRAY( $AX$5) * BG$5:BG$52 ) / $AX68 -> 88.39857143 | BH68: =SUM( (INDEX($AT$5:$AW$52, 0, $AW68 ) = $AV68) *_xlfn.ANCHORARRAY( $AX$5) * BH$5:BH$52 ) / $AX68 -> 90.80155844 | BI68: =SUM( (INDEX($AT$5:$AW$52, 0, $AW68 ) = $AV68) *_xlfn.ANCHORARRAY( $AX$5) * BI$5:BI$52 ) / $AX68 -> 91.50181818 | BJ68: =SUM( (INDEX($AT$5:$AW$52, 0, $AW68 ) = $AV68) *_xlfn.ANCHORARRAY( $AX$5) * BJ$5:BJ$52 ) / $AX68 -> 91.65402597 | BK68: =SUM( (INDEX($AT$5:$AW$52, 0, $AW68 ) = $AV68) *_xlfn.ANCHORARRAY( $AX$5) * BK$5:BK$52 ) / $AX68 -> 91.75402597 | BL68: =SUM( (INDEX($AT$5:$AW$52, 0, $AW68 ) = $AV68) *_xlfn.ANCHORARRAY( $AX$5) * BL$5:BL$52 ) / $AX68 -> 91.49727273 | BM68: =SUM( (INDEX($AT$5:$AW$52, 0, $AW68 ) = $AV68) *_xlfn.ANCHORARRAY( $AX$5) * BM$5:BM$52 ) / $AX68 -> 90.55025974 | BN68: =SUM( (INDEX($AT$5:$AW$52, 0, $AW68 ) = $AV68) *_xlfn.ANCHORARRAY( $AX$5) * BN$5:BN$52 ) / $AX68 -> 92.5 | BO68: =SUM( (INDEX($AT$5:$AW$52, 0, $AW68 ) = $AV68) *_xlfn.ANCHORARRAY( $AX$5) * BO$5:BO$52 ) / $AX68 -> 90.99818182 | BP68: =SUM( (INDEX($AT$5:$AW$52, 0, $AW68 ) = $AV68) *_xlfn.ANCHORARRAY( $AX$5) * BP$5:BP$52 ) / $AX68 -> 89.50337662 | BQ68: =SUM( (INDEX($AT$5:$AW$52, 0, $AW68 ) = $AV68) *_xlfn.ANCHORARRAY( $AX$5) * BQ$5:BQ$52 ) / $AX68 -> 90.89714286 | BR68: =SUM( (INDEX($AT$5:$AW$52, 0, $AW68 ) = $AV68) *_xlfn.ANCHORARRAY( $AX$5) * BR$5:BR$52 ) / $AX68 -> 91.25064935 | BS68: =SUM( (INDEX($AT$5:$AW$52, 0, $AW68 ) = $AV68) *_xlfn.ANCHORARRAY( $AX$5) * BS$5:BS$52 ) / $AX68 -> 88.14961039 | BT68: =SUM( (INDEX($AT$5:$AW$52, 0, $AW68 ) = $AV68) *_xlfn.ANCHORARRAY( $AX$5) * BT$5:BT$52 ) / $AX68 -> 87.89779221 | BU68: =SUM( (INDEX($AT$5:$AW$52, 0, $AW68 ) = $AV68) *_xlfn.ANCHORARRAY( $AX$5) * BU$5:BU$52 ) / $AX68 -> 87.50103896 | BV68: =SUM( (INDEX($AT$5:$AW$52, 0, $AW68 ) = $AV68) *_xlfn.ANCHORARRAY( $AX$5) * BV$5:BV$52 ) / $AX68 -> 85.49779221 | BW68: =SUM( (INDEX($AT$5:$AW$52, 0, $AW68 ) = $AV68) *_xlfn.ANCHORARRAY( $AX$5) * BW$5:BW$52 ) / $AX68 -> 84.45038961 | BX68: =SUM( (INDEX($AT$5:$AW$52, 0, $AW68 ) = $AV68) *_xlfn.ANCHORARRAY( $AX$5) * BX$5:BX$52 ) / $AX68 -> 82.83779221 | BY68: =SUM( (INDEX($AT$5:$AW$52, 0, $AW68 ) = $AV68) *_xlfn.ANCHORARRAY( $AX$5) * BY$5:BY$52 ) / $AX68 -> 82.99792208 | BZ68: =SUM( (INDEX($AT$5:$AW$52, 0, $AW68 ) = $AV68) *_xlfn.ANCHORARRAY( $AX$5) * BZ$5:BZ$52 ) / $AX68 -> 83.39961039 | CA68: =SUM( (INDEX($AT$5:$AW$52, 0, $AW68 ) = $AV68) *_xlfn.ANCHORARRAY( $AX$5) * CA$5:CA$52 ) / $AX68 -> 83.99805195 | CB68: =SUM( (INDEX($AT$5:$AW$52, 0, $AW68 ) = $AV68) *_xlfn.ANCHORARRAY( $AX$5) * CB$5:CB$52 ) / $AX68 -> 84.25155844
AV69: 13 | AW69: 2 | AX69: 1232 | AY69: =SUM( (INDEX($AT$5:$AW$52, 0, $AW69 ) = $AV69) *_xlfn.ANCHORARRAY( $AX$5) * AY$5:AY$52 ) / $AX69 -> 79.04805195 | AZ69: =SUM( (INDEX($AT$5:$AW$52, 0, $AW69 ) = $AV69) *_xlfn.ANCHORARRAY( $AX$5) * AZ$5:AZ$52 ) / $AX69 -> 79.79662338 | BA69: =SUM( (INDEX($AT$5:$AW$52, 0, $AW69 ) = $AV69) *_xlfn.ANCHORARRAY( $AX$5) * BA$5:BA$52 ) / $AX69 -> 79.30207792 | BB69: =SUM( (INDEX($AT$5:$AW$52, 0, $AW69 ) = $AV69) *_xlfn.ANCHORARRAY( $AX$5) * BB$5:BB$52 ) / $AX69 -> 79.26207792 | BC69: =SUM( (INDEX($AT$5:$AW$52, 0, $AW69 ) = $AV69) *_xlfn.ANCHORARRAY( $AX$5) * BC$5:BC$52 ) / $AX69 -> 78.45636364 | BD69: =SUM( (INDEX($AT$5:$AW$52, 0, $AW69 ) = $AV69) *_xlfn.ANCHORARRAY( $AX$5) * BD$5:BD$52 ) / $AX69 -> 78.45636364 | BE69: =SUM( (INDEX($AT$5:$AW$52, 0, $AW69 ) = $AV69) *_xlfn.ANCHORARRAY( $AX$5) * BE$5:BE$52 ) / $AX69 -> 78.70363636 | BF69: =SUM( (INDEX($AT$5:$AW$52, 0, $AW69 ) = $AV69) *_xlfn.ANCHORARRAY( $AX$5) * BF$5:BF$52 ) / $AX69 -> 78.70363636 | BG69: =SUM( (INDEX($AT$5:$AW$52, 0, $AW69 ) = $AV69) *_xlfn.ANCHORARRAY( $AX$5) * BG$5:BG$52 ) / $AX69 -> 78.70363636 | BH69: =SUM( (INDEX($AT$5:$AW$52, 0, $AW69 ) = $AV69) *_xlfn.ANCHORARRAY( $AX$5) * BH$5:BH$52 ) / $AX69 -> 78.95090909 | BI69: =SUM( (INDEX($AT$5:$AW$52, 0, $AW69 ) = $AV69) *_xlfn.ANCHORARRAY( $AX$5) * BI$5:BI$52 ) / $AX69 -> 78.99779221 | BJ69: =SUM( (INDEX($AT$5:$AW$52, 0, $AW69 ) = $AV69) *_xlfn.ANCHORARRAY( $AX$5) * BJ$5:BJ$52 ) / $AX69 -> 78.99779221 | BK69: =SUM( (INDEX($AT$5:$AW$52, 0, $AW69 ) = $AV69) *_xlfn.ANCHORARRAY( $AX$5) * BK$5:BK$52 ) / $AX69 -> 78.99779221 | BL69: =SUM( (INDEX($AT$5:$AW$52, 0, $AW69 ) = $AV69) *_xlfn.ANCHORARRAY( $AX$5) * BL$5:BL$52 ) / $AX69 -> 78.99779221 | BM69: =SUM( (INDEX($AT$5:$AW$52, 0, $AW69 ) = $AV69) *_xlfn.ANCHORARRAY( $AX$5) * BM$5:BM$52 ) / $AX69 -> 78.24597403 | BN69: =SUM( (INDEX($AT$5:$AW$52, 0, $AW69 ) = $AV69) *_xlfn.ANCHORARRAY( $AX$5) * BN$5:BN$52 ) / $AX69 -> 78.99779221 | BO69: =SUM( (INDEX($AT$5:$AW$52, 0, $AW69 ) = $AV69) *_xlfn.ANCHORARRAY( $AX$5) * BO$5:BO$52 ) / $AX69 -> 77.1987013 | BP69: =SUM( (INDEX($AT$5:$AW$52, 0, $AW69 ) = $AV69) *_xlfn.ANCHORARRAY( $AX$5) * BP$5:BP$52 ) / $AX69 -> 77.1787013 | BQ69: =SUM( (INDEX($AT$5:$AW$52, 0, $AW69 ) = $AV69) *_xlfn.ANCHORARRAY( $AX$5) * BQ$5:BQ$52 ) / $AX69 -> 77.32909091 | BR69: =SUM( (INDEX($AT$5:$AW$52, 0, $AW69 ) = $AV69) *_xlfn.ANCHORARRAY( $AX$5) * BR$5:BR$52 ) / $AX69 -> 77.10181818 | BS69: =SUM( (INDEX($AT$5:$AW$52, 0, $AW69 ) = $AV69) *_xlfn.ANCHORARRAY( $AX$5) * BS$5:BS$52 ) / $AX69 -> 74.59558442 | BT69: =SUM( (INDEX($AT$5:$AW$52, 0, $AW69 ) = $AV69) *_xlfn.ANCHORARRAY( $AX$5) * BT$5:BT$52 ) / $AX69 -> 74.59558442 | BU69: =SUM( (INDEX($AT$5:$AW$52, 0, $AW69 ) = $AV69) *_xlfn.ANCHORARRAY( $AX$5) * BU$5:BU$52 ) / $AX69 -> 74.10064935 | BV69: =SUM( (INDEX($AT$5:$AW$52, 0, $AW69 ) = $AV69) *_xlfn.ANCHORARRAY( $AX$5) * BV$5:BV$52 ) / $AX69 -> 72.84480519 | BW69: =SUM( (INDEX($AT$5:$AW$52, 0, $AW69 ) = $AV69) *_xlfn.ANCHORARRAY( $AX$5) * BW$5:BW$52 ) / $AX69 -> 72.59753247 | BX69: =SUM( (INDEX($AT$5:$AW$52, 0, $AW69 ) = $AV69) *_xlfn.ANCHORARRAY( $AX$5) * BX$5:BX$52 ) / $AX69 -> 72.59753247 | BY69: =SUM( (INDEX($AT$5:$AW$52, 0, $AW69 ) = $AV69) *_xlfn.ANCHORARRAY( $AX$5) * BY$5:BY$52 ) / $AX69 -> 73.00168831 | BZ69: =SUM( (INDEX($AT$5:$AW$52, 0, $AW69 ) = $AV69) *_xlfn.ANCHORARRAY( $AX$5) * BZ$5:BZ$52 ) / $AX69 -> 75.0287013 | CA69: =SUM( (INDEX($AT$5:$AW$52, 0, $AW69 ) = $AV69) *_xlfn.ANCHORARRAY( $AX$5) * CA$5:CA$52 ) / $AX69 -> 75.85012987 | CB69: =SUM( (INDEX($AT$5:$AW$52, 0, $AW69 ) = $AV69) *_xlfn.ANCHORARRAY( $AX$5) * CB$5:CB$52 ) / $AX69 -> 76.24883117
AV70: 14 | AW70: 2 | AX70: 1216 | AY70: =SUM( (INDEX($AT$5:$AW$52, 0, $AW70 ) = $AV70) *_xlfn.ANCHORARRAY( $AX$5) * AY$5:AY$52 ) / $AX70 -> 87.55842105 | AZ70: =SUM( (INDEX($AT$5:$AW$52, 0, $AW70 ) = $AV70) *_xlfn.ANCHORARRAY( $AX$5) * AZ$5:AZ$52 ) / $AX70 -> 87.91105263 | BA70: =SUM( (INDEX($AT$5:$AW$52, 0, $AW70 ) = $AV70) *_xlfn.ANCHORARRAY( $AX$5) * BA$5:BA$52 ) / $AX70 -> 88.24710526 | BB70: =SUM( (INDEX($AT$5:$AW$52, 0, $AW70 ) = $AV70) *_xlfn.ANCHORARRAY( $AX$5) * BB$5:BB$52 ) / $AX70 -> 87.93052632 | BC70: =SUM( (INDEX($AT$5:$AW$52, 0, $AW70 ) = $AV70) *_xlfn.ANCHORARRAY( $AX$5) * BC$5:BC$52 ) / $AX70 -> 87.75131579 | BD70: =SUM( (INDEX($AT$5:$AW$52, 0, $AW70 ) = $AV70) *_xlfn.ANCHORARRAY( $AX$5) * BD$5:BD$52 ) / $AX70 -> 87.74842105 | BE70: =SUM( (INDEX($AT$5:$AW$52, 0, $AW70 ) = $AV70) *_xlfn.ANCHORARRAY( $AX$5) * BE$5:BE$52 ) / $AX70 -> 87.49736842 | BF70: =SUM( (INDEX($AT$5:$AW$52, 0, $AW70 ) = $AV70) *_xlfn.ANCHORARRAY( $AX$5) * BF$5:BF$52 ) / $AX70 -> 87.13526316 | BG70: =SUM( (INDEX($AT$5:$AW$52, 0, $AW70 ) = $AV70) *_xlfn.ANCHORARRAY( $AX$5) * BG$5:BG$52 ) / $AX70 -> 86.70947368 | BH70: =SUM( (INDEX($AT$5:$AW$52, 0, $AW70 ) = $AV70) *_xlfn.ANCHORARRAY( $AX$5) * BH$5:BH$52 ) / $AX70 -> 87.59789474 | BI70: =SUM( (INDEX($AT$5:$AW$52, 0, $AW70 ) = $AV70) *_xlfn.ANCHORARRAY( $AX$5) * BI$5:BI$52 ) / $AX70 -> 87.90710526 | BJ70: =SUM( (INDEX($AT$5:$AW$52, 0, $AW70 ) = $AV70) *_xlfn.ANCHORARRAY( $AX$5) * BJ$5:BJ$52 ) / $AX70 -> 87.97289474 | BK70: =SUM( (INDEX($AT$5:$AW$52, 0, $AW70 ) = $AV70) *_xlfn.ANCHORARRAY( $AX$5) * BK$5:BK$52 ) / $AX70 -> 87.75 | BL70: =SUM( (INDEX($AT$5:$AW$52, 0, $AW70 ) = $AV70) *_xlfn.ANCHORARRAY( $AX$5) * BL$5:BL$52 ) / $AX70 -> 88.75842105 | BM70: =SUM( (INDEX($AT$5:$AW$52, 0, $AW70 ) = $AV70) *_xlfn.ANCHORARRAY( $AX$5) * BM$5:BM$52 ) / $AX70 -> 86.75078947 | BN70: =SUM( (INDEX($AT$5:$AW$52, 0, $AW70 ) = $AV70) *_xlfn.ANCHORARRAY( $AX$5) * BN$5:BN$52 ) / $AX70 -> 87.30552632 | BO70: =SUM( (INDEX($AT$5:$AW$52, 0, $AW70 ) = $AV70) *_xlfn.ANCHORARRAY( $AX$5) * BO$5:BO$52 ) / $AX70 -> 85.99973684 | BP70: =SUM( (INDEX($AT$5:$AW$52, 0, $AW70 ) = $AV70) *_xlfn.ANCHORARRAY( $AX$5) * BP$5:BP$52 ) / $AX70 -> 84.91342105 | BQ70: =SUM( (INDEX($AT$5:$AW$52, 0, $AW70 ) = $AV70) *_xlfn.ANCHORARRAY( $AX$5) * BQ$5:BQ$52 ) / $AX70 -> 86.00447368 | BR70: =SUM( (INDEX($AT$5:$AW$52, 0, $AW70 ) = $AV70) *_xlfn.ANCHORARRAY( $AX$5) * BR$5:BR$52 ) / $AX70 -> 85.46236842 | BS70: =SUM( (INDEX($AT$5:$AW$52, 0, $AW70 ) = $AV70) *_xlfn.ANCHORARRAY( $AX$5) * BS$5:BS$52 ) / $AX70 -> 85.75342105 | BT70: =SUM( (INDEX($AT$5:$AW$52, 0, $AW70 ) = $AV70) *_xlfn.ANCHORARRAY( $AX$5) * BT$5:BT$52 ) / $AX70 -> 85.29105263 | BU70: =SUM( (INDEX($AT$5:$AW$52, 0, $AW70 ) = $AV70) *_xlfn.ANCHORARRAY( $AX$5) * BU$5:BU$52 ) / $AX70 -> 84.75210526 | BV70: =SUM( (INDEX($AT$5:$AW$52, 0, $AW70 ) = $AV70) *_xlfn.ANCHORARRAY( $AX$5) * BV$5:BV$52 ) / $AX70 -> 85.00052632 | BW70: =SUM( (INDEX($AT$5:$AW$52, 0, $AW70 ) = $AV70) *_xlfn.ANCHORARRAY( $AX$5) * BW$5:BW$52 ) / $AX70 -> 83.51605263 | BX70: =SUM( (INDEX($AT$5:$AW$52, 0, $AW70 ) = $AV70) *_xlfn.ANCHORARRAY( $AX$5) * BX$5:BX$52 ) / $AX70 -> 82.69105263 | BY70: =SUM( (INDEX($AT$5:$AW$52, 0, $AW70 ) = $AV70) *_xlfn.ANCHORARRAY( $AX$5) * BY$5:BY$52 ) / $AX70 -> 82.53815789 | BZ70: =SUM( (INDEX($AT$5:$AW$52, 0, $AW70 ) = $AV70) *_xlfn.ANCHORARRAY( $AX$5) * BZ$5:BZ$52 ) / $AX70 -> 83.23315789 | CA70: =SUM( (INDEX($AT$5:$AW$52, 0, $AW70 ) = $AV70) *_xlfn.ANCHORARRAY( $AX$5) * CA$5:CA$52 ) / $AX70 -> 83.54578947 | CB70: =SUM( (INDEX($AT$5:$AW$52, 0, $AW70 ) = $AV70) *_xlfn.ANCHORARRAY( $AX$5) * CB$5:CB$52 ) / $AX70 -> 83.69368421
AV71: 15 | AW71: 2 | AX71: 1232 | AY71: =SUM( (INDEX($AT$5:$AW$52, 0, $AW71 ) = $AV71) *_xlfn.ANCHORARRAY( $AX$5) * AY$5:AY$52 ) / $AX71 -> 33.96922078 | AZ71: =SUM( (INDEX($AT$5:$AW$52, 0, $AW71 ) = $AV71) *_xlfn.ANCHORARRAY( $AX$5) * AZ$5:AZ$52 ) / $AX71 -> 34.1061039 | BA71: =SUM( (INDEX($AT$5:$AW$52, 0, $AW71 ) = $AV71) *_xlfn.ANCHORARRAY( $AX$5) * BA$5:BA$52 ) / $AX71 -> 34.27298701 | BB71: =SUM( (INDEX($AT$5:$AW$52, 0, $AW71 ) = $AV71) *_xlfn.ANCHORARRAY( $AX$5) * BB$5:BB$52 ) / $AX71 -> 34.22961039 | BC71: =SUM( (INDEX($AT$5:$AW$52, 0, $AW71 ) = $AV71) *_xlfn.ANCHORARRAY( $AX$5) * BC$5:BC$52 ) / $AX71 -> 34.24948052 | BD71: =SUM( (INDEX($AT$5:$AW$52, 0, $AW71 ) = $AV71) *_xlfn.ANCHORARRAY( $AX$5) * BD$5:BD$52 ) / $AX71 -> 34.87298701 | BE71: =SUM( (INDEX($AT$5:$AW$52, 0, $AW71 ) = $AV71) *_xlfn.ANCHORARRAY( $AX$5) * BE$5:BE$52 ) / $AX71 -> 34.49961039 | BF71: =SUM( (INDEX($AT$5:$AW$52, 0, $AW71 ) = $AV71) *_xlfn.ANCHORARRAY( $AX$5) * BF$5:BF$52 ) / $AX71 -> 34.67272727 | BG71: =SUM( (INDEX($AT$5:$AW$52, 0, $AW71 ) = $AV71) *_xlfn.ANCHORARRAY( $AX$5) * BG$5:BG$52 ) / $AX71 -> 34.50246753 | BH71: =SUM( (INDEX($AT$5:$AW$52, 0, $AW71 ) = $AV71) *_xlfn.ANCHORARRAY( $AX$5) * BH$5:BH$52 ) / $AX71 -> 35.11649351 | BI71: =SUM( (INDEX($AT$5:$AW$52, 0, $AW71 ) = $AV71) *_xlfn.ANCHORARRAY( $AX$5) * BI$5:BI$52 ) / $AX71 -> 35.2 | BJ71: =SUM( (INDEX($AT$5:$AW$52, 0, $AW71 ) = $AV71) *_xlfn.ANCHORARRAY( $AX$5) * BJ$5:BJ$52 ) / $AX71 -> 35.09012987 | BK71: =SUM( (INDEX($AT$5:$AW$52, 0, $AW71 ) = $AV71) *_xlfn.ANCHORARRAY( $AX$5) * BK$5:BK$52 ) / $AX71 -> 35 | BL71: =SUM( (INDEX($AT$5:$AW$52, 0, $AW71 ) = $AV71) *_xlfn.ANCHORARRAY( $AX$5) * BL$5:BL$52 ) / $AX71 -> 35.00324675 | BM71: =SUM( (INDEX($AT$5:$AW$52, 0, $AW71 ) = $AV71) *_xlfn.ANCHORARRAY( $AX$5) * BM$5:BM$52 ) / $AX71 -> 35.09298701 | BN71: =SUM( (INDEX($AT$5:$AW$52, 0, $AW71 ) = $AV71) *_xlfn.ANCHORARRAY( $AX$5) * BN$5:BN$52 ) / $AX71 -> 35.25012987 | BO71: =SUM( (INDEX($AT$5:$AW$52, 0, $AW71 ) = $AV71) *_xlfn.ANCHORARRAY( $AX$5) * BO$5:BO$52 ) / $AX71 -> 35.25298701 | BP71: =SUM( (INDEX($AT$5:$AW$52, 0, $AW71 ) = $AV71) *_xlfn.ANCHORARRAY( $AX$5) * BP$5:BP$52 ) / $AX71 -> 34.02558442 | BQ71: =SUM( (INDEX($AT$5:$AW$52, 0, $AW71 ) = $AV71) *_xlfn.ANCHORARRAY( $AX$5) * BQ$5:BQ$52 ) / $AX71 -> 34.46298701 | BR71: =SUM( (INDEX($AT$5:$AW$52, 0, $AW71 ) = $AV71) *_xlfn.ANCHORARRAY( $AX$5) * BR$5:BR$52 ) / $AX71 -> 34.24597403 | BS71: =SUM( (INDEX($AT$5:$AW$52, 0, $AW71 ) = $AV71) *_xlfn.ANCHORARRAY( $AX$5) * BS$5:BS$52 ) / $AX71 -> 34.40597403 | BT71: =SUM( (INDEX($AT$5:$AW$52, 0, $AW71 ) = $AV71) *_xlfn.ANCHORARRAY( $AX$5) * BT$5:BT$52 ) / $AX71 -> 34.21896104 | BU71: =SUM( (INDEX($AT$5:$AW$52, 0, $AW71 ) = $AV71) *_xlfn.ANCHORARRAY( $AX$5) * BU$5:BU$52 ) / $AX71 -> 34.00194805 | BV71: =SUM( (INDEX($AT$5:$AW$52, 0, $AW71 ) = $AV71) *_xlfn.ANCHORARRAY( $AX$5) * BV$5:BV$52 ) / $AX71 -> 33.99805195 | BW71: =SUM( (INDEX($AT$5:$AW$52, 0, $AW71 ) = $AV71) *_xlfn.ANCHORARRAY( $AX$5) * BW$5:BW$52 ) / $AX71 -> 34.2812987 | BX71: =SUM( (INDEX($AT$5:$AW$52, 0, $AW71 ) = $AV71) *_xlfn.ANCHORARRAY( $AX$5) * BX$5:BX$52 ) / $AX71 -> 33.93402597 | BY71: =SUM( (INDEX($AT$5:$AW$52, 0, $AW71 ) = $AV71) *_xlfn.ANCHORARRAY( $AX$5) * BY$5:BY$52 ) / $AX71 -> 33.8638961 | BZ71: =SUM( (INDEX($AT$5:$AW$52, 0, $AW71 ) = $AV71) *_xlfn.ANCHORARRAY( $AX$5) * BZ$5:BZ$52 ) / $AX71 -> 34.13103896 | CA71: =SUM( (INDEX($AT$5:$AW$52, 0, $AW71 ) = $AV71) *_xlfn.ANCHORARRAY( $AX$5) * CA$5:CA$52 ) / $AX71 -> 34.2512987 | CB71: =SUM( (INDEX($AT$5:$AW$52, 0, $AW71 ) = $AV71) *_xlfn.ANCHORARRAY( $AX$5) * CB$5:CB$52 ) / $AX71 -> 35.03194805
AV72: 16 | AW72: 2 | AX72: 1232 | AY72: =SUM( (INDEX($AT$5:$AW$52, 0, $AW72 ) = $AV72) *_xlfn.ANCHORARRAY( $AX$5) * AY$5:AY$52 ) / $AX72 -> 93.12428571 | AZ72: =SUM( (INDEX($AT$5:$AW$52, 0, $AW72 ) = $AV72) *_xlfn.ANCHORARRAY( $AX$5) * AZ$5:AZ$52 ) / $AX72 -> 93.49831169 | BA72: =SUM( (INDEX($AT$5:$AW$52, 0, $AW72 ) = $AV72) *_xlfn.ANCHORARRAY( $AX$5) * BA$5:BA$52 ) / $AX72 -> 93.64207792 | BB72: =SUM( (INDEX($AT$5:$AW$52, 0, $AW72 ) = $AV72) *_xlfn.ANCHORARRAY( $AX$5) * BB$5:BB$52 ) / $AX72 -> 93.50181818 | BC72: =SUM( (INDEX($AT$5:$AW$52, 0, $AW72 ) = $AV72) *_xlfn.ANCHORARRAY( $AX$5) * BC$5:BC$52 ) / $AX72 -> 92.50103896 | BD72: =SUM( (INDEX($AT$5:$AW$52, 0, $AW72 ) = $AV72) *_xlfn.ANCHORARRAY( $AX$5) * BD$5:BD$52 ) / $AX72 -> 92.99103896 | BE72: =SUM( (INDEX($AT$5:$AW$52, 0, $AW72 ) = $AV72) *_xlfn.ANCHORARRAY( $AX$5) * BE$5:BE$52 ) / $AX72 -> 92.74792208 | BF72: =SUM( (INDEX($AT$5:$AW$52, 0, $AW72 ) = $AV72) *_xlfn.ANCHORARRAY( $AX$5) * BF$5:BF$52 ) / $AX72 -> 93.26064935 | BG72: =SUM( (INDEX($AT$5:$AW$52, 0, $AW72 ) = $AV72) *_xlfn.ANCHORARRAY( $AX$5) * BG$5:BG$52 ) / $AX72 -> 92.80324675 | BH72: =SUM( (INDEX($AT$5:$AW$52, 0, $AW72 ) = $AV72) *_xlfn.ANCHORARRAY( $AX$5) * BH$5:BH$52 ) / $AX72 -> 93.74818182 | BI72: =SUM( (INDEX($AT$5:$AW$52, 0, $AW72 ) = $AV72) *_xlfn.ANCHORARRAY( $AX$5) * BI$5:BI$52 ) / $AX72 -> 94.65233766 | BJ72: =SUM( (INDEX($AT$5:$AW$52, 0, $AW72 ) = $AV72) *_xlfn.ANCHORARRAY( $AX$5) * BJ$5:BJ$52 ) / $AX72 -> 94.73948052 | BK72: =SUM( (INDEX($AT$5:$AW$52, 0, $AW72 ) = $AV72) *_xlfn.ANCHORARRAY( $AX$5) * BK$5:BK$52 ) / $AX72 -> 94.49909091 | BL72: =SUM( (INDEX($AT$5:$AW$52, 0, $AW72 ) = $AV72) *_xlfn.ANCHORARRAY( $AX$5) * BL$5:BL$52 ) / $AX72 -> 94.49883117 | BM72: =SUM( (INDEX($AT$5:$AW$52, 0, $AW72 ) = $AV72) *_xlfn.ANCHORARRAY( $AX$5) * BM$5:BM$52 ) / $AX72 -> 94.49805195 | BN72: =SUM( (INDEX($AT$5:$AW$52, 0, $AW72 ) = $AV72) *_xlfn.ANCHORARRAY( $AX$5) * BN$5:BN$52 ) / $AX72 -> 95.88974026 | BO72: =SUM( (INDEX($AT$5:$AW$52, 0, $AW72 ) = $AV72) *_xlfn.ANCHORARRAY( $AX$5) * BO$5:BO$52 ) / $AX72 -> 94.50142857 | BP72: =SUM( (INDEX($AT$5:$AW$52, 0, $AW72 ) = $AV72) *_xlfn.ANCHORARRAY( $AX$5) * BP$5:BP$52 ) / $AX72 -> 95.52090909 | BQ72: =SUM( (INDEX($AT$5:$AW$52, 0, $AW72 ) = $AV72) *_xlfn.ANCHORARRAY( $AX$5) * BQ$5:BQ$52 ) / $AX72 -> 96.75298701 | BR72: =SUM( (INDEX($AT$5:$AW$52, 0, $AW72 ) = $AV72) *_xlfn.ANCHORARRAY( $AX$5) * BR$5:BR$52 ) / $AX72 -> 96.15194805 | BS72: =SUM( (INDEX($AT$5:$AW$52, 0, $AW72 ) = $AV72) *_xlfn.ANCHORARRAY( $AX$5) * BS$5:BS$52 ) / $AX72 -> 95.40493506 | BT72: =SUM( (INDEX($AT$5:$AW$52, 0, $AW72 ) = $AV72) *_xlfn.ANCHORARRAY( $AX$5) * BT$5:BT$52 ) / $AX72 -> 94.89402597 | BU72: =SUM( (INDEX($AT$5:$AW$52, 0, $AW72 ) = $AV72) *_xlfn.ANCHORARRAY( $AX$5) * BU$5:BU$52 ) / $AX72 -> 94.29636364 | BV72: =SUM( (INDEX($AT$5:$AW$52, 0, $AW72 ) = $AV72) *_xlfn.ANCHORARRAY( $AX$5) * BV$5:BV$52 ) / $AX72 -> 91.00038961 | BW72: =SUM( (INDEX($AT$5:$AW$52, 0, $AW72 ) = $AV72) *_xlfn.ANCHORARRAY( $AX$5) * BW$5:BW$52 ) / $AX72 -> 92.73051948 | BX72: =SUM( (INDEX($AT$5:$AW$52, 0, $AW72 ) = $AV72) *_xlfn.ANCHORARRAY( $AX$5) * BX$5:BX$52 ) / $AX72 -> 91.88233766 | BY72: =SUM( (INDEX($AT$5:$AW$52, 0, $AW72 ) = $AV72) *_xlfn.ANCHORARRAY( $AX$5) * BY$5:BY$52 ) / $AX72 -> 91.7487013 | BZ72: =SUM( (INDEX($AT$5:$AW$52, 0, $AW72 ) = $AV72) *_xlfn.ANCHORARRAY( $AX$5) * BZ$5:BZ$52 ) / $AX72 -> 92.61675325 | CA72: =SUM( (INDEX($AT$5:$AW$52, 0, $AW72 ) = $AV72) *_xlfn.ANCHORARRAY( $AX$5) * CA$5:CA$52 ) / $AX72 -> 93.00064935 | CB72: =SUM( (INDEX($AT$5:$AW$52, 0, $AW72 ) = $AV72) *_xlfn.ANCHORARRAY( $AX$5) * CB$5:CB$52 ) / $AX72 -> 94.2887013
AV73: 17 | AW73: 2 | AX73: 1232 | AY73: =SUM( (INDEX($AT$5:$AW$52, 0, $AW73 ) = $AV73) *_xlfn.ANCHORARRAY( $AX$5) * AY$5:AY$52 ) / $AX73 -> 87.30753247 | AZ73: =SUM( (INDEX($AT$5:$AW$52, 0, $AW73 ) = $AV73) *_xlfn.ANCHORARRAY( $AX$5) * AZ$5:AZ$52 ) / $AX73 -> 87.65753247 | BA73: =SUM( (INDEX($AT$5:$AW$52, 0, $AW73 ) = $AV73) *_xlfn.ANCHORARRAY( $AX$5) * BA$5:BA$52 ) / $AX73 -> 87.99766234 | BB73: =SUM( (INDEX($AT$5:$AW$52, 0, $AW73 ) = $AV73) *_xlfn.ANCHORARRAY( $AX$5) * BB$5:BB$52 ) / $AX73 -> 88.00142857 | BC73: =SUM( (INDEX($AT$5:$AW$52, 0, $AW73 ) = $AV73) *_xlfn.ANCHORARRAY( $AX$5) * BC$5:BC$52 ) / $AX73 -> 88.04246753 | BD73: =SUM( (INDEX($AT$5:$AW$52, 0, $AW73 ) = $AV73) *_xlfn.ANCHORARRAY( $AX$5) * BD$5:BD$52 ) / $AX73 -> 86.49909091 | BE73: =SUM( (INDEX($AT$5:$AW$52, 0, $AW73 ) = $AV73) *_xlfn.ANCHORARRAY( $AX$5) * BE$5:BE$52 ) / $AX73 -> 88.03233766 | BF73: =SUM( (INDEX($AT$5:$AW$52, 0, $AW73 ) = $AV73) *_xlfn.ANCHORARRAY( $AX$5) * BF$5:BF$52 ) / $AX73 -> 85.9187013 | BG73: =SUM( (INDEX($AT$5:$AW$52, 0, $AW73 ) = $AV73) *_xlfn.ANCHORARRAY( $AX$5) * BG$5:BG$52 ) / $AX73 -> 85.49883117 | BH73: =SUM( (INDEX($AT$5:$AW$52, 0, $AW73 ) = $AV73) *_xlfn.ANCHORARRAY( $AX$5) * BH$5:BH$52 ) / $AX73 -> 85.99779221 | BI73: =SUM( (INDEX($AT$5:$AW$52, 0, $AW73 ) = $AV73) *_xlfn.ANCHORARRAY( $AX$5) * BI$5:BI$52 ) / $AX73 -> 86.00012987 | BJ73: =SUM( (INDEX($AT$5:$AW$52, 0, $AW73 ) = $AV73) *_xlfn.ANCHORARRAY( $AX$5) * BJ$5:BJ$52 ) / $AX73 -> 86.95168831 | BK73: =SUM( (INDEX($AT$5:$AW$52, 0, $AW73 ) = $AV73) *_xlfn.ANCHORARRAY( $AX$5) * BK$5:BK$52 ) / $AX73 -> 86.72831169 | BL73: =SUM( (INDEX($AT$5:$AW$52, 0, $AW73 ) = $AV73) *_xlfn.ANCHORARRAY( $AX$5) * BL$5:BL$52 ) / $AX73 -> 85.24844156 | BM73: =SUM( (INDEX($AT$5:$AW$52, 0, $AW73 ) = $AV73) *_xlfn.ANCHORARRAY( $AX$5) * BM$5:BM$52 ) / $AX73 -> 85.39220779 | BN73: =SUM( (INDEX($AT$5:$AW$52, 0, $AW73 ) = $AV73) *_xlfn.ANCHORARRAY( $AX$5) * BN$5:BN$52 ) / $AX73 -> 86.00168831 | BO73: =SUM( (INDEX($AT$5:$AW$52, 0, $AW73 ) = $AV73) *_xlfn.ANCHORARRAY( $AX$5) * BO$5:BO$52 ) / $AX73 -> 85.95025974 | BP73: =SUM( (INDEX($AT$5:$AW$52, 0, $AW73 ) = $AV73) *_xlfn.ANCHORARRAY( $AX$5) * BP$5:BP$52 ) / $AX73 -> 85.31688312 | BQ73: =SUM( (INDEX($AT$5:$AW$52, 0, $AW73 ) = $AV73) *_xlfn.ANCHORARRAY( $AX$5) * BQ$5:BQ$52 ) / $AX73 -> 86.41675325 | BR73: =SUM( (INDEX($AT$5:$AW$52, 0, $AW73 ) = $AV73) *_xlfn.ANCHORARRAY( $AX$5) * BR$5:BR$52 ) / $AX73 -> 85.87025974 | BS73: =SUM( (INDEX($AT$5:$AW$52, 0, $AW73 ) = $AV73) *_xlfn.ANCHORARRAY( $AX$5) * BS$5:BS$52 ) / $AX73 -> 86.00415584 | BT73: =SUM( (INDEX($AT$5:$AW$52, 0, $AW73 ) = $AV73) *_xlfn.ANCHORARRAY( $AX$5) * BT$5:BT$52 ) / $AX73 -> 85.54090909 | BU73: =SUM( (INDEX($AT$5:$AW$52, 0, $AW73 ) = $AV73) *_xlfn.ANCHORARRAY( $AX$5) * BU$5:BU$52 ) / $AX73 -> 84.99753247 | BV73: =SUM( (INDEX($AT$5:$AW$52, 0, $AW73 ) = $AV73) *_xlfn.ANCHORARRAY( $AX$5) * BV$5:BV$52 ) / $AX73 -> 84.47896104 | BW73: =SUM( (INDEX($AT$5:$AW$52, 0, $AW73 ) = $AV73) *_xlfn.ANCHORARRAY( $AX$5) * BW$5:BW$52 ) / $AX73 -> 82.97935065 | BX73: =SUM( (INDEX($AT$5:$AW$52, 0, $AW73 ) = $AV73) *_xlfn.ANCHORARRAY( $AX$5) * BX$5:BX$52 ) / $AX73 -> 82.15961039 | BY73: =SUM( (INDEX($AT$5:$AW$52, 0, $AW73 ) = $AV73) *_xlfn.ANCHORARRAY( $AX$5) * BY$5:BY$52 ) / $AX73 -> 82.0061039 | BZ73: =SUM( (INDEX($AT$5:$AW$52, 0, $AW73 ) = $AV73) *_xlfn.ANCHORARRAY( $AX$5) * BZ$5:BZ$52 ) / $AX73 -> 82.6925974 | CA73: =SUM( (INDEX($AT$5:$AW$52, 0, $AW73 ) = $AV73) *_xlfn.ANCHORARRAY( $AX$5) * CA$5:CA$52 ) / $AX73 -> 83.0025974 | CB73: =SUM( (INDEX($AT$5:$AW$52, 0, $AW73 ) = $AV73) *_xlfn.ANCHORARRAY( $AX$5) * CB$5:CB$52 ) / $AX73 -> 82.97090909
AV74: 18 | AW74: 3 | AX74: 4912 | AY74: =SUM( (INDEX($AT$5:$AW$52, 0, $AW74 ) = $AV74) *_xlfn.ANCHORARRAY( $AX$5) * AY$5:AY$52 ) / $AX74 -> 70.20765472 | AZ74: =SUM( (INDEX($AT$5:$AW$52, 0, $AW74 ) = $AV74) *_xlfn.ANCHORARRAY( $AX$5) * AZ$5:AZ$52 ) / $AX74 -> 71.26267101 | BA74: =SUM( (INDEX($AT$5:$AW$52, 0, $AW74 ) = $AV74) *_xlfn.ANCHORARRAY( $AX$5) * BA$5:BA$52 ) / $AX74 -> 71.5085342 | BB74: =SUM( (INDEX($AT$5:$AW$52, 0, $AW74 ) = $AV74) *_xlfn.ANCHORARRAY( $AX$5) * BB$5:BB$52 ) / $AX74 -> 71.32179153 | BC74: =SUM( (INDEX($AT$5:$AW$52, 0, $AW74 ) = $AV74) *_xlfn.ANCHORARRAY( $AX$5) * BC$5:BC$52 ) / $AX74 -> 70.75716612 | BD74: =SUM( (INDEX($AT$5:$AW$52, 0, $AW74 ) = $AV74) *_xlfn.ANCHORARRAY( $AX$5) * BD$5:BD$52 ) / $AX74 -> 70.64928339 | BE74: =SUM( (INDEX($AT$5:$AW$52, 0, $AW74 ) = $AV74) *_xlfn.ANCHORARRAY( $AX$5) * BE$5:BE$52 ) / $AX74 -> 70.81648208 | BF74: =SUM( (INDEX($AT$5:$AW$52, 0, $AW74 ) = $AV74) *_xlfn.ANCHORARRAY( $AX$5) * BF$5:BF$52 ) / $AX74 -> 70.36762215 | BG74: =SUM( (INDEX($AT$5:$AW$52, 0, $AW74 ) = $AV74) *_xlfn.ANCHORARRAY( $AX$5) * BG$5:BG$52 ) / $AX74 -> 69.99993485 | BH74: =SUM( (INDEX($AT$5:$AW$52, 0, $AW74 ) = $AV74) *_xlfn.ANCHORARRAY( $AX$5) * BH$5:BH$52 ) / $AX74 -> 70.79003257 | BI74: =SUM( (INDEX($AT$5:$AW$52, 0, $AW74 ) = $AV74) *_xlfn.ANCHORARRAY( $AX$5) * BI$5:BI$52 ) / $AX74 -> 71.17723127 | BJ74: =SUM( (INDEX($AT$5:$AW$52, 0, $AW74 ) = $AV74) *_xlfn.ANCHORARRAY( $AX$5) * BJ$5:BJ$52 ) / $AX74 -> 71.42859935 | BK74: =SUM( (INDEX($AT$5:$AW$52, 0, $AW74 ) = $AV74) *_xlfn.ANCHORARRAY( $AX$5) * BK$5:BK$52 ) / $AX74 -> 71.48237785 | BL74: =SUM( (INDEX($AT$5:$AW$52, 0, $AW74 ) = $AV74) *_xlfn.ANCHORARRAY( $AX$5) * BL$5:BL$52 ) / $AX74 -> 71.23371336 | BM74: =SUM( (INDEX($AT$5:$AW$52, 0, $AW74 ) = $AV74) *_xlfn.ANCHORARRAY( $AX$5) * BM$5:BM$52 ) / $AX74 -> 70.79680782 | BN74: =SUM( (INDEX($AT$5:$AW$52, 0, $AW74 ) = $AV74) *_xlfn.ANCHORARRAY( $AX$5) * BN$5:BN$52 ) / $AX74 -> 71.47628664 | BO74: =SUM( (INDEX($AT$5:$AW$52, 0, $AW74 ) = $AV74) *_xlfn.ANCHORARRAY( $AX$5) * BO$5:BO$52 ) / $AX74 -> 70.36045603 | BP74: =SUM( (INDEX($AT$5:$AW$52, 0, $AW74 ) = $AV74) *_xlfn.ANCHORARRAY( $AX$5) * BP$5:BP$52 ) / $AX74 -> 69.71641694 | BQ74: =SUM( (INDEX($AT$5:$AW$52, 0, $AW74 ) = $AV74) *_xlfn.ANCHORARRAY( $AX$5) * BQ$5:BQ$52 ) / $AX74 -> 70.68022801 | BR74: =SUM( (INDEX($AT$5:$AW$52, 0, $AW74 ) = $AV74) *_xlfn.ANCHORARRAY( $AX$5) * BR$5:BR$52 ) / $AX74 -> 70.20358306 | BS74: =SUM( (INDEX($AT$5:$AW$52, 0, $AW74 ) = $AV74) *_xlfn.ANCHORARRAY( $AX$5) * BS$5:BS$52 ) / $AX74 -> 68.39185668 | BT74: =SUM( (INDEX($AT$5:$AW$52, 0, $AW74 ) = $AV74) *_xlfn.ANCHORARRAY( $AX$5) * BT$5:BT$52 ) / $AX74 -> 67.98628664 | BU74: =SUM( (INDEX($AT$5:$AW$52, 0, $AW74 ) = $AV74) *_xlfn.ANCHORARRAY( $AX$5) * BU$5:BU$52 ) / $AX74 -> 67.51478827 | BV74: =SUM( (INDEX($AT$5:$AW$52, 0, $AW74 ) = $AV74) *_xlfn.ANCHORARRAY( $AX$5) * BV$5:BV$52 ) / $AX74 -> 65.97175896 | BW74: =SUM( (INDEX($AT$5:$AW$52, 0, $AW74 ) = $AV74) *_xlfn.ANCHORARRAY( $AX$5) * BW$5:BW$52 ) / $AX74 -> 65.4076873 | BX74: =SUM( (INDEX($AT$5:$AW$52, 0, $AW74 ) = $AV74) *_xlfn.ANCHORARRAY( $AX$5) * BX$5:BX$52 ) / $AX74 -> 64.69690554 | BY74: =SUM( (INDEX($AT$5:$AW$52, 0, $AW74 ) = $AV74) *_xlfn.ANCHORARRAY( $AX$5) * BY$5:BY$52 ) / $AX74 -> 64.80022801 | BZ74: =SUM( (INDEX($AT$5:$AW$52, 0, $AW74 ) = $AV74) *_xlfn.ANCHORARRAY( $AX$5) * BZ$5:BZ$52 ) / $AX74 -> 65.43032573 | CA74: =SUM( (INDEX($AT$5:$AW$52, 0, $AW74 ) = $AV74) *_xlfn.ANCHORARRAY( $AX$5) * CA$5:CA$52 ) / $AX74 -> 65.97100977 | CB74: =SUM( (INDEX($AT$5:$AW$52, 0, $AW74 ) = $AV74) *_xlfn.ANCHORARRAY( $AX$5) * CB$5:CB$52 ) / $AX74 -> 66.51931596
AV75: 19 | AW75: 3 | AX75: 4912 | AY75: =SUM( (INDEX($AT$5:$AW$52, 0, $AW75 ) = $AV75) *_xlfn.ANCHORARRAY( $AX$5) * AY$5:AY$52 ) / $AX75 -> 75.45055375 | AZ75: =SUM( (INDEX($AT$5:$AW$52, 0, $AW75 ) = $AV75) *_xlfn.ANCHORARRAY( $AX$5) * AZ$5:AZ$52 ) / $AX75 -> 75.7537785 | BA75: =SUM( (INDEX($AT$5:$AW$52, 0, $AW75 ) = $AV75) *_xlfn.ANCHORARRAY( $AX$5) * BA$5:BA$52 ) / $AX75 -> 76.00019544 | BB75: =SUM( (INDEX($AT$5:$AW$52, 0, $AW75 ) = $AV75) *_xlfn.ANCHORARRAY( $AX$5) * BB$5:BB$52 ) / $AX75 -> 75.8767101 | BC75: =SUM( (INDEX($AT$5:$AW$52, 0, $AW75 ) = $AV75) *_xlfn.ANCHORARRAY( $AX$5) * BC$5:BC$52 ) / $AX75 -> 75.59661238 | BD75: =SUM( (INDEX($AT$5:$AW$52, 0, $AW75 ) = $AV75) *_xlfn.ANCHORARRAY( $AX$5) * BD$5:BD$52 ) / $AX75 -> 75.48807818 | BE75: =SUM( (INDEX($AT$5:$AW$52, 0, $AW75 ) = $AV75) *_xlfn.ANCHORARRAY( $AX$5) * BE$5:BE$52 ) / $AX75 -> 75.65586319 | BF75: =SUM( (INDEX($AT$5:$AW$52, 0, $AW75 ) = $AV75) *_xlfn.ANCHORARRAY( $AX$5) * BF$5:BF$52 ) / $AX75 -> 75.20811075 | BG75: =SUM( (INDEX($AT$5:$AW$52, 0, $AW75 ) = $AV75) *_xlfn.ANCHORARRAY( $AX$5) * BG$5:BG$52 ) / $AX75 -> 74.83996743 | BH75: =SUM( (INDEX($AT$5:$AW$52, 0, $AW75 ) = $AV75) *_xlfn.ANCHORARRAY( $AX$5) * BH$5:BH$52 ) / $AX75 -> 75.57605863 | BI75: =SUM( (INDEX($AT$5:$AW$52, 0, $AW75 ) = $AV75) *_xlfn.ANCHORARRAY( $AX$5) * BI$5:BI$52 ) / $AX75 -> 75.90091205 | BJ75: =SUM( (INDEX($AT$5:$AW$52, 0, $AW75 ) = $AV75) *_xlfn.ANCHORARRAY( $AX$5) * BJ$5:BJ$52 ) / $AX75 -> 76.15016287 | BK75: =SUM( (INDEX($AT$5:$AW$52, 0, $AW75 ) = $AV75) *_xlfn.ANCHORARRAY( $AX$5) * BK$5:BK$52 ) / $AX75 -> 75.95605863 | BL75: =SUM( (INDEX($AT$5:$AW$52, 0, $AW75 ) = $AV75) *_xlfn.ANCHORARRAY( $AX$5) * BL$5:BL$52 ) / $AX75 -> 75.83527687 | BM75: =SUM( (INDEX($AT$5:$AW$52, 0, $AW75 ) = $AV75) *_xlfn.ANCHORARRAY( $AX$5) * BM$5:BM$52 ) / $AX75 -> 75.39664495 | BN75: =SUM( (INDEX($AT$5:$AW$52, 0, $AW75 ) = $AV75) *_xlfn.ANCHORARRAY( $AX$5) * BN$5:BN$52 ) / $AX75 -> 76.07530945 | BO75: =SUM( (INDEX($AT$5:$AW$52, 0, $AW75 ) = $AV75) *_xlfn.ANCHORARRAY( $AX$5) * BO$5:BO$52 ) / $AX75 -> 75.39166124 | BP75: =SUM( (INDEX($AT$5:$AW$52, 0, $AW75 ) = $AV75) *_xlfn.ANCHORARRAY( $AX$5) * BP$5:BP$52 ) / $AX75 -> 74.91172638 | BQ75: =SUM( (INDEX($AT$5:$AW$52, 0, $AW75 ) = $AV75) *_xlfn.ANCHORARRAY( $AX$5) * BQ$5:BQ$52 ) / $AX75 -> 75.87641694 | BR75: =SUM( (INDEX($AT$5:$AW$52, 0, $AW75 ) = $AV75) *_xlfn.ANCHORARRAY( $AX$5) * BR$5:BR$52 ) / $AX75 -> 75.39996743 | BS75: =SUM( (INDEX($AT$5:$AW$52, 0, $AW75 ) = $AV75) *_xlfn.ANCHORARRAY( $AX$5) * BS$5:BS$52 ) / $AX75 -> 75.35837134 | BT75: =SUM( (INDEX($AT$5:$AW$52, 0, $AW75 ) = $AV75) *_xlfn.ANCHORARRAY( $AX$5) * BT$5:BT$52 ) / $AX75 -> 74.95267101 | BU75: =SUM( (INDEX($AT$5:$AW$52, 0, $AW75 ) = $AV75) *_xlfn.ANCHORARRAY( $AX$5) * BU$5:BU$52 ) / $AX75 -> 74.47863192 | BV75: =SUM( (INDEX($AT$5:$AW$52, 0, $AW75 ) = $AV75) *_xlfn.ANCHORARRAY( $AX$5) * BV$5:BV$52 ) / $AX75 -> 73.58241042 | BW75: =SUM( (INDEX($AT$5:$AW$52, 0, $AW75 ) = $AV75) *_xlfn.ANCHORARRAY( $AX$5) * BW$5:BW$52 ) / $AX75 -> 73.3437785 | BX75: =SUM( (INDEX($AT$5:$AW$52, 0, $AW75 ) = $AV75) *_xlfn.ANCHORARRAY( $AX$5) * BX$5:BX$52 ) / $AX75 -> 72.63410423 | BY75: =SUM( (INDEX($AT$5:$AW$52, 0, $AW75 ) = $AV75) *_xlfn.ANCHORARRAY( $AX$5) * BY$5:BY$52 ) / $AX75 -> 72.50664495 | BZ75: =SUM( (INDEX($AT$5:$AW$52, 0, $AW75 ) = $AV75) *_xlfn.ANCHORARRAY( $AX$5) * BZ$5:BZ$52 ) / $AX75 -> 73.13560261 | CA75: =SUM( (INDEX($AT$5:$AW$52, 0, $AW75 ) = $AV75) *_xlfn.ANCHORARRAY( $AX$5) * CA$5:CA$52 ) / $AX75 -> 73.4171987 | CB75: =SUM( (INDEX($AT$5:$AW$52, 0, $AW75 ) = $AV75) *_xlfn.ANCHORARRAY( $AX$5) * CB$5:CB$52 ) / $AX75 -> 73.96472313
AV76: 20 | AW76: 3 | AX76: 4912 | AY76: =SUM( (INDEX($AT$5:$AW$52, 0, $AW76 ) = $AV76) *_xlfn.ANCHORARRAY( $AX$5) * AY$5:AY$52 ) / $AX76 -> 77.00016287 | AZ76: =SUM( (INDEX($AT$5:$AW$52, 0, $AW76 ) = $AV76) *_xlfn.ANCHORARRAY( $AX$5) * AZ$5:AZ$52 ) / $AX76 -> 77.81925081 | BA76: =SUM( (INDEX($AT$5:$AW$52, 0, $AW76 ) = $AV76) *_xlfn.ANCHORARRAY( $AX$5) * BA$5:BA$52 ) / $AX76 -> 78.06302932 | BB76: =SUM( (INDEX($AT$5:$AW$52, 0, $AW76 ) = $AV76) *_xlfn.ANCHORARRAY( $AX$5) * BB$5:BB$52 ) / $AX76 -> 77.99895765 | BC76: =SUM( (INDEX($AT$5:$AW$52, 0, $AW76 ) = $AV76) *_xlfn.ANCHORARRAY( $AX$5) * BC$5:BC$52 ) / $AX76 -> 78.00501629 | BD76: =SUM( (INDEX($AT$5:$AW$52, 0, $AW76 ) = $AV76) *_xlfn.ANCHORARRAY( $AX$5) * BD$5:BD$52 ) / $AX76 -> 77.89811075 | BE76: =SUM( (INDEX($AT$5:$AW$52, 0, $AW76 ) = $AV76) *_xlfn.ANCHORARRAY( $AX$5) * BE$5:BE$52 ) / $AX76 -> 78.0670684 | BF76: =SUM( (INDEX($AT$5:$AW$52, 0, $AW76 ) = $AV76) *_xlfn.ANCHORARRAY( $AX$5) * BF$5:BF$52 ) / $AX76 -> 77.61762215 | BG76: =SUM( (INDEX($AT$5:$AW$52, 0, $AW76 ) = $AV76) *_xlfn.ANCHORARRAY( $AX$5) * BG$5:BG$52 ) / $AX76 -> 77.25068404 | BH76: =SUM( (INDEX($AT$5:$AW$52, 0, $AW76 ) = $AV76) *_xlfn.ANCHORARRAY( $AX$5) * BH$5:BH$52 ) / $AX76 -> 77.9323127 | BI76: =SUM( (INDEX($AT$5:$AW$52, 0, $AW76 ) = $AV76) *_xlfn.ANCHORARRAY( $AX$5) * BI$5:BI$52 ) / $AX76 -> 78.19188925 | BJ76: =SUM( (INDEX($AT$5:$AW$52, 0, $AW76 ) = $AV76) *_xlfn.ANCHORARRAY( $AX$5) * BJ$5:BJ$52 ) / $AX76 -> 78.44335505 | BK76: =SUM( (INDEX($AT$5:$AW$52, 0, $AW76 ) = $AV76) *_xlfn.ANCHORARRAY( $AX$5) * BK$5:BK$52 ) / $AX76 -> 78.24934853 | BL76: =SUM( (INDEX($AT$5:$AW$52, 0, $AW76 ) = $AV76) *_xlfn.ANCHORARRAY( $AX$5) * BL$5:BL$52 ) / $AX76 -> 78.25684039 | BM76: =SUM( (INDEX($AT$5:$AW$52, 0, $AW76 ) = $AV76) *_xlfn.ANCHORARRAY( $AX$5) * BM$5:BM$52 ) / $AX76 -> 77.81970684 | BN76: =SUM( (INDEX($AT$5:$AW$52, 0, $AW76 ) = $AV76) *_xlfn.ANCHORARRAY( $AX$5) * BN$5:BN$52 ) / $AX76 -> 78.5 | BO76: =SUM( (INDEX($AT$5:$AW$52, 0, $AW76 ) = $AV76) *_xlfn.ANCHORARRAY( $AX$5) * BO$5:BO$52 ) / $AX76 -> 78.25022801 | BP76: =SUM( (INDEX($AT$5:$AW$52, 0, $AW76 ) = $AV76) *_xlfn.ANCHORARRAY( $AX$5) * BP$5:BP$52 ) / $AX76 -> 77.93465798 | BQ76: =SUM( (INDEX($AT$5:$AW$52, 0, $AW76 ) = $AV76) *_xlfn.ANCHORARRAY( $AX$5) * BQ$5:BQ$52 ) / $AX76 -> 78.89889251 | BR76: =SUM( (INDEX($AT$5:$AW$52, 0, $AW76 ) = $AV76) *_xlfn.ANCHORARRAY( $AX$5) * BR$5:BR$52 ) / $AX76 -> 78.4209772 | BS76: =SUM( (INDEX($AT$5:$AW$52, 0, $AW76 ) = $AV76) *_xlfn.ANCHORARRAY( $AX$5) * BS$5:BS$52 ) / $AX76 -> 78.37960912 | BT76: =SUM( (INDEX($AT$5:$AW$52, 0, $AW76 ) = $AV76) *_xlfn.ANCHORARRAY( $AX$5) * BT$5:BT$52 ) / $AX76 -> 77.97413681 | BU76: =SUM( (INDEX($AT$5:$AW$52, 0, $AW76 ) = $AV76) *_xlfn.ANCHORARRAY( $AX$5) * BU$5:BU$52 ) / $AX76 -> 77.50032573 | BV76: =SUM( (INDEX($AT$5:$AW$52, 0, $AW76 ) = $AV76) *_xlfn.ANCHORARRAY( $AX$5) * BV$5:BV$52 ) / $AX76 -> 77.24970684 | BW76: =SUM( (INDEX($AT$5:$AW$52, 0, $AW76 ) = $AV76) *_xlfn.ANCHORARRAY( $AX$5) * BW$5:BW$52 ) / $AX76 -> 77.33462541 | BX76: =SUM( (INDEX($AT$5:$AW$52, 0, $AW76 ) = $AV76) *_xlfn.ANCHORARRAY( $AX$5) * BX$5:BX$52 ) / $AX76 -> 76.62436482 | BY76: =SUM( (INDEX($AT$5:$AW$52, 0, $AW76 ) = $AV76) *_xlfn.ANCHORARRAY( $AX$5) * BY$5:BY$52 ) / $AX76 -> 76.26543974 | BZ76: =SUM( (INDEX($AT$5:$AW$52, 0, $AW76 ) = $AV76) *_xlfn.ANCHORARRAY( $AX$5) * BZ$5:BZ$52 ) / $AX76 -> 76.8957329 | CA76: =SUM( (INDEX($AT$5:$AW$52, 0, $AW76 ) = $AV76) *_xlfn.ANCHORARRAY( $AX$5) * CA$5:CA$52 ) / $AX76 -> 76.92026059 | CB76: =SUM( (INDEX($AT$5:$AW$52, 0, $AW76 ) = $AV76) *_xlfn.ANCHORARRAY( $AX$5) * CB$5:CB$52 ) / $AX76 -> 77.46752443
AR79: MDCOL-OFF
AS80: col | AT80: Mth | AU80: Qtr | AV80: Cal | AW80: Strip | AX80: Hrs | AY80: =_xlfn.ANCHORARRAY(AY$4) -> 2024-10-21 | AZ80: 2024-10-18 | BA80: 2024-10-17 | BB80: 2024-10-16 | BC80: 2024-10-15 | BD80: 2024-10-14 | BE80: 2024-10-11 | BF80: 2024-10-10 | BG80: 2024-10-09 | BH80: 2024-10-08 | BI80: 2024-10-07 | BJ80: 2024-10-04 | BK80: 2024-10-03 | BL80: 2024-10-02 | BM80: 2024-10-01 | BN80: 2024-09-30 | BO80: 2024-09-27 | BP80: 2024-09-26 | BQ80: 2024-09-25 | BR80: 2024-09-24 | BS80: 2024-09-23 | BT80: 2024-09-20 | BU80: 2024-09-19 | BV80: 2024-09-18 | BW80: 2024-09-17 | BX80: 2024-09-16 | BY80: 2024-09-13 | BZ80: 2024-09-12 | CA80: 2024-09-11 | CB80: 2024-09-10
AR81: =_xlfn.ANCHORARRAY(AR5) -> 2024-11-01 | AS81: =_xlfn.ANCHORARRAY(AS5) -> 4 | AT81: =_xlfn.ANCHORARRAY(AT5) -> 1 | AU81: =_xlfn.ANCHORARRAY(AU5) ->  | AV81: =_xlfn.ANCHORARRAY(AV5) ->  | AW81: =_xlfn.ANCHORARRAY(AW5) -> 21 | AX81: =SUMIF( Sched!$A$5:$A$197,_xlfn.ANCHORARRAY( $AR81), Sched!M$5:M$197 ) -> 321 | AY81: =SUMIF( HFP[KEY], TEXT(_xlfn.ANCHORARRAY( AY$80), "yyyymmdd" ) & AR$79, INDEX( HFP[], 0, AS81 )) -> 47 | AZ81: 49.5 | BA81: 52 | BB81: 52 | BC81: 50 | BD81: 49.65 | BE81: 49 | BF81: 49.1 | BG81: 46.9 | BH81: 47.85 | BI81: 48.5 | BJ81: 49.75 | BK81: 51.1 | BL81: 51.65 | BM81: 52.55 | BN81: 54.5 | BO81: 55.04 | BP81: 53.49 | BQ81: 53.04 | BR81: 53 | BS81: 49.26 | BT81: 47.25 | BU81: 47 | BV81: 45.95 | BW81: 45.15 | BX81: 43.45 | BY81: 42.95 | BZ81: 43.4 | CA81: 44.35 | CB81: 45.75
AR82: 2024-12-01 | AS82: 5 | AT82: 2 | AW82: 21 | AX82: 344 | AY82: =SUMIF( HFP[KEY], TEXT(_xlfn.ANCHORARRAY( AY$80), "yyyymmdd" ) & AR$79, INDEX( HFP[], 0, AS82 )) -> 78 | AZ82: 81.3 | BA82: 82 | BB82: 82 | BC82: 80.81 | BD82: 81.25 | BE82: 80 | BF82: 76.25 | BG82: 74.95 | BH82: 76 | BI82: 77 | BJ82: 78.24 | BK82: 78.82 | BL82: 78.15 | BM82: 78.75 | BN82: 80.58 | BO82: 79.58 | BP82: 78.63 | BQ82: 79.75 | BR82: 79.7 | BS82: 75 | BT82: 73 | BU82: 71.5 | BV82: 70.2 | BW82: 68.5 | BX82: 66.25 | BY82: 65.66 | BZ82: 66.66 | CA82: 67.21 | CB82: 67
AR83: 2025-01-01 | AS83: 6 | AT83: 3 | AU83: 10 | AV83: 18 | AW83: 21 | AX83: 328 | AY83: =SUMIF( HFP[KEY], TEXT(_xlfn.ANCHORARRAY( AY$80), "yyyymmdd" ) & AR$79, INDEX( HFP[], 0, AS83 )) -> 80.35 | AZ83: 81.91 | BA83: 83 | BB83: 83.95 | BC83: 82.93 | BD83: 83 | BE83: 81.55 | BF83: 82.55 | BG83: 81.67 | BH83: 81.3 | BI83: 82.02 | BJ83: 82.01 | BK83: 80.55 | BL83: 80.25 | BM83: 79.83 | BN83: 80.54 | BO83: 80.43 | BP83: 80.56 | BQ83: 83.08 | BR83: 80.03 | BS83: 77.98 | BT83: 76 | BU83: 76 | BV83: 74.77 | BW83: 73.5 | BX83: 73.25 | BY83: 73.59 | BZ83: 71.23 | CA83: 71.93 | CB83: 73.28
AR84: 2025-02-01 | AS84: 7 | AT84: 4 | AU84: 10 | AV84: 18 | AW84: 21 | AX84: 288 | AY84: =SUMIF( HFP[KEY], TEXT(_xlfn.ANCHORARRAY( AY$80), "yyyymmdd" ) & AR$79, INDEX( HFP[], 0, AS84 )) -> 65.38 | AZ84: 67.25 | BA84: 69.53 | BB84: 68.88 | BC84: 67.76 | BD84: 68.06 | BE84: 69 | BF84: 69 | BG84: 68.52 | BH84: 68.87 | BI84: 70.72 | BJ84: 71.35 | BK84: 71.5 | BL84: 72.7 | BM84: 72.67 | BN84: 72.09 | BO84: 72.37 | BP84: 71.7 | BQ84: 74.76 | BR84: 72 | BS84: 70.34 | BT84: 69.37 | BU84: 65 | BV84: 64.16 | BW84: 63 | BX84: 62.14 | BY84: 62.45 | BZ84: 60.38 | CA84: 61.44 | CB84: 61.92
AR85: 2025-03-01 | AS85: 8 | AT85: 5 | AU85: 10 | AV85: 18 | AW85: 21 | AX85: 327 | AY85: =SUMIF( HFP[KEY], TEXT(_xlfn.ANCHORARRAY( AY$80), "yyyymmdd" ) & AR$79, INDEX( HFP[], 0, AS85 )) -> 42.15 | AZ85: 43.41 | BA85: 44.04 | BB85: 44.01 | BC85: 43.15 | BD85: 43.19 | BE85: 42.76 | BF85: 42.43 | BG85: 43.1 | BH85: 43.6 | BI85: 42.89 | BJ85: 42.35 | BK85: 41.55 | BL85: 42.69 | BM85: 42.79 | BN85: 42.59 | BO85: 42.45 | BP85: 42.55 | BQ85: 43.4 | BR85: 43.5 | BS85: 42.65 | BT85: 41.93 | BU85: 42.76 | BV85: 42 | BW85: 41.5 | BX85: 40.82 | BY85: 40.61 | BZ85: 40.71 | CA85: 41.1 | CB85: 41.96
AR86: 2025-04-01 | AS86: 9 | AT86: 6 | AU86: 11 | AV86: 18 | AW86: 22 | AX86: 304 | AY86: =SUMIF( HFP[KEY], TEXT(_xlfn.ANCHORARRAY( AY$80), "yyyymmdd" ) & AR$79, INDEX( HFP[], 0, AS86 )) -> 34.09 | AZ86: 34.35 | BA86: 34.86 | BB86: 34.15 | BC86: 34.64 | BD86: 34.7 | BE86: 34.8 | BF86: 35.6 | BG86: 34.95 | BH86: 35.41 | BI86: 35.53 | BJ86: 35.16 | BK86: 35 | BL86: 34.7 | BM86: 34.98 | BN86: 36.06 | BO86: 35.15 | BP86: 34.95 | BQ86: 36.4 | BR86: 36.4 | BS86: 35.47 | BT86: 35.14 | BU86: 34.63 | BV86: 34.54 | BW86: 35.47 | BX86: 35.32 | BY86: 34.76 | BZ86: 35.8 | CA86: 35.5 | CB86: 35.57
AR87: 2025-05-01 | AS87: 10 | AT87: 7 | AU87: 11 | AV87: 18 | AW87: 22 | AX87: 328 | AY87: =SUMIF( HFP[KEY], TEXT(_xlfn.ANCHORARRAY( AY$80), "yyyymmdd" ) & AR$79, INDEX( HFP[], 0, AS87 )) -> 20.81 | AZ87: 21.47 | BA87: 21.31 | BB87: 20.6 | BC87: 20.99 | BD87: 21.3 | BE87: 21.79 | BF87: 22.3 | BG87: 21.79 | BH87: 22.62 | BI87: 23.14 | BJ87: 23.32 | BK87: 23.75 | BL87: 23.67 | BM87: 21.7 | BN87: 22.78 | BO87: 21.66 | BP87: 22.46 | BQ87: 24.01 | BR87: 24.01 | BS87: 23.35 | BT87: 23.36 | BU87: 22.69 | BV87: 22.19 | BW87: 21.86 | BX87: 21.29 | BY87: 20.67 | BZ87: 21.8 | CA87: 21.75 | CB87: 21.63
AR88: 2025-06-01 | AS88: 11 | AT88: 8 | AU88: 11 | AV88: 18 | AW88: 22 | AX88: 320 | AY88: =SUMIF( HFP[KEY], TEXT(_xlfn.ANCHORARRAY( AY$80), "yyyymmdd" ) & AR$79, INDEX( HFP[], 0, AS88 )) -> 24.38 | AZ88: 23.9 | BA88: 24.15 | BB88: 23.94 | BC88: 22.48 | BD88: 22.24 | BE88: 23.13 | BF88: 23.45 | BG88: 23.09 | BH88: 22.79 | BI88: 22.79 | BJ88: 23.02 | BK88: 23.4 | BL88: 23.1 | BM88: 23 | BN88: 23.31 | BO88: 22.05 | BP88: 22.25 | BQ88: 22.91 | BR88: 22.94 | BS88: 22.3 | BT88: 22.22 | BU88: 21.93 | BV88: 21.31 | BW88: 20.67 | BX88: 20.49 | BY88: 18.68 | BZ88: 19.91 | CA88: 20.41 | CB88: 22.5
AR89: 2025-07-01 | AS89: 12 | AT89: 9 | AU89: 12 | AV89: 18 | AW89: 22 | AX89: 328 | AY89: =SUMIF( HFP[KEY], TEXT(_xlfn.ANCHORARRAY( AY$80), "yyyymmdd" ) & AR$79, INDEX( HFP[], 0, AS89 )) -> 32.53 | AZ89: 34.49 | BA89: 34.52 | BB89: 34.32 | BC89: 33.06 | BD89: 33.32 | BE89: 33.82 | BF89: 33.8 | BG89: 32.99 | BH89: 32.68 | BI89: 33.35 | BJ89: 34.36 | BK89: 34.62 | BL89: 34.37 | BM89: 33.91 | BN89: 34.69 | BO89: 33.53 | BP89: 31.63 | BQ89: 33.04 | BR89: 33.41 | BS89: 33.04 | BT89: 32.93 | BU89: 32.53 | BV89: 30.13 | BW89: 29.43 | BX89: 27.78 | BY89: 27.94 | BZ89: 28.57 | CA89: 29.32 | CB89: 28.82
AR90: 2025-08-01 | AS90: 13 | AU90: 12 | AV90: 18 | AW90: 22 | AX90: 328 | AY90: =SUMIF( HFP[KEY], TEXT(_xlfn.ANCHORARRAY( AY$80), "yyyymmdd" ) & AR$79, INDEX( HFP[], 0, AS90 )) -> 56.97 | AZ90: 58.39 | BA90: 58.42 | BB90: 58.22 | BC90: 56.96 | BD90: 57.22 | BE90: 57.72 | BF90: 57.75 | BG90: 56.84 | BH90: 57.93 | BI90: 58.61 | BJ90: 58.32 | BK90: 58.58 | BL90: 58.33 | BM90: 57.87 | BN90: 59.7 | BO90: 58.23 | BP90: 56.08 | BQ90: 57.49 | BR90: 57.86 | BS90: 57.49 | BT90: 56.97 | BU90: 56.57 | BV90: 54.27 | BW90: 53.57 | BX90: 52.41 | BY90: 52.58 | BZ90: 53.38 | CA90: 53.71 | CB90: 53.71
AR91: 2025-09-01 | AS91: 14 | AU91: 12 | AV91: 18 | AW91: 22 | AX91: 320 | AY91: =SUMIF( HFP[KEY], TEXT(_xlfn.ANCHORARRAY( AY$80), "yyyymmdd" ) & AR$79, INDEX( HFP[], 0, AS91 )) -> 43.98 | AZ91: 44.08 | BA91: 44.11 | BB91: 43.91 | BC91: 42.68 | BD91: 42.93 | BE91: 43.42 | BF91: 43.41 | BG91: 43.66 | BH91: 43.38 | BI91: 44.03 | BJ91: 43.75 | BK91: 44 | BL91: 43.76 | BM91: 43.33 | BN91: 45.07 | BO91: 43.96 | BP91: 42.12 | BQ91: 43.48 | BR91: 43.84 | BS91: 43.52 | BT91: 43.41 | BU91: 43.02 | BV91: 41.43 | BW91: 39.66 | BX91: 38.55 | BY91: 38.7 | BZ91: 40.75 | CA91: 41.47 | CB91: 41.22
AR92: 2025-10-01 | AS92: 15 | AU92: 13 | AV92: 18 | AW92: 22 | AX92: 312 | AY92: =SUMIF( HFP[KEY], TEXT(_xlfn.ANCHORARRAY( AY$80), "yyyymmdd" ) & AR$79, INDEX( HFP[], 0, AS92 )) -> 46.41 | AZ92: 47.21 | BA92: 46.89 | BB92: 46.85 | BC92: 46.77 | BD92: 47.25 | BE92: 47.75 | BF92: 47.75 | BG92: 47.8 | BH92: 48.44 | BI92: 48.65 | BJ92: 48.65 | BK92: 48.76 | BL92: 48.23 | BM92: 48.55 | BN92: 48.42 | BO92: 48.88 | BP92: 47.61 | BQ92: 47.77 | BR92: 47.53 | BS92: 44.95 | BT92: 44.95 | BU92: 43.95 | BV92: 40.94 | BW92: 40.68 | BX92: 40.68 | BY92: 41.17 | BZ92: 43.39 | CA92: 45 | CB92: 44.92
AR93: 2025-11-01 | AS93: 16 | AU93: 13 | AV93: 18 | AW93: 23 | AX93: 337 | AY93: =SUMIF( HFP[KEY], TEXT(_xlfn.ANCHORARRAY( AY$80), "yyyymmdd" ) & AR$79, INDEX( HFP[], 0, AS93 )) -> 64.98 | AZ93: 65.68 | BA93: 65.43 | BB93: 65.39 | BC93: 64.69 | BD93: 64.69 | BE93: 65.16 | BF93: 65.16 | BG93: 65.16 | BH93: 65.21 | BI93: 65.43 | BJ93: 65.43 | BK93: 65.43 | BL93: 64.86 | BM93: 64.82 | BN93: 64.47 | BO93: 64.64 | BP93: 63.28 | BQ93: 63.42 | BR93: 63.21 | BS93: 60.33 | BT93: 60.33 | BU93: 59.78 | BV93: 59.08 | BW93: 58.85 | BX93: 58.85 | BY93: 59.3 | BZ93: 61.15 | CA93: 61.53 | CB93: 62.55
AR94: 2025-12-01 | AS94: 17 | AU94: 13 | AV94: 18 | AW94: 23 | AX94: 328 | AY94: =SUMIF( HFP[KEY], TEXT(_xlfn.ANCHORARRAY( AY$80), "yyyymmdd" ) & AR$79, INDEX( HFP[], 0, AS94 )) -> 87.19 | AZ94: 87.93 | BA94: 87.64 | BB94: 87.6 | BC94: 86.67 | BD94: 86.67 | BE94: 87.15 | BF94: 87.15 | BG94: 87.15 | BH94: 87.23 | BI94: 87.45 | BJ94: 87.45 | BK94: 87.45 | BL94: 86.9 | BM94: 86.79 | BN94: 86.53 | BO94: 86.66 | BP94: 85.33 | BQ94: 85.48 | BR94: 85.25 | BS94: 82.17 | BT94: 82.17 | BU94: 81.6 | BV94: 80.87 | BW94: 80.62 | BX94: 80.62 | BY94: 81.1 | BZ94: 83.09 | CA94: 83.5 | CB94: 83.5
AR95: 2026-01-01 | AS95: 18 | AU95: 14 | AV95: 19 | AW95: 23 | AX95: 328 | AY95: =SUMIF( HFP[KEY], TEXT(_xlfn.ANCHORARRAY( AY$80), "yyyymmdd" ) & AR$79, INDEX( HFP[], 0, AS95 )) -> 96.65 | AZ95: 97.1 | BA95: 97.51 | BB95: 97.48 | BC95: 97.4 | BD95: 97.63 | BE95: 97.42 | BF95: 97.27 | BG95: 96.73 | BH95: 97.85 | BI95: 98.26 | BJ95: 99.6 | BK95: 99.32 | BL95: 100.32 | BM95: 98.14 | BN95: 98.84 | BO95: 98.15 | BP95: 97.82 | BQ95: 99.21 | BR95: 98.52 | BS95: 98.5 | BT95: 97.91 | BU95: 97.22 | BV95: 96.45 | BW95: 94.86 | BX95: 93.82 | BY95: 93.63 | BZ95: 94.51 | CA95: 94.91 | CB95: 94.96
AR96: 2026-02-01 | AS96: 19 | AU96: 14 | AV96: 19 | AW96: 23 | AX96: 288 | AY96: =SUMIF( HFP[KEY], TEXT(_xlfn.ANCHORARRAY( AY$80), "yyyymmdd" ) & AR$79, INDEX( HFP[], 0, AS96 )) -> 83.36 | AZ96: 83.74 | BA96: 84.1 | BB96: 84.07 | BC96: 84.02 | BD96: 84.23 | BE96: 84.02 | BF96: 83.92 | BG96: 83.46 | BH96: 84.41 | BI96: 84.75 | BJ96: 85.91 | BK96: 85.67 | BL96: 86.61 | BM96: 84.64 | BN96: 85.22 | BO96: 84.61 | BP96: 84.32 | BQ96: 85.5 | BR96: 84.91 | BS96: 84.9 | BT96: 84.4 | BU96: 83.82 | BV96: 84.26 | BW96: 82.82 | BX96: 81.93 | BY96: 81.76 | BZ96: 82.52 | CA96: 82.86 | CB96: 82.87
AR97: 2026-03-01 | AS97: 20 | AU97: 14 | AV97: 19 | AW97: 23 | AX97: 327 | AY97: =SUMIF( HFP[KEY], TEXT(_xlfn.ANCHORARRAY( AY$80), "yyyymmdd" ) & AR$79, INDEX( HFP[], 0, AS97 )) -> 46.82 | AZ97: 47.05 | BA97: 47.29 | BB97: 47.35 | BC97: 47.47 | BD97: 47.78 | BE97: 47.45 | BF97: 47.62 | BG97: 47.34 | BH97: 47.94 | BI97: 48.12 | BJ97: 49.28 | BK97: 49.13 | BL97: 50.22 | BM97: 48.35 | BN97: 48.57 | BO97: 48.36 | BP97: 48.37 | BQ97: 49.08 | BR97: 48.73 | BS97: 49.2 | BT97: 48.9 | BU97: 48.55 | BV97: 48.79 | BW97: 47.37 | BX97: 46.83 | BY97: 46.73 | BZ97: 47.18 | CA97: 47.38 | CB97: 47.05
AR98: 2026-04-01 | AS98: 21 | AU98: 15 | AV98: 19 | AW98: 24 | AX98: 304 | AY98: =SUMIF( HFP[KEY], TEXT(_xlfn.ANCHORARRAY( AY$80), "yyyymmdd" ) & AR$79, INDEX( HFP[], 0, AS98 )) -> 35.28 | AZ98: 35.4 | BA98: 35.27 | BB98: 35.23 | BC98: 35.24 | BD98: 35.87 | BE98: 35.66 | BF98: 35.81 | BG98: 35.62 | BH98: 36.28 | BI98: 36.38 | BJ98: 36.36 | BK98: 36.27 | BL98: 36.28 | BM98: 36.35 | BN98: 36.39 | BO98: 36.36 | BP98: 35.39 | BQ98: 35.92 | BR98: 35.82 | BS98: 35.8 | BT98: 35.59 | BU98: 35.36 | BV98: 35.42 | BW98: 34.55 | BX98: 34.16 | BY98: 34.08 | BZ98: 34.38 | CA98: 34.52 | CB98: 35.43
AR99: 2026-05-01 | AS99: 22 | AU99: 15 | AV99: 19 | AW99: 24 | AX99: 344 | AY99: =SUMIF( HFP[KEY], TEXT(_xlfn.ANCHORARRAY( AY$80), "yyyymmdd" ) & AR$79, INDEX( HFP[], 0, AS99 )) -> 25.86 | AZ99: 25.94 | BA99: 25.74 | BB99: 25.71 | BC99: 25.74 | BD99: 26.35 | BE99: 26.16 | BF99: 26.35 | BG99: 26.2 | BH99: 26.77 | BI99: 26.84 | BJ99: 26.82 | BK99: 26.75 | BL99: 26.77 | BM99: 26.88 | BN99: 26.82 | BO99: 26.86 | BP99: 26.02 | BQ99: 26.45 | BR99: 26.43 | BS99: 26.38 | BT99: 26.22 | BU99: 26.05 | BV99: 26.22 | BW99: 25.21 | BX99: 24.91 | BY99: 24.85 | BZ99: 25.08 | CA99: 25.18 | CB99: 26.01
AR100: 2026-06-01 | AS100: 23 | AU100: 15 | AV100: 19 | AW100: 24 | AX100: 304 | AY100: =SUMIF( HFP[KEY], TEXT(_xlfn.ANCHORARRAY( AY$80), "yyyymmdd" ) & AR$79, INDEX( HFP[], 0, AS100 )) -> 26.9 | AZ100: 27.01 | BA100: 26.87 | BB100: 26.83 | BC100: 26.85 | BD100: 27.48 | BE100: 27.26 | BF100: 27.44 | BG100: 27.27 | BH100: 27.89 | BI100: 27.98 | BJ100: 27.95 | BK100: 27.87 | BL100: 27.88 | BM100: 27.97 | BN100: 27.97 | BO100: 27.98 | BP100: 27.03 | BQ100: 27.51 | BR100: 27.43 | BS100: 27.41 | BT100: 27.22 | BU100: 27.02 | BV100: 27.13 | BW100: 26.27 | BX100: 25.92 | BY100: 25.85 | BZ100: 26.12 | CA100: 26.24 | CB100: 27.12
AR101: 2026-07-01 | AS101: 24 | AU101: 16 | AV101: 19 | AW101: 24 | AX101: 328 | AY101: =SUMIF( HFP[KEY], TEXT(_xlfn.ANCHORARRAY( AY$80), "yyyymmdd" ) & AR$79, INDEX( HFP[], 0, AS101 )) -> 48.23 | AZ101: 49.05 | BA101: 49.15 | BB101: 49.17 | BC101: 48.71 | BD101: 48.92 | BE101: 48.65 | BF101: 48.23 | BG101: 47.83 | BH101: 47.97 | BI101: 48.33 | BJ101: 48.38 | BK101: 48.17 | BL101: 47.69 | BM101: 47.76 | BN101: 48.41 | BO101: 48.26 | BP101: 48.72 | BQ101: 49.81 | BR101: 49.28 | BS101: 48.38 | BT101: 47.93 | BU101: 47.4 | BV101: 45.92 | BW101: 47.71 | BX101: 46.97 | BY101: 46.85 | BZ101: 47.63 | CA101: 47.97 | CB101: 49.19
AR102: 2026-08-01 | AS102: 25 | AU102: 16 | AV102: 19 | AW102: 24 | AX102: 328 | AY102: =SUMIF( HFP[KEY], TEXT(_xlfn.ANCHORARRAY( AY$80), "yyyymmdd" ) & AR$79, INDEX( HFP[], 0, AS102 )) -> 58.04 | AZ102: 58.99 | BA102: 59.21 | BB102: 59.17 | BC102: 58.58 | BD102: 58.74 | BE102: 58.54 | BF102: 57.91 | BG102: 57.34 | BH102: 57.81 | BI102: 58.32 | BJ102: 58.48 | BK102: 58.18 | BL102: 57.64 | BM102: 57.51 | BN102: 58.47 | BO102: 58.01 | BP102: 58.26 | BQ102: 59.79 | BR102: 59.04 | BS102: 58.12 | BT102: 57.48 | BU102: 56.74 | BV102: 54.85 | BW102: 56.53 | BX102: 55.46 | BY102: 55.29 | BZ102: 56.35 | CA102: 56.82 | CB102: 58.28
AR103: 2026-09-01 | AS103: 26 | AU103: 16 | AV103: 19 | AW103: 24 | AX103: 320 | AY103: =SUMIF( HFP[KEY], TEXT(_xlfn.ANCHORARRAY( AY$80), "yyyymmdd" ) & AR$79, INDEX( HFP[], 0, AS103 )) -> 49.67 | AZ103: 50.47 | BA103: 50.58 | BB103: 50.6 | BC103: 50.16 | BD103: 50.36 | BE103: 50.1 | BF103: 49.67 | BG103: 49.27 | BH103: 49.41 | BI103: 49.75 | BJ103: 49.8 | BK103: 49.59 | BL103: 49.12 | BM103: 49.18 | BN103: 49.81 | BO103: 49.67 | BP103: 50.1 | BQ103: 51.17 | BR103: 50.65 | BS103: 49.78 | BT103: 49.33 | BU103: 48.81 | BV103: 47.39 | BW103: 49.11 | BX103: 48.38 | BY103: 48.27 | BZ103: 49.03 | CA103: 49.37 | CB103: 50.55
AR104: 2026-10-01 | AS104: 27 | AU104: 17 | AV104: 19 | AW104: 24 | AX104: 312 | AY104: =SUMIF( HFP[KEY], TEXT(_xlfn.ANCHORARRAY( AY$80), "yyyymmdd" ) & AR$79, INDEX( HFP[], 0, AS104 )) -> 65.76 | AZ104: 65.73 | BA104: 65.71 | BB104: 65.22 | BC104: 65.32 | BD104: 64.69 | BE104: 66.27 | BF104: 66.51 | BG104: 66.14 | BH104: 67 | BI104: 67.01 | BJ104: 67.96 | BK104: 67.76 | BL104: 67.4 | BM104: 67.85 | BN104: 68.25 | BO104: 67.9 | BP104: 67.43 | BQ104: 68.4 | BR104: 67.92 | BS104: 67.93 | BT104: 67.52 | BU104: 67.04 | BV104: 67.38 | BW104: 65.85 | BX104: 65.13 | BY104: 64.99 | BZ104: 65.59 | CA104: 65.86 | CB104: 65.86
AR105: 2026-11-01 | AS105: 28 | AU105: 17 | AV105: 19 | AW105: 25 | AX105: 337 | AY105: =SUMIF( HFP[KEY], TEXT(_xlfn.ANCHORARRAY( AY$80), "yyyymmdd" ) & AR$79, INDEX( HFP[], 0, AS105 )) -> 70.43 | AZ105: 70.4 | BA105: 70.37 | BB105: 69.81 | BC105: 69.84 | BD105: 69.45 | BE105: 70.88 | BF105: 71.46 | BG105: 71.06 | BH105: 72.05 | BI105: 72.13 | BJ105: 73.02 | BK105: 72.81 | BL105: 72.69 | BM105: 72.52 | BN105: 72.99 | BO105: 72.47 | BP105: 71.98 | BQ105: 73.02 | BR105: 72.5 | BS105: 72.48 | BT105: 72.04 | BU105: 71.53 | BV105: 71.8 | BW105: 70.4 | BX105: 69.62 | BY105: 69.48 | BZ105: 70.13 | CA105: 70.42 | CB105: 70.55
AR106: 2026-12-01 | AS106: 29 | AU106: 17 | AV106: 19 | AW106: 25 | AX106: 328 | AY106: =SUMIF( HFP[KEY], TEXT(_xlfn.ANCHORARRAY( AY$80), "yyyymmdd" ) & AR$79, INDEX( HFP[], 0, AS106 )) -> 85.51 | AZ106: 85.57 | BA106: 85.62 | BB106: 85.05 | BC106: 85.04 | BD106: 84.48 | BE106: 86.06 | BF106: 86.33 | BG106: 85.84 | BH106: 86.98 | BI106: 87.12 | BJ106: 88.13 | BK106: 87.87 | BL106: 87.58 | BM106: 87.33 | BN106: 87.96 | BO106: 87.33 | BP106: 86.7 | BQ106: 87.99 | BR106: 87.35 | BS106: 87.33 | BT106: 86.78 | BU106: 86.14 | BV106: 86.2 | BW106: 84.64 | BX106: 83.68 | BY106: 83.5 | BZ106: 84.31 | CA106: 84.68 | CB106: 84.9
AR107: 2027-01-01 | AS107: 30 | AV107: 20 | AW107: 25 | AX107: 344 | AY107: =SUMIF( HFP[KEY], TEXT(_xlfn.ANCHORARRAY( AY$80), "yyyymmdd" ) & AR$79, INDEX( HFP[], 0, AS107 )) -> 88.35 | AZ107: 89.35 | BA107: 89.67 | BB107: 89.66 | BC107: 89.33 | BD107: 88.99 | BE107: 89.02 | BF107: 88.87 | BG107: 88.26 | BH107: 88.98 | BI107: 89.23 | BJ107: 89.56 | BK107: 89.31 | BL107: 89.25 | BM107: 88.68 | BN107: 88.84 | BO107: 88.51 | BP107: 88.18 | BQ107: 89.44 | BR107: 88.82 | BS107: 88.88 | BT107: 88.35 | BU107: 87.73 | BV107: 87.86 | BW107: 88.38 | BX107: 87.45 | BY107: 86.98 | BZ107: 87.81 | CA107: 87.7 | CB107: 87.67
AR108: 2027-02-01 | AS108: 31 | AV108: 20 | AW108: 25 | AX108: 288 | AY108: =SUMIF( HFP[KEY], TEXT(_xlfn.ANCHORARRAY( AY$80), "yyyymmdd" ) & AR$79, INDEX( HFP[], 0, AS108 )) -> 78.19 | AZ108: 79.05 | BA108: 79.33 | BB108: 79.32 | BC108: 79.04 | BD108: 78.73 | BE108: 78.74 | BF108: 78.6 | BG108: 78.06 | BH108: 78.67 | BI108: 78.85 | BJ108: 79.13 | BK108: 78.91 | BL108: 78.86 | BM108: 78.37 | BN108: 78.52 | BO108: 78.24 | BP108: 77.96 | BQ108: 79.04 | BR108: 78.51 | BS108: 78.58 | BT108: 78.13 | BU108: 77.6 | BV108: 77.71 | BW108: 78.14 | BX108: 77.34 | BY108: 76.94 | BZ108: 77.65 | CA108: 77.54 | CB108: 77.52
AR109: 2027-03-01 | AS109: 32 | AV109: 20 | AW109: 25 | AX109: 311 | AY109: =SUMIF( HFP[KEY], TEXT(_xlfn.ANCHORARRAY( AY$80), "yyyymmdd" ) & AR$79, INDEX( HFP[], 0, AS109 )) -> 57.92 | AZ109: 58.6 | BA109: 58.8 | BB109: 58.81 | BC109: 58.91 | BD109: 60.91 | BE109: 63.06 | BF109: 63.06 | BG109: 64.09 | BH109: 66.52 | BI109: 70.26 | BJ109: 70.5 | BK109: 70.31 | BL109: 70.25 | BM109: 69.83 | BN109: 69.83 | BO109: 69.59 | BP109: 69.36 | BQ109: 70.29 | BR109: 69.83 | BS109: 69.92 | BT109: 69.53 | BU109: 69.07 | BV109: 69.25 | BW109: 69.7 | BX109: 69.01 | BY109: 68.66 | BZ109: 69.27 | CA109: 69.14 | CB109: 68.98
AR110: 2027-04-01 | AS110: 33 | AV110: 20 | AW110: 26 | AX110: 304 | AY110: =SUMIF( HFP[KEY], TEXT(_xlfn.ANCHORARRAY( AY$80), "yyyymmdd" ) & AR$79, INDEX( HFP[], 0, AS110 )) -> 33.47 | AZ110: 33.76 | BA110: 33.87 | BB110: 33.9 | BC110: 33.6 | BD110: 33.35 | BE110: 33.23 | BF110: 33.42 | BG110: 33.12 | BH110: 33.24 | BI110: 33.22 | BJ110: 33.33 | BK110: 33.25 | BL110: 33.19 | BM110: 33 | BN110: 32.65 | BO110: 32.54 | BP110: 32.48 | BQ110: 32.9 | BR110: 32.69 | BS110: 32.8 | BT110: 32.63 | BU110: 32.42 | BV110: 32.72 | BW110: 33.11 | BX110: 32.8 | BY110: 32.64 | BZ110: 32.91 | CA110: 32.77 | CB110: 32.33
AR111: 2027-05-01 | AS111: 34 | AV111: 20 | AW111: 26 | AX111: 344 | AY111: =SUMIF( HFP[KEY], TEXT(_xlfn.ANCHORARRAY( AY$80), "yyyymmdd" ) & AR$79, INDEX( HFP[], 0, AS111 )) -> 29.8 | AZ111: 30.06 | BA111: 30.16 | BB111: 30.2 | BC111: 29.86 | BD111: 29.62 | BE111: 29.5 | BF111: 29.76 | BG111: 29.48 | BH111: 29.58 | BI111: 29.59 | BJ111: 29.69 | BK111: 29.61 | BL111: 29.54 | BM111: 29.37 | BN111: 28.91 | BO111: 28.81 | BP111: 28.77 | BQ111: 29.15 | BR111: 28.96 | BS111: 29.06 | BT111: 28.9 | BU111: 28.71 | BV111: 29.07 | BW111: 29.51 | BX111: 29.23 | BY111: 29.09 | BZ111: 29.34 | CA111: 29.21 | CB111: 28.68
AR112: 2027-06-01 | AS112: 35 | AV112: 20 | AW112: 26 | AX112: 304 | AY112: =SUMIF( HFP[KEY], TEXT(_xlfn.ANCHORARRAY( AY$80), "yyyymmdd" ) & AR$79, INDEX( HFP[], 0, AS112 )) -> 27.02 | AZ112: 27.3 | BA112: 27.4 | BB112: 27.43 | BC112: 27.13 | BD112: 26.88 | BE112: 26.75 | BF112: 26.95 | BG112: 26.66 | BH112: 26.77 | BI112: 26.75 | BJ112: 26.85 | BK112: 26.77 | BL112: 26.71 | BM112: 26.53 | BN112: 26.16 | BO112: 26.06 | BP112: 26 | BQ112: 26.4 | BR112: 26.2 | BS112: 26.31 | BT112: 26.14 | BU112: 25.94 | BV112: 26.24 | BW112: 26.63 | BX112: 26.34 | BY112: 26.19 | BZ112: 26.45 | CA112: 26.31 | CB112: 25.86
AR113: 2027-07-01 | AS113: 36 | AV113: 20 | AW113: 26 | AX113: 328 | AY113: =SUMIF( HFP[KEY], TEXT(_xlfn.ANCHORARRAY( AY$80), "yyyymmdd" ) & AR$79, INDEX( HFP[], 0, AS113 )) -> 65.14 | AZ113: 66.06 | BA113: 66.36 | BB113: 66.35 | BC113: 66.03 | BD113: 65.69 | BE113: 65.7 | BF113: 65.58 | BG113: 65 | BH113: 65.64 | BI113: 65.84 | BJ113: 66.14 | BK113: 65.91 | BL113: 65.85 | BM113: 65.32 | BN113: 65.44 | BO113: 65.14 | BP113: 64.84 | BQ113: 66 | BR113: 65.43 | BS113: 64.71 | BT113: 64.23 | BU113: 63.67 | BV113: 62.1 | BW113: 62.59 | BX113: 61.74 | BY113: 61.31 | BZ113: 62.06 | CA113: 62.53 | CB113: 62.77
AR114: 2027-08-01 | AS114: 37 | AV114: 20 | AW114: 26 | AX114: 328 | AY114: =SUMIF( HFP[KEY], TEXT(_xlfn.ANCHORARRAY( AY$80), "yyyymmdd" ) & AR$79, INDEX( HFP[], 0, AS114 )) -> 74.81 | AZ114: 76.16 | BA114: 76.59 | BB114: 76.55 | BC114: 76.23 | BD114: 75.84 | BE114: 75.93 | BF114: 75.57 | BG114: 74.8 | BH114: 75.81 | BI114: 76.15 | BJ114: 76.59 | BK114: 76.25 | BL114: 76.19 | BM114: 75.43 | BN114: 75.91 | BO114: 75.48 | BP114: 75.01 | BQ114: 76.68 | BR114: 75.85 | BS114: 75.1 | BT114: 74.4 | BU114: 73.58 | BV114: 71.88 | BW114: 72.41 | BX114: 71.18 | BY114: 70.56 | BZ114: 71.65 | CA114: 72.13 | CB114: 72.66
AR115: 2027-09-01 | AS115: 38 | AV115: 20 | AW115: 26 | AX115: 320 | AY115: =SUMIF( HFP[KEY], TEXT(_xlfn.ANCHORARRAY( AY$80), "yyyymmdd" ) & AR$79, INDEX( HFP[], 0, AS115 )) -> 70.25 | AZ115: 71.19 | BA115: 71.49 | BB115: 71.48 | BC115: 71.17 | BD115: 70.84 | BE115: 70.86 | BF115: 70.71 | BG115: 70.13 | BH115: 70.8 | BI115: 71.01 | BJ115: 71.32 | BK115: 71.08 | BL115: 71.02 | BM115: 70.48 | BN115: 70.64 | BO115: 70.33 | BP115: 70.02 | BQ115: 71.21 | BR115: 70.62 | BS115: 69.92 | BT115: 69.43 | BU115: 68.85 | BV115: 67.3 | BW115: 67.78 | BX115: 66.91 | BY115: 66.47 | BZ115: 67.24 | CA115: 67.69 | CB115: 67.95
AR116: 2027-10-01 | AS116: 39 | AV116: 20 | AW116: 26 | AX116: 328 | AY116: =SUMIF( HFP[KEY], TEXT(_xlfn.ANCHORARRAY( AY$80), "yyyymmdd" ) & AR$79, INDEX( HFP[], 0, AS116 )) -> 69.68 | AZ116: 70.39 | BA116: 70.62 | BB116: 70.62 | BC116: 70.3 | BD116: 69.99 | BE116: 69.95 | BF116: 69.94 | BG116: 69.46 | BH116: 69.93 | BI116: 70.06 | BJ116: 70.3 | BK116: 70.12 | BL116: 70.06 | BM116: 69.65 | BN116: 69.6 | BO116: 69.36 | BP116: 69.14 | BQ116: 70.05 | BR116: 69.6 | BS116: 69.68 | BT116: 69.3 | BU116: 68.85 | BV116: 69.05 | BW116: 69.52 | BX116: 68.85 | BY116: 68.51 | BZ116: 69.11 | CA116: 68.99 | CB116: 68.79
AR117: 2027-11-01 | AS117: 40 | AV117: 20 | AX117: 321 | AY117: =SUMIF( HFP[KEY], TEXT(_xlfn.ANCHORARRAY( AY$80), "yyyymmdd" ) & AR$79, INDEX( HFP[], 0, AS117 )) -> 76.1 | AZ117: 76.89 | BA117: 77.15 | BB117: 77.15 | BC117: 76.84 | BD117: 76.53 | BE117: 76.52 | BF117: 76.46 | BG117: 75.95 | BH117: 76.49 | BI117: 76.65 | BJ117: 76.91 | BK117: 76.71 | BL117: 76.65 | BM117: 76.19 | BN117: 76.22 | BO117: 75.96 | BP117: 75.71 | BQ117: 76.71 | BR117: 76.21 | BS117: 76.28 | BT117: 75.86 | BU117: 75.37 | BV117: 75.54 | BW117: 76.01 | BX117: 75.27 | BY117: 74.9 | BZ117: 75.56 | CA117: 75.45 | CB117: 75.31
AR118: 2027-12-01 | AS118: 41 | AV118: 20 | AX118: 328 | AY118: =SUMIF( HFP[KEY], TEXT(_xlfn.ANCHORARRAY( AY$80), "yyyymmdd" ) & AR$79, INDEX( HFP[], 0, AS118 )) -> 85.83 | AZ118: 86.76 | BA118: 87.06 | BB118: 87.05 | BC118: 86.73 | BD118: 86.39 | BE118: 86.4 | BF118: 86.27 | BG118: 85.69 | BH118: 86.35 | BI118: 86.55 | BJ118: 86.86 | BK118: 86.62 | BL118: 86.56 | BM118: 86.03 | BN118: 86.16 | BO118: 85.86 | BP118: 85.56 | BQ118: 86.74 | BR118: 86.16 | BS118: 86.23 | BT118: 85.74 | BU118: 85.16 | BV118: 85.3 | BW118: 85.79 | BX118: 84.92 | BY118: 84.48 | BZ118: 85.25 | CA118: 85.13 | CB118: 85.08
AR119: 2028-01-01 | AS119: 42 | AX119: 344 | AY119: =SUMIF( HFP[KEY], TEXT(_xlfn.ANCHORARRAY( AY$80), "yyyymmdd" ) & AR$79, INDEX( HFP[], 0, AS119 )) -> 76.09 | AZ119: 76.67 | BA119: 76.94 | BB119: 76.94 | BC119: 76.86 | BD119: 76.74 | BE119: 76.93 | BF119: 76.77 | BG119: 76.36 | BH119: 76.36 | BI119: 75.97 | BJ119: 76.25 | BK119: 76.03 | BL119: 75.76 | BM119: 75.27 | BN119: 75.57 | BO119: 75.57 | BP119: 75.3 | BQ119: 76.38 | BR119: 75.85 | BS119: 75.78 | BT119: 75.33 | BU119: 74.8 | BV119: 75.38 | BW119: 75.09 | BX119: 74.29 | BY119: 73.63 | BZ119: 74.34 | CA119: 73.26 | CB119: 72.94
AR120: 2028-02-01 | AS120: 43 | AX120: 296 | AY120: =SUMIF( HFP[KEY], TEXT(_xlfn.ANCHORARRAY( AY$80), "yyyymmdd" ) & AR$79, INDEX( HFP[], 0, AS120 )) -> 67.42 | AZ120: 67.92 | BA120: 68.16 | BB120: 68.16 | BC120: 68.09 | BD120: 67.99 | BE120: 68.15 | BF120: 68.01 | BG120: 67.65 | BH120: 67.65 | BI120: 67.32 | BJ120: 67.56 | BK120: 67.37 | BL120: 67.14 | BM120: 66.72 | BN120: 66.98 | BO120: 66.98 | BP120: 66.75 | BQ120: 67.68 | BR120: 67.22 | BS120: 67.16 | BT120: 66.77 | BU120: 66.31 | BV120: 66.81 | BW120: 66.56 | BX120: 65.87 | BY120: 65.3 | BZ120: 65.91 | CA120: 64.98 | CB120: 64.7
AR121: 2028-03-01 | AS121: 44 | AX121: 311 | AY121: =SUMIF( HFP[KEY], TEXT(_xlfn.ANCHORARRAY( AY$80), "yyyymmdd" ) & AR$79, INDEX( HFP[], 0, AS121 )) -> 56.23 | AZ121: 56.59 | BA121: 56.78 | BB121: 56.78 | BC121: 56.76 | BD121: 56.67 | BE121: 56.8 | BF121: 56.75 | BG121: 56.46 | BH121: 56.46 | BI121: 56.07 | BJ121: 56.27 | BK121: 56.12 | BL121: 55.93 | BM121: 55.58 | BN121: 55.7 | BO121: 55.7 | BP121: 55.31 | BQ121: 56.08 | BR121: 55.7 | BS121: 55.64 | BT121: 55.32 | BU121: 54.94 | BV121: 55.46 | BW121: 55.18 | BX121: 54.61 | BY121: 54.14 | BZ121: 54.64 | CA121: 53.72 | CB121: 53.31
AR122: 2028-04-01 | AS122: 45 | AX122: 320 | AY122: =SUMIF( HFP[KEY], TEXT(_xlfn.ANCHORARRAY( AY$80), "yyyymmdd" ) & AR$79, INDEX( HFP[], 0, AS122 )) -> 46.77 | AZ122: 47.04 | BA122: 47.21 | BB122: 47.21 | BC122: 47.22 | BD122: 47.15 | BE122: 47.27 | BF122: 47.28 | BG122: 47.03 | BH122: 47.03 | BI122: 46.6 | BJ122: 46.77 | BK122: 46.64 | BL122: 46.47 | BM122: 46.17 | BN122: 46.21 | BO122: 46.21 | BP122: 45.72 | BQ122: 46.39 | BR122: 46.06 | BS122: 46.01 | BT122: 45.73 | BU122: 45.4 | BV122: 45.94 | BW122: 45.64 | BX122: 45.15 | BY122: 44.74 | BZ122: 45.18 | CA122: 44.26 | CB122: 43.77
AR123: 2028-05-01 | AS123: 46 | AX123: 328 | AY123: =SUMIF( HFP[KEY], TEXT(_xlfn.ANCHORARRAY( AY$80), "yyyymmdd" ) & AR$79, INDEX( HFP[], 0, AS123 )) -> 39.95 | AZ123: 40.19 | BA123: 40.35 | BB123: 40.35 | BC123: 40.37 | BD123: 40.3 | BE123: 40.41 | BF123: 40.44 | BG123: 40.2 | BH123: 40.2 | BI123: 39.75 | BJ123: 39.91 | BK123: 39.78 | BL123: 39.62 | BM123: 39.34 | BN123: 39.34 | BO123: 39.34 | BP123: 38.8 | BQ123: 39.43 | BR123: 39.12 | BS123: 39.07 | BT123: 38.81 | BU123: 38.5 | BV123: 39.05 | BW123: 38.74 | BX123: 38.28 | BY123: 37.9 | BZ123: 38.31 | CA123: 37.38 | CB123: 36.84
AR124: 2028-06-01 | AS124: 47 | AX124: 304 | AY124: =SUMIF( HFP[KEY], TEXT(_xlfn.ANCHORARRAY( AY$80), "yyyymmdd" ) & AR$79, INDEX( HFP[], 0, AS124 )) -> 40.32 | AZ124: 40.59 | BA124: 40.75 | BB124: 40.75 | BC124: 40.76 | BD124: 40.69 | BE124: 40.8 | BF124: 40.8 | BG124: 40.55 | BH124: 40.55 | BI124: 40.15 | BJ124: 40.32 | BK124: 40.19 | BL124: 40.03 | BM124: 39.73 | BN124: 39.78 | BO124: 39.78 | BP124: 39.32 | BQ124: 39.97 | BR124: 39.65 | BS124: 39.6 | BT124: 39.33 | BU124: 39.01 | BV124: 39.52 | BW124: 39.24 | BX124: 38.76 | BY124: 38.36 | BZ124: 38.79 | CA124: 37.91 | CB124: 37.45
AR125: 2028-07-01 | AS125: 48 | AX125: 344 | AY125: =SUMIF( HFP[KEY], TEXT(_xlfn.ANCHORARRAY( AY$80), "yyyymmdd" ) & AR$79, INDEX( HFP[], 0, AS125 )) -> 79.32 | AZ125: 79.99 | BA125: 80.29 | BB125: 80.29 | BC125: 80.18 | BD125: 80.05 | BE125: 80.26 | BF125: 80.04 | BG125: 79.58 | BH125: 79.58 | BI125: 79.22 | BJ125: 79.53 | BK125: 79.29 | BL125: 78.99 | BM125: 78.45 | BN125: 78.83 | BO125: 78.83 | BP125: 78.64 | BQ125: 79.83 | BR125: 79.24 | BS125: 79.16 | BT125: 78.66 | BU125: 78.07 | BV125: 76.36 | BW125: 76.07 | BX125: 75.19 | BY125: 74.46 | BZ125: 75.24 | CA125: 74.14 | CB125: 73.88
AR126: 2028-08-01 | AS126: 49 | AX126: 312 | AY126: =SUMIF( HFP[KEY], TEXT(_xlfn.ANCHORARRAY( AY$80), "yyyymmdd" ) & AR$79, INDEX( HFP[], 0, AS126 )) -> 89.72 | AZ126: 90.75 | BA126: 91.16 | BB126: 91.16 | BC126: 90.92 | BD126: 90.74 | BE126: 91.02 | BF126: 90.57 | BG126: 89.95 | BH126: 89.95 | BI126: 89.73 | BJ126: 90.15 | BK126: 89.82 | BL126: 89.41 | BM126: 88.67 | BN126: 89.4 | BO126: 89.4 | BP126: 89.61 | BQ126: 91.23 | BR126: 90.43 | BS126: 90.33 | BT126: 89.65 | BU126: 88.85 | BV126: 87.3 | BW126: 87.08 | BX126: 85.88 | BY126: 84.89 | BZ126: 85.95 | CA126: 84.82 | CB126: 84.89
AR127: 2028-09-01 | AS127: 50 | AX127: 320 | AY127: =SUMIF( HFP[KEY], TEXT(_xlfn.ANCHORARRAY( AY$80), "yyyymmdd" ) & AR$79, INDEX( HFP[], 0, AS127 )) -> 84.92 | AZ127: 85.63 | BA127: 85.94 | BB127: 85.94 | BC127: 85.81 | BD127: 85.67 | BE127: 85.88 | BF127: 85.63 | BG127: 85.16 | BH127: 85.16 | BI127: 84.84 | BJ127: 85.16 | BK127: 84.91 | BL127: 84.61 | BM127: 84.06 | BN127: 84.49 | BO127: 84.49 | BP127: 84.39 | BQ127: 85.61 | BR127: 85.01 | BS127: 84.93 | BT127: 84.42 | BU127: 83.82 | BV127: 82.23 | BW127: 81.97 | BX127: 81.07 | BY127: 80.33 | BZ127: 81.13 | CA127: 80.08 | CB127: 79.9
AR128: 2028-10-01 | AS128: 51 | AX128: 328 | AY128: =SUMIF( HFP[KEY], TEXT(_xlfn.ANCHORARRAY( AY$80), "yyyymmdd" ) & AR$79, INDEX( HFP[], 0, AS128 )) -> 62.79 | AZ128: 63.18 | BA128: 63.39 | BB128: 63.39 | BC128: 63.36 | BD128: 63.27 | BE128: 63.41 | BF128: 63.35 | BG128: 63.03 | BH128: 63.03 | BI128: 62.62 | BJ128: 62.84 | BK128: 62.67 | BL128: 62.46 | BM128: 62.08 | BN128: 62.22 | BO128: 62.22 | BP128: 61.82 | BQ128: 62.65 | BR128: 62.24 | BS128: 62.18 | BT128: 61.83 | BU128: 61.42 | BV128: 61.97 | BW128: 61.68 | BX128: 61.07 | BY128: 60.57 | BZ128: 61.11 | CA128: 60.13 | CB128: 59.71
AR131: =AR79 -> MDCOL-OFF
AR132: summary | AV132: per | AW132: typ | AX132: hrs | AY132: =_xlfn.ANCHORARRAY(AY$4) -> 2024-10-21 | AZ132: 2024-10-18 | BA132: 2024-10-17 | BB132: 2024-10-16 | BC132: 2024-10-15 | BD132: 2024-10-14 | BE132: 2024-10-11 | BF132: 2024-10-10 | BG132: 2024-10-09 | BH132: 2024-10-08 | BI132: 2024-10-07 | BJ132: 2024-10-04 | BK132: 2024-10-03 | BL132: 2024-10-02 | BM132: 2024-10-01 | BN132: 2024-09-30 | BO132: 2024-09-27 | BP132: 2024-09-26 | BQ132: 2024-09-25 | BR132: 2024-09-24 | BS132: 2024-09-23 | BT132: 2024-09-20 | BU132: 2024-09-19 | BV132: 2024-09-18 | BW132: 2024-09-17 | BX132: 2024-09-16 | BY132: 2024-09-13 | BZ132: 2024-09-12 | CA132: 2024-09-11 | CB132: 2024-09-10
AV133: =_xlfn.ANCHORARRAY(AV57) -> 1 | AW133: =_xlfn.ANCHORARRAY(AW57) -> 1 | AX133: =SUMIF( INDEX($AT$81:$AW$128, 0, AW133 ), $AV133,_xlfn.ANCHORARRAY( AX$81) ) -> 321 | AY133: =SUM( (INDEX($AT$81:$AW$128, 0, $AW133 ) = $AV133) *_xlfn.ANCHORARRAY( $AX$81) * AY$81:AY$128 ) / $AX133 -> 47 | AZ133: =SUM( (INDEX($AT$81:$AW$128, 0, $AW133 ) = $AV133) *_xlfn.ANCHORARRAY( $AX$81) * AZ$81:AZ$128 ) / $AX133 -> 49.5 | BA133: =SUM( (INDEX($AT$81:$AW$128, 0, $AW133 ) = $AV133) *_xlfn.ANCHORARRAY( $AX$81) * BA$81:BA$128 ) / $AX133 -> 52 | BB133: =SUM( (INDEX($AT$81:$AW$128, 0, $AW133 ) = $AV133) *_xlfn.ANCHORARRAY( $AX$81) * BB$81:BB$128 ) / $AX133 -> 52 | BC133: =SUM( (INDEX($AT$81:$AW$128, 0, $AW133 ) = $AV133) *_xlfn.ANCHORARRAY( $AX$81) * BC$81:BC$128 ) / $AX133 -> 50 | BD133: =SUM( (INDEX($AT$81:$AW$128, 0, $AW133 ) = $AV133) *_xlfn.ANCHORARRAY( $AX$81) * BD$81:BD$128 ) / $AX133 -> 49.65 | BE133: =SUM( (INDEX($AT$81:$AW$128, 0, $AW133 ) = $AV133) *_xlfn.ANCHORARRAY( $AX$81) * BE$81:BE$128 ) / $AX133 -> 49 | BF133: =SUM( (INDEX($AT$81:$AW$128, 0, $AW133 ) = $AV133) *_xlfn.ANCHORARRAY( $AX$81) * BF$81:BF$128 ) / $AX133 -> 49.1 | BG133: =SUM( (INDEX($AT$81:$AW$128, 0, $AW133 ) = $AV133) *_xlfn.ANCHORARRAY( $AX$81) * BG$81:BG$128 ) / $AX133 -> 46.9 | BH133: =SUM( (INDEX($AT$81:$AW$128, 0, $AW133 ) = $AV133) *_xlfn.ANCHORARRAY( $AX$81) * BH$81:BH$128 ) / $AX133 -> 47.85 | BI133: =SUM( (INDEX($AT$81:$AW$128, 0, $AW133 ) = $AV133) *_xlfn.ANCHORARRAY( $AX$81) * BI$81:BI$128 ) / $AX133 -> 48.5 | BJ133: =SUM( (INDEX($AT$81:$AW$128, 0, $AW133 ) = $AV133) *_xlfn.ANCHORARRAY( $AX$81) * BJ$81:BJ$128 ) / $AX133 -> 49.75 | BK133: =SUM( (INDEX($AT$81:$AW$128, 0, $AW133 ) = $AV133) *_xlfn.ANCHORARRAY( $AX$81) * BK$81:BK$128 ) / $AX133 -> 51.1 | BL133: =SUM( (INDEX($AT$81:$AW$128, 0, $AW133 ) = $AV133) *_xlfn.ANCHORARRAY( $AX$81) * BL$81:BL$128 ) / $AX133 -> 51.65 | BM133: =SUM( (INDEX($AT$81:$AW$128, 0, $AW133 ) = $AV133) *_xlfn.ANCHORARRAY( $AX$81) * BM$81:BM$128 ) / $AX133 -> 52.55 | BN133: =SUM( (INDEX($AT$81:$AW$128, 0, $AW133 ) = $AV133) *_xlfn.ANCHORARRAY( $AX$81) * BN$81:BN$128 ) / $AX133 -> 54.5 | BO133: =SUM( (INDEX($AT$81:$AW$128, 0, $AW133 ) = $AV133) *_xlfn.ANCHORARRAY( $AX$81) * BO$81:BO$128 ) / $AX133 -> 55.04 | BP133: =SUM( (INDEX($AT$81:$AW$128, 0, $AW133 ) = $AV133) *_xlfn.ANCHORARRAY( $AX$81) * BP$81:BP$128 ) / $AX133 -> 53.49 | BQ133: =SUM( (INDEX($AT$81:$AW$128, 0, $AW133 ) = $AV133) *_xlfn.ANCHORARRAY( $AX$81) * BQ$81:BQ$128 ) / $AX133 -> 53.04 | BR133: =SUM( (INDEX($AT$81:$AW$128, 0, $AW133 ) = $AV133) *_xlfn.ANCHORARRAY( $AX$81) * BR$81:BR$128 ) / $AX133 -> 53 | BS133: =SUM( (INDEX($AT$81:$AW$128, 0, $AW133 ) = $AV133) *_xlfn.ANCHORARRAY( $AX$81) * BS$81:BS$128 ) / $AX133 -> 49.26 | BT133: =SUM( (INDEX($AT$81:$AW$128, 0, $AW133 ) = $AV133) *_xlfn.ANCHORARRAY( $AX$81) * BT$81:BT$128 ) / $AX133 -> 47.25 | BU133: =SUM( (INDEX($AT$81:$AW$128, 0, $AW133 ) = $AV133) *_xlfn.ANCHORARRAY( $AX$81) * BU$81:BU$128 ) / $AX133 -> 47 | BV133: =SUM( (INDEX($AT$81:$AW$128, 0, $AW133 ) = $AV133) *_xlfn.ANCHORARRAY( $AX$81) * BV$81:BV$128 ) / $AX133 -> 45.95 | BW133: =SUM( (INDEX($AT$81:$AW$128, 0, $AW133 ) = $AV133) *_xlfn.ANCHORARRAY( $AX$81) * BW$81:BW$128 ) / $AX133 -> 45.15 | BX133: =SUM( (INDEX($AT$81:$AW$128, 0, $AW133 ) = $AV133) *_xlfn.ANCHORARRAY( $AX$81) * BX$81:BX$128 ) / $AX133 -> 43.45 | BY133: =SUM( (INDEX($AT$81:$AW$128, 0, $AW133 ) = $AV133) *_xlfn.ANCHORARRAY( $AX$81) * BY$81:BY$128 ) / $AX133 -> 42.95 | BZ133: =SUM( (INDEX($AT$81:$AW$128, 0, $AW133 ) = $AV133) *_xlfn.ANCHORARRAY( $AX$81) * BZ$81:BZ$128 ) / $AX133 -> 43.4 | CA133: =SUM( (INDEX($AT$81:$AW$128, 0, $AW133 ) = $AV133) *_xlfn.ANCHORARRAY( $AX$81) * CA$81:CA$128 ) / $AX133 -> 44.35 | CB133: =SUM( (INDEX($AT$81:$AW$128, 0, $AW133 ) = $AV133) *_xlfn.ANCHORARRAY( $AX$81) * CB$81:CB$128 ) / $AX133 -> 45.75
AV134: 2 | AW134: 1 | AX134: =SUMIF( INDEX($AT$81:$AW$128, 0, AW134 ), $AV134,_xlfn.ANCHORARRAY( AX$81) ) -> 344 | AY134: =SUM( (INDEX($AT$81:$AW$128, 0, $AW134 ) = $AV134) *_xlfn.ANCHORARRAY( $AX$81) * AY$81:AY$128 ) / $AX134 -> 78 | AZ134: =SUM( (INDEX($AT$81:$AW$128, 0, $AW134 ) = $AV134) *_xlfn.ANCHORARRAY( $AX$81) * AZ$81:AZ$128 ) / $AX134 -> 81.3 | BA134: =SUM( (INDEX($AT$81:$AW$128, 0, $AW134 ) = $AV134) *_xlfn.ANCHORARRAY( $AX$81) * BA$81:BA$128 ) / $AX134 -> 82 | BB134: =SUM( (INDEX($AT$81:$AW$128, 0, $AW134 ) = $AV134) *_xlfn.ANCHORARRAY( $AX$81) * BB$81:BB$128 ) / $AX134 -> 82 | BC134: =SUM( (INDEX($AT$81:$AW$128, 0, $AW134 ) = $AV134) *_xlfn.ANCHORARRAY( $AX$81) * BC$81:BC$128 ) / $AX134 -> 80.81 | BD134: =SUM( (INDEX($AT$81:$AW$128, 0, $AW134 ) = $AV134) *_xlfn.ANCHORARRAY( $AX$81) * BD$81:BD$128 ) / $AX134 -> 81.25 | BE134: =SUM( (INDEX($AT$81:$AW$128, 0, $AW134 ) = $AV134) *_xlfn.ANCHORARRAY( $AX$81) * BE$81:BE$128 ) / $AX134 -> 80 | BF134: =SUM( (INDEX($AT$81:$AW$128, 0, $AW134 ) = $AV134) *_xlfn.ANCHORARRAY( $AX$81) * BF$81:BF$128 ) / $AX134 -> 76.25 | BG134: =SUM( (INDEX($AT$81:$AW$128, 0, $AW134 ) = $AV134) *_xlfn.ANCHORARRAY( $AX$81) * BG$81:BG$128 ) / $AX134 -> 74.95 | BH134: =SUM( (INDEX($AT$81:$AW$128, 0, $AW134 ) = $AV134) *_xlfn.ANCHORARRAY( $AX$81) * BH$81:BH$128 ) / $AX134 -> 76 | BI134: =SUM( (INDEX($AT$81:$AW$128, 0, $AW134 ) = $AV134) *_xlfn.ANCHORARRAY( $AX$81) * BI$81:BI$128 ) / $AX134 -> 77 | BJ134: =SUM( (INDEX($AT$81:$AW$128, 0, $AW134 ) = $AV134) *_xlfn.ANCHORARRAY( $AX$81) * BJ$81:BJ$128 ) / $AX134 -> 78.24 | BK134: =SUM( (INDEX($AT$81:$AW$128, 0, $AW134 ) = $AV134) *_xlfn.ANCHORARRAY( $AX$81) * BK$81:BK$128 ) / $AX134 -> 78.82 | BL134: =SUM( (INDEX($AT$81:$AW$128, 0, $AW134 ) = $AV134) *_xlfn.ANCHORARRAY( $AX$81) * BL$81:BL$128 ) / $AX134 -> 78.15 | BM134: =SUM( (INDEX($AT$81:$AW$128, 0, $AW134 ) = $AV134) *_xlfn.ANCHORARRAY( $AX$81) * BM$81:BM$128 ) / $AX134 -> 78.75 | BN134: =SUM( (INDEX($AT$81:$AW$128, 0, $AW134 ) = $AV134) *_xlfn.ANCHORARRAY( $AX$81) * BN$81:BN$128 ) / $AX134 -> 80.58 | BO134: =SUM( (INDEX($AT$81:$AW$128, 0, $AW134 ) = $AV134) *_xlfn.ANCHORARRAY( $AX$81) * BO$81:BO$128 ) / $AX134 -> 79.58 | BP134: =SUM( (INDEX($AT$81:$AW$128, 0, $AW134 ) = $AV134) *_xlfn.ANCHORARRAY( $AX$81) * BP$81:BP$128 ) / $AX134 -> 78.63 | BQ134: =SUM( (INDEX($AT$81:$AW$128, 0, $AW134 ) = $AV134) *_xlfn.ANCHORARRAY( $AX$81) * BQ$81:BQ$128 ) / $AX134 -> 79.75 | BR134: =SUM( (INDEX($AT$81:$AW$128, 0, $AW134 ) = $AV134) *_xlfn.ANCHORARRAY( $AX$81) * BR$81:BR$128 ) / $AX134 -> 79.7 | BS134: =SUM( (INDEX($AT$81:$AW$128, 0, $AW134 ) = $AV134) *_xlfn.ANCHORARRAY( $AX$81) * BS$81:BS$128 ) / $AX134 -> 75 | BT134: =SUM( (INDEX($AT$81:$AW$128, 0, $AW134 ) = $AV134) *_xlfn.ANCHORARRAY( $AX$81) * BT$81:BT$128 ) / $AX134 -> 73 | BU134: =SUM( (INDEX($AT$81:$AW$128, 0, $AW134 ) = $AV134) *_xlfn.ANCHORARRAY( $AX$81) * BU$81:BU$128 ) / $AX134 -> 71.5 | BV134: =SUM( (INDEX($AT$81:$AW$128, 0, $AW134 ) = $AV134) *_xlfn.ANCHORARRAY( $AX$81) * BV$81:BV$128 ) / $AX134 -> 70.2 | BW134: =SUM( (INDEX($AT$81:$AW$128, 0, $AW134 ) = $AV134) *_xlfn.ANCHORARRAY( $AX$81) * BW$81:BW$128 ) / $AX134 -> 68.5 | BX134: =SUM( (INDEX($AT$81:$AW$128, 0, $AW134 ) = $AV134) *_xlfn.ANCHORARRAY( $AX$81) * BX$81:BX$128 ) / $AX134 -> 66.25 | BY134: =SUM( (INDEX($AT$81:$AW$128, 0, $AW134 ) = $AV134) *_xlfn.ANCHORARRAY( $AX$81) * BY$81:BY$128 ) / $AX134 -> 65.66 | BZ134: =SUM( (INDEX($AT$81:$AW$128, 0, $AW134 ) = $AV134) *_xlfn.ANCHORARRAY( $AX$81) * BZ$81:BZ$128 ) / $AX134 -> 66.66 | CA134: =SUM( (INDEX($AT$81:$AW$128, 0, $AW134 ) = $AV134) *_xlfn.ANCHORARRAY( $AX$81) * CA$81:CA$128 ) / $AX134 -> 67.21 | CB134: =SUM( (INDEX($AT$81:$AW$128, 0, $AW134 ) = $AV134) *_xlfn.ANCHORARRAY( $AX$81) * CB$81:CB$128 ) / $AX134 -> 67
AV135: 3 | AW135: 1 | AX135: 328 | AY135: =SUM( (INDEX($AT$81:$AW$128, 0, $AW135 ) = $AV135) *_xlfn.ANCHORARRAY( $AX$81) * AY$81:AY$128 ) / $AX135 -> 80.35 | AZ135: =SUM( (INDEX($AT$81:$AW$128, 0, $AW135 ) = $AV135) *_xlfn.ANCHORARRAY( $AX$81) * AZ$81:AZ$128 ) / $AX135 -> 81.91 | BA135: =SUM( (INDEX($AT$81:$AW$128, 0, $AW135 ) = $AV135) *_xlfn.ANCHORARRAY( $AX$81) * BA$81:BA$128 ) / $AX135 -> 83 | BB135: =SUM( (INDEX($AT$81:$AW$128, 0, $AW135 ) = $AV135) *_xlfn.ANCHORARRAY( $AX$81) * BB$81:BB$128 ) / $AX135 -> 83.95 | BC135: =SUM( (INDEX($AT$81:$AW$128, 0, $AW135 ) = $AV135) *_xlfn.ANCHORARRAY( $AX$81) * BC$81:BC$128 ) / $AX135 -> 82.93 | BD135: =SUM( (INDEX($AT$81:$AW$128, 0, $AW135 ) = $AV135) *_xlfn.ANCHORARRAY( $AX$81) * BD$81:BD$128 ) / $AX135 -> 83 | BE135: =SUM( (INDEX($AT$81:$AW$128, 0, $AW135 ) = $AV135) *_xlfn.ANCHORARRAY( $AX$81) * BE$81:BE$128 ) / $AX135 -> 81.55 | BF135: =SUM( (INDEX($AT$81:$AW$128, 0, $AW135 ) = $AV135) *_xlfn.ANCHORARRAY( $AX$81) * BF$81:BF$128 ) / $AX135 -> 82.55 | BG135: =SUM( (INDEX($AT$81:$AW$128, 0, $AW135 ) = $AV135) *_xlfn.ANCHORARRAY( $AX$81) * BG$81:BG$128 ) / $AX135 -> 81.67 | BH135: =SUM( (INDEX($AT$81:$AW$128, 0, $AW135 ) = $AV135) *_xlfn.ANCHORARRAY( $AX$81) * BH$81:BH$128 ) / $AX135 -> 81.3 | BI135: =SUM( (INDEX($AT$81:$AW$128, 0, $AW135 ) = $AV135) *_xlfn.ANCHORARRAY( $AX$81) * BI$81:BI$128 ) / $AX135 -> 82.02 | BJ135: =SUM( (INDEX($AT$81:$AW$128, 0, $AW135 ) = $AV135) *_xlfn.ANCHORARRAY( $AX$81) * BJ$81:BJ$128 ) / $AX135 -> 82.01 | BK135: =SUM( (INDEX($AT$81:$AW$128, 0, $AW135 ) = $AV135) *_xlfn.ANCHORARRAY( $AX$81) * BK$81:BK$128 ) / $AX135 -> 80.55 | BL135: =SUM( (INDEX($AT$81:$AW$128, 0, $AW135 ) = $AV135) *_xlfn.ANCHORARRAY( $AX$81) * BL$81:BL$128 ) / $AX135 -> 80.25 | BM135: =SUM( (INDEX($AT$81:$AW$128, 0, $AW135 ) = $AV135) *_xlfn.ANCHORARRAY( $AX$81) * BM$81:BM$128 ) / $AX135 -> 79.83 | BN135: =SUM( (INDEX($AT$81:$AW$128, 0, $AW135 ) = $AV135) *_xlfn.ANCHORARRAY( $AX$81) * BN$81:BN$128 ) / $AX135 -> 80.54 | BO135: =SUM( (INDEX($AT$81:$AW$128, 0, $AW135 ) = $AV135) *_xlfn.ANCHORARRAY( $AX$81) * BO$81:BO$128 ) / $AX135 -> 80.43 | BP135: =SUM( (INDEX($AT$81:$AW$128, 0, $AW135 ) = $AV135) *_xlfn.ANCHORARRAY( $AX$81) * BP$81:BP$128 ) / $AX135 -> 80.56 | BQ135: =SUM( (INDEX($AT$81:$AW$128, 0, $AW135 ) = $AV135) *_xlfn.ANCHORARRAY( $AX$81) * BQ$81:BQ$128 ) / $AX135 -> 83.08 | BR135: =SUM( (INDEX($AT$81:$AW$128, 0, $AW135 ) = $AV135) *_xlfn.ANCHORARRAY( $AX$81) * BR$81:BR$128 ) / $AX135 -> 80.03 | BS135: =SUM( (INDEX($AT$81:$AW$128, 0, $AW135 ) = $AV135) *_xlfn.ANCHORARRAY( $AX$81) * BS$81:BS$128 ) / $AX135 -> 77.98 | BT135: =SUM( (INDEX($AT$81:$AW$128, 0, $AW135 ) = $AV135) *_xlfn.ANCHORARRAY( $AX$81) * BT$81:BT$128 ) / $AX135 -> 76 | BU135: =SUM( (INDEX($AT$81:$AW$128, 0, $AW135 ) = $AV135) *_xlfn.ANCHORARRAY( $AX$81) * BU$81:BU$128 ) / $AX135 -> 76 | BV135: =SUM( (INDEX($AT$81:$AW$128, 0, $AW135 ) = $AV135) *_xlfn.ANCHORARRAY( $AX$81) * BV$81:BV$128 ) / $AX135 -> 74.77 | BW135: =SUM( (INDEX($AT$81:$AW$128, 0, $AW135 ) = $AV135) *_xlfn.ANCHORARRAY( $AX$81) * BW$81:BW$128 ) / $AX135 -> 73.5 | BX135: =SUM( (INDEX($AT$81:$AW$128, 0, $AW135 ) = $AV135) *_xlfn.ANCHORARRAY( $AX$81) * BX$81:BX$128 ) / $AX135 -> 73.25 | BY135: =SUM( (INDEX($AT$81:$AW$128, 0, $AW135 ) = $AV135) *_xlfn.ANCHORARRAY( $AX$81) * BY$81:BY$128 ) / $AX135 -> 73.59 | BZ135: =SUM( (INDEX($AT$81:$AW$128, 0, $AW135 ) = $AV135) *_xlfn.ANCHORARRAY( $AX$81) * BZ$81:BZ$128 ) / $AX135 -> 71.23 | CA135: =SUM( (INDEX($AT$81:$AW$128, 0, $AW135 ) = $AV135) *_xlfn.ANCHORARRAY( $AX$81) * CA$81:CA$128 ) / $AX135 -> 71.93 | CB135: =SUM( (INDEX($AT$81:$AW$128, 0, $AW135 ) = $AV135) *_xlfn.ANCHORARRAY( $AX$81) * CB$81:CB$128 ) / $AX135 -> 73.28
AV136: 4 | AW136: 1 | AX136: 288 | AY136: =SUM( (INDEX($AT$81:$AW$128, 0, $AW136 ) = $AV136) *_xlfn.ANCHORARRAY( $AX$81) * AY$81:AY$128 ) / $AX136 -> 65.38 | AZ136: =SUM( (INDEX($AT$81:$AW$128, 0, $AW136 ) = $AV136) *_xlfn.ANCHORARRAY( $AX$81) * AZ$81:AZ$128 ) / $AX136 -> 67.25 | BA136: =SUM( (INDEX($AT$81:$AW$128, 0, $AW136 ) = $AV136) *_xlfn.ANCHORARRAY( $AX$81) * BA$81:BA$128 ) / $AX136 -> 69.53 | BB136: =SUM( (INDEX($AT$81:$AW$128, 0, $AW136 ) = $AV136) *_xlfn.ANCHORARRAY( $AX$81) * BB$81:BB$128 ) / $AX136 -> 68.88 | BC136: =SUM( (INDEX($AT$81:$AW$128, 0, $AW136 ) = $AV136) *_xlfn.ANCHORARRAY( $AX$81) * BC$81:BC$128 ) / $AX136 -> 67.76 | BD136: =SUM( (INDEX($AT$81:$AW$128, 0, $AW136 ) = $AV136) *_xlfn.ANCHORARRAY( $AX$81) * BD$81:BD$128 ) / $AX136 -> 68.06 | BE136: =SUM( (INDEX($AT$81:$AW$128, 0, $AW136 ) = $AV136) *_xlfn.ANCHORARRAY( $AX$81) * BE$81:BE$128 ) / $AX136 -> 69 | BF136: =SUM( (INDEX($AT$81:$AW$128, 0, $AW136 ) = $AV136) *_xlfn.ANCHORARRAY( $AX$81) * BF$81:BF$128 ) / $AX136 -> 69 | BG136: =SUM( (INDEX($AT$81:$AW$128, 0, $AW136 ) = $AV136) *_xlfn.ANCHORARRAY( $AX$81) * BG$81:BG$128 ) / $AX136 -> 68.52 | BH136: =SUM( (INDEX($AT$81:$AW$128, 0, $AW136 ) = $AV136) *_xlfn.ANCHORARRAY( $AX$81) * BH$81:BH$128 ) / $AX136 -> 68.87 | BI136: =SUM( (INDEX($AT$81:$AW$128, 0, $AW136 ) = $AV136) *_xlfn.ANCHORARRAY( $AX$81) * BI$81:BI$128 ) / $AX136 -> 70.72 | BJ136: =SUM( (INDEX($AT$81:$AW$128, 0, $AW136 ) = $AV136) *_xlfn.ANCHORARRAY( $AX$81) * BJ$81:BJ$128 ) / $AX136 -> 71.35 | BK136: =SUM( (INDEX($AT$81:$AW$128, 0, $AW136 ) = $AV136) *_xlfn.ANCHORARRAY( $AX$81) * BK$81:BK$128 ) / $AX136 -> 71.5 | BL136: =SUM( (INDEX($AT$81:$AW$128, 0, $AW136 ) = $AV136) *_xlfn.ANCHORARRAY( $AX$81) * BL$81:BL$128 ) / $AX136 -> 72.7 | BM136: =SUM( (INDEX($AT$81:$AW$128, 0, $AW136 ) = $AV136) *_xlfn.ANCHORARRAY( $AX$81) * BM$81:BM$128 ) / $AX136 -> 72.67 | BN136: =SUM( (INDEX($AT$81:$AW$128, 0, $AW136 ) = $AV136) *_xlfn.ANCHORARRAY( $AX$81) * BN$81:BN$128 ) / $AX136 -> 72.09 | BO136: =SUM( (INDEX($AT$81:$AW$128, 0, $AW136 ) = $AV136) *_xlfn.ANCHORARRAY( $AX$81) * BO$81:BO$128 ) / $AX136 -> 72.37 | BP136: =SUM( (INDEX($AT$81:$AW$128, 0, $AW136 ) = $AV136) *_xlfn.ANCHORARRAY( $AX$81) * BP$81:BP$128 ) / $AX136 -> 71.7 | BQ136: =SUM( (INDEX($AT$81:$AW$128, 0, $AW136 ) = $AV136) *_xlfn.ANCHORARRAY( $AX$81) * BQ$81:BQ$128 ) / $AX136 -> 74.76 | BR136: =SUM( (INDEX($AT$81:$AW$128, 0, $AW136 ) = $AV136) *_xlfn.ANCHORARRAY( $AX$81) * BR$81:BR$128 ) / $AX136 -> 72 | BS136: =SUM( (INDEX($AT$81:$AW$128, 0, $AW136 ) = $AV136) *_xlfn.ANCHORARRAY( $AX$81) * BS$81:BS$128 ) / $AX136 -> 70.34 | BT136: =SUM( (INDEX($AT$81:$AW$128, 0, $AW136 ) = $AV136) *_xlfn.ANCHORARRAY( $AX$81) * BT$81:BT$128 ) / $AX136 -> 69.37 | BU136: =SUM( (INDEX($AT$81:$AW$128, 0, $AW136 ) = $AV136) *_xlfn.ANCHORARRAY( $AX$81) * BU$81:BU$128 ) / $AX136 -> 65 | BV136: =SUM( (INDEX($AT$81:$AW$128, 0, $AW136 ) = $AV136) *_xlfn.ANCHORARRAY( $AX$81) * BV$81:BV$128 ) / $AX136 -> 64.16 | BW136: =SUM( (INDEX($AT$81:$AW$128, 0, $AW136 ) = $AV136) *_xlfn.ANCHORARRAY( $AX$81) * BW$81:BW$128 ) / $AX136 -> 63 | BX136: =SUM( (INDEX($AT$81:$AW$128, 0, $AW136 ) = $AV136) *_xlfn.ANCHORARRAY( $AX$81) * BX$81:BX$128 ) / $AX136 -> 62.14 | BY136: =SUM( (INDEX($AT$81:$AW$128, 0, $AW136 ) = $AV136) *_xlfn.ANCHORARRAY( $AX$81) * BY$81:BY$128 ) / $AX136 -> 62.45 | BZ136: =SUM( (INDEX($AT$81:$AW$128, 0, $AW136 ) = $AV136) *_xlfn.ANCHORARRAY( $AX$81) * BZ$81:BZ$128 ) / $AX136 -> 60.38 | CA136: =SUM( (INDEX($AT$81:$AW$128, 0, $AW136 ) = $AV136) *_xlfn.ANCHORARRAY( $AX$81) * CA$81:CA$128 ) / $AX136 -> 61.44 | CB136: =SUM( (INDEX($AT$81:$AW$128, 0, $AW136 ) = $AV136) *_xlfn.ANCHORARRAY( $AX$81) * CB$81:CB$128 ) / $AX136 -> 61.92
AV137: 5 | AW137: 1 | AX137: 327 | AY137: =SUM( (INDEX($AT$81:$AW$128, 0, $AW137 ) = $AV137) *_xlfn.ANCHORARRAY( $AX$81) * AY$81:AY$128 ) / $AX137 -> 42.15 | AZ137: =SUM( (INDEX($AT$81:$AW$128, 0, $AW137 ) = $AV137) *_xlfn.ANCHORARRAY( $AX$81) * AZ$81:AZ$128 ) / $AX137 -> 43.41 | BA137: =SUM( (INDEX($AT$81:$AW$128, 0, $AW137 ) = $AV137) *_xlfn.ANCHORARRAY( $AX$81) * BA$81:BA$128 ) / $AX137 -> 44.04 | BB137: =SUM( (INDEX($AT$81:$AW$128, 0, $AW137 ) = $AV137) *_xlfn.ANCHORARRAY( $AX$81) * BB$81:BB$128 ) / $AX137 -> 44.01 | BC137: =SUM( (INDEX($AT$81:$AW$128, 0, $AW137 ) = $AV137) *_xlfn.ANCHORARRAY( $AX$81) * BC$81:BC$128 ) / $AX137 -> 43.15 | BD137: =SUM( (INDEX($AT$81:$AW$128, 0, $AW137 ) = $AV137) *_xlfn.ANCHORARRAY( $AX$81) * BD$81:BD$128 ) / $AX137 -> 43.19 | BE137: =SUM( (INDEX($AT$81:$AW$128, 0, $AW137 ) = $AV137) *_xlfn.ANCHORARRAY( $AX$81) * BE$81:BE$128 ) / $AX137 -> 42.76 | BF137: =SUM( (INDEX($AT$81:$AW$128, 0, $AW137 ) = $AV137) *_xlfn.ANCHORARRAY( $AX$81) * BF$81:BF$128 ) / $AX137 -> 42.43 | BG137: =SUM( (INDEX($AT$81:$AW$128, 0, $AW137 ) = $AV137) *_xlfn.ANCHORARRAY( $AX$81) * BG$81:BG$128 ) / $AX137 -> 43.1 | BH137: =SUM( (INDEX($AT$81:$AW$128, 0, $AW137 ) = $AV137) *_xlfn.ANCHORARRAY( $AX$81) * BH$81:BH$128 ) / $AX137 -> 43.6 | BI137: =SUM( (INDEX($AT$81:$AW$128, 0, $AW137 ) = $AV137) *_xlfn.ANCHORARRAY( $AX$81) * BI$81:BI$128 ) / $AX137 -> 42.89 | BJ137: =SUM( (INDEX($AT$81:$AW$128, 0, $AW137 ) = $AV137) *_xlfn.ANCHORARRAY( $AX$81) * BJ$81:BJ$128 ) / $AX137 -> 42.35 | BK137: =SUM( (INDEX($AT$81:$AW$128, 0, $AW137 ) = $AV137) *_xlfn.ANCHORARRAY( $AX$81) * BK$81:BK$128 ) / $AX137 -> 41.55 | BL137: =SUM( (INDEX($AT$81:$AW$128, 0, $AW137 ) = $AV137) *_xlfn.ANCHORARRAY( $AX$81) * BL$81:BL$128 ) / $AX137 -> 42.69 | BM137: =SUM( (INDEX($AT$81:$AW$128, 0, $AW137 ) = $AV137) *_xlfn.ANCHORARRAY( $AX$81) * BM$81:BM$128 ) / $AX137 -> 42.79 | BN137: =SUM( (INDEX($AT$81:$AW$128, 0, $AW137 ) = $AV137) *_xlfn.ANCHORARRAY( $AX$81) * BN$81:BN$128 ) / $AX137 -> 42.59 | BO137: =SUM( (INDEX($AT$81:$AW$128, 0, $AW137 ) = $AV137) *_xlfn.ANCHORARRAY( $AX$81) * BO$81:BO$128 ) / $AX137 -> 42.45 | BP137: =SUM( (INDEX($AT$81:$AW$128, 0, $AW137 ) = $AV137) *_xlfn.ANCHORARRAY( $AX$81) * BP$81:BP$128 ) / $AX137 -> 42.55 | BQ137: =SUM( (INDEX($AT$81:$AW$128, 0, $AW137 ) = $AV137) *_xlfn.ANCHORARRAY( $AX$81) * BQ$81:BQ$128 ) / $AX137 -> 43.4 | BR137: =SUM( (INDEX($AT$81:$AW$128, 0, $AW137 ) = $AV137) *_xlfn.ANCHORARRAY( $AX$81) * BR$81:BR$128 ) / $AX137 -> 43.5 | BS137: =SUM( (INDEX($AT$81:$AW$128, 0, $AW137 ) = $AV137) *_xlfn.ANCHORARRAY( $AX$81) * BS$81:BS$128 ) / $AX137 -> 42.65 | BT137: =SUM( (INDEX($AT$81:$AW$128, 0, $AW137 ) = $AV137) *_xlfn.ANCHORARRAY( $AX$81) * BT$81:BT$128 ) / $AX137 -> 41.93 | BU137: =SUM( (INDEX($AT$81:$AW$128, 0, $AW137 ) = $AV137) *_xlfn.ANCHORARRAY( $AX$81) * BU$81:BU$128 ) / $AX137 -> 42.76 | BV137: =SUM( (INDEX($AT$81:$AW$128, 0, $AW137 ) = $AV137) *_xlfn.ANCHORARRAY( $AX$81) * BV$81:BV$128 ) / $AX137 -> 42 | BW137: =SUM( (INDEX($AT$81:$AW$128, 0, $AW137 ) = $AV137) *_xlfn.ANCHORARRAY( $AX$81) * BW$81:BW$128 ) / $AX137 -> 41.5 | BX137: =SUM( (INDEX($AT$81:$AW$128, 0, $AW137 ) = $AV137) *_xlfn.ANCHORARRAY( $AX$81) * BX$81:BX$128 ) / $AX137 -> 40.82 | BY137: =SUM( (INDEX($AT$81:$AW$128, 0, $AW137 ) = $AV137) *_xlfn.ANCHORARRAY( $AX$81) * BY$81:BY$128 ) / $AX137 -> 40.61 | BZ137: =SUM( (INDEX($AT$81:$AW$128, 0, $AW137 ) = $AV137) *_xlfn.ANCHORARRAY( $AX$81) * BZ$81:BZ$128 ) / $AX137 -> 40.71 | CA137: =SUM( (INDEX($AT$81:$AW$128, 0, $AW137 ) = $AV137) *_xlfn.ANCHORARRAY( $AX$81) * CA$81:CA$128 ) / $AX137 -> 41.1 | CB137: =SUM( (INDEX($AT$81:$AW$128, 0, $AW137 ) = $AV137) *_xlfn.ANCHORARRAY( $AX$81) * CB$81:CB$128 ) / $AX137 -> 41.96
AV138: 6 | AW138: 1 | AX138: 304 | AY138: =SUM( (INDEX($AT$81:$AW$128, 0, $AW138 ) = $AV138) *_xlfn.ANCHORARRAY( $AX$81) * AY$81:AY$128 ) / $AX138 -> 34.09 | AZ138: =SUM( (INDEX($AT$81:$AW$128, 0, $AW138 ) = $AV138) *_xlfn.ANCHORARRAY( $AX$81) * AZ$81:AZ$128 ) / $AX138 -> 34.35 | BA138: =SUM( (INDEX($AT$81:$AW$128, 0, $AW138 ) = $AV138) *_xlfn.ANCHORARRAY( $AX$81) * BA$81:BA$128 ) / $AX138 -> 34.86 | BB138: =SUM( (INDEX($AT$81:$AW$128, 0, $AW138 ) = $AV138) *_xlfn.ANCHORARRAY( $AX$81) * BB$81:BB$128 ) / $AX138 -> 34.15 | BC138: =SUM( (INDEX($AT$81:$AW$128, 0, $AW138 ) = $AV138) *_xlfn.ANCHORARRAY( $AX$81) * BC$81:BC$128 ) / $AX138 -> 34.64 | BD138: =SUM( (INDEX($AT$81:$AW$128, 0, $AW138 ) = $AV138) *_xlfn.ANCHORARRAY( $AX$81) * BD$81:BD$128 ) / $AX138 -> 34.7 | BE138: =SUM( (INDEX($AT$81:$AW$128, 0, $AW138 ) = $AV138) *_xlfn.ANCHORARRAY( $AX$81) * BE$81:BE$128 ) / $AX138 -> 34.8 | BF138: =SUM( (INDEX($AT$81:$AW$128, 0, $AW138 ) = $AV138) *_xlfn.ANCHORARRAY( $AX$81) * BF$81:BF$128 ) / $AX138 -> 35.6 | BG138: =SUM( (INDEX($AT$81:$AW$128, 0, $AW138 ) = $AV138) *_xlfn.ANCHORARRAY( $AX$81) * BG$81:BG$128 ) / $AX138 -> 34.95 | BH138: =SUM( (INDEX($AT$81:$AW$128, 0, $AW138 ) = $AV138) *_xlfn.ANCHORARRAY( $AX$81) * BH$81:BH$128 ) / $AX138 -> 35.41 | BI138: =SUM( (INDEX($AT$81:$AW$128, 0, $AW138 ) = $AV138) *_xlfn.ANCHORARRAY( $AX$81) * BI$81:BI$128 ) / $AX138 -> 35.53 | BJ138: =SUM( (INDEX($AT$81:$AW$128, 0, $AW138 ) = $AV138) *_xlfn.ANCHORARRAY( $AX$81) * BJ$81:BJ$128 ) / $AX138 -> 35.16 | BK138: =SUM( (INDEX($AT$81:$AW$128, 0, $AW138 ) = $AV138) *_xlfn.ANCHORARRAY( $AX$81) * BK$81:BK$128 ) / $AX138 -> 35 | BL138: =SUM( (INDEX($AT$81:$AW$128, 0, $AW138 ) = $AV138) *_xlfn.ANCHORARRAY( $AX$81) * BL$81:BL$128 ) / $AX138 -> 34.7 | BM138: =SUM( (INDEX($AT$81:$AW$128, 0, $AW138 ) = $AV138) *_xlfn.ANCHORARRAY( $AX$81) * BM$81:BM$128 ) / $AX138 -> 34.98 | BN138: =SUM( (INDEX($AT$81:$AW$128, 0, $AW138 ) = $AV138) *_xlfn.ANCHORARRAY( $AX$81) * BN$81:BN$128 ) / $AX138 -> 36.06 | BO138: =SUM( (INDEX($AT$81:$AW$128, 0, $AW138 ) = $AV138) *_xlfn.ANCHORARRAY( $AX$81) * BO$81:BO$128 ) / $AX138 -> 35.15 | BP138: =SUM( (INDEX($AT$81:$AW$128, 0, $AW138 ) = $AV138) *_xlfn.ANCHORARRAY( $AX$81) * BP$81:BP$128 ) / $AX138 -> 34.95 | BQ138: =SUM( (INDEX($AT$81:$AW$128, 0, $AW138 ) = $AV138) *_xlfn.ANCHORARRAY( $AX$81) * BQ$81:BQ$128 ) / $AX138 -> 36.4 | BR138: =SUM( (INDEX($AT$81:$AW$128, 0, $AW138 ) = $AV138) *_xlfn.ANCHORARRAY( $AX$81) * BR$81:BR$128 ) / $AX138 -> 36.4 | BS138: =SUM( (INDEX($AT$81:$AW$128, 0, $AW138 ) = $AV138) *_xlfn.ANCHORARRAY( $AX$81) * BS$81:BS$128 ) / $AX138 -> 35.47 | BT138: =SUM( (INDEX($AT$81:$AW$128, 0, $AW138 ) = $AV138) *_xlfn.ANCHORARRAY( $AX$81) * BT$81:BT$128 ) / $AX138 -> 35.14 | BU138: =SUM( (INDEX($AT$81:$AW$128, 0, $AW138 ) = $AV138) *_xlfn.ANCHORARRAY( $AX$81) * BU$81:BU$128 ) / $AX138 -> 34.63 | BV138: =SUM( (INDEX($AT$81:$AW$128, 0, $AW138 ) = $AV138) *_xlfn.ANCHORARRAY( $AX$81) * BV$81:BV$128 ) / $AX138 -> 34.54 | BW138: =SUM( (INDEX($AT$81:$AW$128, 0, $AW138 ) = $AV138) *_xlfn.ANCHORARRAY( $AX$81) * BW$81:BW$128 ) / $AX138 -> 35.47 | BX138: =SUM( (INDEX($AT$81:$AW$128, 0, $AW138 ) = $AV138) *_xlfn.ANCHORARRAY( $AX$81) * BX$81:BX$128 ) / $AX138 -> 35.32 | BY138: =SUM( (INDEX($AT$81:$AW$128, 0, $AW138 ) = $AV138) *_xlfn.ANCHORARRAY( $AX$81) * BY$81:BY$128 ) / $AX138 -> 34.76 | BZ138: =SUM( (INDEX($AT$81:$AW$128, 0, $AW138 ) = $AV138) *_xlfn.ANCHORARRAY( $AX$81) * BZ$81:BZ$128 ) / $AX138 -> 35.8 | CA138: =SUM( (INDEX($AT$81:$AW$128, 0, $AW138 ) = $AV138) *_xlfn.ANCHORARRAY( $AX$81) * CA$81:CA$128 ) / $AX138 -> 35.5 | CB138: =SUM( (INDEX($AT$81:$AW$128, 0, $AW138 ) = $AV138) *_xlfn.ANCHORARRAY( $AX$81) * CB$81:CB$128 ) / $AX138 -> 35.57
AV139: 7 | AW139: 1 | AX139: 328 | AY139: =SUM( (INDEX($AT$81:$AW$128, 0, $AW139 ) = $AV139) *_xlfn.ANCHORARRAY( $AX$81) * AY$81:AY$128 ) / $AX139 -> 20.81 | AZ139: =SUM( (INDEX($AT$81:$AW$128, 0, $AW139 ) = $AV139) *_xlfn.ANCHORARRAY( $AX$81) * AZ$81:AZ$128 ) / $AX139 -> 21.47 | BA139: =SUM( (INDEX($AT$81:$AW$128, 0, $AW139 ) = $AV139) *_xlfn.ANCHORARRAY( $AX$81) * BA$81:BA$128 ) / $AX139 -> 21.31 | BB139: =SUM( (INDEX($AT$81:$AW$128, 0, $AW139 ) = $AV139) *_xlfn.ANCHORARRAY( $AX$81) * BB$81:BB$128 ) / $AX139 -> 20.6 | BC139: =SUM( (INDEX($AT$81:$AW$128, 0, $AW139 ) = $AV139) *_xlfn.ANCHORARRAY( $AX$81) * BC$81:BC$128 ) / $AX139 -> 20.99 | BD139: =SUM( (INDEX($AT$81:$AW$128, 0, $AW139 ) = $AV139) *_xlfn.ANCHORARRAY( $AX$81) * BD$81:BD$128 ) / $AX139 -> 21.3 | BE139: =SUM( (INDEX($AT$81:$AW$128, 0, $AW139 ) = $AV139) *_xlfn.ANCHORARRAY( $AX$81) * BE$81:BE$128 ) / $AX139 -> 21.79 | BF139: =SUM( (INDEX($AT$81:$AW$128, 0, $AW139 ) = $AV139) *_xlfn.ANCHORARRAY( $AX$81) * BF$81:BF$128 ) / $AX139 -> 22.3 | BG139: =SUM( (INDEX($AT$81:$AW$128, 0, $AW139 ) = $AV139) *_xlfn.ANCHORARRAY( $AX$81) * BG$81:BG$128 ) / $AX139 -> 21.79 | BH139: =SUM( (INDEX($AT$81:$AW$128, 0, $AW139 ) = $AV139) *_xlfn.ANCHORARRAY( $AX$81) * BH$81:BH$128 ) / $AX139 -> 22.62 | BI139: =SUM( (INDEX($AT$81:$AW$128, 0, $AW139 ) = $AV139) *_xlfn.ANCHORARRAY( $AX$81) * BI$81:BI$128 ) / $AX139 -> 23.14 | BJ139: =SUM( (INDEX($AT$81:$AW$128, 0, $AW139 ) = $AV139) *_xlfn.ANCHORARRAY( $AX$81) * BJ$81:BJ$128 ) / $AX139 -> 23.32 | BK139: =SUM( (INDEX($AT$81:$AW$128, 0, $AW139 ) = $AV139) *_xlfn.ANCHORARRAY( $AX$81) * BK$81:BK$128 ) / $AX139 -> 23.75 | BL139: =SUM( (INDEX($AT$81:$AW$128, 0, $AW139 ) = $AV139) *_xlfn.ANCHORARRAY( $AX$81) * BL$81:BL$128 ) / $AX139 -> 23.67 | BM139: =SUM( (INDEX($AT$81:$AW$128, 0, $AW139 ) = $AV139) *_xlfn.ANCHORARRAY( $AX$81) * BM$81:BM$128 ) / $AX139 -> 21.7 | BN139: =SUM( (INDEX($AT$81:$AW$128, 0, $AW139 ) = $AV139) *_xlfn.ANCHORARRAY( $AX$81) * BN$81:BN$128 ) / $AX139 -> 22.78 | BO139: =SUM( (INDEX($AT$81:$AW$128, 0, $AW139 ) = $AV139) *_xlfn.ANCHORARRAY( $AX$81) * BO$81:BO$128 ) / $AX139 -> 21.66 | BP139: =SUM( (INDEX($AT$81:$AW$128, 0, $AW139 ) = $AV139) *_xlfn.ANCHORARRAY( $AX$81) * BP$81:BP$128 ) / $AX139 -> 22.46 | BQ139: =SUM( (INDEX($AT$81:$AW$128, 0, $AW139 ) = $AV139) *_xlfn.ANCHORARRAY( $AX$81) * BQ$81:BQ$128 ) / $AX139 -> 24.01 | BR139: =SUM( (INDEX($AT$81:$AW$128, 0, $AW139 ) = $AV139) *_xlfn.ANCHORARRAY( $AX$81) * BR$81:BR$128 ) / $AX139 -> 24.01 | BS139: =SUM( (INDEX($AT$81:$AW$128, 0, $AW139 ) = $AV139) *_xlfn.ANCHORARRAY( $AX$81) * BS$81:BS$128 ) / $AX139 -> 23.35 | BT139: =SUM( (INDEX($AT$81:$AW$128, 0, $AW139 ) = $AV139) *_xlfn.ANCHORARRAY( $AX$81) * BT$81:BT$128 ) / $AX139 -> 23.36 | BU139: =SUM( (INDEX($AT$81:$AW$128, 0, $AW139 ) = $AV139) *_xlfn.ANCHORARRAY( $AX$81) * BU$81:BU$128 ) / $AX139 -> 22.69 | BV139: =SUM( (INDEX($AT$81:$AW$128, 0, $AW139 ) = $AV139) *_xlfn.ANCHORARRAY( $AX$81) * BV$81:BV$128 ) / $AX139 -> 22.19 | BW139: =SUM( (INDEX($AT$81:$AW$128, 0, $AW139 ) = $AV139) *_xlfn.ANCHORARRAY( $AX$81) * BW$81:BW$128 ) / $AX139 -> 21.86 | BX139: =SUM( (INDEX($AT$81:$AW$128, 0, $AW139 ) = $AV139) *_xlfn.ANCHORARRAY( $AX$81) * BX$81:BX$128 ) / $AX139 -> 21.29 | BY139: =SUM( (INDEX($AT$81:$AW$128, 0, $AW139 ) = $AV139) *_xlfn.ANCHORARRAY( $AX$81) * BY$81:BY$128 ) / $AX139 -> 20.67 | BZ139: =SUM( (INDEX($AT$81:$AW$128, 0, $AW139 ) = $AV139) *_xlfn.ANCHORARRAY( $AX$81) * BZ$81:BZ$128 ) / $AX139 -> 21.8 | CA139: =SUM( (INDEX($AT$81:$AW$128, 0, $AW139 ) = $AV139) *_xlfn.ANCHORARRAY( $AX$81) * CA$81:CA$128 ) / $AX139 -> 21.75 | CB139: =SUM( (INDEX($AT$81:$AW$128, 0, $AW139 ) = $AV139) *_xlfn.ANCHORARRAY( $AX$81) * CB$81:CB$128 ) / $AX139 -> 21.63
AV140: 8 | AW140: 1 | AX140: 320 | AY140: =SUM( (INDEX($AT$81:$AW$128, 0, $AW140 ) = $AV140) *_xlfn.ANCHORARRAY( $AX$81) * AY$81:AY$128 ) / $AX140 -> 24.38 | AZ140: =SUM( (INDEX($AT$81:$AW$128, 0, $AW140 ) = $AV140) *_xlfn.ANCHORARRAY( $AX$81) * AZ$81:AZ$128 ) / $AX140 -> 23.9 | BA140: =SUM( (INDEX($AT$81:$AW$128, 0, $AW140 ) = $AV140) *_xlfn.ANCHORARRAY( $AX$81) * BA$81:BA$128 ) / $AX140 -> 24.15 | BB140: =SUM( (INDEX($AT$81:$AW$128, 0, $AW140 ) = $AV140) *_xlfn.ANCHORARRAY( $AX$81) * BB$81:BB$128 ) / $AX140 -> 23.94 | BC140: =SUM( (INDEX($AT$81:$AW$128, 0, $AW140 ) = $AV140) *_xlfn.ANCHORARRAY( $AX$81) * BC$81:BC$128 ) / $AX140 -> 22.48 | BD140: =SUM( (INDEX($AT$81:$AW$128, 0, $AW140 ) = $AV140) *_xlfn.ANCHORARRAY( $AX$81) * BD$81:BD$128 ) / $AX140 -> 22.24 | BE140: =SUM( (INDEX($AT$81:$AW$128, 0, $AW140 ) = $AV140) *_xlfn.ANCHORARRAY( $AX$81) * BE$81:BE$128 ) / $AX140 -> 23.13 | BF140: =SUM( (INDEX($AT$81:$AW$128, 0, $AW140 ) = $AV140) *_xlfn.ANCHORARRAY( $AX$81) * BF$81:BF$128 ) / $AX140 -> 23.45 | BG140: =SUM( (INDEX($AT$81:$AW$128, 0, $AW140 ) = $AV140) *_xlfn.ANCHORARRAY( $AX$81) * BG$81:BG$128 ) / $AX140 -> 23.09 | BH140: =SUM( (INDEX($AT$81:$AW$128, 0, $AW140 ) = $AV140) *_xlfn.ANCHORARRAY( $AX$81) * BH$81:BH$128 ) / $AX140 -> 22.79 | BI140: =SUM( (INDEX($AT$81:$AW$128, 0, $AW140 ) = $AV140) *_xlfn.ANCHORARRAY( $AX$81) * BI$81:BI$128 ) / $AX140 -> 22.79 | BJ140: =SUM( (INDEX($AT$81:$AW$128, 0, $AW140 ) = $AV140) *_xlfn.ANCHORARRAY( $AX$81) * BJ$81:BJ$128 ) / $AX140 -> 23.02 | BK140: =SUM( (INDEX($AT$81:$AW$128, 0, $AW140 ) = $AV140) *_xlfn.ANCHORARRAY( $AX$81) * BK$81:BK$128 ) / $AX140 -> 23.4 | BL140: =SUM( (INDEX($AT$81:$AW$128, 0, $AW140 ) = $AV140) *_xlfn.ANCHORARRAY( $AX$81) * BL$81:BL$128 ) / $AX140 -> 23.1 | BM140: =SUM( (INDEX($AT$81:$AW$128, 0, $AW140 ) = $AV140) *_xlfn.ANCHORARRAY( $AX$81) * BM$81:BM$128 ) / $AX140 -> 23 | BN140: =SUM( (INDEX($AT$81:$AW$128, 0, $AW140 ) = $AV140) *_xlfn.ANCHORARRAY( $AX$81) * BN$81:BN$128 ) / $AX140 -> 23.31 | BO140: =SUM( (INDEX($AT$81:$AW$128, 0, $AW140 ) = $AV140) *_xlfn.ANCHORARRAY( $AX$81) * BO$81:BO$128 ) / $AX140 -> 22.05 | BP140: =SUM( (INDEX($AT$81:$AW$128, 0, $AW140 ) = $AV140) *_xlfn.ANCHORARRAY( $AX$81) * BP$81:BP$128 ) / $AX140 -> 22.25 | BQ140: =SUM( (INDEX($AT$81:$AW$128, 0, $AW140 ) = $AV140) *_xlfn.ANCHORARRAY( $AX$81) * BQ$81:BQ$128 ) / $AX140 -> 22.91 | BR140: =SUM( (INDEX($AT$81:$AW$128, 0, $AW140 ) = $AV140) *_xlfn.ANCHORARRAY( $AX$81) * BR$81:BR$128 ) / $AX140 -> 22.94 | BS140: =SUM( (INDEX($AT$81:$AW$128, 0, $AW140 ) = $AV140) *_xlfn.ANCHORARRAY( $AX$81) * BS$81:BS$128 ) / $AX140 -> 22.3 | BT140: =SUM( (INDEX($AT$81:$AW$128, 0, $AW140 ) = $AV140) *_xlfn.ANCHORARRAY( $AX$81) * BT$81:BT$128 ) / $AX140 -> 22.22 | BU140: =SUM( (INDEX($AT$81:$AW$128, 0, $AW140 ) = $AV140) *_xlfn.ANCHORARRAY( $AX$81) * BU$81:BU$128 ) / $AX140 -> 21.93 | BV140: =SUM( (INDEX($AT$81:$AW$128, 0, $AW140 ) = $AV140) *_xlfn.ANCHORARRAY( $AX$81) * BV$81:BV$128 ) / $AX140 -> 21.31 | BW140: =SUM( (INDEX($AT$81:$AW$128, 0, $AW140 ) = $AV140) *_xlfn.ANCHORARRAY( $AX$81) * BW$81:BW$128 ) / $AX140 -> 20.67 | BX140: =SUM( (INDEX($AT$81:$AW$128, 0, $AW140 ) = $AV140) *_xlfn.ANCHORARRAY( $AX$81) * BX$81:BX$128 ) / $AX140 -> 20.49 | BY140: =SUM( (INDEX($AT$81:$AW$128, 0, $AW140 ) = $AV140) *_xlfn.ANCHORARRAY( $AX$81) * BY$81:BY$128 ) / $AX140 -> 18.68 | BZ140: =SUM( (INDEX($AT$81:$AW$128, 0, $AW140 ) = $AV140) *_xlfn.ANCHORARRAY( $AX$81) * BZ$81:BZ$128 ) / $AX140 -> 19.91 | CA140: =SUM( (INDEX($AT$81:$AW$128, 0, $AW140 ) = $AV140) *_xlfn.ANCHORARRAY( $AX$81) * CA$81:CA$128 ) / $AX140 -> 20.41 | CB140: =SUM( (INDEX($AT$81:$AW$128, 0, $AW140 ) = $AV140) *_xlfn.ANCHORARRAY( $AX$81) * CB$81:CB$128 ) / $AX140 -> 22.5
AV141: 9 | AW141: 1 | AX141: 328 | AY141: =SUM( (INDEX($AT$81:$AW$128, 0, $AW141 ) = $AV141) *_xlfn.ANCHORARRAY( $AX$81) * AY$81:AY$128 ) / $AX141 -> 32.53 | AZ141: =SUM( (INDEX($AT$81:$AW$128, 0, $AW141 ) = $AV141) *_xlfn.ANCHORARRAY( $AX$81) * AZ$81:AZ$128 ) / $AX141 -> 34.49 | BA141: =SUM( (INDEX($AT$81:$AW$128, 0, $AW141 ) = $AV141) *_xlfn.ANCHORARRAY( $AX$81) * BA$81:BA$128 ) / $AX141 -> 34.52 | BB141: =SUM( (INDEX($AT$81:$AW$128, 0, $AW141 ) = $AV141) *_xlfn.ANCHORARRAY( $AX$81) * BB$81:BB$128 ) / $AX141 -> 34.32 | BC141: =SUM( (INDEX($AT$81:$AW$128, 0, $AW141 ) = $AV141) *_xlfn.ANCHORARRAY( $AX$81) * BC$81:BC$128 ) / $AX141 -> 33.06 | BD141: =SUM( (INDEX($AT$81:$AW$128, 0, $AW141 ) = $AV141) *_xlfn.ANCHORARRAY( $AX$81) * BD$81:BD$128 ) / $AX141 -> 33.32 | BE141: =SUM( (INDEX($AT$81:$AW$128, 0, $AW141 ) = $AV141) *_xlfn.ANCHORARRAY( $AX$81) * BE$81:BE$128 ) / $AX141 -> 33.82 | BF141: =SUM( (INDEX($AT$81:$AW$128, 0, $AW141 ) = $AV141) *_xlfn.ANCHORARRAY( $AX$81) * BF$81:BF$128 ) / $AX141 -> 33.8 | BG141: =SUM( (INDEX($AT$81:$AW$128, 0, $AW141 ) = $AV141) *_xlfn.ANCHORARRAY( $AX$81) * BG$81:BG$128 ) / $AX141 -> 32.99 | BH141: =SUM( (INDEX($AT$81:$AW$128, 0, $AW141 ) = $AV141) *_xlfn.ANCHORARRAY( $AX$81) * BH$81:BH$128 ) / $AX141 -> 32.68 | BI141: =SUM( (INDEX($AT$81:$AW$128, 0, $AW141 ) = $AV141) *_xlfn.ANCHORARRAY( $AX$81) * BI$81:BI$128 ) / $AX141 -> 33.35 | BJ141: =SUM( (INDEX($AT$81:$AW$128, 0, $AW141 ) = $AV141) *_xlfn.ANCHORARRAY( $AX$81) * BJ$81:BJ$128 ) / $AX141 -> 34.36 | BK141: =SUM( (INDEX($AT$81:$AW$128, 0, $AW141 ) = $AV141) *_xlfn.ANCHORARRAY( $AX$81) * BK$81:BK$128 ) / $AX141 -> 34.62 | BL141: =SUM( (INDEX($AT$81:$AW$128, 0, $AW141 ) = $AV141) *_xlfn.ANCHORARRAY( $AX$81) * BL$81:BL$128 ) / $AX141 -> 34.37 | BM141: =SUM( (INDEX($AT$81:$AW$128, 0, $AW141 ) = $AV141) *_xlfn.ANCHORARRAY( $AX$81) * BM$81:BM$128 ) / $AX141 -> 33.91 | BN141: =SUM( (INDEX($AT$81:$AW$128, 0, $AW141 ) = $AV141) *_xlfn.ANCHORARRAY( $AX$81) * BN$81:BN$128 ) / $AX141 -> 34.69 | BO141: =SUM( (INDEX($AT$81:$AW$128, 0, $AW141 ) = $AV141) *_xlfn.ANCHORARRAY( $AX$81) * BO$81:BO$128 ) / $AX141 -> 33.53 | BP141: =SUM( (INDEX($AT$81:$AW$128, 0, $AW141 ) = $AV141) *_xlfn.ANCHORARRAY( $AX$81) * BP$81:BP$128 ) / $AX141 -> 31.63 | BQ141: =SUM( (INDEX($AT$81:$AW$128, 0, $AW141 ) = $AV141) *_xlfn.ANCHORARRAY( $AX$81) * BQ$81:BQ$128 ) / $AX141 -> 33.04 | BR141: =SUM( (INDEX($AT$81:$AW$128, 0, $AW141 ) = $AV141) *_xlfn.ANCHORARRAY( $AX$81) * BR$81:BR$128 ) / $AX141 -> 33.41 | BS141: =SUM( (INDEX($AT$81:$AW$128, 0, $AW141 ) = $AV141) *_xlfn.ANCHORARRAY( $AX$81) * BS$81:BS$128 ) / $AX141 -> 33.04 | BT141: =SUM( (INDEX($AT$81:$AW$128, 0, $AW141 ) = $AV141) *_xlfn.ANCHORARRAY( $AX$81) * BT$81:BT$128 ) / $AX141 -> 32.93 | BU141: =SUM( (INDEX($AT$81:$AW$128, 0, $AW141 ) = $AV141) *_xlfn.ANCHORARRAY( $AX$81) * BU$81:BU$128 ) / $AX141 -> 32.53 | BV141: =SUM( (INDEX($AT$81:$AW$128, 0, $AW141 ) = $AV141) *_xlfn.ANCHORARRAY( $AX$81) * BV$81:BV$128 ) / $AX141 -> 30.13 | BW141: =SUM( (INDEX($AT$81:$AW$128, 0, $AW141 ) = $AV141) *_xlfn.ANCHORARRAY( $AX$81) * BW$81:BW$128 ) / $AX141 -> 29.43 | BX141: =SUM( (INDEX($AT$81:$AW$128, 0, $AW141 ) = $AV141) *_xlfn.ANCHORARRAY( $AX$81) * BX$81:BX$128 ) / $AX141 -> 27.78 | BY141: =SUM( (INDEX($AT$81:$AW$128, 0, $AW141 ) = $AV141) *_xlfn.ANCHORARRAY( $AX$81) * BY$81:BY$128 ) / $AX141 -> 27.94 | BZ141: =SUM( (INDEX($AT$81:$AW$128, 0, $AW141 ) = $AV141) *_xlfn.ANCHORARRAY( $AX$81) * BZ$81:BZ$128 ) / $AX141 -> 28.57 | CA141: =SUM( (INDEX($AT$81:$AW$128, 0, $AW141 ) = $AV141) *_xlfn.ANCHORARRAY( $AX$81) * CA$81:CA$128 ) / $AX141 -> 29.32 | CB141: =SUM( (INDEX($AT$81:$AW$128, 0, $AW141 ) = $AV141) *_xlfn.ANCHORARRAY( $AX$81) * CB$81:CB$128 ) / $AX141 -> 28.82
AV142: 10 | AW142: 2 | AX142: 943 | AY142: =SUM( (INDEX($AT$81:$AW$128, 0, $AW142 ) = $AV142) *_xlfn.ANCHORARRAY( $AX$81) * AY$81:AY$128 ) / $AX142 -> 62.53159067 | AZ142: =SUM( (INDEX($AT$81:$AW$128, 0, $AW142 ) = $AV142) *_xlfn.ANCHORARRAY( $AX$81) * AZ$81:AZ$128 ) / $AX142 -> 64.08223754 | BA142: =SUM( (INDEX($AT$81:$AW$128, 0, $AW142 ) = $AV142) *_xlfn.ANCHORARRAY( $AX$81) * BA$81:BA$128 ) / $AX142 -> 65.37616119 | BB142: =SUM( (INDEX($AT$81:$AW$128, 0, $AW142 ) = $AV142) *_xlfn.ANCHORARRAY( $AX$81) * BB$81:BB$128 ) / $AX142 -> 65.49767762 | BC142: =SUM( (INDEX($AT$81:$AW$128, 0, $AW142 ) = $AV142) *_xlfn.ANCHORARRAY( $AX$81) * BC$81:BC$128 ) / $AX142 -> 64.5026193 | BD142: =SUM( (INDEX($AT$81:$AW$128, 0, $AW142 ) = $AV142) *_xlfn.ANCHORARRAY( $AX$81) * BD$81:BD$128 ) / $AX142 -> 64.63246023 | BE142: =SUM( (INDEX($AT$81:$AW$128, 0, $AW142 ) = $AV142) *_xlfn.ANCHORARRAY( $AX$81) * BE$81:BE$128 ) / $AX142 -> 64.26608696 | BF142: =SUM( (INDEX($AT$81:$AW$128, 0, $AW142 ) = $AV142) *_xlfn.ANCHORARRAY( $AX$81) * BF$81:BF$128 ) / $AX142 -> 64.49948038 | BG142: =SUM( (INDEX($AT$81:$AW$128, 0, $AW142 ) = $AV142) *_xlfn.ANCHORARRAY( $AX$81) * BG$81:BG$128 ) / $AX142 -> 64.27913043 | BH142: =SUM( (INDEX($AT$81:$AW$128, 0, $AW142 ) = $AV142) *_xlfn.ANCHORARRAY( $AX$81) * BH$81:BH$128 ) / $AX142 -> 64.4307105 | BI142: =SUM( (INDEX($AT$81:$AW$128, 0, $AW142 ) = $AV142) *_xlfn.ANCHORARRAY( $AX$81) * BI$81:BI$128 ) / $AX142 -> 64.99994698 | BJ142: =SUM( (INDEX($AT$81:$AW$128, 0, $AW142 ) = $AV142) *_xlfn.ANCHORARRAY( $AX$81) * BJ$81:BJ$128 ) / $AX142 -> 65.00162248 | BK142: =SUM( (INDEX($AT$81:$AW$128, 0, $AW142 ) = $AV142) *_xlfn.ANCHORARRAY( $AX$81) * BK$81:BK$128 ) / $AX142 -> 64.26219512 | BL142: =SUM( (INDEX($AT$81:$AW$128, 0, $AW142 ) = $AV142) *_xlfn.ANCHORARRAY( $AX$81) * BL$81:BL$128 ) / $AX142 -> 64.91965005 | BM142: =SUM( (INDEX($AT$81:$AW$128, 0, $AW142 ) = $AV142) *_xlfn.ANCHORARRAY( $AX$81) * BM$81:BM$128 ) / $AX142 -> 64.79907741 | BN142: =SUM( (INDEX($AT$81:$AW$128, 0, $AW142 ) = $AV142) *_xlfn.ANCHORARRAY( $AX$81) * BN$81:BN$128 ) / $AX142 -> 64.79954401 | BO142: =SUM( (INDEX($AT$81:$AW$128, 0, $AW142 ) = $AV142) *_xlfn.ANCHORARRAY( $AX$81) * BO$81:BO$128 ) / $AX142 -> 64.79825027 | BP142: =SUM( (INDEX($AT$81:$AW$128, 0, $AW142 ) = $AV142) *_xlfn.ANCHORARRAY( $AX$81) * BP$81:BP$128 ) / $AX142 -> 64.67352068 | BQ142: =SUM( (INDEX($AT$81:$AW$128, 0, $AW142 ) = $AV142) *_xlfn.ANCHORARRAY( $AX$81) * BQ$81:BQ$128 ) / $AX142 -> 66.77934252 | BR142: =SUM( (INDEX($AT$81:$AW$128, 0, $AW142 ) = $AV142) *_xlfn.ANCHORARRAY( $AX$81) * BR$81:BR$128 ) / $AX142 -> 64.91022269 | BS142: =SUM( (INDEX($AT$81:$AW$128, 0, $AW142 ) = $AV142) *_xlfn.ANCHORARRAY( $AX$81) * BS$81:BS$128 ) / $AX142 -> 63.39545069 | BT142: =SUM( (INDEX($AT$81:$AW$128, 0, $AW142 ) = $AV142) *_xlfn.ANCHORARRAY( $AX$81) * BT$81:BT$128 ) / $AX142 -> 62.16083775 | BU142: =SUM( (INDEX($AT$81:$AW$128, 0, $AW142 ) = $AV142) *_xlfn.ANCHORARRAY( $AX$81) * BU$81:BU$128 ) / $AX142 -> 61.11401909 | BV142: =SUM( (INDEX($AT$81:$AW$128, 0, $AW142 ) = $AV142) *_xlfn.ANCHORARRAY( $AX$81) * BV$81:BV$128 ) / $AX142 -> 60.16610817 | BW142: =SUM( (INDEX($AT$81:$AW$128, 0, $AW142 ) = $AV142) *_xlfn.ANCHORARRAY( $AX$81) * BW$81:BW$128 ) / $AX142 -> 59.19671262 | BX142: =SUM( (INDEX($AT$81:$AW$128, 0, $AW142 ) = $AV142) *_xlfn.ANCHORARRAY( $AX$81) * BX$81:BX$128 ) / $AX142 -> 58.61130435 | BY142: =SUM( (INDEX($AT$81:$AW$128, 0, $AW142 ) = $AV142) *_xlfn.ANCHORARRAY( $AX$81) * BY$81:BY$128 ) / $AX142 -> 58.751421 | BZ142: =SUM( (INDEX($AT$81:$AW$128, 0, $AW142 ) = $AV142) *_xlfn.ANCHORARRAY( $AX$81) * BZ$81:BZ$128 ) / $AX142 -> 57.33303287 | CA142: =SUM( (INDEX($AT$81:$AW$128, 0, $AW142 ) = $AV142) *_xlfn.ANCHORARRAY( $AX$81) * CA$81:CA$128 ) / $AX142 -> 58.0354825 | CB142: =SUM( (INDEX($AT$81:$AW$128, 0, $AW142 ) = $AV142) *_xlfn.ANCHORARRAY( $AX$81) * CB$81:CB$128 ) / $AX142 -> 58.94986214
AV143: 11 | AW143: 2 | AX143: 952 | AY143: =SUM( (INDEX($AT$81:$AW$128, 0, $AW143 ) = $AV143) *_xlfn.ANCHORARRAY( $AX$81) * AY$81:AY$128 ) / $AX143 -> 26.25067227 | AZ143: =SUM( (INDEX($AT$81:$AW$128, 0, $AW143 ) = $AV143) *_xlfn.ANCHORARRAY( $AX$81) * AZ$81:AZ$128 ) / $AX143 -> 26.3997479 | BA143: =SUM( (INDEX($AT$81:$AW$128, 0, $AW143 ) = $AV143) *_xlfn.ANCHORARRAY( $AX$81) * BA$81:BA$128 ) / $AX143 -> 26.59151261 | BB143: =SUM( (INDEX($AT$81:$AW$128, 0, $AW143 ) = $AV143) *_xlfn.ANCHORARRAY( $AX$81) * BB$81:BB$128 ) / $AX143 -> 26.04957983 | BC143: =SUM( (INDEX($AT$81:$AW$128, 0, $AW143 ) = $AV143) *_xlfn.ANCHORARRAY( $AX$81) * BC$81:BC$128 ) / $AX143 -> 25.84966387 | BD143: =SUM( (INDEX($AT$81:$AW$128, 0, $AW143 ) = $AV143) *_xlfn.ANCHORARRAY( $AX$81) * BD$81:BD$128 ) / $AX143 -> 25.89495798 | BE143: =SUM( (INDEX($AT$81:$AW$128, 0, $AW143 ) = $AV143) *_xlfn.ANCHORARRAY( $AX$81) * BE$81:BE$128 ) / $AX143 -> 26.39487395 | BF143: =SUM( (INDEX($AT$81:$AW$128, 0, $AW143 ) = $AV143) *_xlfn.ANCHORARRAY( $AX$81) * BF$81:BF$128 ) / $AX143 -> 26.93361345 | BG143: =SUM( (INDEX($AT$81:$AW$128, 0, $AW143 ) = $AV143) *_xlfn.ANCHORARRAY( $AX$81) * BG$81:BG$128 ) / $AX143 -> 26.42932773 | BH143: =SUM( (INDEX($AT$81:$AW$128, 0, $AW143 ) = $AV143) *_xlfn.ANCHORARRAY( $AX$81) * BH$81:BH$128 ) / $AX143 -> 26.76134454 | BI143: =SUM( (INDEX($AT$81:$AW$128, 0, $AW143 ) = $AV143) *_xlfn.ANCHORARRAY( $AX$81) * BI$81:BI$128 ) / $AX143 -> 26.97882353 | BJ143: =SUM( (INDEX($AT$81:$AW$128, 0, $AW143 ) = $AV143) *_xlfn.ANCHORARRAY( $AX$81) * BJ$81:BJ$128 ) / $AX143 -> 27 | BK143: =SUM( (INDEX($AT$81:$AW$128, 0, $AW143 ) = $AV143) *_xlfn.ANCHORARRAY( $AX$81) * BK$81:BK$128 ) / $AX143 -> 27.22478992 | BL143: =SUM( (INDEX($AT$81:$AW$128, 0, $AW143 ) = $AV143) *_xlfn.ANCHORARRAY( $AX$81) * BL$81:BL$128 ) / $AX143 -> 27.00058824 | BM143: =SUM( (INDEX($AT$81:$AW$128, 0, $AW143 ) = $AV143) *_xlfn.ANCHORARRAY( $AX$81) * BM$81:BM$128 ) / $AX143 -> 26.37764706 | BN143: =SUM( (INDEX($AT$81:$AW$128, 0, $AW143 ) = $AV143) *_xlfn.ANCHORARRAY( $AX$81) * BN$81:BN$128 ) / $AX143 -> 27.19882353 | BO143: =SUM( (INDEX($AT$81:$AW$128, 0, $AW143 ) = $AV143) *_xlfn.ANCHORARRAY( $AX$81) * BO$81:BO$128 ) / $AX143 -> 26.09882353 | BP143: =SUM( (INDEX($AT$81:$AW$128, 0, $AW143 ) = $AV143) *_xlfn.ANCHORARRAY( $AX$81) * BP$81:BP$128 ) / $AX143 -> 26.37781513 | BQ143: =SUM( (INDEX($AT$81:$AW$128, 0, $AW143 ) = $AV143) *_xlfn.ANCHORARRAY( $AX$81) * BQ$81:BQ$128 ) / $AX143 -> 27.59672269 | BR143: =SUM( (INDEX($AT$81:$AW$128, 0, $AW143 ) = $AV143) *_xlfn.ANCHORARRAY( $AX$81) * BR$81:BR$128 ) / $AX143 -> 27.60680672 | BS143: =SUM( (INDEX($AT$81:$AW$128, 0, $AW143 ) = $AV143) *_xlfn.ANCHORARRAY( $AX$81) * BS$81:BS$128 ) / $AX143 -> 26.86731092 | BT143: =SUM( (INDEX($AT$81:$AW$128, 0, $AW143 ) = $AV143) *_xlfn.ANCHORARRAY( $AX$81) * BT$81:BT$128 ) / $AX143 -> 26.73848739 | BU143: =SUM( (INDEX($AT$81:$AW$128, 0, $AW143 ) = $AV143) *_xlfn.ANCHORARRAY( $AX$81) * BU$81:BU$128 ) / $AX143 -> 26.24731092 | BV143: =SUM( (INDEX($AT$81:$AW$128, 0, $AW143 ) = $AV143) *_xlfn.ANCHORARRAY( $AX$81) * BV$81:BV$128 ) / $AX143 -> 25.83789916 | BW143: =SUM( (INDEX($AT$81:$AW$128, 0, $AW143 ) = $AV143) *_xlfn.ANCHORARRAY( $AX$81) * BW$81:BW$128 ) / $AX143 -> 25.80605042 | BX143: =SUM( (INDEX($AT$81:$AW$128, 0, $AW143 ) = $AV143) *_xlfn.ANCHORARRAY( $AX$81) * BX$81:BX$128 ) / $AX143 -> 25.5012605 | BY143: =SUM( (INDEX($AT$81:$AW$128, 0, $AW143 ) = $AV143) *_xlfn.ANCHORARRAY( $AX$81) * BY$81:BY$128 ) / $AX143 -> 24.50042017 | BZ143: =SUM( (INDEX($AT$81:$AW$128, 0, $AW143 ) = $AV143) *_xlfn.ANCHORARRAY( $AX$81) * BZ$81:BZ$128 ) / $AX143 -> 25.63529412 | CA143: =SUM( (INDEX($AT$81:$AW$128, 0, $AW143 ) = $AV143) *_xlfn.ANCHORARRAY( $AX$81) * CA$81:CA$128 ) / $AX143 -> 25.69033613 | CB143: =SUM( (INDEX($AT$81:$AW$128, 0, $AW143 ) = $AV143) *_xlfn.ANCHORARRAY( $AX$81) * CB$81:CB$128 ) / $AX143 -> 26.37386555
AV144: 12 | AW144: 2 | AX144: 976 | AY144: =SUM( (INDEX($AT$81:$AW$128, 0, $AW144 ) = $AV144) *_xlfn.ANCHORARRAY( $AX$81) * AY$81:AY$128 ) / $AX144 -> 44.49754098 | AZ144: =SUM( (INDEX($AT$81:$AW$128, 0, $AW144 ) = $AV144) *_xlfn.ANCHORARRAY( $AX$81) * AZ$81:AZ$128 ) / $AX144 -> 45.66622951 | BA144: =SUM( (INDEX($AT$81:$AW$128, 0, $AW144 ) = $AV144) *_xlfn.ANCHORARRAY( $AX$81) * BA$81:BA$128 ) / $AX144 -> 45.69622951 | BB144: =SUM( (INDEX($AT$81:$AW$128, 0, $AW144 ) = $AV144) *_xlfn.ANCHORARRAY( $AX$81) * BB$81:BB$128 ) / $AX144 -> 45.49622951 | BC144: =SUM( (INDEX($AT$81:$AW$128, 0, $AW144 ) = $AV144) *_xlfn.ANCHORARRAY( $AX$81) * BC$81:BC$128 ) / $AX144 -> 44.24606557 | BD144: =SUM( (INDEX($AT$81:$AW$128, 0, $AW144 ) = $AV144) *_xlfn.ANCHORARRAY( $AX$81) * BD$81:BD$128 ) / $AX144 -> 44.50278689 | BE144: =SUM( (INDEX($AT$81:$AW$128, 0, $AW144 ) = $AV144) *_xlfn.ANCHORARRAY( $AX$81) * BE$81:BE$128 ) / $AX144 -> 44.9995082 | BF144: =SUM( (INDEX($AT$81:$AW$128, 0, $AW144 ) = $AV144) *_xlfn.ANCHORARRAY( $AX$81) * BF$81:BF$128 ) / $AX144 -> 44.99959016 | BG144: =SUM( (INDEX($AT$81:$AW$128, 0, $AW144 ) = $AV144) *_xlfn.ANCHORARRAY( $AX$81) * BG$81:BG$128 ) / $AX144 -> 44.50352459 | BH144: =SUM( (INDEX($AT$81:$AW$128, 0, $AW144 ) = $AV144) *_xlfn.ANCHORARRAY( $AX$81) * BH$81:BH$128 ) / $AX144 -> 44.67385246 | BI144: =SUM( (INDEX($AT$81:$AW$128, 0, $AW144 ) = $AV144) *_xlfn.ANCHORARRAY( $AX$81) * BI$81:BI$128 ) / $AX144 -> 45.34065574 | BJ144: =SUM( (INDEX($AT$81:$AW$128, 0, $AW144 ) = $AV144) *_xlfn.ANCHORARRAY( $AX$81) * BJ$81:BJ$128 ) / $AX144 -> 45.49081967 | BK144: =SUM( (INDEX($AT$81:$AW$128, 0, $AW144 ) = $AV144) *_xlfn.ANCHORARRAY( $AX$81) * BK$81:BK$128 ) / $AX144 -> 45.74754098 | BL144: =SUM( (INDEX($AT$81:$AW$128, 0, $AW144 ) = $AV144) *_xlfn.ANCHORARRAY( $AX$81) * BL$81:BL$128 ) / $AX144 -> 45.50081967 | BM144: =SUM( (INDEX($AT$81:$AW$128, 0, $AW144 ) = $AV144) *_xlfn.ANCHORARRAY( $AX$81) * BM$81:BM$128 ) / $AX144 -> 45.05065574 | BN144: =SUM( (INDEX($AT$81:$AW$128, 0, $AW144 ) = $AV144) *_xlfn.ANCHORARRAY( $AX$81) * BN$81:BN$128 ) / $AX144 -> 46.49827869 | BO144: =SUM( (INDEX($AT$81:$AW$128, 0, $AW144 ) = $AV144) *_xlfn.ANCHORARRAY( $AX$81) * BO$81:BO$128 ) / $AX144 -> 45.2504918 | BP144: =SUM( (INDEX($AT$81:$AW$128, 0, $AW144 ) = $AV144) *_xlfn.ANCHORARRAY( $AX$81) * BP$81:BP$128 ) / $AX144 -> 43.28614754 | BQ144: =SUM( (INDEX($AT$81:$AW$128, 0, $AW144 ) = $AV144) *_xlfn.ANCHORARRAY( $AX$81) * BQ$81:BQ$128 ) / $AX144 -> 44.6797541 | BR144: =SUM( (INDEX($AT$81:$AW$128, 0, $AW144 ) = $AV144) *_xlfn.ANCHORARRAY( $AX$81) * BR$81:BR$128 ) / $AX144 -> 45.04647541 | BS144: =SUM( (INDEX($AT$81:$AW$128, 0, $AW144 ) = $AV144) *_xlfn.ANCHORARRAY( $AX$81) * BS$81:BS$128 ) / $AX144 -> 44.69286885 | BT144: =SUM( (INDEX($AT$81:$AW$128, 0, $AW144 ) = $AV144) *_xlfn.ANCHORARRAY( $AX$81) * BT$81:BT$128 ) / $AX144 -> 44.44508197 | BU144: =SUM( (INDEX($AT$81:$AW$128, 0, $AW144 ) = $AV144) *_xlfn.ANCHORARRAY( $AX$81) * BU$81:BU$128 ) / $AX144 -> 44.04836066 | BV144: =SUM( (INDEX($AT$81:$AW$128, 0, $AW144 ) = $AV144) *_xlfn.ANCHORARRAY( $AX$81) * BV$81:BV$128 ) / $AX144 -> 41.94754098 | BW144: =SUM( (INDEX($AT$81:$AW$128, 0, $AW144 ) = $AV144) *_xlfn.ANCHORARRAY( $AX$81) * BW$81:BW$128 ) / $AX144 -> 40.89672131 | BX144: =SUM( (INDEX($AT$81:$AW$128, 0, $AW144 ) = $AV144) *_xlfn.ANCHORARRAY( $AX$81) * BX$81:BX$128 ) / $AX144 -> 39.58844262 | BY144: =SUM( (INDEX($AT$81:$AW$128, 0, $AW144 ) = $AV144) *_xlfn.ANCHORARRAY( $AX$81) * BY$81:BY$128 ) / $AX144 -> 39.74852459 | BZ144: =SUM( (INDEX($AT$81:$AW$128, 0, $AW144 ) = $AV144) *_xlfn.ANCHORARRAY( $AX$81) * BZ$81:BZ$128 ) / $AX144 -> 40.90122951 | CA144: =SUM( (INDEX($AT$81:$AW$128, 0, $AW144 ) = $AV144) *_xlfn.ANCHORARRAY( $AX$81) * CA$81:CA$128 ) / $AX144 -> 41.5002459 | CB144: =SUM( (INDEX($AT$81:$AW$128, 0, $AW144 ) = $AV144) *_xlfn.ANCHORARRAY( $AX$81) * CB$81:CB$128 ) / $AX144 -> 41.2502459
AV145: 13 | AW145: 2 | AX145: 977 | AY145: =SUM( (INDEX($AT$81:$AW$128, 0, $AW145 ) = $AV145) *_xlfn.ANCHORARRAY( $AX$81) * AY$81:AY$128 ) / $AX145 -> 66.50614125 | AZ145: =SUM( (INDEX($AT$81:$AW$128, 0, $AW145 ) = $AV145) *_xlfn.ANCHORARRAY( $AX$81) * AZ$81:AZ$128 ) / $AX145 -> 67.25150461 | BA145: =SUM( (INDEX($AT$81:$AW$128, 0, $AW145 ) = $AV145) *_xlfn.ANCHORARRAY( $AX$81) * BA$81:BA$128 ) / $AX145 -> 66.9657216 | BB145: =SUM( (INDEX($AT$81:$AW$128, 0, $AW145 ) = $AV145) *_xlfn.ANCHORARRAY( $AX$81) * BB$81:BB$128 ) / $AX145 -> 66.9257216 | BC145: =SUM( (INDEX($AT$81:$AW$128, 0, $AW145 ) = $AV145) *_xlfn.ANCHORARRAY( $AX$81) * BC$81:BC$128 ) / $AX145 -> 66.34649949 | BD145: =SUM( (INDEX($AT$81:$AW$128, 0, $AW145 ) = $AV145) *_xlfn.ANCHORARRAY( $AX$81) * BD$81:BD$128 ) / $AX145 -> 66.49978506 | BE145: =SUM( (INDEX($AT$81:$AW$128, 0, $AW145 ) = $AV145) *_xlfn.ANCHORARRAY( $AX$81) * BE$81:BE$128 ) / $AX145 -> 66.98272262 | BF145: =SUM( (INDEX($AT$81:$AW$128, 0, $AW145 ) = $AV145) *_xlfn.ANCHORARRAY( $AX$81) * BF$81:BF$128 ) / $AX145 -> 66.98272262 | BG145: =SUM( (INDEX($AT$81:$AW$128, 0, $AW145 ) = $AV145) *_xlfn.ANCHORARRAY( $AX$81) * BG$81:BG$128 ) / $AX145 -> 66.99868987 | BH145: =SUM( (INDEX($AT$81:$AW$128, 0, $AW145 ) = $AV145) *_xlfn.ANCHORARRAY( $AX$81) * BH$81:BH$128 ) / $AX145 -> 67.24717503 | BI145: =SUM( (INDEX($AT$81:$AW$128, 0, $AW145 ) = $AV145) *_xlfn.ANCHORARRAY( $AX$81) * BI$81:BI$128 ) / $AX145 -> 67.46398158 | BJ145: =SUM( (INDEX($AT$81:$AW$128, 0, $AW145 ) = $AV145) *_xlfn.ANCHORARRAY( $AX$81) * BJ$81:BJ$128 ) / $AX145 -> 67.46398158 | BK145: =SUM( (INDEX($AT$81:$AW$128, 0, $AW145 ) = $AV145) *_xlfn.ANCHORARRAY( $AX$81) * BK$81:BK$128 ) / $AX145 -> 67.49910952 | BL145: =SUM( (INDEX($AT$81:$AW$128, 0, $AW145 ) = $AV145) *_xlfn.ANCHORARRAY( $AX$81) * BL$81:BL$128 ) / $AX145 -> 66.94859775 | BM145: =SUM( (INDEX($AT$81:$AW$128, 0, $AW145 ) = $AV145) *_xlfn.ANCHORARRAY( $AX$81) * BM$81:BM$128 ) / $AX145 -> 67.00006141 | BN145: =SUM( (INDEX($AT$81:$AW$128, 0, $AW145 ) = $AV145) *_xlfn.ANCHORARRAY( $AX$81) * BN$81:BN$128 ) / $AX145 -> 66.75053224 | BO145: =SUM( (INDEX($AT$81:$AW$128, 0, $AW145 ) = $AV145) *_xlfn.ANCHORARRAY( $AX$81) * BO$81:BO$128 ) / $AX145 -> 66.99971341 | BP145: =SUM( (INDEX($AT$81:$AW$128, 0, $AW145 ) = $AV145) *_xlfn.ANCHORARRAY( $AX$81) * BP$81:BP$128 ) / $AX145 -> 65.6785261 | BQ145: =SUM( (INDEX($AT$81:$AW$128, 0, $AW145 ) = $AV145) *_xlfn.ANCHORARRAY( $AX$81) * BQ$81:BQ$128 ) / $AX145 -> 65.82827021 | BR145: =SUM( (INDEX($AT$81:$AW$128, 0, $AW145 ) = $AV145) *_xlfn.ANCHORARRAY( $AX$81) * BR$81:BR$128 ) / $AX145 -> 65.60197544 | BS145: =SUM( (INDEX($AT$81:$AW$128, 0, $AW145 ) = $AV145) *_xlfn.ANCHORARRAY( $AX$81) * BS$81:BS$128 ) / $AX145 -> 62.7506346 | BT145: =SUM( (INDEX($AT$81:$AW$128, 0, $AW145 ) = $AV145) *_xlfn.ANCHORARRAY( $AX$81) * BT$81:BT$128 ) / $AX145 -> 62.7506346 | BU145: =SUM( (INDEX($AT$81:$AW$128, 0, $AW145 ) = $AV145) *_xlfn.ANCHORARRAY( $AX$81) * BU$81:BU$128 ) / $AX145 -> 62.05021494 | BV145: =SUM( (INDEX($AT$81:$AW$128, 0, $AW145 ) = $AV145) *_xlfn.ANCHORARRAY( $AX$81) * BV$81:BV$128 ) / $AX145 -> 60.6024565 | BW145: =SUM( (INDEX($AT$81:$AW$128, 0, $AW145 ) = $AV145) *_xlfn.ANCHORARRAY( $AX$81) * BW$81:BW$128 ) / $AX145 -> 60.35616172 | BX145: =SUM( (INDEX($AT$81:$AW$128, 0, $AW145 ) = $AV145) *_xlfn.ANCHORARRAY( $AX$81) * BX$81:BX$128 ) / $AX145 -> 60.35616172 | BY145: =SUM( (INDEX($AT$81:$AW$128, 0, $AW145 ) = $AV145) *_xlfn.ANCHORARRAY( $AX$81) * BY$81:BY$128 ) / $AX145 -> 60.82900716 | BZ145: =SUM( (INDEX($AT$81:$AW$128, 0, $AW145 ) = $AV145) *_xlfn.ANCHORARRAY( $AX$81) * BZ$81:BZ$128 ) / $AX145 -> 62.84416581 | CA145: =SUM( (INDEX($AT$81:$AW$128, 0, $AW145 ) = $AV145) *_xlfn.ANCHORARRAY( $AX$81) * CA$81:CA$128 ) / $AX145 -> 63.62703173 | CB145: =SUM( (INDEX($AT$81:$AW$128, 0, $AW145 ) = $AV145) *_xlfn.ANCHORARRAY( $AX$81) * CB$81:CB$128 ) / $AX145 -> 63.95331627
AV146: 14 | AW146: 2 | AX146: 943 | AY146: =SUM( (INDEX($AT$81:$AW$128, 0, $AW146 ) = $AV146) *_xlfn.ANCHORARRAY( $AX$81) * AY$81:AY$128 ) / $AX146 -> 75.31179215 | AZ146: =SUM( (INDEX($AT$81:$AW$128, 0, $AW146 ) = $AV146) *_xlfn.ANCHORARRAY( $AX$81) * AZ$81:AZ$128 ) / $AX146 -> 75.66412513 | BA146: =SUM( (INDEX($AT$81:$AW$128, 0, $AW146 ) = $AV146) *_xlfn.ANCHORARRAY( $AX$81) * BA$81:BA$128 ) / $AX146 -> 75.99990456 | BB146: =SUM( (INDEX($AT$81:$AW$128, 0, $AW146 ) = $AV146) *_xlfn.ANCHORARRAY( $AX$81) * BB$81:BB$128 ) / $AX146 -> 76.00111347 | BC146: =SUM( (INDEX($AT$81:$AW$128, 0, $AW146 ) = $AV146) *_xlfn.ANCHORARRAY( $AX$81) * BC$81:BC$128 ) / $AX146 -> 75.99962884 | BD146: =SUM( (INDEX($AT$81:$AW$128, 0, $AW146 ) = $AV146) *_xlfn.ANCHORARRAY( $AX$81) * BD$81:BD$128 ) / $AX146 -> 76.25126193 | BE146: =SUM( (INDEX($AT$81:$AW$128, 0, $AW146 ) = $AV146) *_xlfn.ANCHORARRAY( $AX$81) * BE$81:BE$128 ) / $AX146 -> 75.99965005 | BF146: =SUM( (INDEX($AT$81:$AW$128, 0, $AW146 ) = $AV146) *_xlfn.ANCHORARRAY( $AX$81) * BF$81:BF$128 ) / $AX146 -> 75.97588547 | BG146: =SUM( (INDEX($AT$81:$AW$128, 0, $AW146 ) = $AV146) *_xlfn.ANCHORARRAY( $AX$81) * BG$81:BG$128 ) / $AX146 -> 75.5504772 | BH146: =SUM( (INDEX($AT$81:$AW$128, 0, $AW146 ) = $AV146) *_xlfn.ANCHORARRAY( $AX$81) * BH$81:BH$128 ) / $AX146 -> 76.43823966 | BI146: =SUM( (INDEX($AT$81:$AW$128, 0, $AW146 ) = $AV146) *_xlfn.ANCHORARRAY( $AX$81) * BI$81:BI$128 ) / $AX146 -> 76.74710498 | BJ146: =SUM( (INDEX($AT$81:$AW$128, 0, $AW146 ) = $AV146) *_xlfn.ANCHORARRAY( $AX$81) * BJ$81:BJ$128 ) / $AX146 -> 77.96971368 | BK146: =SUM( (INDEX($AT$81:$AW$128, 0, $AW146 ) = $AV146) *_xlfn.ANCHORARRAY( $AX$81) * BK$81:BK$128 ) / $AX146 -> 77.74700954 | BL146: =SUM( (INDEX($AT$81:$AW$128, 0, $AW146 ) = $AV146) *_xlfn.ANCHORARRAY( $AX$81) * BL$81:BL$128 ) / $AX146 -> 78.75989396 | BM146: =SUM( (INDEX($AT$81:$AW$128, 0, $AW146 ) = $AV146) *_xlfn.ANCHORARRAY( $AX$81) * BM$81:BM$128 ) / $AX146 -> 76.75152704 | BN146: =SUM( (INDEX($AT$81:$AW$128, 0, $AW146 ) = $AV146) *_xlfn.ANCHORARRAY( $AX$81) * BN$81:BN$128 ) / $AX146 -> 77.24843054 | BO146: =SUM( (INDEX($AT$81:$AW$128, 0, $AW146 ) = $AV146) *_xlfn.ANCHORARRAY( $AX$81) * BO$81:BO$128 ) / $AX146 -> 76.74931071 | BP146: =SUM( (INDEX($AT$81:$AW$128, 0, $AW146 ) = $AV146) *_xlfn.ANCHORARRAY( $AX$81) * BP$81:BP$128 ) / $AX146 -> 76.54942736 | BQ146: =SUM( (INDEX($AT$81:$AW$128, 0, $AW146 ) = $AV146) *_xlfn.ANCHORARRAY( $AX$81) * BQ$81:BQ$128 ) / $AX146 -> 77.63949099 | BR146: =SUM( (INDEX($AT$81:$AW$128, 0, $AW146 ) = $AV146) *_xlfn.ANCHORARRAY( $AX$81) * BR$81:BR$128 ) / $AX146 -> 77.09793213 | BS146: =SUM( (INDEX($AT$81:$AW$128, 0, $AW146 ) = $AV146) *_xlfn.ANCHORARRAY( $AX$81) * BS$81:BS$128 ) / $AX146 -> 77.25090138 | BT146: =SUM( (INDEX($AT$81:$AW$128, 0, $AW146 ) = $AV146) *_xlfn.ANCHORARRAY( $AX$81) * BT$81:BT$128 ) / $AX146 -> 76.78895016 | BU146: =SUM( (INDEX($AT$81:$AW$128, 0, $AW146 ) = $AV146) *_xlfn.ANCHORARRAY( $AX$81) * BU$81:BU$128 ) / $AX146 -> 76.25044539 | BV146: =SUM( (INDEX($AT$81:$AW$128, 0, $AW146 ) = $AV146) *_xlfn.ANCHORARRAY( $AX$81) * BV$81:BV$128 ) / $AX146 -> 76.20022269 | BW146: =SUM( (INDEX($AT$81:$AW$128, 0, $AW146 ) = $AV146) *_xlfn.ANCHORARRAY( $AX$81) * BW$81:BW$128 ) / $AX146 -> 74.71498409 | BX146: =SUM( (INDEX($AT$81:$AW$128, 0, $AW146 ) = $AV146) *_xlfn.ANCHORARRAY( $AX$81) * BX$81:BX$128 ) / $AX146 -> 73.89417815 | BY146: =SUM( (INDEX($AT$81:$AW$128, 0, $AW146 ) = $AV146) *_xlfn.ANCHORARRAY( $AX$81) * BY$81:BY$128 ) / $AX146 -> 73.74149523 | BZ146: =SUM( (INDEX($AT$81:$AW$128, 0, $AW146 ) = $AV146) *_xlfn.ANCHORARRAY( $AX$81) * BZ$81:BZ$128 ) / $AX146 -> 74.43573701 | CA146: =SUM( (INDEX($AT$81:$AW$128, 0, $AW146 ) = $AV146) *_xlfn.ANCHORARRAY( $AX$81) * CA$81:CA$128 ) / $AX146 -> 74.74805938 | CB146: =SUM( (INDEX($AT$81:$AW$128, 0, $AW146 ) = $AV146) *_xlfn.ANCHORARRAY( $AX$81) * CB$81:CB$128 ) / $AX146 -> 74.65407211
AV147: 15 | AW147: 2 | AX147: 952 | AY147: =SUM( (INDEX($AT$81:$AW$128, 0, $AW147 ) = $AV147) *_xlfn.ANCHORARRAY( $AX$81) * AY$81:AY$128 ) / $AX147 -> 29.20016807 | AZ147: =SUM( (INDEX($AT$81:$AW$128, 0, $AW147 ) = $AV147) *_xlfn.ANCHORARRAY( $AX$81) * AZ$81:AZ$128 ) / $AX147 -> 29.30252101 | BA147: =SUM( (INDEX($AT$81:$AW$128, 0, $AW147 ) = $AV147) *_xlfn.ANCHORARRAY( $AX$81) * BA$81:BA$128 ) / $AX147 -> 29.14403361 | BB147: =SUM( (INDEX($AT$81:$AW$128, 0, $AW147 ) = $AV147) *_xlfn.ANCHORARRAY( $AX$81) * BB$81:BB$128 ) / $AX147 -> 29.10764706 | BC147: =SUM( (INDEX($AT$81:$AW$128, 0, $AW147 ) = $AV147) *_xlfn.ANCHORARRAY( $AX$81) * BC$81:BC$128 ) / $AX147 -> 29.12806723 | BD147: =SUM( (INDEX($AT$81:$AW$128, 0, $AW147 ) = $AV147) *_xlfn.ANCHORARRAY( $AX$81) * BD$81:BD$128 ) / $AX147 -> 29.75084034 | BE147: =SUM( (INDEX($AT$81:$AW$128, 0, $AW147 ) = $AV147) *_xlfn.ANCHORARRAY( $AX$81) * BE$81:BE$128 ) / $AX147 -> 29.54487395 | BF147: =SUM( (INDEX($AT$81:$AW$128, 0, $AW147 ) = $AV147) *_xlfn.ANCHORARRAY( $AX$81) * BF$81:BF$128 ) / $AX147 -> 29.71890756 | BG147: =SUM( (INDEX($AT$81:$AW$128, 0, $AW147 ) = $AV147) *_xlfn.ANCHORARRAY( $AX$81) * BG$81:BG$128 ) / $AX147 -> 29.5497479 | BH147: =SUM( (INDEX($AT$81:$AW$128, 0, $AW147 ) = $AV147) *_xlfn.ANCHORARRAY( $AX$81) * BH$81:BH$128 ) / $AX147 -> 30.16445378 | BI147: =SUM( (INDEX($AT$81:$AW$128, 0, $AW147 ) = $AV147) *_xlfn.ANCHORARRAY( $AX$81) * BI$81:BI$128 ) / $AX147 -> 30.25042017 | BJ147: =SUM( (INDEX($AT$81:$AW$128, 0, $AW147 ) = $AV147) *_xlfn.ANCHORARRAY( $AX$81) * BJ$81:BJ$128 ) / $AX147 -> 30.22722689 | BK147: =SUM( (INDEX($AT$81:$AW$128, 0, $AW147 ) = $AV147) *_xlfn.ANCHORARRAY( $AX$81) * BK$81:BK$128 ) / $AX147 -> 30.14764706 | BL147: =SUM( (INDEX($AT$81:$AW$128, 0, $AW147 ) = $AV147) *_xlfn.ANCHORARRAY( $AX$81) * BL$81:BL$128 ) / $AX147 -> 30.1612605 | BM147: =SUM( (INDEX($AT$81:$AW$128, 0, $AW147 ) = $AV147) *_xlfn.ANCHORARRAY( $AX$81) * BM$81:BM$128 ) / $AX147 -> 30.25210084 | BN147: =SUM( (INDEX($AT$81:$AW$128, 0, $AW147 ) = $AV147) *_xlfn.ANCHORARRAY( $AX$81) * BN$81:BN$128 ) / $AX147 -> 30.24319328 | BO147: =SUM( (INDEX($AT$81:$AW$128, 0, $AW147 ) = $AV147) *_xlfn.ANCHORARRAY( $AX$81) * BO$81:BO$128 ) / $AX147 -> 30.2512605 | BP147: =SUM( (INDEX($AT$81:$AW$128, 0, $AW147 ) = $AV147) *_xlfn.ANCHORARRAY( $AX$81) * BP$81:BP$128 ) / $AX147 -> 29.33462185 | BQ147: =SUM( (INDEX($AT$81:$AW$128, 0, $AW147 ) = $AV147) *_xlfn.ANCHORARRAY( $AX$81) * BQ$81:BQ$128 ) / $AX147 -> 29.81252101 | BR147: =SUM( (INDEX($AT$81:$AW$128, 0, $AW147 ) = $AV147) *_xlfn.ANCHORARRAY( $AX$81) * BR$81:BR$128 ) / $AX147 -> 29.74781513 | BS147: =SUM( (INDEX($AT$81:$AW$128, 0, $AW147 ) = $AV147) *_xlfn.ANCHORARRAY( $AX$81) * BS$81:BS$128 ) / $AX147 -> 29.71697479 | BT147: =SUM( (INDEX($AT$81:$AW$128, 0, $AW147 ) = $AV147) *_xlfn.ANCHORARRAY( $AX$81) * BT$81:BT$128 ) / $AX147 -> 29.53142857 | BU147: =SUM( (INDEX($AT$81:$AW$128, 0, $AW147 ) = $AV147) *_xlfn.ANCHORARRAY( $AX$81) * BU$81:BU$128 ) / $AX147 -> 29.33268908 | BV147: =SUM( (INDEX($AT$81:$AW$128, 0, $AW147 ) = $AV147) *_xlfn.ANCHORARRAY( $AX$81) * BV$81:BV$128 ) / $AX147 -> 29.44840336 | BW147: =SUM( (INDEX($AT$81:$AW$128, 0, $AW147 ) = $AV147) *_xlfn.ANCHORARRAY( $AX$81) * BW$81:BW$128 ) / $AX147 -> 28.5310084 | BX147: =SUM( (INDEX($AT$81:$AW$128, 0, $AW147 ) = $AV147) *_xlfn.ANCHORARRAY( $AX$81) * BX$81:BX$128 ) / $AX147 -> 28.18630252 | BY147: =SUM( (INDEX($AT$81:$AW$128, 0, $AW147 ) = $AV147) *_xlfn.ANCHORARRAY( $AX$81) * BY$81:BY$128 ) / $AX147 -> 28.11672269 | BZ147: =SUM( (INDEX($AT$81:$AW$128, 0, $AW147 ) = $AV147) *_xlfn.ANCHORARRAY( $AX$81) * BZ$81:BZ$128 ) / $AX147 -> 28.38184874 | CA147: =SUM( (INDEX($AT$81:$AW$128, 0, $AW147 ) = $AV147) *_xlfn.ANCHORARRAY( $AX$81) * CA$81:CA$128 ) / $AX147 -> 28.5010084 | CB147: =SUM( (INDEX($AT$81:$AW$128, 0, $AW147 ) = $AV147) *_xlfn.ANCHORARRAY( $AX$81) * CB$81:CB$128 ) / $AX147 -> 29.37252101
AV148: 16 | AW148: 2 | AX148: 976 | AY148: =SUM( (INDEX($AT$81:$AW$128, 0, $AW148 ) = $AV148) *_xlfn.ANCHORARRAY( $AX$81) * AY$81:AY$128 ) / $AX148 -> 51.99893443 | AZ148: =SUM( (INDEX($AT$81:$AW$128, 0, $AW148 ) = $AV148) *_xlfn.ANCHORARRAY( $AX$81) * AZ$81:AZ$128 ) / $AX148 -> 52.85606557 | BA148: =SUM( (INDEX($AT$81:$AW$128, 0, $AW148 ) = $AV148) *_xlfn.ANCHORARRAY( $AX$81) * BA$81:BA$128 ) / $AX148 -> 52.99967213 | BB148: =SUM( (INDEX($AT$81:$AW$128, 0, $AW148 ) = $AV148) *_xlfn.ANCHORARRAY( $AX$81) * BB$81:BB$128 ) / $AX148 -> 52.9995082 | BC148: =SUM( (INDEX($AT$81:$AW$128, 0, $AW148 ) = $AV148) *_xlfn.ANCHORARRAY( $AX$81) * BC$81:BC$128 ) / $AX148 -> 52.50237705 | BD148: =SUM( (INDEX($AT$81:$AW$128, 0, $AW148 ) = $AV148) *_xlfn.ANCHORARRAY( $AX$81) * BD$81:BD$128 ) / $AX148 -> 52.69229508 | BE148: =SUM( (INDEX($AT$81:$AW$128, 0, $AW148 ) = $AV148) *_xlfn.ANCHORARRAY( $AX$81) * BE$81:BE$128 ) / $AX148 -> 52.44909836 | BF148: =SUM( (INDEX($AT$81:$AW$128, 0, $AW148 ) = $AV148) *_xlfn.ANCHORARRAY( $AX$81) * BF$81:BF$128 ) / $AX148 -> 51.9552459 | BG148: =SUM( (INDEX($AT$81:$AW$128, 0, $AW148 ) = $AV148) *_xlfn.ANCHORARRAY( $AX$81) * BG$81:BG$128 ) / $AX148 -> 51.49811475 | BH148: =SUM( (INDEX($AT$81:$AW$128, 0, $AW148 ) = $AV148) *_xlfn.ANCHORARRAY( $AX$81) * BH$81:BH$128 ) / $AX148 -> 51.74901639 | BI148: =SUM( (INDEX($AT$81:$AW$128, 0, $AW148 ) = $AV148) *_xlfn.ANCHORARRAY( $AX$81) * BI$81:BI$128 ) / $AX148 -> 52.15286885 | BJ148: =SUM( (INDEX($AT$81:$AW$128, 0, $AW148 ) = $AV148) *_xlfn.ANCHORARRAY( $AX$81) * BJ$81:BJ$128 ) / $AX148 -> 52.23983607 | BK148: =SUM( (INDEX($AT$81:$AW$128, 0, $AW148 ) = $AV148) *_xlfn.ANCHORARRAY( $AX$81) * BK$81:BK$128 ) / $AX148 -> 51.99959016 | BL148: =SUM( (INDEX($AT$81:$AW$128, 0, $AW148 ) = $AV148) *_xlfn.ANCHORARRAY( $AX$81) * BL$81:BL$128 ) / $AX148 -> 51.50270492 | BM148: =SUM( (INDEX($AT$81:$AW$128, 0, $AW148 ) = $AV148) *_xlfn.ANCHORARRAY( $AX$81) * BM$81:BM$128 ) / $AX148 -> 51.50221311 | BN148: =SUM( (INDEX($AT$81:$AW$128, 0, $AW148 ) = $AV148) *_xlfn.ANCHORARRAY( $AX$81) * BN$81:BN$128 ) / $AX148 -> 52.24983607 | BO148: =SUM( (INDEX($AT$81:$AW$128, 0, $AW148 ) = $AV148) *_xlfn.ANCHORARRAY( $AX$81) * BO$81:BO$128 ) / $AX148 -> 51.99893443 | BP148: =SUM( (INDEX($AT$81:$AW$128, 0, $AW148 ) = $AV148) *_xlfn.ANCHORARRAY( $AX$81) * BP$81:BP$128 ) / $AX148 -> 52.37852459 | BQ148: =SUM( (INDEX($AT$81:$AW$128, 0, $AW148 ) = $AV148) *_xlfn.ANCHORARRAY( $AX$81) * BQ$81:BQ$128 ) / $AX148 -> 53.60983607 | BR148: =SUM( (INDEX($AT$81:$AW$128, 0, $AW148 ) = $AV148) *_xlfn.ANCHORARRAY( $AX$81) * BR$81:BR$128 ) / $AX148 -> 53.00918033 | BS148: =SUM( (INDEX($AT$81:$AW$128, 0, $AW148 ) = $AV148) *_xlfn.ANCHORARRAY( $AX$81) * BS$81:BS$128 ) / $AX148 -> 52.11229508 | BT148: =SUM( (INDEX($AT$81:$AW$128, 0, $AW148 ) = $AV148) *_xlfn.ANCHORARRAY( $AX$81) * BT$81:BT$128 ) / $AX148 -> 51.59844262 | BU148: =SUM( (INDEX($AT$81:$AW$128, 0, $AW148 ) = $AV148) *_xlfn.ANCHORARRAY( $AX$81) * BU$81:BU$128 ) / $AX148 -> 51.00114754 | BV148: =SUM( (INDEX($AT$81:$AW$128, 0, $AW148 ) = $AV148) *_xlfn.ANCHORARRAY( $AX$81) * BV$81:BV$128 ) / $AX148 -> 49.40303279 | BW148: =SUM( (INDEX($AT$81:$AW$128, 0, $AW148 ) = $AV148) *_xlfn.ANCHORARRAY( $AX$81) * BW$81:BW$128 ) / $AX148 -> 51.13311475 | BX148: =SUM( (INDEX($AT$81:$AW$128, 0, $AW148 ) = $AV148) *_xlfn.ANCHORARRAY( $AX$81) * BX$81:BX$128 ) / $AX148 -> 50.2854918 | BY148: =SUM( (INDEX($AT$81:$AW$128, 0, $AW148 ) = $AV148) *_xlfn.ANCHORARRAY( $AX$81) * BY$81:BY$128 ) / $AX148 -> 50.15196721 | BZ148: =SUM( (INDEX($AT$81:$AW$128, 0, $AW148 ) = $AV148) *_xlfn.ANCHORARRAY( $AX$81) * BZ$81:BZ$128 ) / $AX148 -> 51.0195082 | CA148: =SUM( (INDEX($AT$81:$AW$128, 0, $AW148 ) = $AV148) *_xlfn.ANCHORARRAY( $AX$81) * CA$81:CA$128 ) / $AX148 -> 51.40319672 | CB148: =SUM( (INDEX($AT$81:$AW$128, 0, $AW148 ) = $AV148) *_xlfn.ANCHORARRAY( $AX$81) * CB$81:CB$128 ) / $AX148 -> 52.6907377
AV149: 17 | AW149: 2 | AX149: 977 | AY149: =SUM( (INDEX($AT$81:$AW$128, 0, $AW149 ) = $AV149) *_xlfn.ANCHORARRAY( $AX$81) * AY$81:AY$128 ) / $AX149 -> 74.00134084 | AZ149: =SUM( (INDEX($AT$81:$AW$128, 0, $AW149 ) = $AV149) *_xlfn.ANCHORARRAY( $AX$81) * AZ$81:AZ$128 ) / $AX149 -> 74.00155578 | BA149: =SUM( (INDEX($AT$81:$AW$128, 0, $AW149 ) = $AV149) *_xlfn.ANCHORARRAY( $AX$81) * BA$81:BA$128 ) / $AX149 -> 74.00160696 | BB149: =SUM( (INDEX($AT$81:$AW$128, 0, $AW149 ) = $AV149) *_xlfn.ANCHORARRAY( $AX$81) * BB$81:BB$128 ) / $AX149 -> 73.46060389 | BC149: =SUM( (INDEX($AT$81:$AW$128, 0, $AW149 ) = $AV149) *_xlfn.ANCHORARRAY( $AX$81) * BC$81:BC$128 ) / $AX149 -> 73.49952917 | BD149: =SUM( (INDEX($AT$81:$AW$128, 0, $AW149 ) = $AV149) *_xlfn.ANCHORARRAY( $AX$81) * BD$81:BD$128 ) / $AX149 -> 72.97581372 | BE149: =SUM( (INDEX($AT$81:$AW$128, 0, $AW149 ) = $AV149) *_xlfn.ANCHORARRAY( $AX$81) * BE$81:BE$128 ) / $AX149 -> 74.50407369 | BF149: =SUM( (INDEX($AT$81:$AW$128, 0, $AW149 ) = $AV149) *_xlfn.ANCHORARRAY( $AX$81) * BF$81:BF$128 ) / $AX149 -> 74.87142272 | BG149: =SUM( (INDEX($AT$81:$AW$128, 0, $AW149 ) = $AV149) *_xlfn.ANCHORARRAY( $AX$81) * BG$81:BG$128 ) / $AX149 -> 74.45078813 | BH149: =SUM( (INDEX($AT$81:$AW$128, 0, $AW149 ) = $AV149) *_xlfn.ANCHORARRAY( $AX$81) * BH$81:BH$128 ) / $AX149 -> 75.44963153 | BI149: =SUM( (INDEX($AT$81:$AW$128, 0, $AW149 ) = $AV149) *_xlfn.ANCHORARRAY( $AX$81) * BI$81:BI$128 ) / $AX149 -> 75.52742068 | BJ149: =SUM( (INDEX($AT$81:$AW$128, 0, $AW149 ) = $AV149) *_xlfn.ANCHORARRAY( $AX$81) * BJ$81:BJ$128 ) / $AX149 -> 76.47686796 | BK149: =SUM( (INDEX($AT$81:$AW$128, 0, $AW149 ) = $AV149) *_xlfn.ANCHORARRAY( $AX$81) * BK$81:BK$128 ) / $AX149 -> 76.25327533 | BL149: =SUM( (INDEX($AT$81:$AW$128, 0, $AW149 ) = $AV149) *_xlfn.ANCHORARRAY( $AX$81) * BL$81:BL$128 ) / $AX149 -> 75.99955988 | BM149: =SUM( (INDEX($AT$81:$AW$128, 0, $AW149 ) = $AV149) *_xlfn.ANCHORARRAY( $AX$81) * BM$81:BM$128 ) / $AX149 -> 76.00069601 | BN149: =SUM( (INDEX($AT$81:$AW$128, 0, $AW149 ) = $AV149) *_xlfn.ANCHORARRAY( $AX$81) * BN$81:BN$128 ) / $AX149 -> 76.50205732 | BO149: =SUM( (INDEX($AT$81:$AW$128, 0, $AW149 ) = $AV149) *_xlfn.ANCHORARRAY( $AX$81) * BO$81:BO$128 ) / $AX149 -> 75.99941658 | BP149: =SUM( (INDEX($AT$81:$AW$128, 0, $AW149 ) = $AV149) *_xlfn.ANCHORARRAY( $AX$81) * BP$81:BP$128 ) / $AX149 -> 75.46880246 | BQ149: =SUM( (INDEX($AT$81:$AW$128, 0, $AW149 ) = $AV149) *_xlfn.ANCHORARRAY( $AX$81) * BQ$81:BQ$128 ) / $AX149 -> 76.57037871 | BR149: =SUM( (INDEX($AT$81:$AW$128, 0, $AW149 ) = $AV149) *_xlfn.ANCHORARRAY( $AX$81) * BR$81:BR$128 ) / $AX149 -> 76.02286592 | BS149: =SUM( (INDEX($AT$81:$AW$128, 0, $AW149 ) = $AV149) *_xlfn.ANCHORARRAY( $AX$81) * BS$81:BS$128 ) / $AX149 -> 76.01244626 | BT149: =SUM( (INDEX($AT$81:$AW$128, 0, $AW149 ) = $AV149) *_xlfn.ANCHORARRAY( $AX$81) * BT$81:BT$128 ) / $AX149 -> 75.54509724 | BU149: =SUM( (INDEX($AT$81:$AW$128, 0, $AW149 ) = $AV149) *_xlfn.ANCHORARRAY( $AX$81) * BU$81:BU$128 ) / $AX149 -> 75.00103378 | BV149: =SUM( (INDEX($AT$81:$AW$128, 0, $AW149 ) = $AV149) *_xlfn.ANCHORARRAY( $AX$81) * BV$81:BV$128 ) / $AX149 -> 75.22288639 | BW149: =SUM( (INDEX($AT$81:$AW$128, 0, $AW149 ) = $AV149) *_xlfn.ANCHORARRAY( $AX$81) * BW$81:BW$128 ) / $AX149 -> 73.72765609 | BX149: =SUM( (INDEX($AT$81:$AW$128, 0, $AW149 ) = $AV149) *_xlfn.ANCHORARRAY( $AX$81) * BX$81:BX$128 ) / $AX149 -> 72.9063869 | BY149: =SUM( (INDEX($AT$81:$AW$128, 0, $AW149 ) = $AV149) *_xlfn.ANCHORARRAY( $AX$81) * BY$81:BY$128 ) / $AX149 -> 72.75295803 | BZ149: =SUM( (INDEX($AT$81:$AW$128, 0, $AW149 ) = $AV149) *_xlfn.ANCHORARRAY( $AX$81) * BZ$81:BZ$128 ) / $AX149 -> 73.44070624 | CA149: =SUM( (INDEX($AT$81:$AW$128, 0, $AW149 ) = $AV149) *_xlfn.ANCHORARRAY( $AX$81) * CA$81:CA$128 ) / $AX149 -> 73.75117707 | CB149: =SUM( (INDEX($AT$81:$AW$128, 0, $AW149 ) = $AV149) *_xlfn.ANCHORARRAY( $AX$81) * CB$81:CB$128 ) / $AX149 -> 73.86987718
AV150: 18 | AW150: 3 | AX150: 3848 | AY150: =SUM( (INDEX($AT$81:$AW$128, 0, $AW150 ) = $AV150) *_xlfn.ANCHORARRAY( $AX$81) * AY$81:AY$128 ) / $AX150 -> 49.99065229 | AZ150: =SUM( (INDEX($AT$81:$AW$128, 0, $AW150 ) = $AV150) *_xlfn.ANCHORARRAY( $AX$81) * AZ$81:AZ$128 ) / $AX150 -> 50.89320946 | BA150: =SUM( (INDEX($AT$81:$AW$128, 0, $AW150 ) = $AV150) *_xlfn.ANCHORARRAY( $AX$81) * BA$81:BA$128 ) / $AX150 -> 51.19279366 | BB150: =SUM( (INDEX($AT$81:$AW$128, 0, $AW150 ) = $AV150) *_xlfn.ANCHORARRAY( $AX$81) * BB$81:BB$128 ) / $AX150 -> 51.02761435 | BC150: =SUM( (INDEX($AT$81:$AW$128, 0, $AW150 ) = $AV150) *_xlfn.ANCHORARRAY( $AX$81) * BC$81:BC$128 ) / $AX150 -> 50.27015073 | BD150: =SUM( (INDEX($AT$81:$AW$128, 0, $AW150 ) = $AV150) *_xlfn.ANCHORARRAY( $AX$81) * BD$81:BD$128 ) / $AX150 -> 50.41720894 | BE150: =SUM( (INDEX($AT$81:$AW$128, 0, $AW150 ) = $AV150) *_xlfn.ANCHORARRAY( $AX$81) * BE$81:BE$128 ) / $AX150 -> 50.69970894 | BF150: =SUM( (INDEX($AT$81:$AW$128, 0, $AW150 ) = $AV150) *_xlfn.ANCHORARRAY( $AX$81) * BF$81:BF$128 ) / $AX150 -> 50.8902105 | BG150: =SUM( (INDEX($AT$81:$AW$128, 0, $AW150 ) = $AV150) *_xlfn.ANCHORARRAY( $AX$81) * BG$81:BG$128 ) / $AX150 -> 50.58968295 | BH150: =SUM( (INDEX($AT$81:$AW$128, 0, $AW150 ) = $AV150) *_xlfn.ANCHORARRAY( $AX$81) * BH$81:BH$128 ) / $AX150 -> 50.81526247 | BI150: =SUM( (INDEX($AT$81:$AW$128, 0, $AW150 ) = $AV150) *_xlfn.ANCHORARRAY( $AX$81) * BI$81:BI$128 ) / $AX150 -> 51.23273909 | BJ150: =SUM( (INDEX($AT$81:$AW$128, 0, $AW150 ) = $AV150) *_xlfn.ANCHORARRAY( $AX$81) * BJ$81:BJ$128 ) / $AX150 -> 51.27647609 | BK150: =SUM( (INDEX($AT$81:$AW$128, 0, $AW150 ) = $AV150) *_xlfn.ANCHORARRAY( $AX$81) * BK$81:BK$128 ) / $AX150 -> 51.22491684 | BL150: =SUM( (INDEX($AT$81:$AW$128, 0, $AW150 ) = $AV150) *_xlfn.ANCHORARRAY( $AX$81) * BL$81:BL$128 ) / $AX150 -> 51.12821466 | BM150: =SUM( (INDEX($AT$81:$AW$128, 0, $AW150 ) = $AV150) *_xlfn.ANCHORARRAY( $AX$81) * BM$81:BM$128 ) / $AX150 -> 50.84343815 | BN150: =SUM( (INDEX($AT$81:$AW$128, 0, $AW150 ) = $AV150) *_xlfn.ANCHORARRAY( $AX$81) * BN$81:BN$128 ) / $AX150 -> 51.35053015 | BO150: =SUM( (INDEX($AT$81:$AW$128, 0, $AW150 ) = $AV150) *_xlfn.ANCHORARRAY( $AX$81) * BO$81:BO$128 ) / $AX150 -> 50.82485187 | BP150: =SUM( (INDEX($AT$81:$AW$128, 0, $AW150 ) = $AV150) *_xlfn.ANCHORARRAY( $AX$81) * BP$81:BP$128 ) / $AX150 -> 50.02962838 | BQ150: =SUM( (INDEX($AT$81:$AW$128, 0, $AW150 ) = $AV150) *_xlfn.ANCHORARRAY( $AX$81) * BQ$81:BQ$128 ) / $AX150 -> 51.23873701 | BR150: =SUM( (INDEX($AT$81:$AW$128, 0, $AW150 ) = $AV150) *_xlfn.ANCHORARRAY( $AX$81) * BR$81:BR$128 ) / $AX150 -> 50.8187396 | BS150: =SUM( (INDEX($AT$81:$AW$128, 0, $AW150 ) = $AV150) *_xlfn.ANCHORARRAY( $AX$81) * BS$81:BS$128 ) / $AX150 -> 49.45093555 | BT150: =SUM( (INDEX($AT$81:$AW$128, 0, $AW150 ) = $AV150) *_xlfn.ANCHORARRAY( $AX$81) * BT$81:BT$128 ) / $AX150 -> 49.05365904 | BU150: =SUM( (INDEX($AT$81:$AW$128, 0, $AW150 ) = $AV150) *_xlfn.ANCHORARRAY( $AX$81) * BU$81:BU$128 ) / $AX150 -> 48.39714657 | BV150: =SUM( (INDEX($AT$81:$AW$128, 0, $AW150 ) = $AV150) *_xlfn.ANCHORARRAY( $AX$81) * BV$81:BV$128 ) / $AX150 -> 47.1631289 | BW150: =SUM( (INDEX($AT$81:$AW$128, 0, $AW150 ) = $AV150) *_xlfn.ANCHORARRAY( $AX$81) * BW$81:BW$128 ) / $AX150 -> 46.58862526 | BX150: =SUM( (INDEX($AT$81:$AW$128, 0, $AW150 ) = $AV150) *_xlfn.ANCHORARRAY( $AX$81) * BX$81:BX$128 ) / $AX150 -> 46.03792879 | BY150: =SUM( (INDEX($AT$81:$AW$128, 0, $AW150 ) = $AV150) *_xlfn.ANCHORARRAY( $AX$81) * BY$81:BY$128 ) / $AX150 -> 45.98531445 | BZ150: =SUM( (INDEX($AT$81:$AW$128, 0, $AW150 ) = $AV150) *_xlfn.ANCHORARRAY( $AX$81) * BZ$81:BZ$128 ) / $AX150 -> 46.7225052 | CA150: =SUM( (INDEX($AT$81:$AW$128, 0, $AW150 ) = $AV150) *_xlfn.ANCHORARRAY( $AX$81) * CA$81:CA$128 ) / $AX150 -> 47.2589683 | CB150: =SUM( (INDEX($AT$81:$AW$128, 0, $AW150 ) = $AV150) *_xlfn.ANCHORARRAY( $AX$81) * CB$81:CB$128 ) / $AX150 -> 47.67158784
AV151: 19 | AW151: 3 | AX151: 3848 | AY151: =SUM( (INDEX($AT$81:$AW$128, 0, $AW151 ) = $AV151) *_xlfn.ANCHORARRAY( $AX$81) * AY$81:AY$128 ) / $AX151 -> 57.65796518 | AZ151: =SUM( (INDEX($AT$81:$AW$128, 0, $AW151 ) = $AV151) *_xlfn.ANCHORARRAY( $AX$81) * AZ$81:AZ$128 ) / $AX151 -> 57.9870868 | BA151: =SUM( (INDEX($AT$81:$AW$128, 0, $AW151 ) = $AV151) *_xlfn.ANCHORARRAY( $AX$81) * BA$81:BA$128 ) / $AX151 -> 58.06660083 | BB151: =SUM( (INDEX($AT$81:$AW$128, 0, $AW151 ) = $AV151) *_xlfn.ANCHORARRAY( $AX$81) * BB$81:BB$128 ) / $AX151 -> 57.92049376 | BC151: =SUM( (INDEX($AT$81:$AW$128, 0, $AW151 ) = $AV151) *_xlfn.ANCHORARRAY( $AX$81) * BC$81:BC$128 ) / $AX151 -> 57.80897349 | BD151: =SUM( (INDEX($AT$81:$AW$128, 0, $AW151 ) = $AV151) *_xlfn.ANCHORARRAY( $AX$81) * BD$81:BD$128 ) / $AX151 -> 57.93991424 | BE151: =SUM( (INDEX($AT$81:$AW$128, 0, $AW151 ) = $AV151) *_xlfn.ANCHORARRAY( $AX$81) * BE$81:BE$128 ) / $AX151 -> 58.15363565 | BF151: =SUM( (INDEX($AT$81:$AW$128, 0, $AW151 ) = $AV151) *_xlfn.ANCHORARRAY( $AX$81) * BF$81:BF$128 ) / $AX151 -> 58.15887734 | BG151: =SUM( (INDEX($AT$81:$AW$128, 0, $AW151 ) = $AV151) *_xlfn.ANCHORARRAY( $AX$81) * BG$81:BG$128 ) / $AX151 -> 57.79003119 | BH151: =SUM( (INDEX($AT$81:$AW$128, 0, $AW151 ) = $AV151) *_xlfn.ANCHORARRAY( $AX$81) * BH$81:BH$128 ) / $AX151 -> 58.47691008 | BI151: =SUM( (INDEX($AT$81:$AW$128, 0, $AW151 ) = $AV151) *_xlfn.ANCHORARRAY( $AX$81) * BI$81:BI$128 ) / $AX151 -> 58.69605249 | BJ151: =SUM( (INDEX($AT$81:$AW$128, 0, $AW151 ) = $AV151) *_xlfn.ANCHORARRAY( $AX$81) * BJ$81:BJ$128 ) / $AX151 -> 59.25305094 | BK151: =SUM( (INDEX($AT$81:$AW$128, 0, $AW151 ) = $AV151) *_xlfn.ANCHORARRAY( $AX$81) * BK$81:BK$128 ) / $AX151 -> 59.06108108 | BL151: =SUM( (INDEX($AT$81:$AW$128, 0, $AW151 ) = $AV151) *_xlfn.ANCHORARRAY( $AX$81) * BL$81:BL$128 ) / $AX151 -> 59.12222193 | BM151: =SUM( (INDEX($AT$81:$AW$128, 0, $AW151 ) = $AV151) *_xlfn.ANCHORARRAY( $AX$81) * BM$81:BM$128 ) / $AX151 -> 58.65268451 | BN151: =SUM( (INDEX($AT$81:$AW$128, 0, $AW151 ) = $AV151) *_xlfn.ANCHORARRAY( $AX$81) * BN$81:BN$128 ) / $AX151 -> 59.0891736 | BO151: =SUM( (INDEX($AT$81:$AW$128, 0, $AW151 ) = $AV151) *_xlfn.ANCHORARRAY( $AX$81) * BO$81:BO$128 ) / $AX151 -> 58.77759615 | BP151: =SUM( (INDEX($AT$81:$AW$128, 0, $AW151 ) = $AV151) *_xlfn.ANCHORARRAY( $AX$81) * BP$81:BP$128 ) / $AX151 -> 58.46339137 | BQ151: =SUM( (INDEX($AT$81:$AW$128, 0, $AW151 ) = $AV151) *_xlfn.ANCHORARRAY( $AX$81) * BQ$81:BQ$128 ) / $AX151 -> 59.44075364 | BR151: =SUM( (INDEX($AT$81:$AW$128, 0, $AW151 ) = $AV151) *_xlfn.ANCHORARRAY( $AX$81) * BR$81:BR$128 ) / $AX151 -> 59.00066788 | BS151: =SUM( (INDEX($AT$81:$AW$128, 0, $AW151 ) = $AV151) *_xlfn.ANCHORARRAY( $AX$81) * BS$81:BS$128 ) / $AX151 -> 58.80039501 | BT151: =SUM( (INDEX($AT$81:$AW$128, 0, $AW151 ) = $AV151) *_xlfn.ANCHORARRAY( $AX$81) * BT$81:BT$128 ) / $AX151 -> 58.3922921 | BU151: =SUM( (INDEX($AT$81:$AW$128, 0, $AW151 ) = $AV151) *_xlfn.ANCHORARRAY( $AX$81) * BU$81:BU$128 ) / $AX151 -> 57.92152287 | BV151: =SUM( (INDEX($AT$81:$AW$128, 0, $AW151 ) = $AV151) *_xlfn.ANCHORARRAY( $AX$81) * BV$81:BV$128 ) / $AX151 -> 57.58882796 | BW151: =SUM( (INDEX($AT$81:$AW$128, 0, $AW151 ) = $AV151) *_xlfn.ANCHORARRAY( $AX$81) * BW$81:BW$128 ) / $AX151 -> 57.05706601 | BX151: =SUM( (INDEX($AT$81:$AW$128, 0, $AW151 ) = $AV151) *_xlfn.ANCHORARRAY( $AX$81) * BX$81:BX$128 ) / $AX151 -> 56.34712838 | BY151: =SUM( (INDEX($AT$81:$AW$128, 0, $AW151 ) = $AV151) *_xlfn.ANCHORARRAY( $AX$81) * BY$81:BY$128 ) / $AX151 -> 56.21967516 | BZ151: =SUM( (INDEX($AT$81:$AW$128, 0, $AW151 ) = $AV151) *_xlfn.ANCHORARRAY( $AX$81) * BZ$81:BZ$128 ) / $AX151 -> 56.85005977 | CA151: =SUM( (INDEX($AT$81:$AW$128, 0, $AW151 ) = $AV151) *_xlfn.ANCHORARRAY( $AX$81) * CA$81:CA$128 ) / $AX151 -> 57.13222453 | CB151: =SUM( (INDEX($AT$81:$AW$128, 0, $AW151 ) = $AV151) *_xlfn.ANCHORARRAY( $AX$81) * CB$81:CB$128 ) / $AX151 -> 57.68151247
AV152: 20 | AW152: 3 | AX152: 3848 | AY152: =SUM( (INDEX($AT$81:$AW$128, 0, $AW152 ) = $AV152) *_xlfn.ANCHORARRAY( $AX$81) * AY$81:AY$128 ) / $AX152 -> 63.24931913 | AZ152: =SUM( (INDEX($AT$81:$AW$128, 0, $AW152 ) = $AV152) *_xlfn.ANCHORARRAY( $AX$81) * AZ$81:AZ$128 ) / $AX152 -> 64.00367204 | BA152: =SUM( (INDEX($AT$81:$AW$128, 0, $AW152 ) = $AV152) *_xlfn.ANCHORARRAY( $AX$81) * BA$81:BA$128 ) / $AX152 -> 64.2489683 | BB152: =SUM( (INDEX($AT$81:$AW$128, 0, $AW152 ) = $AV152) *_xlfn.ANCHORARRAY( $AX$81) * BB$81:BB$128 ) / $AX152 -> 64.25050416 | BC152: =SUM( (INDEX($AT$81:$AW$128, 0, $AW152 ) = $AV152) *_xlfn.ANCHORARRAY( $AX$81) * BC$81:BC$128 ) / $AX152 -> 63.9695868 | BD152: =SUM( (INDEX($AT$81:$AW$128, 0, $AW152 ) = $AV152) *_xlfn.ANCHORARRAY( $AX$81) * BD$81:BD$128 ) / $AX152 -> 63.84574324 | BE152: =SUM( (INDEX($AT$81:$AW$128, 0, $AW152 ) = $AV152) *_xlfn.ANCHORARRAY( $AX$81) * BE$81:BE$128 ) / $AX152 -> 63.99925676 | BF152: =SUM( (INDEX($AT$81:$AW$128, 0, $AW152 ) = $AV152) *_xlfn.ANCHORARRAY( $AX$81) * BF$81:BF$128 ) / $AX152 -> 63.95909563 | BG152: =SUM( (INDEX($AT$81:$AW$128, 0, $AW152 ) = $AV152) *_xlfn.ANCHORARRAY( $AX$81) * BG$81:BG$128 ) / $AX152 -> 63.57954782 | BH152: =SUM( (INDEX($AT$81:$AW$128, 0, $AW152 ) = $AV152) *_xlfn.ANCHORARRAY( $AX$81) * BH$81:BH$128 ) / $AX152 -> 64.25080301 | BI152: =SUM( (INDEX($AT$81:$AW$128, 0, $AW152 ) = $AV152) *_xlfn.ANCHORARRAY( $AX$81) * BI$81:BI$128 ) / $AX152 -> 64.69159823 | BJ152: =SUM( (INDEX($AT$81:$AW$128, 0, $AW152 ) = $AV152) *_xlfn.ANCHORARRAY( $AX$81) * BJ$81:BJ$128 ) / $AX152 -> 64.94441008 | BK152: =SUM( (INDEX($AT$81:$AW$128, 0, $AW152 ) = $AV152) *_xlfn.ANCHORARRAY( $AX$81) * BK$81:BK$128 ) / $AX152 -> 64.74941788 | BL152: =SUM( (INDEX($AT$81:$AW$128, 0, $AW152 ) = $AV152) *_xlfn.ANCHORARRAY( $AX$81) * BL$81:BL$128 ) / $AX152 -> 64.68927235 | BM152: =SUM( (INDEX($AT$81:$AW$128, 0, $AW152 ) = $AV152) *_xlfn.ANCHORARRAY( $AX$81) * BM$81:BM$128 ) / $AX152 -> 64.24990644 | BN152: =SUM( (INDEX($AT$81:$AW$128, 0, $AW152 ) = $AV152) *_xlfn.ANCHORARRAY( $AX$81) * BN$81:BN$128 ) / $AX152 -> 64.25120322 | BO152: =SUM( (INDEX($AT$81:$AW$128, 0, $AW152 ) = $AV152) *_xlfn.ANCHORARRAY( $AX$81) * BO$81:BO$128 ) / $AX152 -> 64.00009615 | BP152: =SUM( (INDEX($AT$81:$AW$128, 0, $AW152 ) = $AV152) *_xlfn.ANCHORARRAY( $AX$81) * BP$81:BP$128 ) / $AX152 -> 63.76140073 | BQ152: =SUM( (INDEX($AT$81:$AW$128, 0, $AW152 ) = $AV152) *_xlfn.ANCHORARRAY( $AX$81) * BQ$81:BQ$128 ) / $AX152 -> 64.73054574 | BR152: =SUM( (INDEX($AT$81:$AW$128, 0, $AW152 ) = $AV152) *_xlfn.ANCHORARRAY( $AX$81) * BR$81:BR$128 ) / $AX152 -> 64.25099272 | BS152: =SUM( (INDEX($AT$81:$AW$128, 0, $AW152 ) = $AV152) *_xlfn.ANCHORARRAY( $AX$81) * BS$81:BS$128 ) / $AX152 -> 64.13030146 | BT152: =SUM( (INDEX($AT$81:$AW$128, 0, $AW152 ) = $AV152) *_xlfn.ANCHORARRAY( $AX$81) * BT$81:BT$128 ) / $AX152 -> 63.7260317 | BU152: =SUM( (INDEX($AT$81:$AW$128, 0, $AW152 ) = $AV152) *_xlfn.ANCHORARRAY( $AX$81) * BU$81:BU$128 ) / $AX152 -> 63.24984927 | BV152: =SUM( (INDEX($AT$81:$AW$128, 0, $AW152 ) = $AV152) *_xlfn.ANCHORARRAY( $AX$81) * BV$81:BV$128 ) / $AX152 -> 62.9993685 | BW152: =SUM( (INDEX($AT$81:$AW$128, 0, $AW152 ) = $AV152) *_xlfn.ANCHORARRAY( $AX$81) * BW$81:BW$128 ) / $AX152 -> 63.46326143 | BX152: =SUM( (INDEX($AT$81:$AW$128, 0, $AW152 ) = $AV152) *_xlfn.ANCHORARRAY( $AX$81) * BX$81:BX$128 ) / $AX152 -> 62.74940229 | BY152: =SUM( (INDEX($AT$81:$AW$128, 0, $AW152 ) = $AV152) *_xlfn.ANCHORARRAY( $AX$81) * BY$81:BY$128 ) / $AX152 -> 62.38871102 | BZ152: =SUM( (INDEX($AT$81:$AW$128, 0, $AW152 ) = $AV152) *_xlfn.ANCHORARRAY( $AX$81) * BZ$81:BZ$128 ) / $AX152 -> 63.02227911 | CA152: =SUM( (INDEX($AT$81:$AW$128, 0, $AW152 ) = $AV152) *_xlfn.ANCHORARRAY( $AX$81) * CA$81:CA$128 ) / $AX152 -> 63.04872921 | CB152: =SUM( (INDEX($AT$81:$AW$128, 0, $AW152 ) = $AV152) *_xlfn.ANCHORARRAY( $AX$81) * CB$81:CB$128 ) / $AX152 -> 62.96819387
AR155: MALIN
AS156: col | AT156: Mth | AU156: Qtr | AV156: Cal | AW156: Strip | AX156: Dys | AY156: =_xlfn.ANCHORARRAY(AY$4) -> 2024-10-21 | AZ156: 2024-10-18 | BA156: 2024-10-17 | BB156: 2024-10-16 | BC156: 2024-10-15 | BD156: 2024-10-14 | BE156: 2024-10-11 | BF156: 2024-10-10 | BG156: 2024-10-09 | BH156: 2024-10-08 | BI156: 2024-10-07 | BJ156: 2024-10-04 | BK156: 2024-10-03 | BL156: 2024-10-02 | BM156: 2024-10-01 | BN156: 2024-09-30 | BO156: 2024-09-27 | BP156: 2024-09-26 | BQ156: 2024-09-25 | BR156: 2024-09-24 | BS156: 2024-09-23 | BT156: 2024-09-20 | BU156: 2024-09-19 | BV156: 2024-09-18 | BW156: 2024-09-17 | BX156: 2024-09-16 | BY156: 2024-09-13 | BZ156: 2024-09-12 | CA156: 2024-09-11 | CB156: 2024-09-10
